Workbook

Sheet Portada
B2: MODELO DE TARIFA TÉCNICA
B3: Transporte Convencional
B4: Fecha actualización | D4: =+TODAY() -> 2020-09-17
B7: CONTENIDO
B9: Este modelo se realiza con base en estimaciones unitarias para diferentes tipologías de bus, asociadas a los tres tipos de servicio existentes para el transporte convencional del Distrito Metropolitano de Quito, estos son servicio urbano, servicio intraparroquial y servicio interparroquial. El servicio intraparroquial se presta con vehículos de tipología minibús, mientras los servicios urbano e interparroquial se prestan con buses tipo. Se presenta la información por tipo de servicio.
B13: No. | C13: Hoja | D13: Descripción
B14: 1 | C14: Sup Generales | D14: Variables macro y precios de la energía
B15: =B14+1 -> 2 | C15: Sup Fijo | D15: Resumen de los supuestos de entrada fijos sobre: las características de los vehículos, el kilometraje, la demanda, los costos de operación, mantenimiento y administración por tipo de servicio. Adicionalmente, se establecen los supuestos sobre los costos y plazos de financiación; así como, de la estructura de capital.
B16: =B15+1 -> 3 | C16: Sup Personal Directo | D16: Supuestos sobre la vinculación de personal directo que incluyen cantidad de personas por bus, salarios y factor prestacional. Se plantean escenarios de remuneración, en el primero se tienen los parámetros del esquema actual de remuneración basado principalmente en un pago diario al personal que trabajan jornadas de 16 horas; en el segundo se emplea un esquema propuesto de operación con todas las prestaciones legales para el 100% del personal de acuerdo a la normatividad laboral, pasando a jornadas de 8 horas de trabajo.
B17: 4 | C17: Sup Personal Indirecto | D17: Supuestos sobre la cantidad de personal, salario mensual por cargo y factor prestacional.
B18: 5 | C18: CAPEX Vehículo | D18: Costos del vehículo según tipología
B19: 6 | C19: OPEX Combustible | D19: Estimación de los costos de combustible por tipología de vehículo
B20: 7 | C20: OPEX Mtto | D20: Estimación de los costos de mantenimiento por tipología de vehículo
B21: 8 | C21: OPEX Personal Directo | D21: Estimación de los costos de personal para los conductores y ayudantes
B22: 9 | C22: OPEX Personal Indirecto | D22: Estimación de los costos de personal administrativo y de mantenimiento
B23: 10 | C23: Actividades Mtto | D23: Listado de repuestos y servicios asociado al mantenimiento de los vehículos con sus costos unitarios y rendimiento
B24: 11 | C24: OPEX Otros gastos | D24: Estimación de costos Administrativos, Seguros y Recaudo
B25: 12 | C25: OPEX Impuestos | D25: Estimación de los impuestos por tipología de vehículo
B26: 13 | C26: Componentes de costos | D26: Componentes de costos del sistema para alternativas con y sin SITP-Q
B27: 14 | C27: FO con SITPQ | D27: Flujo de caja para escenario con implementación del SITP-Q
B28: 15 | C28: FO sin SITPQ | D28: Flujo de caja para escenario sin implementación del SITP-Q
B29: 16 | C29: Resultados | D29: Resumen de los resultados con tablas y gráficos que fueron utilizados en el Producto 1.
B30: 17 | C30: Indicadores | D30: Listado de indicadores aplicados al transporte convencional
B31: 18 | C31: Datos históricos | D31: Registro de históricos de simulaciones.
B34: - Codificación de Fuentes de Información
C36: Código | D36: Subsistema Transporte Convencional
C37: SDM | D37: Secretaria de Movilidad
C38: Oper | D38: Información recolectada en entrevistas/reportes a los operadores de convencional
C39: Bench | D39: Valor que proviende de una o varias referencias de otros subsistemas a través de un ejercicio de benchmark
C40: Calc | D40: Cálculos
C41: Sup | D41: Supuestos
C42: Mdo | D42: Cotizaciones de mercado
C43: M2014 | D43: Mesas de negociación con operadores 2014
C44: NA | D44: No Aplica

Sheet Sup Generales
W1: Público
B2: Estructura de costos Transporte Convencional | W2: Privado
B3: SUPUESTOS GENERALES
B5: Variables Macroeconómicas | C5: 2020
B6: Variable | C6: 0 | D6: =C6+1 -> 1 | E6: =D6+1 -> 2 | F6: 3 | G6: 4 | H6: 5 | I6: 6 | J6: 7 | K6: 8 | L6: 9 | M6: 10 | N6: =M6+1 -> 11 | O6: 12 | P6: 13 | Q6: 14 | R6: 15 | S6: 16 | T6: 17 | U6: =T6+1 -> 18 | V6: =U6+1 -> 19 | W6: 20
B7: Inflación1 | C7: 0.0084 | D7: 0.01 | E7: 0.01 | F7: 0.012 | G7: 0.012 | H7: 0.013 | I7: 0.013 | J7: 0.014 | K7: 0.014 | L7: 0.015 | M7: 0.015 | N7: 0.01352739682 | O7: 0.01438082142 | P7: 0.01375201785 | Q7: 0.0133017818 | R7: 0.01312258263 | S7: 0.01333353294 | T7: 0.01345968047 | U7: 0.01345121592 | V7: 0.01333501523 | W7: 0.01328288991
B8: Incremento acumulado Inflación | C8: =C7 -> 0.0084 | D8: =((1+D7)*(1+C8))-1 -> 0.018484 | E8: 0.02866884 | F8: 0.04101286608 | G8: 0.05350502047 | H8: 0.06720058574 | I8: 0.08107419335 | J8: 0.09620923206 | K8: 0.1115561613 | L8: 0.1282295037 | M8: 0.1451529463 | N8: =((1+N7)*(1+M8))-1 -> 0.1606438846 | O8: =((1+O7)*(1+N8))-1 -> 0.177334897 | P8: =((1+P7)*(1+O8))-1 -> 0.1935256276 | Q8: =((1+Q7)*(1+P8))-1 -> 0.209401645 | R8: =((1+R7)*(1+Q8))-1 -> 0.2252721181 | S8: =((1+S7)*(1+R8))-1 -> 0.2416093242 | T8: =((1+T7)*(1+S8))-1 -> 0.258320989 | U8: =((1+U7)*(1+T8))-1 -> 0.2752469363 | V8: =((1+V7)*(1+U8))-1 -> 0.2922523736 | W8: =((1+W7)*(1+V8))-1 -> 0.3094172196
B9: Crec. costos de mantenimiento y servicios | C9: =C7 -> 0.0084 | D9: 0.01 | E9: 0.01 | F9: 0.012 | G9: 0.012 | H9: 0.013 | I9: 0.013 | J9: 0.014 | K9: 0.014 | L9: 0.015 | M9: 0.015 | N9: =N7 -> 0.01352739682 | O9: 0.01438082142 | P9: 0.01375201785 | Q9: 0.0133017818 | R9: 0.01312258263 | S9: 0.01333353294 | T9: 0.01345968047 | U9: =U7 -> 0.01345121592 | V9: 0.01333501523 | W9: 0.01328288991
B10: Crec. Acumulado de mantenimiento y servicios | C10: =C9 -> 0.0084 | D10: =((1+D9))*(1+C10)-1 -> 0.018484 | E10: =((1+E5)*(1+E9))*(1+D10)-1 -> 0.02866884 | F10: 0.04101286608 | G10: 0.05350502047 | H10: 0.06720058574 | I10: 0.08107419335 | J10: 0.09620923206 | K10: 0.1115561613 | L10: 0.1282295037 | M10: 0.1451529463 | N10: =((1+N5)*(1+N9))*(1+M10)-1 -> 0.1606438846 | O10: =((1+O5)*(1+O9))*(1+N10)-1 -> 0.177334897 | P10: =((1+P5)*(1+P9))*(1+O10)-1 -> 0.1935256276 | Q10: =((1+Q5)*(1+Q9))*(1+P10)-1 -> 0.209401645 | R10: =((1+R5)*(1+R9))*(1+Q10)-1 -> 0.2252721181 | S10: =((1+S5)*(1+S9))*(1+R10)-1 -> 0.2416093242 | T10: =((1+T5)*(1+T9))*(1+S10)-1 -> 0.258320989 | U10: =((1+U5)*(1+U9))*(1+T10)-1 -> 0.2752469363 | V10: =((1+V5)*(1+V9))*(1+U10)-1 -> 0.2922523736 | W10: =((1+W5)*(1+W9))*(1+V10)-1 -> 0.3094172196
B11: Incremento real salario mínimo | C11: =C9 -> 0.0084 | D11: 0.01 | E11: 0.006 | F11: =+E11 -> 0.006 | G11: =+F11 -> 0.006 | H11: 0.006 | I11: 0.006 | J11: 0.006 | K11: 0.006 | L11: 0.006 | M11: 0.006 | N11: 0.006 | O11: 0.006 | P11: 0.006 | Q11: 0.006 | R11: 0.006 | S11: 0.006 | T11: 0.006 | U11: 0.006 | V11: 0.006 | W11: 0.006
B12: Incremento acumulado salario mínimo | D12: =((1+C7)*(1+D11))*(1+C12)-1 -> 0.018484 | E12: =((1+D7)*(1+E11))*(1+D12)-1 -> 0.03484085304 | F12: 0.05146039714 | G12: 0.07046238944 | H12: 0.08980778574 | I12: 0.1105991387 | J12: 0.131787149 | K12: 0.1545179621 | L12: 0.1777053009 | M12: 0.2025431057 | N12: =((1+M7)*(1+N11))*(1+M12)-1 -> 0.2279047398 | O12: =((1+N7)*(1+O11))*(1+N12)-1 -> 0.251982185 | P12: =((1+O7)*(1+P11))*(1+O12)-1 -> 0.2776066376 | Q12: =((1+P7)*(1+Q11))*(1+P12)-1 -> 0.3029473647 | R12: =((1+Q7)*(1+R11))*(1+Q12)-1 -> 0.3282005595 | S12: =((1+R7)*(1+S11))*(1+R12)-1 -> 0.353703761 | T12: =((1+S7)*(1+T11))*(1+S12)-1 -> 0.3799839352 | U12: =((1+T7)*(1+U11))*(1+T12)-1 -> 0.4069494265 | V12: =((1+U7)*(1+V11))*(1+U12)-1 -> 0.4344298546 | W12: =((1+V7)*(1+W11))*(1+V12)-1 -> 0.4622793466
B13: Salario Mínimo | C13: 400 | D13: =(1+D12)*smmlv -> 407.3936 | E13: 413.9363412 | F13: 420.5841589 | G13: 428.1849558 | H13: 435.9231143 | I13: 444.2396555 | J13: 452.7148596 | K13: 461.8071849 | L13: 471.0821204 | M13: 481.0172423 | N13: =(1+N12)*smmlv -> 491.1618959 | O13: 500.792874 | P13: 511.042655 | Q13: 521.1789459 | R13: 531.2802238 | S13: 541.4815044 | T13: 551.9935741 | U13: =(1+U12)*smmlv -> 562.7797706 | V13: 573.7719419 | W13: 584.9117386
B14: 1. Inflación proyectada Bco Central año 2020:0,84%
B17: Precios de energía
B18: Variable | C18: 0 | D18: =C18+1 -> 1 | E18: =D18+1 -> 2 | F18: 3 | G18: 4 | H18: 5 | I18: 6 | J18: 7 | K18: 8 | L18: 9 | M18: 10 | N18: 11 | O18: 12 | P18: 13 | Q18: 14 | R18: 15 | S18: 16 | T18: 17 | U18: 18 | V18: =U18+1 -> 19 | W18: 20
B19: Aumento % Precios WTI | C19: =(1+20%)^(1/3)-1 -> 0.06265856918
B20: Aumento en precios diésel | C20: =C19 -> 0.06265856918 | D20: =+D7 -> 0.01 | E20: =+E7 -> 0.01 | F20: =+F7 -> 0.012 | G20: 0.012 | H20: 0.013 | I20: 0.013 | J20: 0.014 | K20: 0.014 | L20: 0.015 | M20: 0.015 | N20: 0.01352739682 | O20: 0.01438082142 | P20: 0.01375201785 | Q20: 0.0133017818 | R20: 0.01312258263 | S20: 0.01333353294 | T20: 0.01345968047 | U20: 0.01345121592 | V20: 0.01333501523 | W20: 0.01328288991
B21: Costo diésel | C21: ='Sup fijo'!D107 -> 1.037 | D21: =(C21*(1+C20))*(1+D20) -> 1.112996706 | E21: =(D21)*(1+E20) -> 1.124126673 | F21: =(E21)*(1+F20) -> 1.137616193 | G21: =(F21)*(1+G20) -> 1.151267587 | H21: =(G21)*(1+H20) -> 1.166234066 | I21: =(H21)*(1+I20) -> 1.181395109 | J21: =(I21)*(1+J20) -> 1.19793464 | K21: =(J21)*(1+K20) -> 1.214705725 | L21: =(K21)*(1+L20) -> 1.232926311 | M21: =(L21)*(1+M20) -> 1.251420206 | N21: =(M21)*(1+N20) -> 1.268348663 | O21: =(N21)*(1+O20) -> 1.286588559 | P21: =(O21)*(1+P20) -> 1.304281748 | Q21: =(P21)*(1+Q20) -> 1.321631019 | R21: =(Q21)*(1+R20) -> 1.338974231 | S21: =(R21)*(1+S20) -> 1.356827488 | T21: =(S21)*(1+T20) -> 1.375089953 | U21: =(T21)*(1+U20) -> 1.393586584 | V21: =(U21)*(1+V20) -> 1.412170083 | W21: =(V21)*(1+W20) -> 1.430927783
B22: Aumento en precios de energía | C22: =20%*C19+20%*C7 -> 0.01421171384 | D22: =+D7 -> 0.01 | E22: 0.01 | F22: 0.012 | G22: 0.012 | H22: 0.013 | I22: 0.013 | J22: 0.014 | K22: 0.014 | L22: 0.015 | M22: 0.015 | N22: =+N7 -> 0.01352739682 | O22: 0.01438082142 | P22: 0.01375201785 | Q22: 0.0133017818 | R22: 0.01312258263 | S22: 0.01333353294 | T22: 0.01345968047 | U22: =+U7 -> 0.01345121592 | V22: 0.01333501523 | W22: 0.01328288991
B23: Costo KWH | C23: ='Sup fijo'!D109 -> 0.06 | D23: =(C23*(1+C22))*(1+D22) -> 0.06146122986 | E23: =(D23)*(1+E22) -> 0.06207584216 | F23: 0.06282075226 | G23: 0.06357460129 | H23: 0.06440107111 | I23: 0.06523828503 | J23: 0.06615162102 | K23: 0.06707774372 | L23: 0.06808390987 | M23: 0.06910516852 | N23: =(M23)*(1+N22) -> 0.07003998156 | O23: =(N23)*(1+O22) -> 0.07104721402 | P23: =(O23)*(1+P22) -> 0.07202425658 | Q23: =(P23)*(1+Q22) -> 0.07298230752 | R23: =(Q23)*(1+R22) -> 0.07394002389 | S23: =(R23)*(1+S22) -> 0.07492590563 | T23: =(S23)*(1+T22) -> 0.07593438438 | U23: =(T23)*(1+U22) -> 0.07695579418 | V23: =(U23)*(1+V22) -> 0.07798200087 | W23: =(V23)*(1+W22) -> 0.0790178272
B25: Inflación
B40: Incremento años 2016-2019 | C40: Año 2016 | D40: Año 2017 | E40: Año 2018 | F40: Año 2019 | G40: Año 2020 | H40: Año 2021 | I40: Año 2022 | J40: Año 2023 | K40: Año 2024 | L40: Año 2025 | M40: Año 2026
B41: BCE | C41: 366 | D41: 375 | E41: 386 | F41: 394 | G41: 400
B42: Incremento anual % | C42: =+(D41-C41)/D41 -> 0.024
D43: =+(E41-D41)/E41 -> 0.02849740933
E44: =+(F41-E41)/F41 -> 0.02030456853 | G44: =+(G41-F41)/G41 -> 0.015

Sheet Sup fijo
AO1: =C96 -> Euro III | AP1: =D96 -> Euro IV | AQ1: =E96 -> Euro V | AR1: =F96 -> Euro VI | AS1: =G96 -> Híbrido | AT1: =I96 -> Eléctrico | AU1: =J96 -> Gas
B2: Estructura de costos Transporte Convencional | AR2: Diésel | AS2: =AS1 -> Híbrido | AT2: =AT1 -> Eléctrico | AU2: =AU1 -> Gas
B3: SUPUESTOS FIJOS
B5: Parámetros Principales
B7: Parámetros operacionales
B8: Parámetro | C8: Unidad | D8: Fuente | E8: 1 | F8: =E8+1 -> 2 | G8: =F8+1 -> 3 | H8: 4 | I8: 5 | J8: 6 | K8: 7 | L8: 8 | M8: 9 | N8: 10 | O8: 11 | P8: 12 | Q8: =P8+1 -> 13 | R8: 14 | S8: 15 | T8: 16 | U8: 17 | V8: 18 | W8: 19 | X8: 20
B9: Días equivalentes de operación al mes
B10: Para Kilometraje | C10: días | D10: Oper | E10: 27.41666667 | F10: 27.41666667 | G10: 27.41666667 | H10: 27.41666667 | I10: 27.41666667 | J10: 27.41666667 | K10: 27.41666667 | L10: 27.41666667 | M10: 27.41666667 | N10: 27.41666667 | O10: 27.41666667 | P10: 27.41666667 | Q10: 27.41666667 | R10: 27.41666667 | S10: 27.41666667 | T10: 27.41666667 | U10: 27.41666667 | V10: 27.41666667 | W10: 27.41666667 | X10: 27.41666667
B11: Para Demanda | C11: días | D11: Oper | E11: 26.41666667 | F11: 26.41666667 | G11: 26.41666667 | H11: 26.41666667 | I11: 26.41666667 | J11: 26.41666667 | K11: 26.41666667 | L11: 26.41666667 | M11: 26.41666667 | N11: 26.41666667 | O11: 26.41666667 | P11: 26.41666667 | Q11: 26.41666667 | R11: 26.41666667 | S11: 26.41666667 | T11: 26.41666667 | U11: 26.41666667 | V11: 26.41666667 | W11: 26.41666667 | X11: 26.41666667
B12: % Demanda | C12: % | E12: 0 | F12: =+E12 -> 0 | G12: =+F12 -> 0 | H12: 0 | I12: 0 | J12: 0 | K12: 0 | L12: 0 | M12: 0 | N12: 0 | O12: 0 | P12: 0 | Q12: 0 | R12: 0 | S12: 0 | T12: 0 | U12: 0 | V12: 0 | W12: 0 | X12: 0
B13: KILOMETRAJE
B14: Intracantonal Rural
B15: Recorrido dia laborable | C15: km | D15: SDM | E15: 214 | F15: 214 | G15: 214 | H15: 214 | I15: 214 | J15: 214 | K15: 214 | L15: 214 | M15: 214 | N15: 214 | O15: 214 | P15: 214 | Q15: 214 | R15: 214 | S15: 214 | T15: 214 | U15: 214 | V15: 214 | W15: 214 | X15: 214
B16: Recorrido mes | C16: km | D16: Calc | E16: =+E15*E$10 -> 5867.166667 | F16: =+F15*F$10 -> 5867.166667 | G16: 5867.166667 | H16: 5867.166667 | I16: 5867.166667 | J16: 5867.166667 | K16: 5867.166667 | L16: 5867.166667 | M16: 5867.166667 | N16: 5867.166667 | O16: 5867.166667 | P16: 5867.166667 | Q16: 5867.166667 | R16: 5867.166667 | S16: 5867.166667 | T16: 5867.166667 | U16: 5867.166667 | V16: 5867.166667 | W16: 5867.166667 | X16: 5867.166667
B17: Recorrido Año | C17: km | D17: Calc | E17: =+E16*12 -> 70406 | F17: =+F16*12 -> 70406 | G17: 70406 | H17: 70406 | I17: 70406 | J17: 70406 | K17: 70406 | L17: 70406 | M17: 70406 | N17: 70406 | O17: 70406 | P17: 70406 | Q17: =+Q16*12 -> 70406 | R17: =+R16*12 -> 70406 | S17: =+S16*12 -> 70406 | T17: =+T16*12 -> 70406 | U17: =+U16*12 -> 70406 | V17: =+V16*12 -> 70406 | W17: =+W16*12 -> 70406 | X17: =+X16*12 -> 70406
B18: Intracantonal Urbano
B19: Recorrido dia laborable | C19: km | D19: SDM | E19: 194 | F19: 194 | G19: 194 | H19: 194 | I19: 194 | J19: 194 | K19: 194 | L19: 194 | M19: 194 | N19: 194 | O19: 194 | P19: 194 | Q19: 194 | R19: 194 | S19: 194 | T19: 194 | U19: 194 | V19: 194 | W19: 194 | X19: 194
B20: Recorrido mes | C20: km | D20: Calc | E20: =+E19*E$10 -> 5318.833333 | F20: =+F19*F$10 -> 5318.833333 | G20: =+G19*G$10 -> 5318.833333 | H20: =+H19*H$10 -> 5318.833333 | I20: =+I19*I$10 -> 5318.833333 | J20: =+J19*J$10 -> 5318.833333 | K20: =+K19*K$10 -> 5318.833333 | L20: =+L19*L$10 -> 5318.833333 | M20: =+M19*M$10 -> 5318.833333 | N20: =+N19*N$10 -> 5318.833333 | O20: =+O19*O$10 -> 5318.833333 | P20: =+P19*P$10 -> 5318.833333 | Q20: =+Q19*Q$10 -> 5318.833333 | R20: =+R19*R$10 -> 5318.833333 | S20: =+S19*S$10 -> 5318.833333 | T20: =+T19*T$10 -> 5318.833333 | U20: =+U19*U$10 -> 5318.833333 | V20: =+V19*V$10 -> 5318.833333 | W20: =+W19*W$10 -> 5318.833333 | X20: =+X19*X$10 -> 5318.833333
B21: Recorrido Año | C21: km | D21: Calc | E21: =+E20*12 -> 63826 | F21: =+F20*12 -> 63826 | G21: 63826 | H21: 63826 | I21: 63826 | J21: 63826 | K21: 63826 | L21: 63826 | M21: 63826 | N21: 63826 | O21: 63826 | P21: 63826 | Q21: =+Q20*12 -> 63826 | R21: =+R20*12 -> 63826 | S21: =+S20*12 -> 63826 | T21: =+T20*12 -> 63826 | U21: =+U20*12 -> 63826 | V21: =+V20*12 -> 63826 | W21: =+W20*12 -> 63826 | X21: =+X20*12 -> 63826
B22: Intracantonal Combinado
B23: Recorrido dia laborable | C23: km | D23: SDM | E23: 342 | F23: 342 | G23: 342 | H23: 342 | I23: 342 | J23: 342 | K23: 342 | L23: 342 | M23: 342 | N23: 342 | O23: 342 | P23: 342 | Q23: 342 | R23: 342 | S23: 342 | T23: 342 | U23: 342 | V23: 342 | W23: 342 | X23: 342
B24: Recorrido mes | C24: km | D24: Calc | E24: =+E23*E$10 -> 9376.5 | F24: =+F23*F$10 -> 9376.5 | G24: =+G23*G$10 -> 9376.5 | H24: =+H23*H$10 -> 9376.5 | I24: =+I23*I$10 -> 9376.5 | J24: =+J23*J$10 -> 9376.5 | K24: =+K23*K$10 -> 9376.5 | L24: =+L23*L$10 -> 9376.5 | M24: =+M23*M$10 -> 9376.5 | N24: =+N23*N$10 -> 9376.5 | O24: =+O23*O$10 -> 9376.5 | P24: =+P23*P$10 -> 9376.5 | Q24: =+Q23*Q$10 -> 9376.5 | R24: =+R23*R$10 -> 9376.5 | S24: =+S23*S$10 -> 9376.5 | T24: =+T23*T$10 -> 9376.5 | U24: =+U23*U$10 -> 9376.5 | V24: =+V23*V$10 -> 9376.5 | W24: =+W23*W$10 -> 9376.5 | X24: =+X23*X$10 -> 9376.5
B25: Recorrido Año | C25: km | D25: Calc | E25: =+E24*12 -> 112518 | F25: =+F24*12 -> 112518 | G25: 112518 | H25: 112518 | I25: 112518 | J25: 112518 | K25: 112518 | L25: 112518 | M25: 112518 | N25: 112518 | O25: 112518 | P25: 112518 | Q25: =+Q24*12 -> 112518 | R25: =+R24*12 -> 112518 | S25: =+S24*12 -> 112518 | T25: =+T24*12 -> 112518 | U25: =+U24*12 -> 112518 | V25: =+V24*12 -> 112518 | W25: =+W24*12 -> 112518 | X25: =+X24*12 -> 112518
B26: Otro
B27: Recorrido dia laborable | C27: km | D27: SDM | E27: 200 | F27: 200 | G27: 200 | H27: 200 | I27: 200 | J27: 200 | K27: 200 | L27: 200 | M27: 200 | N27: 200 | O27: 200 | P27: 200 | Q27: 200 | R27: 200 | S27: 200 | T27: 200 | U27: 200 | V27: 200 | W27: 200 | X27: 200
B28: Recorrido mes | C28: km | D28: Calc | E28: =+E27*E$10 -> 5483.333333 | F28: =+F27*F$10 -> 5483.333333 | G28: =+G27*G$10 -> 5483.333333 | H28: =+H27*H$10 -> 5483.333333 | I28: =+I27*I$10 -> 5483.333333 | J28: =+J27*J$10 -> 5483.333333 | K28: =+K27*K$10 -> 5483.333333 | L28: =+L27*L$10 -> 5483.333333 | M28: =+M27*M$10 -> 5483.333333 | N28: =+N27*N$10 -> 5483.333333 | O28: =+O27*O$10 -> 5483.333333 | P28: =+P27*P$10 -> 5483.333333 | Q28: =+Q27*Q$10 -> 5483.333333 | R28: =+R27*R$10 -> 5483.333333 | S28: =+S27*S$10 -> 5483.333333 | T28: =+T27*T$10 -> 5483.333333 | U28: =+U27*U$10 -> 5483.333333 | V28: =+V27*V$10 -> 5483.333333 | W28: =+W27*W$10 -> 5483.333333 | X28: =+X27*X$10 -> 5483.333333
B29: Recorrido Año | C29: km | D29: Calc | E29: =+E28*12 -> 65800 | F29: =+F28*12 -> 65800 | G29: 65800 | H29: 65800 | I29: 65800 | J29: 65800 | K29: 65800 | L29: 65800 | M29: 65800 | N29: 65800 | O29: 65800 | P29: 65800 | Q29: =+Q28*12 -> 65800 | R29: =+R28*12 -> 65800 | S29: =+S28*12 -> 65800 | T29: =+T28*12 -> 65800 | U29: =+U28*12 -> 65800 | V29: =+V28*12 -> 65800 | W29: =+W28*12 -> 65800 | X29: =+X28*12 -> 65800
B30: DEMANDA
B31: =+B14 -> Intracantonal Rural
B32: Demanda día laborable | C32: pas | D32: SDM | E32: 972 | F32: 972 | G32: 972 | H32: 972 | I32: 972 | J32: 972 | K32: 972 | L32: 972 | M32: 972 | N32: 972 | O32: 972 | P32: 972 | Q32: 972 | R32: 972 | S32: 972 | T32: 972 | U32: 972 | V32: 972 | W32: 972 | X32: 972
B33: Demanda mes | C33: pas | D33: Calc | E33: =+E32*E$11 -> 25677 | F33: =+F32*F$11 -> 25677 | G33: 25677 | H33: 25677 | I33: 25677 | J33: 25677 | K33: 25677 | L33: 25677 | M33: 25677 | N33: 25677 | O33: 25677 | P33: 25677 | Q33: 25677 | R33: 25677 | S33: 25677 | T33: 25677 | U33: 25677 | V33: 25677 | W33: 25677 | X33: 25677
B34: Demanda Año | C34: pas | D34: Calc | E34: =+E33*12 -> 308124 | F34: =+F33*12 -> 308124 | G34: 308124 | H34: 308124 | I34: 308124 | J34: 308124 | K34: 308124 | L34: 308124 | M34: 308124 | N34: 308124 | O34: 308124 | P34: 308124 | Q34: =+Q33*12 -> 308124 | R34: =+R33*12 -> 308124 | S34: =+S33*12 -> 308124 | T34: =+T33*12 -> 308124 | U34: =+U33*12 -> 308124 | V34: =+V33*12 -> 308124 | W34: =+W33*12 -> 308124 | X34: =+X33*12 -> 308124
B35: =+B18 -> Intracantonal Urbano | E35: =+E38/E36 -> 317
B36: Demanda día laborable | C36: pas | D36: SDM | E36: =1602692/1659 -> 966.0590717 | F36: =+(E36*(1+F12))*1.01 -> 975.7196624 | G36: =+(F36*(1+G12))*1.01 -> 985.4768591 | H36: 995.3316277 | I36: 1005.284944 | J36: 1015.337793 | K36: 1025.491171 | L36: 1035.746083 | M36: 1046.103544 | N36: 1056.564579 | O36: 1067.130225 | P36: 1077.801527 | Q36: 1088.579543 | R36: 1099.465338 | S36: 1110.459991 | T36: 1121.564591 | U36: 1132.780237 | V36: 1144.10804 | W36: 1155.54912 | X36: 1167.104611
B37: Demanda mes | C37: pas | D37: Calc | E37: =+E36*E$11 -> 25520.06048 | F37: =+F36*F$11 -> 25775.26108 | G37: =+G36*G$11 -> 26033.01369 | H37: =+H36*H$11 -> 26293.34383 | I37: =+I36*I$11 -> 26556.27727 | J37: =+J36*J$11 -> 26821.84004 | K37: =+K36*K$11 -> 27090.05844 | L37: =+L36*L$11 -> 27360.95903 | M37: =+M36*M$11 -> 27634.56862 | N37: =+N36*N$11 -> 27910.9143 | O37: =+O36*O$11 -> 28190.02345 | P37: =+P36*P$11 -> 28471.92368 | Q37: =+Q36*Q$11 -> 28756.64292 | R37: =+R36*R$11 -> 29044.20935 | S37: =+S36*S$11 -> 29334.65144 | T37: =+T36*T$11 -> 29627.99795 | U37: =+U36*U$11 -> 29924.27793 | V37: =+V36*V$11 -> 30223.52071 | W37: =+W36*W$11 -> 30525.75592 | X37: =+X36*X$11 -> 30831.01348
B38: Demanda Año | C38: pas | D38: Calc | E38: =+E37*12 -> 306240.7257 | F38: =+F37*12 -> 309303.133 | G38: 312396.1643 | H38: 315520.126 | I38: 318675.3272 | J38: 321862.0805 | K38: 325080.7013 | L38: 328331.5083 | M38: 331614.8234 | N38: 334930.9716 | O38: 338280.2814 | P38: 341663.0842 | Q38: =+Q37*12 -> 345079.715 | R38: =+R37*12 -> 348530.5122 | S38: =+S37*12 -> 352015.8173 | T38: =+T37*12 -> 355535.9755 | U38: =+U37*12 -> 359091.3352 | V38: =+V37*12 -> 362682.2486 | W38: =+W37*12 -> 366309.071 | X38: =+X37*12 -> 369972.1618
B39: =+B22 -> Intracantonal Combinado
B40: Demanda día laborable | C40: pas | D40: SDM | E40: 972 | F40: 972 | G40: 972 | H40: 972 | I40: 972 | J40: 972 | K40: 972 | L40: 972 | M40: 972 | N40: 972 | O40: 972 | P40: 972 | Q40: 972 | R40: 972 | S40: 972 | T40: 972 | U40: 972 | V40: 972 | W40: 972 | X40: 972
B41: Demanda mes | C41: pas | D41: Calc | E41: =+E40*E$11 -> 25677 | F41: =+F40*F$11 -> 25677 | G41: =+G40*G$11 -> 25677 | H41: =+H40*H$11 -> 25677 | I41: =+I40*I$11 -> 25677 | J41: =+J40*J$11 -> 25677 | K41: =+K40*K$11 -> 25677 | L41: =+L40*L$11 -> 25677 | M41: =+M40*M$11 -> 25677 | N41: =+N40*N$11 -> 25677 | O41: =+O40*O$11 -> 25677 | P41: =+P40*P$11 -> 25677 | Q41: =+Q40*Q$11 -> 25677 | R41: =+R40*R$11 -> 25677 | S41: =+S40*S$11 -> 25677 | T41: =+T40*T$11 -> 25677 | U41: =+U40*U$11 -> 25677 | V41: =+V40*V$11 -> 25677 | W41: =+W40*W$11 -> 25677 | X41: =+X40*X$11 -> 25677
B42: Demanda Año | C42: pas | D42: Calc | E42: =+E41*12 -> 308124 | F42: =+F41*12 -> 308124 | G42: 308124 | H42: 308124 | I42: 308124 | J42: 308124 | K42: 308124 | L42: 308124 | M42: 308124 | N42: 308124 | O42: 308124 | P42: 308124 | Q42: =+Q41*12 -> 308124 | R42: =+R41*12 -> 308124 | S42: =+S41*12 -> 308124 | T42: =+T41*12 -> 308124 | U42: =+U41*12 -> 308124 | V42: =+V41*12 -> 308124 | W42: =+W41*12 -> 308124 | X42: =+X41*12 -> 308124
B43: Otro
B44: Demanda día laborable | C44: pas | D44: SDM | E44: 1100 | F44: 1100 | G44: 1100 | H44: 1100 | I44: 1100 | J44: 1100 | K44: 1100 | L44: 1100 | M44: 1100 | N44: 1100 | O44: 1100 | P44: 1100 | Q44: 1100 | R44: 1100 | S44: 1100 | T44: 1100 | U44: 1100 | V44: 1100 | W44: 1100 | X44: 1100
B45: Demanda mes | C45: pas | D45: Calc | E45: =+E44*E$11 -> 29058.33333 | F45: =+F44*F$11 -> 29058.33333 | G45: =+G44*G$11 -> 29058.33333 | H45: =+H44*H$11 -> 29058.33333 | I45: =+I44*I$11 -> 29058.33333 | J45: =+J44*J$11 -> 29058.33333 | K45: =+K44*K$11 -> 29058.33333 | L45: =+L44*L$11 -> 29058.33333 | M45: =+M44*M$11 -> 29058.33333 | N45: =+N44*N$11 -> 29058.33333 | O45: =+O44*O$11 -> 29058.33333 | P45: =+P44*P$11 -> 29058.33333 | Q45: =+Q44*Q$11 -> 29058.33333 | R45: =+R44*R$11 -> 29058.33333 | S45: =+S44*S$11 -> 29058.33333 | T45: =+T44*T$11 -> 29058.33333 | U45: =+U44*U$11 -> 29058.33333 | V45: =+V44*V$11 -> 29058.33333 | W45: =+W44*W$11 -> 29058.33333 | X45: =+X44*X$11 -> 29058.33333
B46: Demanda Año | C46: pas | D46: Calc | E46: =+E45*12 -> 348700 | F46: =+F45*12 -> 348700 | G46: 348700 | H46: 348700 | I46: 348700 | J46: 348700 | K46: 348700 | L46: 348700 | M46: 348700 | N46: 348700 | O46: 348700 | P46: 348700 | Q46: =+Q45*12 -> 348700 | R46: =+R45*12 -> 348700 | S46: =+S45*12 -> 348700 | T46: =+T45*12 -> 348700 | U46: =+U45*12 -> 348700 | V46: =+V45*12 -> 348700 | W46: =+W45*12 -> 348700 | X46: =+X45*12 -> 348700
B49: Selección de tipología de vehículo por servicio
B50: Denominación | C50: Tipología | D50: Tecnología | E50: Combustible | F50: Precio USD | G50: Vida útil flota | H50: Plazo a remunerar tarifa | I50: Valor salvamento
B51: =B31 -> Intracantonal Rural | C51: Minibús | D51: Euro III | E51: Diésel | F51: =IF(E51=$AR$2,IF(C51=$C$58,+VLOOKUP(D51,$B$59:$D$62,2,FALSE),0)+IF(C51=$D$58,+VLOOKUP(D51,$B$59:$D$62,3,FALSE),0)+IF(C51=$E$58,+VLOOKUP(D51,$B$59:$E$62,4,FALSE),0)+IF(C51=$F$58,+VLOOKUP(D51,$B$59:$F$62,5,FALSE),0),0)+IF(AND(E51=$G$57,$C51=$G$58),$G$62,0)+IF(AND(E51=$H$57,$C51=$H$58),$H$62,0)+IF(AND(E51=$I$57,$C51=$I$58),$I$62,0) -> 90000 | G51: 12 | H51: =G51 -> 12 | I51: =VLOOKUP(G51,$B$67:$C$86,2,FALSE) -> 0.406
B52: =B35 -> Intracantonal Urbano | C52: Bus Tipo | D52: Euro III | E52: Diésel | F52: =IF(E52=$AR$2,IF(C52=$C$58,+VLOOKUP(D52,$B$59:$D$62,2,FALSE),0)+IF(C52=$D$58,+VLOOKUP(D52,$B$59:$D$62,3,FALSE),0)+IF(C52=$E$58,+VLOOKUP(D52,$B$59:$E$62,4,FALSE),0)+IF(C52=$F$58,+VLOOKUP(D52,$B$59:$F$62,5,FALSE),0),0)+IF(AND(E52=$G$57,$C52=$G$58),$G$62,0)+IF(AND(E52=$H$57,$C52=$H$58),$H$62,0)+IF(AND(E52=$I$57,$C52=$I$58),$I$62,0) -> 122000 | G52: 10 | H52: =G52 -> 10 | I52: =VLOOKUP(G52,$B$67:$C$86,2,FALSE) -> 0.5
B53: =B39 -> Intracantonal Combinado | C53: Bus Tipo | D53: Euro III | E53: Diésel | F53: =IF(E53=$AR$2,IF(C53=$C$58,+VLOOKUP(D53,$B$59:$D$62,2,FALSE),0)+IF(C53=$D$58,+VLOOKUP(D53,$B$59:$D$62,3,FALSE),0)+IF(C53=$E$58,+VLOOKUP(D53,$B$59:$E$62,4,FALSE),0)+IF(C53=$F$58,+VLOOKUP(D53,$B$59:$F$62,5,FALSE),0),0)+IF(AND(E53=$G$57,$C53=$G$58),$G$62,0)+IF(AND(E53=$H$57,$C53=$H$58),$H$62,0)+IF(AND(E53=$I$57,$C53=$I$58),$I$62,0) -> 122000 | G53: 12 | H53: 12 | I53: =VLOOKUP(G53,$B$67:$C$86,2,FALSE) -> 0.406
B54: =B43 -> Otro | C54: Articulado | D54: Euro III | E54: Diésel | F54: =IF(E54=$AR$2,IF(C54=$C$58,+VLOOKUP(D54,$B$59:$D$62,2,FALSE),0)+IF(C54=$D$58,+VLOOKUP(D54,$B$59:$D$62,3,FALSE),0)+IF(C54=$E$58,+VLOOKUP(D54,$B$59:$E$62,4,FALSE),0)+IF(C54=$F$58,+VLOOKUP(D54,$B$59:$F$62,5,FALSE),0),0)+IF(AND(E54=$G$57,$C54=$G$58),$G$62,0)+IF(AND(E54=$H$57,$C54=$H$58),$H$62,0)+IF(AND(E54=$I$57,$C54=$I$58),$I$62,0) -> 206078.58 | G54: 12 | H54: 12 | I54: =VLOOKUP(G54,$B$67:$C$86,2,FALSE) -> 0.406
B56: Tabla de precios US ( chasis + carrocería)
B57: Combustible | C57: Diésel | G57: =AS2 -> Híbrido | H57: =AT2 -> Eléctrico | I57: =AU2 -> Gas | J57: Fuente
B58: Tipología | C58: Minibús | D58: Bus Tipo | E58: Articulado | F58: Biarticulado | G58: Bus Tipo | H58: Bus Tipo | I58: Bus Tipo | J58: Fuente
B59: Euro III | C59: 90000 | D59: 122000 | E59: =+E60*90% -> 206078.58 | F59: 288940.77 | G59: n/a | H59: n/a | I59: n/a | J59: Bench
B60: Euro IV | C60: 94950 | D60: 128790 | E60: 228976.2 | F60: 321045.3 | G60: n/a | H60: n/a | I60: n/a | J60: Bench
B61: Euro V | C61: 105500 | D61: 143100 | E61: 254418 | F61: 356717 | G61: n/a | H61: n/a | I61: n/a | J61: Bench
B62: Euro VI | C62: =+C61*1.2 -> 126600 | D62: =+D61*1.2 -> 171720 | E62: =+E61*1.2 -> 305301.6 | F62: =+F61*1.2 -> 428060.4 | G62: =500/330*D62 -> 260181.8182 | H62: 200000 | I62: 155000 | J62: Bench
B65: Tabla valor de salvamento según vida útil
B66: Vida útil | C66: % salvamento | D66: Fuente
B67: 20 | C67: 0.03 | D67: Sup
B68: =B67-1 -> 19 | C68: =($C$77-$C$67)/10+C67 -> 0.077 | D68: Sup
B69: =B68-1 -> 18 | C69: =($C$77-$C$67)/10+C68 -> 0.124 | D69: Sup
B70: 17 | C70: 0.171 | D70: Sup
B71: 16 | C71: 0.218 | D71: Sup
B72: 15 | C72: 0.265 | D72: Sup
B73: 14 | C73: 0.312 | D73: Sup
B74: 13 | C74: 0.359 | D74: Sup
B75: 12 | C75: 0.406 | D75: Sup
B76: 11 | C76: 0.453 | D76: Sup
B77: 10 | C77: 0.5 | D77: Sup
B78: 9 | C78: =($C$82-$C$77)/5+C77 -> 0.55 | D78: Sup
B79: 8 | C79: =($C$82-$C$77)/5+C78 -> 0.6 | D79: Sup
B80: 7 | C80: =($C$82-$C$77)/5+C79 -> 0.65 | D80: Sup
B81: 6 | C81: =($C$82-$C$77)/5+C80 -> 0.7 | D81: Sup
B82: 5 | C82: 0.75 | D82: Sup
B83: 4 | C83: =($C$82-$C$77)/5+C82 -> 0.8 | D83: Sup
B84: 3 | C84: =($C$82-$C$77)/5+C83 -> 0.85 | D84: Sup | F84: Es el valor que tiene un activo al final de su vida útil, entendiendo esta como el periodo en que se espera usar el activo. ... En la contabilidad, el valor residual de un activo será deducido de la depreciación del mismo.
B85: 2 | C85: =($C$82-$C$77)/5+C84 -> 0.9 | D85: Sup | F85: Es decir, una vez que se han deducido los gastos de amortización y depreciación aplicables a un bien intangible.
B86: 1 | C86: =($C$82-$C$77)/5+C85 -> 0.95 | D86: Sup | F86: El valor residual es aquel que se espera tenga el activo al finalizar el tiempo de vida útil que anteriormente se conocía como cuota de salvamento
B88: Combustible
B89: Tipología | C89: Combustible | D89: =+D50 -> Tecnología | E89: Rendimiento
B90: =+'Sup Personal Directo'!B46 -> Intracantonal Rural | C90: =+E51 -> Diésel | D90: =+D51 -> Euro III | E90: =+HLOOKUP(D90,$C$96:$J$97,2,FALSE) -> 9.735747769
B91: =+'Sup Personal Directo'!B47 -> Intracantonal Urbano | C91: =+E52 -> Diésel | D91: =+D52 -> Euro III | E91: =+HLOOKUP(D91,$C$96:$J$99,3,FALSE) -> 8.147500782
B92: =+'Sup Personal Directo'!B48 -> Intracantonal Combinado | C92: =+E53 -> Diésel | D92: =+D53 -> Euro III | E92: =+HLOOKUP(D92,$C$96:$J$99,4,FALSE) -> 8.766298309
B93: =+'Sup Personal Directo'!B49 -> Otro | C93: =+E54 -> Diésel | D93: =+D54 -> Euro III | E93: =+HLOOKUP(D93,$C$96:$J$100,5,FALSE) -> 5.426176
B95: Rendimientos de combustible | C95: Km/ Galón | I95: Otros
B96: Tipo | C96: Euro III | D96: Euro IV | E96: Euro V | F96: Euro VI | G96: Híbrido | H96: Fuente | I96: Eléctrico | J96: Gas | K96: Fuente
B97: =+B90 -> Intracantonal Rural | C97: =9.44/(2-(1+0.5%)^(9-3)) -> 9.735747769 | D97: =D98/C98*C97 -> 11.07256471 | E97: =E98/D98*D97 -> 11.1390666 | H97: Oper | K97: Bench
B98: =+B91 -> Intracantonal Urbano | C98: =7.9/(2-(1+0.5%)^(9-3)) -> 8.147500782 | D98: =D99/C99*C98 -> 9.266235294 | E98: =E99/D99*D98 -> 9.321888359 | F98: =F99/E99*E98 -> 9.321888359 | G98: =E98*1.3 -> 12.11845487 | H98: Oper | I98: 1 | J98: 3 | K98: Bench
B99: =+B92 -> Intracantonal Combinado | C99: =8.5/(2-(1+0.5%)^(9-3)) -> 8.766298309 | D99: 9.97 | E99: =E100/D100*D99 -> 10.02987988 | F99: =E99 -> 10.02987988 | G99: =E99*1.3 -> 13.03884384 | H99: Oper | I99: 1 | J99: 2.4 | K99: Bench
B100: =+B93 -> Otro | C100: 5.426176 | D100: 6.66 | E100: 6.7 | F100: =E100/D100*E100 -> 6.74024024 | G100: =E100*1.3 -> 8.71 | H100: Bench | I100: =I99/G99*G100 -> 0.668004012 | J100: 1.92 | K100: Bench
B102: Urea y Pérdida de Eficiencia | C102: Unidad | D102: Valor | E102: Fuente
B103: Urea para diésel | C103: % | D103: 0.05 | E103: Bench | F103: * Solo aplica para euro V y Euro VI
B104: Pérdida eficiencia vejez | C104: % | D104: 0.005 | E104: Bench | F104: * Aplica del tercer año en adelante
B106: Precios | C106: Unidad | D106: Valor | E106: Fuente
B107: =+C90 -> Diésel | C107: USD/Galón | D107: 1.037 | E107: Mdo
B108: Urea | C108: USD/Litro | D108: 0 | E108: Mdo
B109: Kwh | C109: USD/kw | D109: 0.06 | E109: Mdo
B110: m3/gas | C110: USD/m3 | D110: 1 | E110: Mdo
B113: SITP-Q
B114: Parámetro | C114: Unidad | D114: Valor | E114: Fuente
B115: SITP-Q
B116: Costo Por pasajero | C116: USD/Pas | D116: 0.02237251661 | E116: Calc
B117: Escenario
B118: Incluye año 2 SITP-Q | C118: - | D118: Si | E118: Sup | F118: * En caso de no mantiene gasto actual
B120: Gastos Administrativos
B121: Parámetro | C121: Unidad | D121: Valor | E121: Fuente
B122: Luz | C122: USD/mes | D122: 100 | E122: Oper
B123: Agua | C123: USD/mes | D123: 50 | E123: Oper
B124: Teléfonos | C124: USD/mes | D124: 400 | E124: Oper
B125: Internet | C125: USD/mes | D125: 50 | E125: Oper
B126: Limpieza oficina | C126: USD/mes | D126: 500 | E126: Oper
B127: Seguridad alarmas | C127: USD/mes | D127: 50 | E127: Oper
B128: Útiles oficina | C128: USD/mes | D128: 300 | E128: Oper
B129: Mantenimiento oficinas | C129: USD/mes | D129: 100 | E129: Oper
B130: Comunicación radios | C130: USD/mes | D130: 100 | E130: Oper
B131: Movilización auxilios | C131: USD/mes | D131: 500 | E131: Oper
B132: Arriendo y Mtto de patios | C132: USD/mes | D132: 4000 | E132: Oper
B133: Otros | C133: USD/mes | D133: =+SUM(D122:D132,D136:D137)*5% -> 447.25 | E133: Oper
B134: Subtotal | C134: USD/mes | D134: =SUM(D122:D133) -> 6597.25 | E134: Calc
B136: Medio de pago | C136: USD/mes | D136: 2295 | E136: Oper
B137: transporte valores | C137: USD/mes | D137: 500 | E137: Oper
B138: Total | C138: USD/mes | D138: =SUM(D134,SUM(D136:D137)) -> 9392.25 | E138: Calc
B140: Gasto medio por bus | C140: USD/mes | D140: =+D138/'Sup fijo'!$D$142 -> 187.845 | E140: Calc
B142: Flota promedio empresa | C142: Veh/Empresa | D142: 50 | E142: Sup | F142: * Tamaño medio empresa
B144: Flota administrada por el ente gestor
B145: Intracantonal rural | C145: Veh | D145: 46 | E145: SDM
B146: Intracantonal Urbano | C146: Veh | D146: 1659 | E146: SDM
B147: Intracantonal Combinado | C147: Veh | D147: 268 | E147: SDM
B149: Seguros
B150: Parámetro | C150: Unidad | D150: Valor | E150: Fuente
B151: Prima de seguros | C151: % | D151: =IF(D118="si",H151,I151) -> 0.03 | E151: Mdo | H151: =3% -> 0.03 | I151: 0.005
B152: Superintendencia de Bancos | C152: % | D152: 0.035 | E152: Mdo
B153: Seguro Campesino | C153: % | D153: 0.005 | E153: Mdo
B155: Impuestos
B156: Costos de matrícula
B157: BASE IMPONIBLE (AVALUO) | D157: TARIFA | F157: FUENTE
B158: Desde - US | C158: Hasta - US | D158: Fracción Básica (USD) | E158: Sobre la Fracción Excedente (%)
B159: 0 | C159: 4000 | D159: 0 | E159: 0.005 | F159: Mdo
B160: 4001 | C160: 8000 | D160: 20 | E160: 0.01 | F160: Mdo
B161: 8001 | C161: 12000 | D161: 60 | E161: 0.02 | F161: Mdo
B162: 12001 | C162: 16000 | D162: 140 | E162: 0.03 | F162: Mdo
B163: 16001 | C163: 20000 | D163: 260 | E163: 0.04 | F163: Mdo
B164: 20001 | C164: 24000 | D164: 420 | E164: 0.05 | F164: Mdo
B165: 24001 | D165: 620 | E165: 0.06 | F165: Mdo
B166: Exoneración | C166: 0.8
B167: Impuesto rodaje
B168: BASE IMPONIBLE (AVALUO) | D168: TARIFA | E168: FUENTE
B169: Desde - US | C169: Hasta - US | D169: Tarifa (USD)
B170: 1001 | C170: 4000 | D170: 5 | E170: Mdo
B171: 4001 | C171: 8000 | D171: 10 | E171: Mdo
B172: 8001 | C172: 12000 | D172: 15 | E172: Mdo
B173: 12001 | C173: 16000 | D173: 20 | E173: Mdo
B174: 16001 | C174: 20000 | D174: 25 | E174: Mdo
B175: 20001 | C175: 30000 | D175: 30 | E175: Mdo
B176: 30001 | C176: 40000 | D176: 50 | E176: Mdo
B177: 40001 | D177: 70 | E177: Mdo
B178: Otros Impuestos | C178: Unidad | D178: Valor | E178: Fuente
B179: =+B31 -> Intracantonal Rural
B180: Valor Revisión Anual (una Semestral) | C180: USD/vehículo | D180: =35*2 -> 70 | E180: Mdo
B181: Valor SPPAT | C181: USD/vehículo | D181: 78 | E181: Mdo
B182: Valor permiso de operación | C182: USD/vehículo | D182: 25 | E182: Mdo
B183: =+B35 -> Intracantonal Urbano
B184: Valor Revisión Anual (una Semestral) | C184: USD/vehículo | D184: =35*2 -> 70 | E184: Mdo
B185: Valor SPPAT | C185: USD/vehículo | D185: 78 | E185: Mdo | F185: El Sistema Público para Pago de Accidentes de Tránsito (SPPAT) sustituyó al SOAT,
B186: Valor permiso de operación | C186: USD/vehículo | D186: 25 | E186: Mdo | F186: de acuerdo a la Reforma a la Ley Orgánica de Transporte Terrestre Tránsito y Seguridad Vial, y rige desde el 9 de marzo del 2015
B187: =+B39 -> Intracantonal Combinado
B188: Valor Revisión Anual (una Semestral) | C188: USD/vehículo | D188: =35*2 -> 70 | E188: Mdo
B189: Valor SPPAT | C189: USD/vehículo | D189: 78 | E189: Mdo
B190: Valor permiso de operación | C190: USD/vehículo | D190: 25 | E190: Mdo
B191: =+B43 -> Otro
B192: Valor Revisión Anual (una Semestral) | C192: USD/vehículo | D192: =35*2 -> 70 | E192: Mdo
B193: Valor SPPAT | C193: USD/vehículo | D193: 78 | E193: Mdo
B194: Valor permiso de operación | C194: USD/vehículo | D194: 25 | E194: Mdo
B195: Impuestos Nacionales
B196: Participación Empleados | C196: % | D196: =15% -> 0.15 | E196: Mdo
B197: Impuesto a la Renta | C197: % | D197: 0.3 | E197: Mdo
B198: IVA | C198: % | D198: 0.12 | E198: Mdo
B200: Pago de impuestos en escenario sin SITP-Q | C200: - | D200: No | E200: Sup
B202: Financiación
B203: Estructura de Capital | C203: Unidad | D203: Valor | E203: Fuente
B204: Capital | C204: % | D204: 0.4 | E204: Oper
B205: Deuda | C205: % | D205: =100%-D204 -> 0.6 | E205: Oper
B206: Tasa interés Efectiva Anual | C206: % | D206: 0.14 | E206: Mdo
B207: Plazo deuda | C207: Años | D207: 5 | E207: Mdo
B208: Periodo gracia | C208: Años | D208: 0 | E208: Mdo
B209: Parámetros Rentabilidad | C209: Unidad | D209: Valor | E209: Fuente
B210: Inflación anual | C210: % | D210: 0.0084 | E210: Bench | F210: * Inflación anual
B211: Costo de capital | C211: % | D211: =C222 -> 0.1804 | E211: Bench | F211: * Retorno capital invertido
B212: WACC | C212: % | D212: =((1+C224)/(1+D210)-1)*1 -> 0.1215390718 | E212: Calc
B213: Depreciación tributaria | C213: Años | D213: 5 | E213: Mdo
B214: Valor salvamento | C214: % | D214: 0.1 | E214: Mdo | F214: * Para efecto tributario
B215: TIR objetivo (real) | C215: % | D215: =ROUND(D212,2)*1+19%*0 -> 0.12 | E215: Calc | H215: tasa de libre de riesgo es medida por los rendimientos de los bonos de los estados. Ejemplo EEUU tiene tasa de riesgo cero
H217: El WACC es el Weighted Average Cost of Capital, por sus siglas en inglés, o coste medio ponderado del capital
H218: es utilizado como tasa de descuento para valorar empresas o proyectos de inversión mediante el método del descuento de flujos de caja esperados.
B219: Análisis de riesgo | H219: Ke: Coste de los fondos propios.(rentabilidad) | J219: E: Fondos propios. | K219: D: Endeudamiento. | L219: Kd: Coste financiero (de la deuda). | M219: T: Tasa impositiva.(impuesto pagado sobre ganacias impuesto a la Rta)
B220: Cálculo del WACC
C221: Ke | D221: Kd | E221: Tax | F221: Fuente
B222: Capital | C222: =+F272+G272 -> 0.1804 | D222: =D206 -> 0.14 | E222: 0.3 | F222: Bench
B223: Peso | C223: 0.4 | D223: 0.6 | F223: Bench
... 151 more rows

Sheet Sup Personal Directo
Q1: Actual
B2: Estructura de costos Transporte Convencional | Q2: Propuesta
B3: SUPUESTOS PERSONAL DIRECTO
B6: Selección de escenario
B8: Selección vinculación personal directo
B9: Conductor | C9: Propuesta | D9: * Esquema actual o propuesto
B10: Porcentaje personal con prestaciones sociales | C10: 1 | D10: * Porcentaje del personal actual que tiene prestaciones sociales en escenario actual (en selección de salarios propuestos siempre 100%)
B11: Ayudante | C11: Propuesta | D11: * Esquema actual o propuesto
B12: Porcentaje personal con prestaciones sociales | C12: 1 | D12: * Porcentaje del personal actual que tiene prestaciones sociales en escenario actual (en selección de salarios propuestos siempre 100%)
B13: Jornadas Nocturnas
B14: % de trabajo programado en jornada nocturna | C14: 0.2368421053
B16: Escenarios | C16: Aportes | D16: ACTUAL | H16: PROPUESTO | J16: SELECCIÓN
B17: Ítem | C17: % | D17: Conductor | F17: Ayudante | H17: Conductor | I17: Ayudante | J17: Conductor | K17: Ayudante
D18: Día | E18: +Prestaciones | F18: Día | G18: +Prestaciones | H18: +Prestaciones | I18: +Prestaciones
B19: Remuneración | D19: =30*4.33*6 -> 779.4 | E19: =D19 -> 779.4 | F19: =25*4.33*6 -> 649.5 | G19: =F19 -> 649.5 | H19: 614.84 | I19: =+F19*75%*(1-C21-C22-C23-C24)*0+G20 -> 400 | J19: =IF($C$9=$Q$1,IF($C$10=100%,E19,E19*$C$10+D19*(1-$C$10)),H19) -> 614.84 | K19: =IF($C$11=$Q$1,IF($C$12=100%,G19,G19*$C$12+F19*(1-$C$12)),I19) -> 400
B20: Salario Base Cotización IESS | E20: =566 -> 566 | G20: =+C38 -> 400 | H20: =+H19 -> 614.84 | I20: =+I19 -> 400 | J20: =IF($C$9=$Q$1,IF($C$10=100%,E20,E20),H20) -> 614.84 | K20: =IF($C$11=$Q$1,IF($C$12=100%,G20,G20),I20) -> 400
B21: Fondo de Reserva | C21: =1/12 -> 0.08333333333 | E21: =+$C21*E$20 -> 47.16666667 | G21: =+$C21*G$20 -> 33.33333333 | H21: =+$C21*$H$20 -> 51.23666667 | I21: =+$C21*$I$20 -> 33.33333333 | J21: =IF($C$9=$Q$1,IF($C$10=100%,E21,E21*$C$10+D21*(1-$C$10)),H21) -> 51.23666667 | K21: =IF($C$11=$Q$1,IF($C$12=100%,G21,G21*$C$12+F21*(1-$C$12)),I21) -> 33.33333333
B22: Decimo tercero | C22: =1/12 -> 0.08333333333 | H22: =+$C22*$H$20 -> 51.23666667 | I22: =+$C22*$I$20 -> 33.33333333 | J22: 51.23666667 | K22: 33.33333333
B23: Decimo cuarto | C23: =1/12 -> 0.08333333333 | H23: =+$C23*$C$38 -> 33.33333333 | I23: =+$C23*$C$38 -> 33.33333333 | J23: 33.33333333 | K23: 33.33333333
B24: Vacaciones | C24: =1/12*0.5 -> 0.04166666667 | E24: =$C24*E$20 -> 23.58333333 | G24: =$C24*G$20 -> 16.66666667 | H24: =+$C24*$H$20 -> 25.61833333 | I24: =+$C24*$I$20 -> 16.66666667 | J24: 25.61833333 | K24: 16.66666667
B25: Jornada nocturna (ponderando programación > 7 PM) | C25: =25%*$C$14 -> 0.05921052632 | G25: =$C25*G$20 -> 23.68421053 | H25: =+$C25*$H$20 -> 36.405 | I25: =+$C25*$I$20 -> 23.68421053 | J25: =IF($C$9=$Q$1,IF($C$10=100%,E25,E25*$C$10+D25*(1-$C$10)),H25) -> 36.405 | K25: =IF($C$11=$Q$1,IF($C$12=100%,G25,G25*$C$12+F25*(1-$C$12)),I25) -> 23.68421053
B26: IESS | C26: 0.1115 | E26: =$C26*E$20 -> 63.109 | G26: =$C26*G$20 -> 44.6 | H26: =+$C26*$H$20 -> 68.55466 | I26: =+$C26*$I$20 -> 44.6 | J26: 68.55466 | K26: 44.6
B27: Auxilio Alimentación | D27: =5*4.33*6 -> 129.9 | E27: =5*4.33*6 -> 129.9 | F27: =5*4.33*6 -> 129.9 | G27: =5*4.33*6 -> 129.9 | J27: 0 | K27: 0
B29: Costo unitario total | D29: =+D19+SUM(D21:D27) -> 909.3 | E29: 1043.159 | F29: 779.4 | G29: 897.6842105 | H29: 881.22466 | I29: 584.9508772 | J29: =IF($C$9=$Q$1,IF($C$10=100%,E29,E29*$C$10+D29*(1-$C$10)),H29) -> 881.22466 | K29: =IF($C$11=$Q$1,IF($C$12=100%,G29,G29*$C$12+F29*(1-$C$12)),I29) -> 584.9508772
B30: Factor salario total | D30: =+SUM(D21:D26)/D19 -> 0 | E30: 0.171746215 | F30: 0 | G30: 0.1821157976 | H30: 0.4332585063 | I30: 0.462377193 | J30: 0.4332585063 | K30: 0.462377193
B32: Número de empleados | D32: =1+(0.142857142857143) -> 1.142857143 | E32: =+D32 -> 1.142857143 | F32: =+E32 -> 1.142857143 | G32: =+F32 -> 1.142857143 | H32: 2.4 | I32: =+H32 -> 2.4 | J32: =IF($C$9=$Q$1,IF($C$10=100%,E32,E32*$C$10+D32*(1-$C$10)),H32) -> 2.4 | K32: =IF($C$11=$Q$1,IF($C$12=100%,G32,G32*$C$12+F32*(1-$C$12)),I32) -> 2.4
B33: Horas de trabajo | D33: 16 | E33: 16 | F33: 16 | G33: 16 | H33: 8 | I33: 8 | J33: =IF($C$9=$Q$1,IF($C$10=100%,E33,E33*$C$10+D33*(1-$C$10)),H33) -> 8 | K33: =IF($C$11=$Q$1,IF($C$12=100%,G33,G33*$C$12+F33*(1-$C$12)),I33) -> 8
B34: Remuneración recibida por el empleado | D34: =+D19+SUM(D21:D25)+D27 -> 909.3 | E34: =+E19+SUM(E21:E25)+E27 -> 980.05 | F34: 779.4 | G34: 853.0842105 | H34: 812.67 | I34: 540.3508772 | J34: =IF($C$9=$Q$1,IF($C$10=100%,E34,E34*$C$10+D34*(1-$C$10)),H34) -> 812.67 | K34: =IF($C$11=$Q$1,IF($C$12=100%,G34,G34*$C$12+F34*(1-$C$12)),I34) -> 540.3508772
B36: Aportación Patronal | C36: =C26 -> 0.1115
B37: Crecimiento salarios real | C37: 0.015 | D37: * Porcentaje de ajuste de salarios por arriba de inflación
B38: Salario básico 2020 | C38: 400
B42: Conductores y ayudantes en escenario seleccionado
B43: Parámetro | C43: Unidad | D43: 1 | E43: =D43+1 -> 2 | F43: =E43+1 -> 3 | G43: 4 | H43: 5 | I43: 6 | J43: 7 | K43: 8 | L43: 9 | M43: 10 | N43: =M43 -> 10 | O43: =N43 -> 10 | P43: 10 | Q43: 10 | R43: 10 | S43: 10 | T43: 10 | U43: 10 | V43: 10 | W43: 10
B44: CONDUCTORES
B45: No. Conductor Actual
B46: ='Sup fijo'!B51 -> Intracantonal Rural | C46: conductores/bus | D46: =$D$32 -> 1.142857143 | E46: =D46 -> 1.142857143 | F46: 1.142857143 | G46: 1.142857143 | H46: 1.142857143 | I46: 1.142857143 | J46: 1.142857143 | K46: 1.142857143 | L46: 1.142857143 | M46: 1.142857143 | N46: 1.142857143 | O46: 1.142857143 | P46: 1.142857143 | Q46: 1.142857143 | R46: 1.142857143 | S46: 1.142857143 | T46: 1.142857143 | U46: 1.142857143 | V46: 1.142857143 | W46: 1.142857143
B47: ='Sup fijo'!B52 -> Intracantonal Urbano | C47: conductores/bus | D47: =$D$32 -> 1.142857143 | E47: =D47 -> 1.142857143 | F47: 1.142857143 | G47: 1.142857143 | H47: 1.142857143 | I47: 1.142857143 | J47: 1.142857143 | K47: 1.142857143 | L47: 1.142857143 | M47: 1.142857143 | N47: 1.142857143 | O47: 1.142857143 | P47: 1.142857143 | Q47: 1.142857143 | R47: 1.142857143 | S47: 1.142857143 | T47: 1.142857143 | U47: 1.142857143 | V47: 1.142857143 | W47: 1.142857143
B48: ='Sup fijo'!B53 -> Intracantonal Combinado | C48: conductores/bus | D48: =$D$32 -> 1.142857143 | E48: =D48 -> 1.142857143 | F48: 1.142857143 | G48: 1.142857143 | H48: 1.142857143 | I48: 1.142857143 | J48: 1.142857143 | K48: 1.142857143 | L48: 1.142857143 | M48: 1.142857143 | N48: 1.142857143 | O48: 1.142857143 | P48: 1.142857143 | Q48: 1.142857143 | R48: 1.142857143 | S48: 1.142857143 | T48: 1.142857143 | U48: 1.142857143 | V48: 1.142857143 | W48: 1.142857143
B49: ='Sup fijo'!B54 -> Otro | C49: conductores/bus | D49: =$D$32 -> 1.142857143 | E49: =D49 -> 1.142857143 | F49: 1.142857143 | G49: 1.142857143 | H49: 1.142857143 | I49: 1.142857143 | J49: 1.142857143 | K49: 1.142857143 | L49: 1.142857143 | M49: 1.142857143 | N49: 1.142857143 | O49: 1.142857143 | P49: 1.142857143 | Q49: 1.142857143 | R49: 1.142857143 | S49: 1.142857143 | T49: 1.142857143 | U49: 1.142857143 | V49: 1.142857143 | W49: 1.142857143
B50: No. Conductor Propuesta
B51: =B46 -> Intracantonal Rural | C51: conductores/bus | D51: =$H$32 -> 2.4 | E51: =D51 -> 2.4 | F51: 2.4 | G51: 2.4 | H51: 2.4 | I51: 2.4 | J51: 2.4 | K51: 2.4 | L51: 2.4 | M51: 2.4 | N51: 2.4 | O51: 2.4 | P51: 2.4 | Q51: 2.4 | R51: 2.4 | S51: 2.4 | T51: 2.4 | U51: 2.4 | V51: 2.4 | W51: 2.4
B52: =B47 -> Intracantonal Urbano | C52: conductores/bus | D52: =$H$32 -> 2.4 | E52: =D52 -> 2.4 | F52: 2.4 | G52: 2.4 | H52: 2.4 | I52: 2.4 | J52: 2.4 | K52: 2.4 | L52: 2.4 | M52: 2.4 | N52: 2.4 | O52: 2.4 | P52: 2.4 | Q52: 2.4 | R52: 2.4 | S52: 2.4 | T52: 2.4 | U52: 2.4 | V52: 2.4 | W52: 2.4
B53: =B48 -> Intracantonal Combinado | C53: conductores/bus | D53: =$H$32 -> 2.4 | E53: =D53 -> 2.4 | F53: 2.4 | G53: 2.4 | H53: 2.4 | I53: 2.4 | J53: 2.4 | K53: 2.4 | L53: 2.4 | M53: 2.4 | N53: 2.4 | O53: 2.4 | P53: 2.4 | Q53: 2.4 | R53: 2.4 | S53: 2.4 | T53: 2.4 | U53: 2.4 | V53: 2.4 | W53: 2.4
B54: =B49 -> Otro | C54: conductores/bus | D54: =$H$32 -> 2.4 | E54: =D54 -> 2.4 | F54: 2.4 | G54: 2.4 | H54: 2.4 | I54: 2.4 | J54: 2.4 | K54: 2.4 | L54: 2.4 | M54: 2.4 | N54: 2.4 | O54: 2.4 | P54: 2.4 | Q54: 2.4 | R54: 2.4 | S54: 2.4 | T54: 2.4 | U54: 2.4 | V54: 2.4 | W54: 2.4
B55: Salario Actual diario
B56: =B46 -> Intracantonal Rural | C56: USD/conductor | D56: =$E$19 -> 779.4 | E56: =D56*(E$113/D$113) -> 791.917164 | F56: 804.6353537 | G56: 819.1767238 | H56: 833.9808855 | I56: 849.8915729 | J56: 866.1058043 | K56: 883.5006733 | L56: 901.2449008 | M56: 920.2521557 | N56: 939.6602737 | O56: 958.0856597 | P56: 977.6949008 | Q56: 997.0870196 | R56: 1016.412154 | S56: 1035.928607 | T56: 1056.039642 | U56: 1076.67512 | V56: 1097.704656 | W56: 1119.01662
B57: =B47 -> Intracantonal Urbano | C57: USD/conductor | D57: =$E$19 -> 779.4 | E57: =D57*(E$113/D$113) -> 791.917164 | F57: 804.6353537 | G57: 819.1767238 | H57: 833.9808855 | I57: 849.8915729 | J57: 866.1058043 | K57: 883.5006733 | L57: 901.2449008 | M57: 920.2521557 | N57: 939.6602737 | O57: 958.0856597 | P57: 977.6949008 | Q57: 997.0870196 | R57: 1016.412154 | S57: 1035.928607 | T57: 1056.039642 | U57: 1076.67512 | V57: 1097.704656 | W57: 1119.01662
B58: =B48 -> Intracantonal Combinado | C58: USD/conductor | D58: =$E$19 -> 779.4 | E58: =D58*(E$113/D$113) -> 791.917164 | F58: 804.6353537 | G58: 819.1767238 | H58: 833.9808855 | I58: 849.8915729 | J58: 866.1058043 | K58: 883.5006733 | L58: 901.2449008 | M58: 920.2521557 | N58: 939.6602737 | O58: 958.0856597 | P58: 977.6949008 | Q58: 997.0870196 | R58: 1016.412154 | S58: 1035.928607 | T58: 1056.039642 | U58: 1076.67512 | V58: 1097.704656 | W58: 1119.01662
B59: =B49 -> Otro | C59: USD/conductor | D59: =$E$19 -> 779.4 | E59: =D59*(E$113/D$113) -> 791.917164 | F59: 804.6353537 | G59: 819.1767238 | H59: 833.9808855 | I59: 849.8915729 | J59: 866.1058043 | K59: 883.5006733 | L59: 901.2449008 | M59: 920.2521557 | N59: 939.6602737 | O59: 958.0856597 | P59: 977.6949008 | Q59: 997.0870196 | R59: 1016.412154 | S59: 1035.928607 | T59: 1056.039642 | U59: 1076.67512 | V59: 1097.704656 | W59: 1119.01662
B60: Salario Base cotización IESS esquema actual
B61: =B56 -> Intracantonal Rural | C61: USD/conductor | D61: =$E$20 -> 566 | E61: =D61*(E$113/D$113) -> 575.08996 | F61: 584.3259048 | G61: 594.8858425 | H61: 605.6366195 | I61: 617.1909549 | J61: 628.9657239 | K61: 641.5978715 | L61: 654.4837232 | M61: 668.2867849 | N61: 682.3809532 | O61: 695.7614619 | P61: 710.0016857 | Q61: 724.0842354 | R61: 738.118141 | S61: 752.2909822 | T61: 766.8956089 | U61: 781.8810854 | V61: 797.1527267 | W61: 812.6294671
B62: Intracantonal Urbano | C62: USD/conductor | D62: =$E$20 -> 566 | E62: =D62*(E$113/D$113) -> 575.08996 | F62: 584.3259048 | G62: 594.8858425 | H62: 605.6366195 | I62: 617.1909549 | J62: 628.9657239 | K62: 641.5978715 | L62: 654.4837232 | M62: 668.2867849 | N62: 682.3809532 | O62: 695.7614619 | P62: 710.0016857 | Q62: 724.0842354 | R62: 738.118141 | S62: 752.2909822 | T62: 766.8956089 | U62: 781.8810854 | V62: 797.1527267 | W62: 812.6294671
B63: Intracantonal Combinado | C63: USD/conductor | D63: =$E$20 -> 566 | E63: =D63*(E$113/D$113) -> 575.08996 | F63: 584.3259048 | G63: 594.8858425 | H63: 605.6366195 | I63: 617.1909549 | J63: 628.9657239 | K63: 641.5978715 | L63: 654.4837232 | M63: 668.2867849 | N63: 682.3809532 | O63: 695.7614619 | P63: 710.0016857 | Q63: 724.0842354 | R63: 738.118141 | S63: 752.2909822 | T63: 766.8956089 | U63: 781.8810854 | V63: 797.1527267 | W63: 812.6294671
B64: Otro | C64: USD/conductor | D64: =$E$20 -> 566 | E64: =D64*(E$113/D$113) -> 575.08996 | F64: 584.3259048 | G64: 594.8858425 | H64: 605.6366195 | I64: 617.1909549 | J64: 628.9657239 | K64: 641.5978715 | L64: 654.4837232 | M64: 668.2867849 | N64: 682.3809532 | O64: 695.7614619 | P64: 710.0016857 | Q64: 724.0842354 | R64: 738.118141 | S64: 752.2909822 | T64: 766.8956089 | U64: 781.8810854 | V64: 797.1527267 | W64: 812.6294671
B65: Salario Base y de cotización IESS propuesto
B66: =B61 -> Intracantonal Rural | C66: USD/conductor | D66: =$H$19 -> 614.84 | E66: =D66*(E$113/D$113) -> 624.7143304 | F66: 634.7472425 | G66: 646.2183947 | H66: 657.8968535 | I66: 670.4482097 | J66: 683.2390207 | K66: 696.9611932 | L66: 710.9589618 | M66: 725.9530863 | N66: 741.2634368 | O66: 755.7985463 | P66: 771.2675555 | Q66: 786.565285 | R66: 801.8101728 | S66: 817.205985 | T66: 833.0708413 | U66: 849.3494109 | V66: 865.9388383 | W66: 882.7510628
B67: Intracantonal Urbano | C67: USD/conductor | D67: =$H$19 -> 614.84 | E67: =D67*(E$113/D$113) -> 624.7143304 | F67: 634.7472425 | G67: 646.2183947 | H67: 657.8968535 | I67: 670.4482097 | J67: 683.2390207 | K67: 696.9611932 | L67: 710.9589618 | M67: 725.9530863 | N67: 741.2634368 | O67: 755.7985463 | P67: 771.2675555 | Q67: 786.565285 | R67: 801.8101728 | S67: 817.205985 | T67: 833.0708413 | U67: 849.3494109 | V67: 865.9388383 | W67: 882.7510628
B68: Intracantonal Combinado | C68: USD/conductor | D68: =$H$19 -> 614.84 | E68: =D68*(E$113/D$113) -> 624.7143304 | F68: 634.7472425 | G68: 646.2183947 | H68: 657.8968535 | I68: 670.4482097 | J68: 683.2390207 | K68: 696.9611932 | L68: 710.9589618 | M68: 725.9530863 | N68: 741.2634368 | O68: 755.7985463 | P68: 771.2675555 | Q68: 786.565285 | R68: 801.8101728 | S68: 817.205985 | T68: 833.0708413 | U68: 849.3494109 | V68: 865.9388383 | W68: 882.7510628
B69: Otro | C69: USD/conductor | D69: =$H$19 -> 614.84 | E69: =D69*(E$113/D$113) -> 624.7143304 | F69: 634.7472425 | G69: 646.2183947 | H69: 657.8968535 | I69: 670.4482097 | J69: 683.2390207 | K69: 696.9611932 | L69: 710.9589618 | M69: 725.9530863 | N69: 741.2634368 | O69: 755.7985463 | P69: 771.2675555 | Q69: 786.565285 | R69: 801.8101728 | S69: 817.205985 | T69: 833.0708413 | U69: 849.3494109 | V69: 865.9388383 | W69: 882.7510628
B70: No. salarios básicos
B71: =B56 -> Intracantonal Rural | C71: X sal. básicos /cond | D71: =+D56/D$113 -> 1.913137565 | E71: =+E56/E$113 -> 1.913137565 | F71: 1.913137565 | G71: 1.913137565 | H71: 1.913137565 | I71: 1.913137565 | J71: 1.913137565 | K71: 1.913137565 | L71: 1.913137565 | M71: 1.913137565 | N71: 1.913137565 | O71: 1.913137565 | P71: 1.913137565 | Q71: 1.913137565 | R71: 1.913137565 | S71: 1.913137565 | T71: 1.913137565 | U71: 1.913137565 | V71: 1.913137565 | W71: 1.913137565
B72: =B57 -> Intracantonal Urbano | C72: X sal. básicos /cond | D72: =+D57/D$113 -> 1.913137565 | E72: 1.913137565 | F72: 1.913137565 | G72: 1.913137565 | H72: 1.913137565 | I72: 1.913137565 | J72: 1.913137565 | K72: 1.913137565 | L72: 1.913137565 | M72: 1.913137565 | N72: 1.913137565 | O72: 1.913137565 | P72: 1.913137565 | Q72: 1.913137565 | R72: 1.913137565 | S72: 1.913137565 | T72: 1.913137565 | U72: 1.913137565 | V72: 1.913137565 | W72: 1.913137565
B73: =B58 -> Intracantonal Combinado | C73: X sal. básicos /cond | D73: =+D58/D$113 -> 1.913137565 | E73: 1.913137565 | F73: 1.913137565 | G73: 1.913137565 | H73: 1.913137565 | I73: 1.913137565 | J73: 1.913137565 | K73: 1.913137565 | L73: 1.913137565 | M73: 1.913137565 | N73: 1.913137565 | O73: 1.913137565 | P73: 1.913137565 | Q73: 1.913137565 | R73: 1.913137565 | S73: 1.913137565 | T73: 1.913137565 | U73: 1.913137565 | V73: 1.913137565 | W73: 1.913137565
B74: =B59 -> Otro | C74: X sal. básicos /cond | D74: =+D59/D$113 -> 1.913137565 | E74: 1.913137565 | F74: 1.913137565 | G74: 1.913137565 | H74: 1.913137565 | I74: 1.913137565 | J74: 1.913137565 | K74: 1.913137565 | L74: 1.913137565 | M74: 1.913137565 | N74: 1.913137565 | O74: 1.913137565 | P74: 1.913137565 | Q74: 1.913137565 | R74: 1.913137565 | S74: 1.913137565 | T74: 1.913137565 | U74: 1.913137565 | V74: 1.913137565 | W74: 1.913137565
B75: AYUDANTES
B76: No. Ayudantes Actual
B77: =B71 -> Intracantonal Rural | C77: ayudantes/bus | D77: =$F$32 -> 1.142857143 | E77: =D77 -> 1.142857143 | F77: 1.142857143 | G77: 1.142857143 | H77: 1.142857143 | I77: 1.142857143 | J77: 1.142857143 | K77: 1.142857143 | L77: 1.142857143 | M77: 1.142857143 | N77: 1.142857143 | O77: 1.142857143 | P77: 1.142857143 | Q77: 1.142857143 | R77: 1.142857143 | S77: 1.142857143 | T77: 1.142857143 | U77: 1.142857143 | V77: 1.142857143 | W77: 1.142857143
B78: =B72 -> Intracantonal Urbano | C78: ayudantes/bus | D78: =$F$32 -> 1.142857143 | E78: =D78 -> 1.142857143 | F78: 1.142857143 | G78: 1.142857143 | H78: 1.142857143 | I78: 1.142857143 | J78: 1.142857143 | K78: 1.142857143 | L78: 1.142857143 | M78: 1.142857143 | N78: 1.142857143 | O78: 1.142857143 | P78: 1.142857143 | Q78: 1.142857143 | R78: 1.142857143 | S78: 1.142857143 | T78: 1.142857143 | U78: 1.142857143 | V78: 1.142857143 | W78: 1.142857143
B79: =B73 -> Intracantonal Combinado | C79: ayudantes/bus | D79: =$F$32 -> 1.142857143 | E79: =D79 -> 1.142857143 | F79: 1.142857143 | G79: 1.142857143 | H79: 1.142857143 | I79: 1.142857143 | J79: 1.142857143 | K79: 1.142857143 | L79: 1.142857143 | M79: 1.142857143 | N79: 1.142857143 | O79: 1.142857143 | P79: 1.142857143 | Q79: 1.142857143 | R79: 1.142857143 | S79: 1.142857143 | T79: 1.142857143 | U79: 1.142857143 | V79: 1.142857143 | W79: 1.142857143
B80: =B74 -> Otro | C80: ayudantes/bus | D80: =$F$32 -> 1.142857143 | E80: =D80 -> 1.142857143 | F80: 1.142857143 | G80: 1.142857143 | H80: 1.142857143 | I80: 1.142857143 | J80: 1.142857143 | K80: 1.142857143 | L80: 1.142857143 | M80: 1.142857143 | N80: 1.142857143 | O80: 1.142857143 | P80: 1.142857143 | Q80: 1.142857143 | R80: 1.142857143 | S80: 1.142857143 | T80: 1.142857143 | U80: 1.142857143 | V80: 1.142857143 | W80: 1.142857143
B81: No. Ayudantes Propuesta
B82: =B77 -> Intracantonal Rural | C82: ayudantes/bus | D82: =$I$32 -> 2.4 | E82: =D82 -> 2.4 | F82: 2.4 | G82: 2.4 | H82: 2.4 | I82: 2.4 | J82: 2.4 | K82: 2.4 | L82: 2.4 | M82: 2.4 | N82: 2.4 | O82: 2.4 | P82: 2.4 | Q82: 2.4 | R82: 2.4 | S82: 2.4 | T82: 2.4 | U82: 2.4 | V82: 2.4 | W82: 2.4
B83: =B78 -> Intracantonal Urbano | C83: ayudantes/bus | D83: =$I$32 -> 2.4 | E83: =D83 -> 2.4 | F83: 2.4 | G83: 2.4 | H83: 2.4 | I83: 2.4 | J83: 2.4 | K83: 2.4 | L83: 2.4 | M83: 2.4 | N83: 2.4 | O83: 2.4 | P83: 2.4 | Q83: 2.4 | R83: 2.4 | S83: 2.4 | T83: 2.4 | U83: 2.4 | V83: 2.4 | W83: 2.4
B84: =B79 -> Intracantonal Combinado | C84: ayudantes/bus | D84: =$I$32 -> 2.4 | E84: =D84 -> 2.4 | F84: 2.4 | G84: 2.4 | H84: 2.4 | I84: 2.4 | J84: 2.4 | K84: 2.4 | L84: 2.4 | M84: 2.4 | N84: 2.4 | O84: 2.4 | P84: 2.4 | Q84: 2.4 | R84: 2.4 | S84: 2.4 | T84: 2.4 | U84: 2.4 | V84: 2.4 | W84: 2.4
B85: =B80 -> Otro | C85: ayudantes/bus | D85: =$I$32 -> 2.4 | E85: =D85 -> 2.4 | F85: 2.4 | G85: 2.4 | H85: 2.4 | I85: 2.4 | J85: 2.4 | K85: 2.4 | L85: 2.4 | M85: 2.4 | N85: 2.4 | O85: 2.4 | P85: 2.4 | Q85: 2.4 | R85: 2.4 | S85: 2.4 | T85: 2.4 | U85: 2.4 | V85: 2.4 | W85: 2.4
B86: Salario Actual diario
B87: =B77 -> Intracantonal Rural | C87: USD/ayudante | D87: =$F$19 -> 649.5 | E87: =D87*(E$113/D$113) -> 659.93097 | F87: 670.5294614 | G87: 682.6472698 | H87: 694.9840713 | I87: 708.2429774 | J87: 721.7548369 | K87: 736.250561 | L87: 751.0374173 | M87: 766.8767964 | N87: 783.0502281 | O87: 798.4047164 | P87: 814.7457506 | Q87: 830.9058496 | R87: 847.0101282 | S87: 863.2738391 | T87: 880.0330353 | U87: 897.2292667 | V87: 914.7538799 | W87: 932.5138496
B88: =B78 -> Intracantonal Urbano | C88: USD/ayudante | D88: =$F$19 -> 649.5 | E88: =D88*(E$113/D$113) -> 659.93097 | F88: 670.5294614 | G88: 682.6472698 | H88: 694.9840713 | I88: 708.2429774 | J88: 721.7548369 | K88: 736.250561 | L88: 751.0374173 | M88: 766.8767964 | N88: 783.0502281 | O88: 798.4047164 | P88: 814.7457506 | Q88: 830.9058496 | R88: 847.0101282 | S88: 863.2738391 | T88: 880.0330353 | U88: 897.2292667 | V88: 914.7538799 | W88: 932.5138496
B89: =B79 -> Intracantonal Combinado | C89: USD/ayudante | D89: =$F$19 -> 649.5 | E89: =D89*(E$113/D$113) -> 659.93097 | F89: 670.5294614 | G89: 682.6472698 | H89: 694.9840713 | I89: 708.2429774 | J89: 721.7548369 | K89: 736.250561 | L89: 751.0374173 | M89: 766.8767964 | N89: 783.0502281 | O89: 798.4047164 | P89: 814.7457506 | Q89: 830.9058496 | R89: 847.0101282 | S89: 863.2738391 | T89: 880.0330353 | U89: 897.2292667 | V89: 914.7538799 | W89: 932.5138496
B90: =B80 -> Otro | C90: USD/ayudante | D90: =$F$19 -> 649.5 | E90: =D90*(E$113/D$113) -> 659.93097 | F90: 670.5294614 | G90: 682.6472698 | H90: 694.9840713 | I90: 708.2429774 | J90: 721.7548369 | K90: 736.250561 | L90: 751.0374173 | M90: 766.8767964 | N90: 783.0502281 | O90: 798.4047164 | P90: 814.7457506 | Q90: 830.9058496 | R90: 847.0101282 | S90: 863.2738391 | T90: 880.0330353 | U90: 897.2292667 | V90: 914.7538799 | W90: 932.5138496
B91: Salario Base cotización IESS esquema actual
B92: =B87 -> Intracantonal Rural | C92: USD/ayudante | D92: =$G$20 -> 400 | E92: =D92*(E$113/D$113) -> 406.424 | F92: 412.9511694 | G92: 420.414023 | H92: 428.0117452 | I92: 436.1773533 | J92: 444.4987448 | K92: 453.4260576 | L92: 462.5326665 | M92: 472.2874805 | N92: 482.2480235 | O92: 491.7042133 | P92: 501.7679758 | Q92: 511.7203077 | R92: 521.6382622 | S92: 531.6544044 | T92: 541.9756953 | U92: 552.5661381 | V92: 563.3588175 | W92: 574.2964432
B93: Intracantonal Urbano | C93: USD/ayudante | D93: =$G$20 -> 400 | E93: =D93*(E$113/D$113) -> 406.424 | F93: 412.9511694 | G93: 420.414023 | H93: 428.0117452 | I93: 436.1773533 | J93: 444.4987448 | K93: 453.4260576 | L93: 462.5326665 | M93: 472.2874805 | N93: 482.2480235 | O93: 491.7042133 | P93: 501.7679758 | Q93: 511.7203077 | R93: 521.6382622 | S93: 531.6544044 | T93: 541.9756953 | U93: 552.5661381 | V93: 563.3588175 | W93: 574.2964432
B94: Intracantonal Combinado | C94: USD/ayudante | D94: =$G$20 -> 400 | E94: =D94*(E$113/D$113) -> 406.424 | F94: 412.9511694 | G94: 420.414023 | H94: 428.0117452 | I94: 436.1773533 | J94: 444.4987448 | K94: 453.4260576 | L94: 462.5326665 | M94: 472.2874805 | N94: 482.2480235 | O94: 491.7042133 | P94: 501.7679758 | Q94: 511.7203077 | R94: 521.6382622 | S94: 531.6544044 | T94: 541.9756953 | U94: 552.5661381 | V94: 563.3588175 | W94: 574.2964432
B95: Otro | C95: USD/ayudante | D95: =$G$20 -> 400 | E95: =D95*(E$113/D$113) -> 406.424 | F95: 412.9511694 | G95: 420.414023 | H95: 428.0117452 | I95: 436.1773533 | J95: 444.4987448 | K95: 453.4260576 | L95: 462.5326665 | M95: 472.2874805 | N95: 482.2480235 | O95: 491.7042133 | P95: 501.7679758 | Q95: 511.7203077 | R95: 521.6382622 | S95: 531.6544044 | T95: 541.9756953 | U95: 552.5661381 | V95: 563.3588175 | W95: 574.2964432
B96: Salario Base y de cotización IESS propuesto
B97: =B92 -> Intracantonal Rural | C97: USD/ayudante | D97: =$I$20 -> 400 | E97: =D97*(E$113/D$113) -> 406.424 | F97: =E97*(F$113/E$113) -> 412.9511694 | G97: 420.414023 | H97: 428.0117452 | I97: 436.1773533 | J97: 444.4987448 | K97: 453.4260576 | L97: 462.5326665 | M97: 472.2874805 | N97: 482.2480235 | O97: 491.7042133 | P97: 501.7679758 | Q97: 511.7203077 | R97: 521.6382622 | S97: 531.6544044 | T97: 541.9756953 | U97: 552.5661381 | V97: 563.3588175 | W97: 574.2964432
B98: Intracantonal Urbano | C98: USD/ayudante | D98: =$I$20 -> 400 | E98: =D98*(E$113/D$113) -> 406.424 | F98: 412.9511694 | G98: 420.414023 | H98: 428.0117452 | I98: 436.1773533 | J98: 444.4987448 | K98: 453.4260576 | L98: 462.5326665 | M98: 472.2874805 | N98: 482.2480235 | O98: 491.7042133 | P98: 501.7679758 | Q98: 511.7203077 | R98: 521.6382622 | S98: 531.6544044 | T98: 541.9756953 | U98: 552.5661381 | V98: 563.3588175 | W98: 574.2964432
B99: Intracantonal Combinado | C99: USD/ayudante | D99: =$I$20 -> 400 | E99: =D99*(E$113/D$113) -> 406.424 | F99: 412.9511694 | G99: 420.414023 | H99: 428.0117452 | I99: 436.1773533 | J99: 444.4987448 | K99: 453.4260576 | L99: 462.5326665 | M99: 472.2874805 | N99: 482.2480235 | O99: 491.7042133 | P99: 501.7679758 | Q99: 511.7203077 | R99: 521.6382622 | S99: 531.6544044 | T99: 541.9756953 | U99: 552.5661381 | V99: 563.3588175 | W99: 574.2964432
B100: Otro | C100: USD/ayudante | D100: =$I$20 -> 400 | E100: =D100*(E$113/D$113) -> 406.424 | F100: 412.9511694 | G100: 420.414023 | H100: 428.0117452 | I100: 436.1773533 | J100: 444.4987448 | K100: 453.4260576 | L100: 462.5326665 | M100: 472.2874805 | N100: 482.2480235 | O100: 491.7042133 | P100: 501.7679758 | Q100: 511.7203077 | R100: 521.6382622 | S100: 531.6544044 | T100: 541.9756953 | U100: 552.5661381 | V100: 563.3588175 | W100: 574.2964432
B101: No. salarios básicos
B102: =B87 -> Intracantonal Rural | C102: X sal. básicos /cond | D102: =+D87/D$113 -> 1.594281304 | E102: =+E87/E$113 -> 1.594281304 | F102: 1.594281304 | G102: 1.594281304 | H102: 1.594281304 | I102: 1.594281304 | J102: 1.594281304 | K102: 1.594281304 | L102: 1.594281304 | M102: 1.594281304 | N102: 1.594281304 | O102: 1.594281304 | P102: 1.594281304 | Q102: 1.594281304 | R102: 1.594281304 | S102: 1.594281304 | T102: 1.594281304 | U102: 1.594281304 | V102: 1.594281304 | W102: 1.594281304
B103: =B88 -> Intracantonal Urbano | C103: X sal. básicos /cond | D103: =+D88/D$113 -> 1.594281304 | E103: 1.594281304 | F103: 1.594281304 | G103: 1.594281304 | H103: 1.594281304 | I103: 1.594281304 | J103: 1.594281304 | K103: 1.594281304 | L103: 1.594281304 | M103: 1.594281304 | N103: 1.594281304 | O103: 1.594281304 | P103: 1.594281304 | Q103: 1.594281304 | R103: 1.594281304 | S103: 1.594281304 | T103: 1.594281304 | U103: 1.594281304 | V103: 1.594281304 | W103: 1.594281304
B104: =B89 -> Intracantonal Combinado | C104: X sal. básicos /cond | D104: =+D89/D$113 -> 1.594281304 | E104: 1.594281304 | F104: 1.594281304 | G104: 1.594281304 | H104: 1.594281304 | I104: 1.594281304 | J104: 1.594281304 | K104: 1.594281304 | L104: 1.594281304 | M104: 1.594281304 | N104: 1.594281304 | O104: 1.594281304 | P104: 1.594281304 | Q104: 1.594281304 | R104: 1.594281304 | S104: 1.594281304 | T104: 1.594281304 | U104: 1.594281304 | V104: 1.594281304 | W104: 1.594281304
B105: =B90 -> Otro | C105: X sal. básicos /cond | D105: =+D90/D$113 -> 1.594281304 | E105: 1.594281304 | F105: 1.594281304 | G105: 1.594281304 | H105: 1.594281304 | I105: 1.594281304 | J105: 1.594281304 | K105: 1.594281304 | L105: 1.594281304 | M105: 1.594281304 | N105: 1.594281304 | O105: 1.594281304 | P105: 1.594281304 | Q105: 1.594281304 | R105: 1.594281304 | S105: 1.594281304 | T105: 1.594281304 | U105: 1.594281304 | V105: 1.594281304 | W105: 1.594281304
B106: CONDUCTORES Y AYUDANTES
B107: Auxilio Alimentación
B108: =B102 -> Intracantonal Rural | C108: USD mes / Persona | D108: =J27 -> 0 | E108: =D108*E$113/D$113 -> 0 | F108: =E108*F$113/E$113 -> 0 | G108: 0 | H108: 0 | I108: 0 | J108: 0 | K108: 0 | L108: 0 | M108: 0 | N108: 0 | O108: 0 | P108: 0 | Q108: 0 | R108: 0 | S108: 0 | T108: 0 | U108: 0 | V108: 0 | W108: 0
B109: =B103 -> Intracantonal Urbano | C109: USD mes / Persona | D109: =D108 -> 0 | E109: =D109*E$113/D$113 -> 0 | F109: 0 | G109: 0 | H109: 0 | I109: 0 | J109: 0 | K109: 0 | L109: 0 | M109: 0 | N109: 0 | O109: 0 | P109: 0 | Q109: 0 | R109: 0 | S109: 0 | T109: 0 | U109: 0 | V109: 0 | W109: 0
B110: =B104 -> Intracantonal Combinado | C110: USD mes / Persona | D110: =D109 -> 0 | E110: =D110*E$113/D$113 -> 0 | F110: 0 | G110: 0 | H110: 0 | I110: 0 | J110: 0 | K110: 0 | L110: 0 | M110: 0 | N110: 0 | O110: 0 | P110: 0 | Q110: 0 | R110: 0 | S110: 0 | T110: 0 | U110: 0 | V110: 0 | W110: 0
B111: =B105 -> Otro | C111: USD mes / Persona | D111: =D110 -> 0 | E111: =D111*E$113/D$113 -> 0 | F111: 0 | G111: 0 | H111: 0 | I111: 0 | J111: 0 | K111: 0 | L111: 0 | M111: 0 | N111: 0 | O111: 0 | P111: 0 | Q111: 0 | R111: 0 | S111: 0 | T111: 0 | U111: 0 | V111: 0 | W111: 0
B113: Salario Básico | C113: USD mes / Persona | D113: ='Sup Generales'!D13 -> 407.3936 | E113: ='Sup Generales'!E13 -> 413.9363412 | F113: ='Sup Generales'!F13 -> 420.5841589 | G113: ='Sup Generales'!G13 -> 428.1849558 | H113: ='Sup Generales'!H13 -> 435.9231143 | I113: ='Sup Generales'!I13 -> 444.2396555 | J113: ='Sup Generales'!J13 -> 452.7148596 | K113: ='Sup Generales'!K13 -> 461.8071849 | L113: ='Sup Generales'!L13 -> 471.0821204 | M113: ='Sup Generales'!M13 -> 481.0172423 | N113: ='Sup Generales'!N13 -> 491.1618959 | O113: ='Sup Generales'!O13 -> 500.792874 | P113: ='Sup Generales'!P13 -> 511.042655 | Q113: ='Sup Generales'!Q13 -> 521.1789459 | R113: ='Sup Generales'!R13 -> 531.2802238 | S113: ='Sup Generales'!S13 -> 541.4815044 | T113: ='Sup Generales'!T13 -> 551.9935741 | U113: ='Sup Generales'!U13 -> 562.7797706 | V113: ='Sup Generales'!V13 -> 573.7719419 | W113: ='Sup Generales'!W13 -> 584.9117386

Sheet Sup Personal Indirecto
B2: Estructura de costos Transporte Convencional
B3: SUPUESTOS PERSONAL INDIRECTO
C5: Evolución Planta de personal
C6: Evolución Salarios
C7: Indicadores Base Personal
C8: Factor Prestacional
C9: Año | D9: 1 | E9: =D9+1 -> 2 | F9: =E9+1 -> 3 | G9: 4 | H9: 5 | I9: 6 | J9: 7 | K9: 8 | L9: 9 | M9: 10 | N9: 11 | O9: 12 | P9: 13 | Q9: 14 | R9: 15 | S9: 16 | T9: 17 | U9: 18 | V9: 19 | W9: 20
C11: PLANTA DE PERSONAL
C13: Cantidad de personas operador privado | D13: =SUM(D14:D45) -> 47 | E13: =SUM(E14:E45) -> 47 | F13: 47 | G13: 47 | H13: 47 | I13: 47 | J13: 47 | K13: 47 | L13: 47 | M13: 47 | N13: 47 | O13: 47 | P13: 47 | Q13: 47 | R13: 47 | S13: 47 | T13: 47 | U13: 47 | V13: 47 | W13: 47
B14: a) Personal directivo
C15: Presidente | D15: =D155 -> 1 | E15: =D15 -> 1 | F15: =E15 -> 1 | G15: 1 | H15: 1 | I15: 1 | J15: 1 | K15: 1 | L15: 1 | M15: 1 | N15: 1 | O15: 1 | P15: 1 | Q15: 1 | R15: 1 | S15: 1 | T15: 1 | U15: 1 | V15: 1 | W15: 1
C16: Gerente general | D16: =D156 -> 1 | E16: =D16 -> 1 | F16: 1 | G16: 1 | H16: 1 | I16: 1 | J16: 1 | K16: 1 | L16: 1 | M16: 1 | N16: 1 | O16: 1 | P16: 1 | Q16: 1 | R16: 1 | S16: 1 | T16: 1 | U16: 1 | V16: 1 | W16: 1
B17: b) Personal administrativo
C18: Administrativo & Financiero | D18: 1 | E18: 1 | F18: 1 | G18: 1 | H18: 1 | I18: 1 | J18: 1 | K18: 1 | L18: 1 | M18: 1 | N18: 1 | O18: 1 | P18: 1 | Q18: 1 | R18: 1 | S18: 1 | T18: 1 | U18: 1 | V18: 1 | W18: 1
C19: Contador General | D19: 1 | E19: 1 | F19: 1 | G19: 1 | H19: 1 | I19: 1 | J19: 1 | K19: 1 | L19: 1 | M19: 1 | N19: 1 | O19: 1 | P19: 1 | Q19: 1 | R19: 1 | S19: 1 | T19: 1 | U19: 1 | V19: 1 | W19: 1
C20: Asistente de Contabilidad | D20: 1 | E20: 1 | F20: 1 | G20: 1 | H20: 1 | I20: 1 | J20: 1 | K20: 1 | L20: 1 | M20: 1 | N20: 1 | O20: 1 | P20: 1 | Q20: 1 | R20: 1 | S20: 1 | T20: 1 | U20: 1 | V20: 1 | W20: 1
C21: Responsable de RRHH | D21: 1 | E21: 1 | F21: 1 | G21: 1 | H21: 1 | I21: 1 | J21: 1 | K21: 1 | L21: 1 | M21: 1 | N21: 1 | O21: 1 | P21: 1 | Q21: 1 | R21: 1 | S21: 1 | T21: 1 | U21: 1 | V21: 1 | W21: 1
C22: Secretaria | D22: 1 | E22: 1 | F22: 1 | G22: 1 | H22: 1 | I22: 1 | J22: 1 | K22: 1 | L22: 1 | M22: 1 | N22: 1 | O22: 1 | P22: 1 | Q22: 1 | R22: 1 | S22: 1 | T22: 1 | U22: 1 | V22: 1 | W22: 1
C23: Recaudación General | D23: 3 | E23: 3 | F23: 3 | G23: 3 | H23: 3 | I23: 3 | J23: 3 | K23: 3 | L23: 3 | M23: 3 | N23: 3 | O23: 3 | P23: 3 | Q23: 3 | R23: 3 | S23: 3 | T23: 3 | U23: 3 | V23: 3 | W23: 3
C24: Mensajería | D24: 1 | E24: 1 | F24: 1 | G24: 1 | H24: 1 | I24: 1 | J24: 1 | K24: 1 | L24: 1 | M24: 1 | N24: 1 | O24: 1 | P24: 1 | Q24: 1 | R24: 1 | S24: 1 | T24: 1 | U24: 1 | V24: 1 | W24: 1
B25: c) Personal de operación
C26: Jefe de Operaciones | D26: 1 | E26: 1 | F26: 1 | G26: 1 | H26: 1 | I26: 1 | J26: 1 | K26: 1 | L26: 1 | M26: 1 | N26: 1 | O26: 1 | P26: 1 | Q26: 1 | R26: 1 | S26: 1 | T26: 1 | U26: 1 | V26: 1 | W26: 1
C27: Despachador de Ruta | D27: 8 | E27: 8 | F27: 8 | G27: 8 | H27: 8 | I27: 8 | J27: 8 | K27: 8 | L27: 8 | M27: 8 | N27: 8 | O27: 8 | P27: 8 | Q27: 8 | R27: 8 | S27: 8 | T27: 8 | U27: 8 | V27: 8 | W27: 8
C28: Fiscalizador de Ruta | D28: 5 | E28: 5 | F28: 5 | G28: 5 | H28: 5 | I28: 5 | J28: 5 | K28: 5 | L28: 5 | M28: 5 | N28: 5 | O28: 5 | P28: 5 | Q28: 5 | R28: 5 | S28: 5 | T28: 5 | U28: 5 | V28: 5 | W28: 5
C29: Monitoreo & Control de gestión operativa | D29: 3 | E29: 3 | F29: 3 | G29: 3 | H29: 3 | I29: 3 | J29: 3 | K29: 3 | L29: 3 | M29: 3 | N29: 3 | O29: 3 | P29: 3 | Q29: 3 | R29: 3 | S29: 3 | T29: 3 | U29: 3 | V29: 3 | W29: 3
B30: d) Personal de mantenimiento
C31: Responsable de Flota & Mantenimiento | D31: 1 | E31: 1 | F31: 1 | G31: 1 | H31: 1 | I31: 1 | J31: 1 | K31: 1 | L31: 1 | M31: 1 | N31: 1 | O31: 1 | P31: 1 | Q31: 1 | R31: 1 | S31: 1 | T31: 1 | U31: =T31 -> 1 | V31: 1 | W31: 1
C32: Mecánico | D32: 3 | E32: =D32 -> 3 | F32: 3 | G32: 3 | H32: 3 | I32: 3 | J32: 3 | K32: 3 | L32: 3 | M32: 3 | N32: 3 | O32: 3 | P32: 3 | Q32: 3 | R32: 3 | S32: 3 | T32: 3 | U32: 3 | V32: 3 | W32: 3
C33: Eléctrico | D33: 2 | E33: 2 | F33: 2 | G33: 2 | H33: 2 | I33: 2 | J33: 2 | K33: 2 | L33: 2 | M33: 2 | N33: 2 | O33: 2 | P33: 2 | Q33: 2 | R33: 2 | S33: 2 | T33: 2 | U33: 2 | V33: 2 | W33: 2
C34: Vulcanizador | D34: 1 | E34: 1 | F34: 1 | G34: 1 | H34: 1 | I34: 1 | J34: 1 | K34: 1 | L34: 1 | M34: 1 | N34: 1 | O34: 1 | P34: 1 | Q34: 1 | R34: 1 | S34: 1 | T34: 1 | U34: 1 | V34: 1 | W34: 1
C35: Carrocero | D35: 1 | E35: 1 | F35: 1 | G35: 1 | H35: 1 | I35: 1 | J35: 1 | K35: 1 | L35: 1 | M35: 1 | N35: 1 | O35: 1 | P35: 1 | Q35: 1 | R35: 1 | S35: 1 | T35: 1 | U35: 1 | V35: 1 | W35: 1
C36: Ayudante de Mecánico | D36: 3 | E36: 3 | F36: 3 | G36: 3 | H36: 3 | I36: 3 | J36: 3 | K36: 3 | L36: 3 | M36: 3 | N36: 3 | O36: 3 | P36: 3 | Q36: 3 | R36: 3 | S36: 3 | T36: 3 | U36: 3 | V36: 3 | W36: 3
B37: e) Personal externo
C38: Auditoria externa | D38: 1 | E38: 1 | F38: 1 | G38: 1 | H38: 1 | I38: 1 | J38: 1 | K38: 1 | L38: 1 | M38: 1 | N38: 1 | O38: 1 | P38: 1 | Q38: 1 | R38: 1 | S38: 1 | T38: 1 | U38: 1 | V38: 1 | W38: 1
C39: Capacitación Talento Humano | D39: 1 | E39: 1 | F39: 1 | G39: 1 | H39: 1 | I39: 1 | J39: 1 | K39: 1 | L39: 1 | M39: 1 | N39: 1 | O39: 1 | P39: 1 | Q39: 1 | R39: 1 | S39: 1 | T39: 1 | U39: 1 | V39: 1 | W39: 1
C40: Asesor Legal | D40: 1 | E40: 1 | F40: 1 | G40: 1 | H40: 1 | I40: 1 | J40: 1 | K40: 1 | L40: 1 | M40: 1 | N40: 1 | O40: 1 | P40: 1 | Q40: 1 | R40: 1 | S40: 1 | T40: 1 | U40: 1 | V40: 1 | W40: 1
C41: Servicio de Guardianía | D41: 1 | E41: 1 | F41: 1 | G41: 1 | H41: 1 | I41: 1 | J41: 1 | K41: 1 | L41: 1 | M41: 1 | N41: 1 | O41: 1 | P41: 1 | Q41: 1 | R41: 1 | S41: 1 | T41: 1 | U41: 1 | V41: 1 | W41: 1
C42: Comisario | D42: 1 | E42: 1 | F42: 1 | G42: 1 | H42: 1 | I42: 1 | J42: 1 | K42: 1 | L42: 1 | M42: 1 | N42: 1 | O42: 1 | P42: 1 | Q42: 1 | R42: 1 | S42: 1 | T42: 1 | U42: 1 | V42: 1 | W42: 1
C43: Directorio (Se hace provisión para dietas) | D43: 1 | E43: 1 | F43: 1 | G43: 1 | H43: 1 | I43: 1 | J43: 1 | K43: 1 | L43: 1 | M43: 1 | N43: 1 | O43: 1 | P43: 1 | Q43: 1 | R43: 1 | S43: 1 | T43: 1 | U43: 1 | V43: 1 | W43: 1
C44: Limpieza de flota | D44: 1 | E44: 1 | F44: 1 | G44: 1 | H44: 1 | I44: 1 | J44: 1 | K44: 1 | L44: 1 | M44: 1 | N44: 1 | O44: 1 | P44: 1 | Q44: 1 | R44: 1 | S44: 1 | T44: 1 | U44: 1 | V44: 1 | W44: 1
C45: Sistemas & Soporte | D45: 1 | E45: 1 | F45: 1 | G45: 1 | H45: 1 | I45: 1 | J45: 1 | K45: 1 | L45: 1 | M45: 1 | N45: 1 | O45: 1 | P45: 1 | Q45: 1 | R45: 1 | S45: 1 | T45: 1 | U45: 1 | V45: 1 | W45: 1
C47: Cantidad de personas ente gestor | D47: =SUM(D48:D79) -> 0 | E47: =SUM(E48:E79) -> 0 | F47: 0 | G47: 0 | H47: 0 | I47: 0 | J47: 0 | K47: 0 | L47: 0 | M47: 0 | N47: 0 | O47: 0 | P47: 0 | Q47: 0 | R47: 0 | S47: 0 | T47: 0 | U47: 0 | V47: 0 | W47: 0
B48: =B118 -> a) Área 1
C49: =C119 -> Cargo 1 | D49: =D189 -> 0 | E49: =D49 -> 0 | F49: =E49 -> 0 | G49: =F49 -> 0 | H49: =G49 -> 0 | I49: =H49 -> 0 | J49: =I49 -> 0 | K49: =J49 -> 0 | L49: =K49 -> 0 | M49: =L49 -> 0 | N49: =M49 -> 0 | O49: =N49 -> 0 | P49: =O49 -> 0 | Q49: =P49 -> 0 | R49: =Q49 -> 0 | S49: =R49 -> 0 | T49: =S49 -> 0 | U49: =T49 -> 0 | V49: =U49 -> 0 | W49: =V49 -> 0
C50: Cargo 2 | D50: =D190 -> 0 | E50: =D50 -> 0 | F50: 0 | G50: 0 | H50: 0 | I50: 0 | J50: 0 | K50: 0 | L50: 0 | M50: 0 | N50: 0 | O50: 0 | P50: 0 | Q50: 0 | R50: 0 | S50: 0 | T50: 0 | U50: 0 | V50: 0 | W50: 0
B51: =B121 -> b) Área 2
C52: Cargo 1 | D52: 0 | E52: =D52 -> 0 | F52: =E52 -> 0 | G52: =F52 -> 0 | H52: =G52 -> 0 | I52: =H52 -> 0 | J52: =I52 -> 0 | K52: =J52 -> 0 | L52: =K52 -> 0 | M52: =L52 -> 0 | N52: =M52 -> 0 | O52: =N52 -> 0 | P52: =O52 -> 0 | Q52: =P52 -> 0 | R52: =Q52 -> 0 | S52: =R52 -> 0 | T52: =S52 -> 0 | U52: =T52 -> 0 | V52: =U52 -> 0 | W52: =V52 -> 0
C53: Cargo 2 | D53: 0 | E53: 0 | F53: 0 | G53: 0 | H53: 0 | I53: 0 | J53: 0 | K53: 0 | L53: 0 | M53: 0 | N53: 0 | O53: 0 | P53: 0 | Q53: 0 | R53: 0 | S53: 0 | T53: 0 | U53: 0 | V53: 0 | W53: 0
C54: Cargo 3 | D54: 0 | E54: 0 | F54: 0 | G54: 0 | H54: 0 | I54: 0 | J54: 0 | K54: 0 | L54: 0 | M54: 0 | N54: 0 | O54: 0 | P54: 0 | Q54: 0 | R54: 0 | S54: 0 | T54: 0 | U54: 0 | V54: 0 | W54: 0
C55: Cargo 4 | D55: 0 | E55: 0 | F55: 0 | G55: 0 | H55: 0 | I55: 0 | J55: 0 | K55: 0 | L55: 0 | M55: 0 | N55: 0 | O55: 0 | P55: 0 | Q55: 0 | R55: 0 | S55: 0 | T55: 0 | U55: 0 | V55: 0 | W55: 0
C56: Cargo 5 | D56: 0 | E56: 0 | F56: 0 | G56: 0 | H56: 0 | I56: 0 | J56: 0 | K56: 0 | L56: 0 | M56: 0 | N56: 0 | O56: 0 | P56: 0 | Q56: 0 | R56: 0 | S56: 0 | T56: 0 | U56: 0 | V56: 0 | W56: 0
C57: Cargo 6 | D57: 0 | E57: 0 | F57: 0 | G57: 0 | H57: 0 | I57: 0 | J57: 0 | K57: 0 | L57: 0 | M57: 0 | N57: 0 | O57: 0 | P57: 0 | Q57: 0 | R57: 0 | S57: 0 | T57: 0 | U57: 0 | V57: 0 | W57: 0
C58: Cargo 7 | D58: 0 | E58: 0 | F58: 0 | G58: 0 | H58: 0 | I58: 0 | J58: 0 | K58: 0 | L58: 0 | M58: 0 | N58: 0 | O58: 0 | P58: 0 | Q58: 0 | R58: 0 | S58: 0 | T58: 0 | U58: 0 | V58: 0 | W58: 0
B59: =B129 -> c) Área 3
C60: Cargo 1 | D60: 0 | E60: =D60 -> 0 | F60: =E60 -> 0 | G60: =F60 -> 0 | H60: =G60 -> 0 | I60: =H60 -> 0 | J60: =I60 -> 0 | K60: =J60 -> 0 | L60: =K60 -> 0 | M60: =L60 -> 0 | N60: =M60 -> 0 | O60: =N60 -> 0 | P60: =O60 -> 0 | Q60: =P60 -> 0 | R60: =Q60 -> 0 | S60: =R60 -> 0 | T60: =S60 -> 0 | U60: =T60 -> 0 | V60: =U60 -> 0 | W60: =V60 -> 0
C61: Cargo 2 | D61: 0 | E61: 0 | F61: 0 | G61: 0 | H61: 0 | I61: 0 | J61: 0 | K61: 0 | L61: 0 | M61: 0 | N61: 0 | O61: 0 | P61: 0 | Q61: 0 | R61: 0 | S61: 0 | T61: 0 | U61: 0 | V61: 0 | W61: 0
C62: Cargo 3 | D62: 0 | E62: 0 | F62: 0 | G62: 0 | H62: 0 | I62: 0 | J62: 0 | K62: 0 | L62: 0 | M62: 0 | N62: 0 | O62: 0 | P62: 0 | Q62: 0 | R62: 0 | S62: 0 | T62: 0 | U62: 0 | V62: 0 | W62: 0
C63: Cargo 4 | D63: 0 | E63: 0 | F63: 0 | G63: 0 | H63: 0 | I63: 0 | J63: 0 | K63: 0 | L63: 0 | M63: 0 | N63: 0 | O63: 0 | P63: 0 | Q63: 0 | R63: 0 | S63: 0 | T63: 0 | U63: 0 | V63: 0 | W63: 0
B64: =B134 -> d) Área 4
C65: Cargo 1 | D65: 0 | E65: =D65 -> 0 | F65: =E65 -> 0 | G65: =F65 -> 0 | H65: =G65 -> 0 | I65: =H65 -> 0 | J65: =I65 -> 0 | K65: =J65 -> 0 | L65: =K65 -> 0 | M65: =L65 -> 0 | N65: =M65 -> 0 | O65: =N65 -> 0 | P65: =O65 -> 0 | Q65: =P65 -> 0 | R65: =Q65 -> 0 | S65: =R65 -> 0 | T65: =S65 -> 0 | U65: =T65 -> 0 | V65: =U65 -> 0 | W65: =V65 -> 0
C66: Cargo 2 | D66: 0 | E66: 0 | F66: 0 | G66: 0 | H66: 0 | I66: 0 | J66: 0 | K66: 0 | L66: 0 | M66: 0 | N66: 0 | O66: 0 | P66: 0 | Q66: 0 | R66: 0 | S66: 0 | T66: 0 | U66: 0 | V66: 0 | W66: 0
C67: Cargo 3 | D67: 0 | E67: 0 | F67: 0 | G67: 0 | H67: 0 | I67: 0 | J67: 0 | K67: 0 | L67: 0 | M67: 0 | N67: 0 | O67: 0 | P67: 0 | Q67: 0 | R67: 0 | S67: 0 | T67: 0 | U67: 0 | V67: 0 | W67: 0
C68: Cargo 4 | D68: 0 | E68: 0 | F68: 0 | G68: 0 | H68: 0 | I68: 0 | J68: 0 | K68: 0 | L68: 0 | M68: 0 | N68: 0 | O68: 0 | P68: 0 | Q68: 0 | R68: 0 | S68: 0 | T68: 0 | U68: 0 | V68: 0 | W68: 0
C69: Cargo 5 | D69: 0 | E69: 0 | F69: 0 | G69: 0 | H69: 0 | I69: 0 | J69: 0 | K69: 0 | L69: 0 | M69: 0 | N69: 0 | O69: 0 | P69: 0 | Q69: 0 | R69: 0 | S69: 0 | T69: 0 | U69: 0 | V69: 0 | W69: 0
C70: Cargo 6 | D70: 0 | E70: 0 | F70: 0 | G70: 0 | H70: 0 | I70: 0 | J70: 0 | K70: 0 | L70: 0 | M70: 0 | N70: 0 | O70: 0 | P70: 0 | Q70: 0 | R70: 0 | S70: 0 | T70: 0 | U70: 0 | V70: 0 | W70: 0
B71: =B141 -> e) Área 5
C72: Cargo 1 | D72: 0 | E72: =D72 -> 0 | F72: =E72 -> 0 | G72: =F72 -> 0 | H72: =G72 -> 0 | I72: =H72 -> 0 | J72: =I72 -> 0 | K72: =J72 -> 0 | L72: =K72 -> 0 | M72: =L72 -> 0 | N72: =M72 -> 0 | O72: =N72 -> 0 | P72: =O72 -> 0 | Q72: =P72 -> 0 | R72: =Q72 -> 0 | S72: =R72 -> 0 | T72: =S72 -> 0 | U72: =T72 -> 0 | V72: =U72 -> 0 | W72: =V72 -> 0
C73: Cargo 2 | D73: 0 | E73: 0 | F73: 0 | G73: 0 | H73: 0 | I73: 0 | J73: 0 | K73: 0 | L73: 0 | M73: 0 | N73: 0 | O73: 0 | P73: 0 | Q73: 0 | R73: 0 | S73: 0 | T73: 0 | U73: 0 | V73: 0 | W73: 0
C74: Cargo 3 | D74: 0 | E74: 0 | F74: 0 | G74: 0 | H74: 0 | I74: 0 | J74: 0 | K74: 0 | L74: 0 | M74: 0 | N74: 0 | O74: 0 | P74: 0 | Q74: 0 | R74: 0 | S74: 0 | T74: 0 | U74: 0 | V74: 0 | W74: 0
C75: Cargo 4 | D75: 0 | E75: 0 | F75: 0 | G75: 0 | H75: 0 | I75: 0 | J75: 0 | K75: 0 | L75: 0 | M75: 0 | N75: 0 | O75: 0 | P75: 0 | Q75: 0 | R75: 0 | S75: 0 | T75: 0 | U75: 0 | V75: 0 | W75: 0
C76: Cargo 5 | D76: 0 | E76: 0 | F76: 0 | G76: 0 | H76: 0 | I76: 0 | J76: 0 | K76: 0 | L76: 0 | M76: 0 | N76: 0 | O76: 0 | P76: 0 | Q76: 0 | R76: 0 | S76: 0 | T76: 0 | U76: 0 | V76: 0 | W76: 0
C77: Cargo 6 | D77: 0 | E77: 0 | F77: 0 | G77: 0 | H77: 0 | I77: 0 | J77: 0 | K77: 0 | L77: 0 | M77: 0 | N77: 0 | O77: 0 | P77: 0 | Q77: 0 | R77: 0 | S77: 0 | T77: 0 | U77: 0 | V77: 0 | W77: 0
C78: Cargo 7 | D78: 0 | E78: 0 | F78: 0 | G78: 0 | H78: 0 | I78: 0 | J78: 0 | K78: 0 | L78: 0 | M78: 0 | N78: 0 | O78: 0 | P78: 0 | Q78: 0 | R78: 0 | S78: 0 | T78: 0 | U78: 0 | V78: 0 | W78: 0
C79: Cargo 8 | D79: 0 | E79: 0 | F79: 0 | G79: 0 | H79: 0 | I79: 0 | J79: 0 | K79: 0 | L79: 0 | M79: 0 | N79: 0 | O79: 0 | P79: 0 | Q79: 0 | R79: 0 | S79: 0 | T79: 0 | U79: 0 | V79: 0 | W79: 0
C81: SALARIOS
C83: Salarios unitarios privado
B84: a) Personal directivo
C85: Presidente | D85: =F155 -> 2.5 | E85: =D85 -> 2.5 | F85: =E85 -> 2.5 | G85: 2.5 | H85: 2.5 | I85: 2.5 | J85: 2.5 | K85: 2.5 | L85: 2.5 | M85: 2.5 | N85: 2.5 | O85: 2.5 | P85: 2.5 | Q85: 2.5 | R85: 2.5 | S85: 2.5 | T85: 2.5 | U85: 2.5 | V85: 2.5 | W85: 2.5
C86: Gerente general | D86: =F156 -> 5 | E86: =D86 -> 5 | F86: 5 | G86: 5 | H86: 5 | I86: 5 | J86: 5 | K86: 5 | L86: 5 | M86: 5 | N86: 5 | O86: 5 | P86: 5 | Q86: 5 | R86: 5 | S86: 5 | T86: 5 | U86: 5 | V86: 5 | W86: 5
B87: b) Personal administrativo
C88: Administrativo & Financiero | D88: =F158 -> 3.375 | E88: =D88 -> 3.375 | F88: 3.375 | G88: 3.375 | H88: 3.375 | I88: 3.375 | J88: 3.375 | K88: 3.375 | L88: 3.375 | M88: 3.375 | N88: 3.375 | O88: 3.375 | P88: 3.375 | Q88: 3.375 | R88: 3.375 | S88: 3.375 | T88: 3.375 | U88: 3.375 | V88: 3.375 | W88: 3.375
C89: Contador General | D89: 2 | E89: =D89 -> 2 | F89: 2 | G89: 2 | H89: 2 | I89: 2 | J89: 2 | K89: 2 | L89: 2 | M89: 2 | N89: 2 | O89: 2 | P89: 2 | Q89: 2 | R89: 2 | S89: 2 | T89: 2 | U89: 2 | V89: 2 | W89: 2
C90: Asistente de Contabilidad | D90: 1 | E90: =D90 -> 1 | F90: 1 | G90: 1 | H90: 1 | I90: 1 | J90: 1 | K90: 1 | L90: 1 | M90: 1 | N90: 1 | O90: 1 | P90: 1 | Q90: 1 | R90: 1 | S90: 1 | T90: 1 | U90: 1 | V90: 1 | W90: 1
C91: Responsable de RRHH | D91: 2 | E91: =D91 -> 2 | F91: 2 | G91: 2 | H91: 2 | I91: 2 | J91: 2 | K91: 2 | L91: 2 | M91: 2 | N91: 2 | O91: 2 | P91: 2 | Q91: 2 | R91: 2 | S91: 2 | T91: 2 | U91: 2 | V91: 2 | W91: 2
C92: Secretaria | D92: 1 | E92: =D92 -> 1 | F92: 1 | G92: 1 | H92: 1 | I92: 1 | J92: 1 | K92: 1 | L92: 1 | M92: 1 | N92: 1 | O92: 1 | P92: 1 | Q92: 1 | R92: 1 | S92: 1 | T92: 1 | U92: 1 | V92: 1 | W92: 1
C93: Recaudación General | D93: 1 | E93: =D93 -> 1 | F93: 1 | G93: 1 | H93: 1 | I93: 1 | J93: 1 | K93: 1 | L93: 1 | M93: 1 | N93: 1 | O93: 1 | P93: 1 | Q93: 1 | R93: 1 | S93: 1 | T93: 1 | U93: 1 | V93: 1 | W93: 1
C94: Mensajería | D94: 1 | E94: =D94 -> 1 | F94: 1 | G94: 1 | H94: 1 | I94: 1 | J94: 1 | K94: 1 | L94: 1 | M94: 1 | N94: 1 | O94: 1 | P94: 1 | Q94: 1 | R94: 1 | S94: 1 | T94: 1 | U94: 1 | V94: 1 | W94: 1
B95: c) Personal de operación
C96: Jefe de Operaciones | D96: =F166 -> 3.375 | E96: =D96 -> 3.375 | F96: 3.375 | G96: 3.375 | H96: 3.375 | I96: 3.375 | J96: 3.375 | K96: 3.375 | L96: 3.375 | M96: 3.375 | N96: 3.375 | O96: 3.375 | P96: 3.375 | Q96: 3.375 | R96: 3.375 | S96: 3.375 | T96: 3.375 | U96: 3.375 | V96: 3.375 | W96: 3.375
C97: Despachador de Ruta | D97: =F167 -> 1 | E97: =D97 -> 1 | F97: 1 | G97: 1 | H97: 1 | I97: 1 | J97: 1 | K97: 1 | L97: 1 | M97: 1 | N97: 1 | O97: 1 | P97: 1 | Q97: 1 | R97: 1 | S97: 1 | T97: 1 | U97: 1 | V97: 1 | W97: 1
C98: Fiscalizador de Ruta | D98: =F168 -> 1 | E98: =D98 -> 1 | F98: 1 | G98: 1 | H98: 1 | I98: 1 | J98: 1 | K98: 1 | L98: 1 | M98: 1 | N98: 1 | O98: 1 | P98: 1 | Q98: 1 | R98: 1 | S98: 1 | T98: 1 | U98: 1 | V98: 1 | W98: 1
C99: Monitoreo & Control de gestión operativa | D99: =F169 -> 1 | E99: =D99 -> 1 | F99: 1 | G99: 1 | H99: 1 | I99: 1 | J99: 1 | K99: 1 | L99: 1 | M99: 1 | N99: 1 | O99: 1 | P99: 1 | Q99: 1 | R99: 1 | S99: 1 | T99: 1 | U99: 1 | V99: 1 | W99: 1
B100: d) Personal de mantenimiento
C101: Responsable de Flota & Mantenimiento | D101: =F171 -> 2.25 | E101: =D101 -> 2.25 | F101: 2.25 | G101: 2.25 | H101: 2.25 | I101: 2.25 | J101: 2.25 | K101: 2.25 | L101: 2.25 | M101: 2.25 | N101: 2.25 | O101: 2.25 | P101: 2.25 | Q101: 2.25 | R101: 2.25 | S101: 2.25 | T101: 2.25 | U101: 2.25 | V101: 2.25 | W101: 2.25
C102: Mecánico | D102: 1 | E102: =D102 -> 1 | F102: 1 | G102: 1 | H102: 1 | I102: 1 | J102: 1 | K102: 1 | L102: 1 | M102: 1 | N102: 1 | O102: 1 | P102: 1 | Q102: 1 | R102: 1 | S102: 1 | T102: 1 | U102: 1 | V102: 1 | W102: 1
C103: Eléctrico | D103: 1 | E103: =D103 -> 1 | F103: 1 | G103: 1 | H103: 1 | I103: 1 | J103: 1 | K103: 1 | L103: 1 | M103: 1 | N103: 1 | O103: 1 | P103: 1 | Q103: 1 | R103: 1 | S103: 1 | T103: 1 | U103: 1 | V103: 1 | W103: 1
C104: Vulcanizador | D104: 1 | E104: =D104 -> 1 | F104: 1 | G104: 1 | H104: 1 | I104: 1 | J104: 1 | K104: 1 | L104: 1 | M104: 1 | N104: 1 | O104: 1 | P104: 1 | Q104: 1 | R104: 1 | S104: 1 | T104: 1 | U104: 1 | V104: 1 | W104: 1
C105: Carrocero | D105: 1 | E105: =D105 -> 1 | F105: 1 | G105: 1 | H105: 1 | I105: 1 | J105: 1 | K105: 1 | L105: 1 | M105: 1 | N105: 1 | O105: 1 | P105: 1 | Q105: 1 | R105: 1 | S105: 1 | T105: 1 | U105: 1 | V105: 1 | W105: 1
C106: Ayudante de Mecánico | D106: 1 | E106: =D106 -> 1 | F106: 1 | G106: 1 | H106: 1 | I106: 1 | J106: 1 | K106: 1 | L106: 1 | M106: 1 | N106: 1 | O106: 1 | P106: 1 | Q106: 1 | R106: 1 | S106: 1 | T106: 1 | U106: 1 | V106: 1 | W106: 1
B107: e) Personal externo
C108: Auditoria externa | D108: =F178 -> 0.7291666667 | E108: =D108 -> 0.7291666667 | F108: 0.7291666667 | G108: 0.7291666667 | H108: 0.7291666667 | I108: 0.7291666667 | J108: 0.7291666667 | K108: 0.7291666667 | L108: 0.7291666667 | M108: 0.7291666667 | N108: 0.7291666667 | O108: 0.7291666667 | P108: 0.7291666667 | Q108: 0.7291666667 | R108: 0.7291666667 | S108: 0.7291666667 | T108: 0.7291666667 | U108: 0.7291666667 | V108: 0.7291666667 | W108: 0.7291666667
C109: Capacitación Talento Humano | D109: 1 | E109: =D109 -> 1 | F109: 1 | G109: 1 | H109: 1 | I109: 1 | J109: 1 | K109: 1 | L109: 1 | M109: 1 | N109: 1 | O109: 1 | P109: 1 | Q109: 1 | R109: 1 | S109: 1 | T109: 1 | U109: 1 | V109: 1 | W109: 1
C110: Asesor Legal | D110: 1 | E110: =D110 -> 1 | F110: 1 | G110: 1 | H110: 1 | I110: 1 | J110: 1 | K110: 1 | L110: 1 | M110: 1 | N110: 1 | O110: 1 | P110: 1 | Q110: 1 | R110: 1 | S110: 1 | T110: 1 | U110: 1 | V110: 1 | W110: 1
C111: Servicio de Guardianía | D111: 6.25 | E111: =D111 -> 6.25 | F111: 6.25 | G111: 6.25 | H111: 6.25 | I111: 6.25 | J111: 6.25 | K111: 6.25 | L111: 6.25 | M111: 6.25 | N111: 6.25 | O111: 6.25 | P111: 6.25 | Q111: 6.25 | R111: 6.25 | S111: 6.25 | T111: 6.25 | U111: 6.25 | V111: 6.25 | W111: 6.25
C112: Comisario | D112: 1 | E112: =D112 -> 1 | F112: 1 | G112: 1 | H112: 1 | I112: 1 | J112: 1 | K112: 1 | L112: 1 | M112: 1 | N112: 1 | O112: 1 | P112: 1 | Q112: 1 | R112: 1 | S112: 1 | T112: 1 | U112: 1 | V112: 1 | W112: 1
C113: Directorio (Se hace provisión para dietas) | D113: 1 | E113: =D113 -> 1 | F113: 1 | G113: 1 | H113: 1 | I113: 1 | J113: 1 | K113: 1 | L113: 1 | M113: 1 | N113: 1 | O113: 1 | P113: 1 | Q113: 1 | R113: 1 | S113: 1 | T113: 1 | U113: 1 | V113: 1 | W113: 1
C114: Limpieza de flota | D114: 1.7 | E114: =D114 -> 1.7 | F114: 1.7 | G114: 1.7 | H114: 1.7 | I114: 1.7 | J114: 1.7 | K114: 1.7 | L114: 1.7 | M114: 1.7 | N114: 1.7 | O114: 1.7 | P114: 1.7 | Q114: 1.7 | R114: 1.7 | S114: 1.7 | T114: 1.7 | U114: 1.7 | V114: 1.7 | W114: 1.7
C115: Sistemas & Soporte | D115: 0.5 | E115: =D115 -> 0.5 | F115: 0.5 | G115: 0.5 | H115: 0.5 | I115: 0.5 | J115: 0.5 | K115: 0.5 | L115: 0.5 | M115: 0.5 | N115: 0.5 | O115: 0.5 | P115: 0.5 | Q115: 0.5 | R115: 0.5 | S115: 0.5 | T115: 0.5 | U115: 0.5 | V115: 0.5 | W115: 0.5
C117: Salarios unitarios ente gestor
B118: =B188 -> a) Área 1
C119: =C189 -> Cargo 1 | D119: =F189 -> 0 | E119: =D119 -> 0 | F119: =E119 -> 0 | G119: =F119 -> 0 | H119: =G119 -> 0 | I119: =H119 -> 0 | J119: =I119 -> 0 | K119: =J119 -> 0 | L119: =K119 -> 0 | M119: =L119 -> 0 | N119: =M119 -> 0 | O119: =N119 -> 0 | P119: =O119 -> 0 | Q119: =P119 -> 0 | R119: =Q119 -> 0 | S119: =R119 -> 0 | T119: =S119 -> 0 | U119: =T119 -> 0 | V119: =U119 -> 0 | W119: =V119 -> 0
C120: Cargo 2 | D120: =F190 -> 0 | E120: =D120 -> 0 | F120: 0 | G120: 0 | H120: 0 | I120: 0 | J120: 0 | K120: 0 | L120: 0 | M120: 0 | N120: 0 | O120: 0 | P120: 0 | Q120: 0 | R120: 0 | S120: 0 | T120: 0 | U120: 0 | V120: 0 | W120: 0
B121: =B191 -> b) Área 2
C122: Cargo 1 | D122: =F192 -> 0 | E122: =D122 -> 0 | F122: =E122 -> 0 | G122: =F122 -> 0 | H122: =G122 -> 0 | I122: =H122 -> 0 | J122: =I122 -> 0 | K122: =J122 -> 0 | L122: =K122 -> 0 | M122: =L122 -> 0 | N122: =M122 -> 0 | O122: =N122 -> 0 | P122: =O122 -> 0 | Q122: =P122 -> 0 | R122: =Q122 -> 0 | S122: =R122 -> 0 | T122: =S122 -> 0 | U122: =T122 -> 0 | V122: =U122 -> 0 | W122: =V122 -> 0
C123: Cargo 2 | D123: 0 | E123: 0 | F123: 0 | G123: 0 | H123: 0 | I123: 0 | J123: 0 | K123: 0 | L123: 0 | M123: 0 | N123: 0 | O123: 0 | P123: 0 | Q123: 0 | R123: 0 | S123: 0 | T123: 0 | U123: 0 | V123: 0 | W123: 0
C124: Cargo 3 | D124: 0 | E124: 0 | F124: 0 | G124: 0 | H124: 0 | I124: 0 | J124: 0 | K124: 0 | L124: 0 | M124: 0 | N124: 0 | O124: 0 | P124: 0 | Q124: 0 | R124: 0 | S124: 0 | T124: 0 | U124: 0 | V124: 0 | W124: 0
C125: Cargo 4 | D125: 0 | E125: 0 | F125: 0 | G125: 0 | H125: 0 | I125: 0 | J125: 0 | K125: 0 | L125: 0 | M125: 0 | N125: 0 | O125: 0 | P125: 0 | Q125: 0 | R125: 0 | S125: 0 | T125: 0 | U125: 0 | V125: 0 | W125: 0
C126: Cargo 5 | D126: 0 | E126: 0 | F126: 0 | G126: 0 | H126: 0 | I126: 0 | J126: 0 | K126: 0 | L126: 0 | M126: 0 | N126: 0 | O126: 0 | P126: 0 | Q126: 0 | R126: 0 | S126: 0 | T126: 0 | U126: 0 | V126: 0 | W126: 0
C127: Cargo 6 | D127: 0 | E127: 0 | F127: 0 | G127: 0 | H127: 0 | I127: 0 | J127: 0 | K127: 0 | L127: 0 | M127: 0 | N127: 0 | O127: 0 | P127: 0 | Q127: 0 | R127: 0 | S127: 0 | T127: 0 | U127: 0 | V127: 0 | W127: 0
C128: Cargo 7 | D128: 0 | E128: 0 | F128: 0 | G128: 0 | H128: 0 | I128: 0 | J128: 0 | K128: 0 | L128: 0 | M128: 0 | N128: 0 | O128: 0 | P128: 0 | Q128: 0 | R128: 0 | S128: 0 | T128: 0 | U128: 0 | V128: 0 | W128: 0
B129: =B199 -> c) Área 3
C130: Cargo 1 | D130: =F200 -> 0 | E130: =D130 -> 0 | F130: =E130 -> 0 | G130: =F130 -> 0 | H130: =G130 -> 0 | I130: =H130 -> 0 | J130: =I130 -> 0 | K130: =J130 -> 0 | L130: =K130 -> 0 | M130: =L130 -> 0 | N130: =M130 -> 0 | O130: =N130 -> 0 | P130: =O130 -> 0 | Q130: =P130 -> 0 | R130: =Q130 -> 0 | S130: =R130 -> 0 | T130: =S130 -> 0 | U130: =T130 -> 0 | V130: =U130 -> 0 | W130: =V130 -> 0
C131: Cargo 2 | D131: =F201 -> 0 | E131: 0 | F131: 0 | G131: 0 | H131: 0 | I131: 0 | J131: 0 | K131: 0 | L131: 0 | M131: 0 | N131: 0 | O131: 0 | P131: 0 | Q131: 0 | R131: 0 | S131: 0 | T131: 0 | U131: 0 | V131: 0 | W131: 0
C132: Cargo 3 | D132: =F202 -> 0 | E132: 0 | F132: 0 | G132: 0 | H132: 0 | I132: 0 | J132: 0 | K132: 0 | L132: 0 | M132: 0 | N132: 0 | O132: 0 | P132: 0 | Q132: 0 | R132: 0 | S132: 0 | T132: 0 | U132: 0 | V132: 0 | W132: 0
C133: Cargo 4 | D133: =F203 -> 0 | E133: 0 | F133: 0 | G133: 0 | H133: 0 | I133: 0 | J133: 0 | K133: 0 | L133: 0 | M133: 0 | N133: 0 | O133: 0 | P133: 0 | Q133: 0 | R133: 0 | S133: 0 | T133: 0 | U133: 0 | V133: 0 | W133: 0
B134: =B204 -> d) Área 4
C135: Cargo 1 | D135: =F205 -> 0 | E135: =D135 -> 0 | F135: =E135 -> 0 | G135: =F135 -> 0 | H135: =G135 -> 0 | I135: =H135 -> 0 | J135: =I135 -> 0 | K135: =J135 -> 0 | L135: =K135 -> 0 | M135: =L135 -> 0 | N135: =M135 -> 0 | O135: =N135 -> 0 | P135: =O135 -> 0 | Q135: =P135 -> 0 | R135: =Q135 -> 0 | S135: =R135 -> 0 | T135: =S135 -> 0 | U135: =T135 -> 0 | V135: =U135 -> 0 | W135: =V135 -> 0
C136: Cargo 2 | D136: 0 | E136: 0 | F136: 0 | G136: 0 | H136: 0 | I136: 0 | J136: 0 | K136: 0 | L136: 0 | M136: 0 | N136: 0 | O136: 0 | P136: 0 | Q136: 0 | R136: 0 | S136: 0 | T136: 0 | U136: 0 | V136: 0 | W136: 0
C137: Cargo 3 | D137: 0 | E137: 0 | F137: 0 | G137: 0 | H137: 0 | I137: 0 | J137: 0 | K137: 0 | L137: 0 | M137: 0 | N137: 0 | O137: 0 | P137: 0 | Q137: 0 | R137: 0 | S137: 0 | T137: 0 | U137: 0 | V137: 0 | W137: 0
C138: Cargo 4 | D138: 0 | E138: 0 | F138: 0 | G138: 0 | H138: 0 | I138: 0 | J138: 0 | K138: 0 | L138: 0 | M138: 0 | N138: 0 | O138: 0 | P138: 0 | Q138: 0 | R138: 0 | S138: 0 | T138: 0 | U138: 0 | V138: 0 | W138: 0
C139: Cargo 5 | D139: 0 | E139: 0 | F139: 0 | G139: 0 | H139: 0 | I139: 0 | J139: 0 | K139: 0 | L139: 0 | M139: 0 | N139: 0 | O139: 0 | P139: 0 | Q139: 0 | R139: 0 | S139: 0 | T139: 0 | U139: 0 | V139: 0 | W139: 0
C140: Cargo 6 | D140: 0 | E140: 0 | F140: 0 | G140: 0 | H140: 0 | I140: 0 | J140: 0 | K140: 0 | L140: 0 | M140: 0 | N140: 0 | O140: 0 | P140: 0 | Q140: 0 | R140: 0 | S140: 0 | T140: 0 | U140: 0 | V140: 0 | W140: 0
B141: =B211 -> e) Área 5
C142: Cargo 1 | D142: =F212 -> 0 | E142: =D142 -> 0 | F142: =E142 -> 0 | G142: =F142 -> 0 | H142: =G142 -> 0 | I142: =H142 -> 0 | J142: =I142 -> 0 | K142: =J142 -> 0 | L142: =K142 -> 0 | M142: =L142 -> 0 | N142: =M142 -> 0 | O142: =N142 -> 0 | P142: =O142 -> 0 | Q142: =P142 -> 0 | R142: =Q142 -> 0 | S142: =R142 -> 0 | T142: =S142 -> 0 | U142: =T142 -> 0 | V142: =U142 -> 0 | W142: =V142 -> 0
C143: Cargo 2 | D143: 0 | E143: 0 | F143: 0 | G143: 0 | H143: 0 | I143: 0 | J143: 0 | K143: 0 | L143: 0 | M143: 0 | N143: 0 | O143: 0 | P143: 0 | Q143: 0 | R143: 0 | S143: 0 | T143: 0 | U143: 0 | V143: 0 | W143: 0
C144: Cargo 3 | D144: 0 | E144: 0 | F144: 0 | G144: 0 | H144: 0 | I144: 0 | J144: 0 | K144: 0 | L144: 0 | M144: 0 | N144: 0 | O144: 0 | P144: 0 | Q144: 0 | R144: 0 | S144: 0 | T144: 0 | U144: 0 | V144: 0 | W144: 0
C145: Cargo 4 | D145: 0 | E145: 0 | F145: 0 | G145: 0 | H145: 0 | I145: 0 | J145: 0 | K145: 0 | L145: 0 | M145: 0 | N145: 0 | O145: 0 | P145: 0 | Q145: 0 | R145: 0 | S145: 0 | T145: 0 | U145: 0 | V145: 0 | W145: 0
C146: Cargo 5 | D146: 0 | E146: 0 | F146: 0 | G146: 0 | H146: 0 | I146: 0 | J146: 0 | K146: 0 | L146: 0 | M146: 0 | N146: 0 | O146: 0 | P146: 0 | Q146: 0 | R146: 0 | S146: 0 | T146: 0 | U146: 0 | V146: 0 | W146: 0
C147: Cargo 6 | D147: 0 | E147: 0 | F147: 0 | G147: 0 | H147: 0 | I147: 0 | J147: 0 | K147: 0 | L147: 0 | M147: 0 | N147: 0 | O147: 0 | P147: 0 | Q147: 0 | R147: 0 | S147: 0 | T147: 0 | U147: 0 | V147: 0 | W147: 0
C148: Cargo 7 | D148: 0 | E148: 0 | F148: 0 | G148: 0 | H148: 0 | I148: 0 | J148: 0 | K148: 0 | L148: 0 | M148: 0 | N148: 0 | O148: 0 | P148: 0 | Q148: 0 | R148: 0 | S148: 0 | T148: 0 | U148: 0 | V148: 0 | W148: 0
C149: Cargo 8 | D149: 0 | E149: 0 | F149: 0 | G149: 0 | H149: 0 | I149: 0 | J149: 0 | K149: 0 | L149: 0 | M149: 0 | N149: 0 | O149: 0 | P149: 0 | Q149: 0 | R149: 0 | S149: 0 | T149: 0 | U149: 0 | V149: 0 | W149: 0
C151: INDICADORES
C153: Operador Privado | D153: Cantidad personas | E153: promedio (USD/mes) | F153: X Salarios Básicos
B154: a) Personal directivo
C155: Presidente | D155: 1 | E155: 1000 | F155: =E155/'Sup Personal Directo'!$C$38 -> 2.5
C156: Gerente general | D156: 1 | E156: 2000 | F156: =E156/'Sup Personal Directo'!$C$38 -> 5
B157: b) Personal administrativo
C158: Administrativo & Financiero | D158: 1 | E158: 1350 | F158: =E158/'Sup Personal Directo'!$C$38 -> 3.375
C159: Contador General | D159: 1 | E159: 800 | F159: =E159/'Sup Personal Directo'!$C$38 -> 2
C160: Asistente de Contabilidad | D160: 1 | E160: =+'Sup Personal Directo'!C38 -> 400 | F160: =E160/'Sup Personal Directo'!$C$38 -> 1
C161: Responsable de RRHH | D161: 1 | E161: 800 | F161: =E161/'Sup Personal Directo'!$C$38 -> 2
C162: Secretaria | D162: 1 | E162: 400 | F162: =E162/'Sup Personal Directo'!$C$38 -> 1
C163: Recaudación General | D163: 3 | E163: 400 | F163: =E163/'Sup Personal Directo'!$C$38 -> 1
C164: Mensajería | D164: 1 | E164: =+'Sup Personal Directo'!C38 -> 400 | F164: =E164/'Sup Personal Directo'!$C$38 -> 1
B165: c) Personal de operación
C166: Jefe de Operaciones | D166: 1 | E166: 1350 | F166: =E166/'Sup Personal Directo'!$C$38 -> 3.375
C167: Despachador de Ruta | D167: 8 | E167: =+'Sup Personal Directo'!C38 -> 400 | F167: =E167/'Sup Personal Directo'!$C$38 -> 1
C168: Fiscalizador de Ruta | D168: 5 | E168: 400 | F168: =E168/'Sup Personal Directo'!$C$38 -> 1
C169: Monitoreo & Control de gestión operativa | D169: 3 | E169: =+'Sup Personal Directo'!C38 -> 400 | F169: =E169/'Sup Personal Directo'!$C$38 -> 1
B170: d) Personal de mantenimiento
C171: Responsable de Flota & Mantenimiento | D171: 1 | E171: 900 | F171: =E171/'Sup Personal Directo'!$C$38 -> 2.25
C172: Mecánico | D172: 3 | E172: 400 | F172: =E172/'Sup Personal Directo'!$C$38 -> 1
C173: Eléctrico | D173: 2 | E173: 400 | F173: =E173/'Sup Personal Directo'!$C$38 -> 1
C174: Vulcanizador | D174: 1 | E174: 400 | F174: =E174/'Sup Personal Directo'!$C$38 -> 1
C175: Carrocero | D175: 1 | E175: 400 | F175: =E175/'Sup Personal Directo'!$C$38 -> 1
C176: Ayudante de Mecánico | D176: 3 | E176: =+'Sup Personal Directo'!C38 -> 400 | F176: =E176/'Sup Personal Directo'!$C$38 -> 1
B177: e) Personal externo
C178: Auditoría externa | D178: 1 | E178: 291.6666667 | F178: =E178/'Sup Personal Directo'!$C$38 -> 0.7291666667
C179: Capacitación Talento Humano | D179: 1 | E179: 400 | F179: =E179/'Sup Personal Directo'!$C$38 -> 1
C180: Asesor Legal | D180: 1 | E180: 400 | F180: =E180/'Sup Personal Directo'!$C$38 -> 1
C181: Servicio de Guardianía | D181: 1 | E181: 2500 | F181: =E181/'Sup Personal Directo'!$C$38 -> 6.25
C182: Comisario | D182: 1 | E182: =+'Sup Personal Directo'!C38 -> 400 | F182: =E182/'Sup Personal Directo'!$C$38 -> 1
C183: Directorio (Se hace provisión para dietas) | D183: 1 | E183: =+'Sup Personal Directo'!C38 -> 400 | F183: =E183/'Sup Personal Directo'!$C$38 -> 1
C184: Limpieza de flota | D184: 1 | E184: 680 | F184: =E184/'Sup Personal Directo'!$C$38 -> 1.7
C185: Sistemas & Soporte | D185: 1 | E185: 200 | F185: =E185/'Sup Personal Directo'!$C$38 -> 0.5
C187: Ente Gestor | D187: Cantidad personas | E187: promedio (USD/mes) | F187: X Salarios Básicos
B188: a) Área 1
C189: Cargo 1 | D189: 0 | E189: 0 | F189: =E189/'Sup Personal Directo'!$C$38 -> 0
C190: Cargo 2 | D190: 0 | E190: 0 | F190: =E190/'Sup Personal Directo'!$C$38 -> 0
B191: b) Área 2
C192: Cargo 1 | D192: 0 | E192: 0 | F192: =E192/'Sup Personal Directo'!$C$38 -> 0
C193: Cargo 2 | D193: 0 | E193: 0 | F193: =E193/'Sup Personal Directo'!$C$38 -> 0
C194: Cargo 3 | D194: 0 | E194: 0 | F194: =E194/'Sup Personal Directo'!$C$38 -> 0
C195: Cargo 4 | D195: 0 | E195: 0 | F195: =E195/'Sup Personal Directo'!$C$38 -> 0
C196: Cargo 5 | D196: 0 | E196: 0 | F196: =E196/'Sup Personal Directo'!$C$38 -> 0
C197: Cargo 6 | D197: 0 | E197: 0 | F197: =E197/'Sup Personal Directo'!$C$38 -> 0
C198: Cargo 7 | D198: 0 | E198: 0 | F198: =E198/'Sup Personal Directo'!$C$38 -> 0
B199: c) Área 3
C200: Cargo 1 | D200: 0 | E200: 0 | F200: =E200/'Sup Personal Directo'!$C$38 -> 0
C201: Cargo 2 | D201: 0 | E201: 0 | F201: =E201/'Sup Personal Directo'!$C$38 -> 0
C202: Cargo 3 | D202: 0 | E202: 0 | F202: =E202/'Sup Personal Directo'!$C$38 -> 0
C203: Cargo 4 | D203: 0 | E203: 0 | F203: =E203/'Sup Personal Directo'!$C$38 -> 0
B204: d) Área 4
C205: Cargo 1 | D205: 0 | E205: 0 | F205: =E205/'Sup Personal Directo'!$C$38 -> 0
C206: Cargo 2 | D206: 0 | E206: 0 | F206: =E206/'Sup Personal Directo'!$C$38 -> 0
C207: Cargo 3 | D207: 0 | E207: 0 | F207: =E207/'Sup Personal Directo'!$C$38 -> 0
C208: Cargo 4 | D208: 0 | E208: 0 | F208: =E208/'Sup Personal Directo'!$C$38 -> 0
C209: Cargo 5 | D209: 0 | E209: 0 | F209: =E209/'Sup Personal Directo'!$C$38 -> 0
C210: Cargo 6 | D210: 0 | E210: 0 | F210: =E210/'Sup Personal Directo'!$C$38 -> 0
B211: e) Área 5
... 37 more rows

Sheet Actividades Mtto
L1: Por Km
B2: Estructura de costos Transporte Convencional | L2: Personal
B3: OPEX OTROS GASTOS | C3: ACTIVIDADES MANTENIMIENTO
C5: Ítem | J5: 1 | K5: =J5+1 -> 2 | L5: 3 | M5: 4 | N5: 5 | O5: 6 | P5: 7 | Q5: 8 | R5: 9 | S5: 10 | T5: 11 | U5: 12 | V5: 13 | W5: 14 | X5: 15 | Y5: 16 | Z5: 17 | AA5: 18 | AB5: 19 | AC5: 20 | AE5: 1 | AF5: =AE5+1 -> 2 | AG5: 3 | AH5: 4 | AI5: 5 | AJ5: 6 | AK5: 7 | AL5: 8 | AM5: 9 | AN5: 10 | AO5: 11 | AP5: 12 | AQ5: 13 | AR5: 14 | AS5: 15 | AT5: 16 | AU5: 17 | AV5: 18 | AW5: 19 | AX5: 20
C6: Mano de Obra Mantenimiento | D6: Personal
C8: ='Sup fijo'!B14 -> Intracantonal Rural | H8: Mes operación | J8: 12 | K8: 12 | L8: 12 | M8: 12 | N8: 12 | O8: 12 | P8: 12 | Q8: 12 | R8: 12 | S8: 12 | T8: 12 | U8: 12 | V8: 12 | W8: 12 | X8: 12 | Y8: 12 | Z8: 12 | AA8: 12 | AB8: 12 | AC8: 12
H9: Operación | J9: ='Sup fijo'!E17 -> 70406 | K9: ='Sup fijo'!F17 -> 70406 | L9: ='Sup fijo'!G17 -> 70406 | M9: ='Sup fijo'!H17 -> 70406 | N9: ='Sup fijo'!I17 -> 70406 | O9: ='Sup fijo'!J17 -> 70406 | P9: ='Sup fijo'!K17 -> 70406 | Q9: ='Sup fijo'!L17 -> 70406 | R9: ='Sup fijo'!M17 -> 70406 | S9: ='Sup fijo'!N17 -> 70406 | T9: ='Sup fijo'!O17 -> 70406 | U9: ='Sup fijo'!P17 -> 70406 | V9: ='Sup fijo'!Q17 -> 70406 | W9: ='Sup fijo'!R17 -> 70406 | X9: ='Sup fijo'!S17 -> 70406 | Y9: ='Sup fijo'!T17 -> 70406 | Z9: ='Sup fijo'!U17 -> 70406 | AA9: ='Sup fijo'!V17 -> 70406 | AB9: ='Sup fijo'!W17 -> 70406 | AC9: ='Sup fijo'!X17 -> 70406
H10: Operación acumulada | J10: =+J9 -> 70406 | K10: =+J10+K9 -> 140812 | L10: =+K10+L9 -> 211218 | M10: 281624 | N10: 352030 | O10: 422436 | P10: 492842 | Q10: 563248 | R10: 633654 | S10: 704060 | T10: 774466 | U10: 844872 | V10: 915278 | W10: 985684 | X10: 1056090 | Y10: 1126496 | Z10: 1196902 | AA10: 1267308 | AB10: 1337714 | AC10: 1408120 | AE10: Frecuencia de ejecución labores de mantenimiento
B12: # | C12: Detalle | D12: Unidades | E12: Cantidad | F12: Intervalo Km | G12: Precio (sin IVA) | H12: Área | J12: 1 | K12: =J12+1 -> 2 | L12: 3 | M12: 4 | N12: 5 | O12: 6 | P12: 7 | Q12: 8 | R12: 9 | S12: 10 | T12: 11 | U12: 12 | V12: 13 | W12: 14 | X12: 15 | Y12: 16 | Z12: 17 | AA12: 18 | AB12: 19 | AC12: 20 | AE12: 1 | AF12: =AE12+1 -> 2 | AG12: 3 | AH12: 4 | AI12: 5 | AJ12: 6 | AK12: 7 | AL12: 8 | AM12: 9 | AN12: 10 | AO12: 11 | AP12: 12 | AQ12: 13 | AR12: 14 | AS12: 15 | AT12: 16 | AU12: 17 | AV12: 18 | AW12: 19 | AX12: 20
B13: 1 | C13: LLANTAS | D13: UD. | E13: 4 | F13: 46170 | G13: 449.8285714 | H13: =+'OPEX Mtto'!B11 -> Neumáticos | J13: =+AE13*$E13*$G13*(1+'Sup Generales'!C$10) -> 1814.428526 | K13: =+AF13*$E13*$G13*(1+'Sup Generales'!D$10) -> 3665.145622 | L13: =+AG13*$E13*$G13*(1+'Sup Generales'!E$10) -> 1850.898539 | M13: =+AH13*$E13*$G13*(1+'Sup Generales'!F$10) -> 3746.218643 | N13: =+AI13*$E13*$G13*(1+'Sup Generales'!G$10) -> 1895.586633 | O13: =+AJ13*$E13*$G13*(1+'Sup Generales'!H$10) -> 3840.458519 | P13: =+AK13*$E13*$G13*(1+'Sup Generales'!I$10) -> 1945.19224 | Q13: =+AL13*$E13*$G13*(1+'Sup Generales'!J$10) -> 3944.849863 | R13: =+AM13*$E13*$G13*(1+'Sup Generales'!K$10) -> 2000.03888 | S13: =+AN13*$E13*$G13*(1+'Sup Generales'!L$10) -> 4060.078927 | T13: =+AO13*$E13*$G13*(1+'Sup Generales'!M$10) -> 2060.490056 | U13: =+AP13*$E13*$G13*(1+'Sup Generales'!N$10) -> 4176.726244 | V13: =+AQ13*$E13*$G13*(1+'Sup Generales'!O$10) -> 2118.395499 | W13: =+AR13*$E13*$G13*(1+'Sup Generales'!P$10) -> 4295.055424 | X13: =+AS13*$E13*$G13*(1+'Sup Generales'!Q$10) -> 2176.093657 | Y13: =+AT13*$E13*$G13*(1+'Sup Generales'!R$10) -> 4409.299252 | Z13: =+AU13*$E13*$G13*(1+'Sup Generales'!S$10) -> 2234.045394 | AA13: =+AV13*$E13*$G13*(1+'Sup Generales'!T$10) -> 4528.229863 | AB13: =+AW13*$E13*$G13*(1+'Sup Generales'!U$10) -> 2294.57003 | AC13: =+AX13*$E13*$G13*(1+'Sup Generales'!V$10) -> 4650.336313 | AD13: =SUM(J13:AC13)/SUM($J$9:$AC$9) -> 0.04382164739 | AE13: =ROUNDDOWN(J$10/$F13,0) -> 1 | AF13: =ROUNDDOWN(K$10/$F13,0)-SUM($AE13:AE13) -> 2 | AG13: =ROUNDDOWN(L$10/$F13,0)-SUM($AE13:AF13) -> 1 | AH13: =ROUNDDOWN(M$10/$F13,0)-SUM($AE13:AG13) -> 2 | AI13: =ROUNDDOWN(N$10/$F13,0)-SUM($AE13:AH13) -> 1 | AJ13: =ROUNDDOWN(O$10/$F13,0)-SUM($AE13:AI13) -> 2 | AK13: =ROUNDDOWN(P$10/$F13,0)-SUM($AE13:AJ13) -> 1 | AL13: =ROUNDDOWN(Q$10/$F13,0)-SUM($AE13:AK13) -> 2 | AM13: =ROUNDDOWN(R$10/$F13,0)-SUM($AE13:AL13) -> 1 | AN13: =ROUNDDOWN(S$10/$F13,0)-SUM($AE13:AM13) -> 2 | AO13: =ROUNDDOWN(T$10/$F13,0)-SUM($AE13:AN13) -> 1 | AP13: =ROUNDDOWN(U$10/$F13,0)-SUM($AE13:AO13) -> 2 | AQ13: =ROUNDDOWN(V$10/$F13,0)-SUM($AE13:AP13) -> 1 | AR13: =ROUNDDOWN(W$10/$F13,0)-SUM($AE13:AQ13) -> 2 | AS13: =ROUNDDOWN(X$10/$F13,0)-SUM($AE13:AR13) -> 1 | AT13: =ROUNDDOWN(Y$10/$F13,0)-SUM($AE13:AS13) -> 2 | AU13: =ROUNDDOWN(Z$10/$F13,0)-SUM($AE13:AT13) -> 1 | AV13: =ROUNDDOWN(AA$10/$F13,0)-SUM($AE13:AU13) -> 2 | AW13: =ROUNDDOWN(AB$10/$F13,0)-SUM($AE13:AV13) -> 1 | AX13: =ROUNDDOWN(AC$10/$F13,0)-SUM($AE13:AW13) -> 2
B14: =+B13+1 -> 2 | C14: REENCAUCHE DE LLANTAS | D14: UD. | E14: 2 | F14: 46170 | G14: 275.248 | H14: =+H13 -> Neumáticos | J14: =+AE14*$E14*$G14*(1+'Sup Generales'!C$10) -> 555.1201664 | K14: =+AF14*$E14*$G14*(1+'Sup Generales'!D$10) -> 1121.342736 | L14: =+AG14*$E14*$G14*(1+'Sup Generales'!E$10) -> 566.2780817 | M14: =+AH14*$E14*$G14*(1+'Sup Generales'!F$10) -> 1146.146837 | N14: =+AI14*$E14*$G14*(1+'Sup Generales'!G$10) -> 579.9502998 | O14: =+AJ14*$E14*$G14*(1+'Sup Generales'!H$10) -> 1174.979307 | P14: =+AK14*$E14*$G14*(1+'Sup Generales'!I$10) -> 595.1270191 | Q14: =+AL14*$E14*$G14*(1+'Sup Generales'!J$10) -> 1206.917595 | R14: =+AM14*$E14*$G14*(1+'Sup Generales'!K$10) -> 611.9072206 | S14: =+AN14*$E14*$G14*(1+'Sup Generales'!L$10) -> 1242.171658 | T14: =+AO14*$E14*$G14*(1+'Sup Generales'!M$10) -> 630.4021163 | U14: =+AP14*$E14*$G14*(1+'Sup Generales'!N$10) -> 1277.859632 | V14: =+AQ14*$E14*$G14*(1+'Sup Generales'!O$10) -> 648.1181515 | W14: =+AR14*$E14*$G14*(1+'Sup Generales'!P$10) -> 1314.062168 | X14: =+AS14*$E14*$G14*(1+'Sup Generales'!Q$10) -> 665.770768 | Y14: =+AT14*$E14*$G14*(1+'Sup Generales'!R$10) -> 1349.0148 | Z14: =+AU14*$E14*$G14*(1+'Sup Generales'!S$10) -> 683.5009665 | AA14: =+AV14*$E14*$G14*(1+'Sup Generales'!T$10) -> 1385.401342 | AB14: =+AW14*$E14*$G14*(1+'Sup Generales'!U$10) -> 702.0183374 | AC14: =+AX14*$E14*$G14*(1+'Sup Generales'!V$10) -> 1422.759525 | AD14: =SUM(J14:AC14)/SUM($J$9:$AC$9) -> 0.01340713059 | AE14: =ROUNDDOWN(J$10/$F14,0) -> 1 | AF14: =ROUNDDOWN(K$10/$F14,0)-SUM($AE14:AE14) -> 2 | AG14: =ROUNDDOWN(L$10/$F14,0)-SUM($AE14:AF14) -> 1 | AH14: =ROUNDDOWN(M$10/$F14,0)-SUM($AE14:AG14) -> 2 | AI14: =ROUNDDOWN(N$10/$F14,0)-SUM($AE14:AH14) -> 1 | AJ14: =ROUNDDOWN(O$10/$F14,0)-SUM($AE14:AI14) -> 2 | AK14: =ROUNDDOWN(P$10/$F14,0)-SUM($AE14:AJ14) -> 1 | AL14: =ROUNDDOWN(Q$10/$F14,0)-SUM($AE14:AK14) -> 2 | AM14: =ROUNDDOWN(R$10/$F14,0)-SUM($AE14:AL14) -> 1 | AN14: =ROUNDDOWN(S$10/$F14,0)-SUM($AE14:AM14) -> 2 | AO14: =ROUNDDOWN(T$10/$F14,0)-SUM($AE14:AN14) -> 1 | AP14: =ROUNDDOWN(U$10/$F14,0)-SUM($AE14:AO14) -> 2 | AQ14: =ROUNDDOWN(V$10/$F14,0)-SUM($AE14:AP14) -> 1 | AR14: =ROUNDDOWN(W$10/$F14,0)-SUM($AE14:AQ14) -> 2 | AS14: =ROUNDDOWN(X$10/$F14,0)-SUM($AE14:AR14) -> 1 | AT14: =ROUNDDOWN(Y$10/$F14,0)-SUM($AE14:AS14) -> 2 | AU14: =ROUNDDOWN(Z$10/$F14,0)-SUM($AE14:AT14) -> 1 | AV14: =ROUNDDOWN(AA$10/$F14,0)-SUM($AE14:AU14) -> 2 | AW14: =ROUNDDOWN(AB$10/$F14,0)-SUM($AE14:AV14) -> 1 | AX14: =ROUNDDOWN(AC$10/$F14,0)-SUM($AE14:AW14) -> 2
B15: =+B14+1 -> 3 | C15: ACEITE DE MOTOR | D15: GLNS | E15: 5 | F15: 5000 | G15: 18.08125 | H15: =+'OPEX Mtto'!B13 -> Aceites y filtros | J15: =+AE15*$E15*$G15*(1+'Sup Generales'!C$10) -> 1276.319275 | K15: =+AF15*$E15*$G15*(1+'Sup Generales'!D$10) -> 1289.082468 | L15: =+AG15*$E15*$G15*(1+'Sup Generales'!E$10) -> 1301.973292 | M15: =+AH15*$E15*$G15*(1+'Sup Generales'!F$10) -> 1317.596972 | N15: =+AI15*$E15*$G15*(1+'Sup Generales'!G$10) -> 1333.408136 | O15: =+AJ15*$E15*$G15*(1+'Sup Generales'!H$10) -> 1350.742441 | P15: =+AK15*$E15*$G15*(1+'Sup Generales'!I$10) -> 1368.302093 | Q15: =+AL15*$E15*$G15*(1+'Sup Generales'!J$10) -> 1387.458322 | R15: =+AM15*$E15*$G15*(1+'Sup Generales'!K$10) -> 1406.882739 | S15: =+AN15*$E15*$G15*(1+'Sup Generales'!L$10) -> 1427.98598 | T15: =+AO15*$E15*$G15*(1+'Sup Generales'!M$10) -> 1449.40577 | U15: =+AP15*$E15*$G15*(1+'Sup Generales'!N$10) -> 1469.012457 | V15: =+AQ15*$E15*$G15*(1+'Sup Generales'!O$10) -> 1596.576496 | W15: =+AR15*$E15*$G15*(1+'Sup Generales'!P$10) -> 1510.630468 | X15: =+AS15*$E15*$G15*(1+'Sup Generales'!Q$10) -> 1530.724545 | Y15: =+AT15*$E15*$G15*(1+'Sup Generales'!R$10) -> 1550.811604 | Z15: =+AU15*$E15*$G15*(1+'Sup Generales'!S$10) -> 1571.489402 | AA15: =+AV15*$E15*$G15*(1+'Sup Generales'!T$10) -> 1592.641147 | AB15: =+AW15*$E15*$G15*(1+'Sup Generales'!U$10) -> 1614.064107 | AC15: =+AX15*$E15*$G15*(1+'Sup Generales'!V$10) -> 1635.587676 | AD15: 0.02058112617 | AE15: 14 | AF15: =ROUNDDOWN(K$10/$F15,0)-SUM($AE15:AE15) -> 14 | AG15: =ROUNDDOWN(L$10/$F15,0)-SUM($AE15:AF15) -> 14 | AH15: =ROUNDDOWN(M$10/$F15,0)-SUM($AE15:AG15) -> 14 | AI15: =ROUNDDOWN(N$10/$F15,0)-SUM($AE15:AH15) -> 14 | AJ15: =ROUNDDOWN(O$10/$F15,0)-SUM($AE15:AI15) -> 14 | AK15: =ROUNDDOWN(P$10/$F15,0)-SUM($AE15:AJ15) -> 14 | AL15: =ROUNDDOWN(Q$10/$F15,0)-SUM($AE15:AK15) -> 14 | AM15: =ROUNDDOWN(R$10/$F15,0)-SUM($AE15:AL15) -> 14 | AN15: =ROUNDDOWN(S$10/$F15,0)-SUM($AE15:AM15) -> 14 | AO15: =ROUNDDOWN(T$10/$F15,0)-SUM($AE15:AN15) -> 14 | AP15: =ROUNDDOWN(U$10/$F15,0)-SUM($AE15:AO15) -> 14 | AQ15: =ROUNDDOWN(V$10/$F15,0)-SUM($AE15:AP15) -> 15 | AR15: =ROUNDDOWN(W$10/$F15,0)-SUM($AE15:AQ15) -> 14 | AS15: =ROUNDDOWN(X$10/$F15,0)-SUM($AE15:AR15) -> 14 | AT15: =ROUNDDOWN(Y$10/$F15,0)-SUM($AE15:AS15) -> 14 | AU15: =ROUNDDOWN(Z$10/$F15,0)-SUM($AE15:AT15) -> 14 | AV15: =ROUNDDOWN(AA$10/$F15,0)-SUM($AE15:AU15) -> 14 | AW15: =ROUNDDOWN(AB$10/$F15,0)-SUM($AE15:AV15) -> 14 | AX15: =ROUNDDOWN(AC$10/$F15,0)-SUM($AE15:AW15) -> 14
B16: 4 | C16: ACEITE DE CAJA | D16: GLNS | E16: 3 | F16: 30000 | G16: 18.26142857 | H16: =+H15 -> Aceites y filtros | J16: =+AE16*$E16*$G16*(1+'Sup Generales'!C$10) -> 110.4889474 | K16: =+AF16*$E16*$G16*(1+'Sup Generales'!D$10) -> 111.5938369 | L16: =+AG16*$E16*$G16*(1+'Sup Generales'!E$10) -> 169.0646629 | M16: =+AH16*$E16*$G16*(1+'Sup Generales'!F$10) -> 114.0622926 | N16: =+AI16*$E16*$G16*(1+'Sup Generales'!G$10) -> 115.4310401 | O16: =+AJ16*$E16*$G16*(1+'Sup Generales'!H$10) -> 175.3974654 | P16: =+AK16*$E16*$G16*(1+'Sup Generales'!I$10) -> 118.451755 | Q16: =+AL16*$E16*$G16*(1+'Sup Generales'!J$10) -> 120.1100795 | R16: =+AM16*$E16*$G16*(1+'Sup Generales'!K$10) -> 182.687431 | S16: =+AN16*$E16*$G16*(1+'Sup Generales'!L$10) -> 123.618495 | T16: =+AO16*$E16*$G16*(1+'Sup Generales'!M$10) -> 125.4727724 | U16: =+AP16*$E16*$G16*(1+'Sup Generales'!N$10) -> 190.7551386 | V16: =+AQ16*$E16*$G16*(1+'Sup Generales'!O$10) -> 128.9989028 | W16: =+AR16*$E16*$G16*(1+'Sup Generales'!P$10) -> 130.772898 | X16: =+AS16*$E16*$G16*(1+'Sup Generales'!Q$10) -> 198.7686158 | Y16: =+AT16*$E16*$G16*(1+'Sup Generales'!R$10) -> 134.2513156 | Z16: =+AU16*$E16*$G16*(1+'Sup Generales'!S$10) -> 136.0413599 | AA16: =+AV16*$E16*$G16*(1+'Sup Generales'!T$10) -> 206.8086497 | AB16: =+AW16*$E16*$G16*(1+'Sup Generales'!U$10) -> 139.726985 | AC16: =+AX16*$E16*$G16*(1+'Sup Generales'!V$10) -> 141.5902465 | AD16: 0.002041085199 | AE16: 2 | AF16: =ROUNDDOWN(K$10/$F16,0)-SUM($AE16:AE16) -> 2 | AG16: =ROUNDDOWN(L$10/$F16,0)-SUM($AE16:AF16) -> 3 | AH16: =ROUNDDOWN(M$10/$F16,0)-SUM($AE16:AG16) -> 2 | AI16: =ROUNDDOWN(N$10/$F16,0)-SUM($AE16:AH16) -> 2 | AJ16: =ROUNDDOWN(O$10/$F16,0)-SUM($AE16:AI16) -> 3 | AK16: =ROUNDDOWN(P$10/$F16,0)-SUM($AE16:AJ16) -> 2 | AL16: =ROUNDDOWN(Q$10/$F16,0)-SUM($AE16:AK16) -> 2 | AM16: =ROUNDDOWN(R$10/$F16,0)-SUM($AE16:AL16) -> 3 | AN16: =ROUNDDOWN(S$10/$F16,0)-SUM($AE16:AM16) -> 2 | AO16: =ROUNDDOWN(T$10/$F16,0)-SUM($AE16:AN16) -> 2 | AP16: =ROUNDDOWN(U$10/$F16,0)-SUM($AE16:AO16) -> 3 | AQ16: =ROUNDDOWN(V$10/$F16,0)-SUM($AE16:AP16) -> 2 | AR16: =ROUNDDOWN(W$10/$F16,0)-SUM($AE16:AQ16) -> 2 | AS16: =ROUNDDOWN(X$10/$F16,0)-SUM($AE16:AR16) -> 3 | AT16: =ROUNDDOWN(Y$10/$F16,0)-SUM($AE16:AS16) -> 2 | AU16: =ROUNDDOWN(Z$10/$F16,0)-SUM($AE16:AT16) -> 2 | AV16: =ROUNDDOWN(AA$10/$F16,0)-SUM($AE16:AU16) -> 3 | AW16: =ROUNDDOWN(AB$10/$F16,0)-SUM($AE16:AV16) -> 2 | AX16: =ROUNDDOWN(AC$10/$F16,0)-SUM($AE16:AW16) -> 2
B17: 5 | C17: ACEITE DE DIFERENCIAL | D17: GLNS | E17: 3 | F17: 30000 | G17: 18.59428571 | H17: Aceites y filtros | J17: =+AE17*$E17*$G17*(1+'Sup Generales'!C$10) -> 112.5028663 | K17: =+AF17*$E17*$G17*(1+'Sup Generales'!D$10) -> 113.6278949 | L17: =+AG17*$E17*$G17*(1+'Sup Generales'!E$10) -> 172.1462608 | M17: =+AH17*$E17*$G17*(1+'Sup Generales'!F$10) -> 116.141344 | N17: =+AI17*$E17*$G17*(1+'Sup Generales'!G$10) -> 117.5350401 | O17: =+AJ17*$E17*$G17*(1+'Sup Generales'!H$10) -> 178.5944935 | P17: =+AK17*$E17*$G17*(1+'Sup Generales'!I$10) -> 120.6108146 | Q17: =+AL17*$E17*$G17*(1+'Sup Generales'!J$10) -> 122.299366 | R17: =+AM17*$E17*$G17*(1+'Sup Generales'!K$10) -> 186.0173357 | S17: =+AN17*$E17*$G17*(1+'Sup Generales'!L$10) -> 125.8717305 | T17: =+AO17*$E17*$G17*(1+'Sup Generales'!M$10) -> 127.7598064 | U17: =+AP17*$E17*$G17*(1+'Sup Generales'!N$10) -> 194.232096 | V17: =+AQ17*$E17*$G17*(1+'Sup Generales'!O$10) -> 131.3502087 | W17: =+AR17*$E17*$G17*(1+'Sup Generales'!P$10) -> 133.1565392 | X17: =+AS17*$E17*$G17*(1+'Sup Generales'!Q$10) -> 202.3916376 | Y17: =+AT17*$E17*$G17*(1+'Sup Generales'!R$10) -> 136.698359 | Z17: =+AU17*$E17*$G17*(1+'Sup Generales'!S$10) -> 138.5210311 | AA17: =+AV17*$E17*$G17*(1+'Sup Generales'!T$10) -> 210.5782199 | AB17: =+AW17*$E17*$G17*(1+'Sup Generales'!U$10) -> 142.2738353 | AC17: =+AX17*$E17*$G17*(1+'Sup Generales'!V$10) -> 144.1710591 | AD17: 0.002078288739 | AE17: 2 | AF17: =ROUNDDOWN(K$10/$F17,0)-SUM($AE17:AE17) -> 2 | AG17: =ROUNDDOWN(L$10/$F17,0)-SUM($AE17:AF17) -> 3 | AH17: =ROUNDDOWN(M$10/$F17,0)-SUM($AE17:AG17) -> 2 | AI17: =ROUNDDOWN(N$10/$F17,0)-SUM($AE17:AH17) -> 2 | AJ17: =ROUNDDOWN(O$10/$F17,0)-SUM($AE17:AI17) -> 3 | AK17: =ROUNDDOWN(P$10/$F17,0)-SUM($AE17:AJ17) -> 2 | AL17: =ROUNDDOWN(Q$10/$F17,0)-SUM($AE17:AK17) -> 2 | AM17: =ROUNDDOWN(R$10/$F17,0)-SUM($AE17:AL17) -> 3 | AN17: =ROUNDDOWN(S$10/$F17,0)-SUM($AE17:AM17) -> 2 | AO17: =ROUNDDOWN(T$10/$F17,0)-SUM($AE17:AN17) -> 2 | AP17: =ROUNDDOWN(U$10/$F17,0)-SUM($AE17:AO17) -> 3 | AQ17: =ROUNDDOWN(V$10/$F17,0)-SUM($AE17:AP17) -> 2 | AR17: =ROUNDDOWN(W$10/$F17,0)-SUM($AE17:AQ17) -> 2 | AS17: =ROUNDDOWN(X$10/$F17,0)-SUM($AE17:AR17) -> 3 | AT17: =ROUNDDOWN(Y$10/$F17,0)-SUM($AE17:AS17) -> 2 | AU17: =ROUNDDOWN(Z$10/$F17,0)-SUM($AE17:AT17) -> 2 | AV17: =ROUNDDOWN(AA$10/$F17,0)-SUM($AE17:AU17) -> 3 | AW17: =ROUNDDOWN(AB$10/$F17,0)-SUM($AE17:AV17) -> 2 | AX17: =ROUNDDOWN(AC$10/$F17,0)-SUM($AE17:AW17) -> 2
B18: 6 | C18: ACEITE HIDRÁULICO | D18: GLN | E18: 1 | F18: 60000 | G18: 16.00833333 | H18: Aceites y filtros | J18: =+AE18*$E18*$G18*(1+'Sup Generales'!C$10) -> 16.14280333 | K18: =+AF18*$E18*$G18*(1+'Sup Generales'!D$10) -> 16.30423137 | L18: =+AG18*$E18*$G18*(1+'Sup Generales'!E$10) -> 16.46727368 | M18: =+AH18*$E18*$G18*(1+'Sup Generales'!F$10) -> 16.66488096 | N18: =+AI18*$E18*$G18*(1+'Sup Generales'!G$10) -> 16.86485954 | O18: =+AJ18*$E18*$G18*(1+'Sup Generales'!H$10) -> 34.16820542 | P18: =+AK18*$E18*$G18*(1+'Sup Generales'!I$10) -> 17.30619605 | Q18: =+AL18*$E18*$G18*(1+'Sup Generales'!J$10) -> 17.54848279 | R18: =+AM18*$E18*$G18*(1+'Sup Generales'!K$10) -> 17.79416155 | S18: =+AN18*$E18*$G18*(1+'Sup Generales'!L$10) -> 18.06107397 | T18: =+AO18*$E18*$G18*(1+'Sup Generales'!M$10) -> 18.33199008 | U18: =+AP18*$E18*$G18*(1+'Sup Generales'!N$10) -> 37.15994837 | V18: =+AQ18*$E18*$G18*(1+'Sup Generales'!O$10) -> 18.84716948 | W18: =+AR18*$E18*$G18*(1+'Sup Generales'!P$10) -> 19.10635609 | X18: =+AS18*$E18*$G18*(1+'Sup Generales'!Q$10) -> 19.36050467 | Y18: =+AT18*$E18*$G18*(1+'Sup Generales'!R$10) -> 19.61456449 | Z18: =+AU18*$E18*$G18*(1+'Sup Generales'!S$10) -> 19.87609593 | AA18: =+AV18*$E18*$G18*(1+'Sup Generales'!T$10) -> 40.28724366 | AB18: =+AW18*$E18*$G18*(1+'Sup Generales'!U$10) -> 20.41457804 | AC18: =+AX18*$E18*$G18*(1+'Sup Generales'!V$10) -> 20.68680675 | AD18: 0.0002989854744 | AE18: 1 | AF18: =ROUNDDOWN(K$10/$F18,0)-SUM($AE18:AE18) -> 1 | AG18: =ROUNDDOWN(L$10/$F18,0)-SUM($AE18:AF18) -> 1 | AH18: =ROUNDDOWN(M$10/$F18,0)-SUM($AE18:AG18) -> 1 | AI18: =ROUNDDOWN(N$10/$F18,0)-SUM($AE18:AH18) -> 1 | AJ18: =ROUNDDOWN(O$10/$F18,0)-SUM($AE18:AI18) -> 2 | AK18: =ROUNDDOWN(P$10/$F18,0)-SUM($AE18:AJ18) -> 1 | AL18: =ROUNDDOWN(Q$10/$F18,0)-SUM($AE18:AK18) -> 1 | AM18: =ROUNDDOWN(R$10/$F18,0)-SUM($AE18:AL18) -> 1 | AN18: =ROUNDDOWN(S$10/$F18,0)-SUM($AE18:AM18) -> 1 | AO18: =ROUNDDOWN(T$10/$F18,0)-SUM($AE18:AN18) -> 1 | AP18: =ROUNDDOWN(U$10/$F18,0)-SUM($AE18:AO18) -> 2 | AQ18: =ROUNDDOWN(V$10/$F18,0)-SUM($AE18:AP18) -> 1 | AR18: =ROUNDDOWN(W$10/$F18,0)-SUM($AE18:AQ18) -> 1 | AS18: =ROUNDDOWN(X$10/$F18,0)-SUM($AE18:AR18) -> 1 | AT18: =ROUNDDOWN(Y$10/$F18,0)-SUM($AE18:AS18) -> 1 | AU18: =ROUNDDOWN(Z$10/$F18,0)-SUM($AE18:AT18) -> 1 | AV18: =ROUNDDOWN(AA$10/$F18,0)-SUM($AE18:AU18) -> 2 | AW18: =ROUNDDOWN(AB$10/$F18,0)-SUM($AE18:AV18) -> 1 | AX18: =ROUNDDOWN(AC$10/$F18,0)-SUM($AE18:AW18) -> 1
B19: 7 | C19: ENGRASE GENERAL | D19: KG. | E19: 1 | F19: 5000 | G19: 6.785714286 | H19: Aceites y filtros | J19: =+AE19*$E19*$G19*(1+'Sup Generales'!C$10) -> 95.798 | K19: =+AF19*$E19*$G19*(1+'Sup Generales'!D$10) -> 96.75598 | L19: =+AG19*$E19*$G19*(1+'Sup Generales'!E$10) -> 97.7235398 | M19: =+AH19*$E19*$G19*(1+'Sup Generales'!F$10) -> 98.89622228 | N19: =+AI19*$E19*$G19*(1+'Sup Generales'!G$10) -> 100.0829769 | O19: =+AJ19*$E19*$G19*(1+'Sup Generales'!H$10) -> 101.3840556 | P19: =+AK19*$E19*$G19*(1+'Sup Generales'!I$10) -> 102.7020484 | Q19: =+AL19*$E19*$G19*(1+'Sup Generales'!J$10) -> 104.139877 | R19: =+AM19*$E19*$G19*(1+'Sup Generales'!K$10) -> 105.5978353 | S19: =+AN19*$E19*$G19*(1+'Sup Generales'!L$10) -> 107.1818029 | T19: =+AO19*$E19*$G19*(1+'Sup Generales'!M$10) -> 108.7895299 | U19: =+AP19*$E19*$G19*(1+'Sup Generales'!N$10) -> 110.261169 | V19: =+AQ19*$E19*$G19*(1+'Sup Generales'!O$10) -> 119.8358734 | W19: =+AR19*$E19*$G19*(1+'Sup Generales'!P$10) -> 113.3849346 | X19: =+AS19*$E19*$G19*(1+'Sup Generales'!Q$10) -> 114.8931563 | Y19: =+AT19*$E19*$G19*(1+'Sup Generales'!R$10) -> 116.4008512 | Z19: =+AU19*$E19*$G19*(1+'Sup Generales'!S$10) -> 117.9528858 | AA19: =+AV19*$E19*$G19*(1+'Sup Generales'!T$10) -> 119.540494 | AB19: =+AW19*$E19*$G19*(1+'Sup Generales'!U$10) -> 121.1484589 | AC19: =+AX19*$E19*$G19*(1+'Sup Generales'!V$10) -> 122.7639755 | AD19: 0.001544778618 | AE19: 14 | AF19: =ROUNDDOWN(K$10/$F19,0)-SUM($AE19:AE19) -> 14 | AG19: =ROUNDDOWN(L$10/$F19,0)-SUM($AE19:AF19) -> 14 | AH19: =ROUNDDOWN(M$10/$F19,0)-SUM($AE19:AG19) -> 14 | AI19: =ROUNDDOWN(N$10/$F19,0)-SUM($AE19:AH19) -> 14 | AJ19: =ROUNDDOWN(O$10/$F19,0)-SUM($AE19:AI19) -> 14 | AK19: =ROUNDDOWN(P$10/$F19,0)-SUM($AE19:AJ19) -> 14 | AL19: =ROUNDDOWN(Q$10/$F19,0)-SUM($AE19:AK19) -> 14 | AM19: =ROUNDDOWN(R$10/$F19,0)-SUM($AE19:AL19) -> 14 | AN19: =ROUNDDOWN(S$10/$F19,0)-SUM($AE19:AM19) -> 14 | AO19: =ROUNDDOWN(T$10/$F19,0)-SUM($AE19:AN19) -> 14 | AP19: =ROUNDDOWN(U$10/$F19,0)-SUM($AE19:AO19) -> 14 | AQ19: =ROUNDDOWN(V$10/$F19,0)-SUM($AE19:AP19) -> 15 | AR19: =ROUNDDOWN(W$10/$F19,0)-SUM($AE19:AQ19) -> 14 | AS19: =ROUNDDOWN(X$10/$F19,0)-SUM($AE19:AR19) -> 14 | AT19: =ROUNDDOWN(Y$10/$F19,0)-SUM($AE19:AS19) -> 14 | AU19: =ROUNDDOWN(Z$10/$F19,0)-SUM($AE19:AT19) -> 14 | AV19: =ROUNDDOWN(AA$10/$F19,0)-SUM($AE19:AU19) -> 14 | AW19: =ROUNDDOWN(AB$10/$F19,0)-SUM($AE19:AV19) -> 14 | AX19: =ROUNDDOWN(AC$10/$F19,0)-SUM($AE19:AW19) -> 14
B20: 8 | C20: FILTRO DE ACEITE DE MOTOR | D20: UND | E20: 1 | F20: 5000 | G20: 13.37875 | H20: Aceites y filtros | J20: =+AE20*$E20*$G20*(1+'Sup Generales'!C$10) -> 188.875841 | K20: =+AF20*$E20*$G20*(1+'Sup Generales'!D$10) -> 190.7645994 | L20: =+AG20*$E20*$G20*(1+'Sup Generales'!E$10) -> 192.6722454 | M20: =+AH20*$E20*$G20*(1+'Sup Generales'!F$10) -> 194.9843123 | N20: =+AI20*$E20*$G20*(1+'Sup Generales'!G$10) -> 197.3241241 | O20: =+AJ20*$E20*$G20*(1+'Sup Generales'!H$10) -> 199.8893377 | P20: =+AK20*$E20*$G20*(1+'Sup Generales'!I$10) -> 202.4878991 | Q20: =+AL20*$E20*$G20*(1+'Sup Generales'!J$10) -> 205.3227297 | R20: =+AM20*$E20*$G20*(1+'Sup Generales'!K$10) -> 208.1972479 | S20: =+AN20*$E20*$G20*(1+'Sup Generales'!L$10) -> 211.3202066 | T20: =+AO20*$E20*$G20*(1+'Sup Generales'!M$10) -> 214.4900097 | U20: =+AP20*$E20*$G20*(1+'Sup Generales'!N$10) -> 217.3915012 | V20: =+AQ20*$E20*$G20*(1+'Sup Generales'!O$10) -> 236.2690388 | W20: =+AR20*$E20*$G20*(1+'Sup Generales'!P$10) -> 223.5503339 | X20: =+AS20*$E20*$G20*(1+'Sup Generales'!Q$10) -> 226.5239516 | Y20: =+AT20*$E20*$G20*(1+'Sup Generales'!R$10) -> 229.4965309 | Z20: =+AU20*$E20*$G20*(1+'Sup Generales'!S$10) -> 232.5565304 | AA20: =+AV20*$E20*$G20*(1+'Sup Generales'!T$10) -> 235.686667 | AB20: =+AW20*$E20*$G20*(1+'Sup Generales'!U$10) -> 238.8569393 | AC20: =+AX20*$E20*$G20*(1+'Sup Generales'!V$10) -> 242.0421002 | AD20: 0.003045693653 | AE20: 14 | AF20: =ROUNDDOWN(K$10/$F20,0)-SUM($AE20:AE20) -> 14 | AG20: =ROUNDDOWN(L$10/$F20,0)-SUM($AE20:AF20) -> 14 | AH20: =ROUNDDOWN(M$10/$F20,0)-SUM($AE20:AG20) -> 14 | AI20: =ROUNDDOWN(N$10/$F20,0)-SUM($AE20:AH20) -> 14 | AJ20: =ROUNDDOWN(O$10/$F20,0)-SUM($AE20:AI20) -> 14 | AK20: =ROUNDDOWN(P$10/$F20,0)-SUM($AE20:AJ20) -> 14 | AL20: =ROUNDDOWN(Q$10/$F20,0)-SUM($AE20:AK20) -> 14 | AM20: =ROUNDDOWN(R$10/$F20,0)-SUM($AE20:AL20) -> 14 | AN20: =ROUNDDOWN(S$10/$F20,0)-SUM($AE20:AM20) -> 14 | AO20: =ROUNDDOWN(T$10/$F20,0)-SUM($AE20:AN20) -> 14 | AP20: =ROUNDDOWN(U$10/$F20,0)-SUM($AE20:AO20) -> 14 | AQ20: =ROUNDDOWN(V$10/$F20,0)-SUM($AE20:AP20) -> 15 | AR20: =ROUNDDOWN(W$10/$F20,0)-SUM($AE20:AQ20) -> 14 | AS20: =ROUNDDOWN(X$10/$F20,0)-SUM($AE20:AR20) -> 14 | AT20: =ROUNDDOWN(Y$10/$F20,0)-SUM($AE20:AS20) -> 14 | AU20: =ROUNDDOWN(Z$10/$F20,0)-SUM($AE20:AT20) -> 14 | AV20: =ROUNDDOWN(AA$10/$F20,0)-SUM($AE20:AU20) -> 14 | AW20: =ROUNDDOWN(AB$10/$F20,0)-SUM($AE20:AV20) -> 14 | AX20: =ROUNDDOWN(AC$10/$F20,0)-SUM($AE20:AW20) -> 14
B21: 9 | C21: FILTRO DE AIRE | D21: UND | E21: 2 | F21: 10000 | G21: 35.44125 | H21: Aceites y filtros | J21: =+AE21*$E21*$G21*(1+'Sup Generales'!C$10) -> 500.345391 | K21: =+AF21*$E21*$G21*(1+'Sup Generales'!D$10) -> 505.3488449 | L21: =+AG21*$E21*$G21*(1+'Sup Generales'!E$10) -> 510.4023334 | M21: =+AH21*$E21*$G21*(1+'Sup Generales'!F$10) -> 516.5271614 | N21: =+AI21*$E21*$G21*(1+'Sup Generales'!G$10) -> 522.7254873 | O21: =+AJ21*$E21*$G21*(1+'Sup Generales'!H$10) -> 529.5209186 | P21: =+AK21*$E21*$G21*(1+'Sup Generales'!I$10) -> 536.4046906 | Q21: =+AL21*$E21*$G21*(1+'Sup Generales'!J$10) -> 543.9143562 | R21: =+AM21*$E21*$G21*(1+'Sup Generales'!K$10) -> 551.5291572 | S21: =+AN21*$E21*$G21*(1+'Sup Generales'!L$10) -> 559.8020946 | T21: =+AO21*$E21*$G21*(1+'Sup Generales'!M$10) -> 568.199126 | U21: =+AP21*$E21*$G21*(1+'Sup Generales'!N$10) -> 575.8853811 | V21: =+AQ21*$E21*$G21*(1+'Sup Generales'!O$10) -> 584.1670859 | W21: =+AR21*$E21*$G21*(1+'Sup Generales'!P$10) -> 592.2005621 | X21: =+AS21*$E21*$G21*(1+'Sup Generales'!Q$10) -> 600.0778847 | Y21: =+AT21*$E21*$G21*(1+'Sup Generales'!R$10) -> 607.9524564 | Z21: =+AU21*$E21*$G21*(1+'Sup Generales'!S$10) -> 616.0586105 | AA21: =+AV21*$E21*$G21*(1+'Sup Generales'!T$10) -> 624.3505625 | AB21: =+AW21*$E21*$G21*(1+'Sup Generales'!U$10) -> 632.7488367 | AC21: =+AX21*$E21*$G21*(1+'Sup Generales'!V$10) -> 641.1865521 | AD21: 0.008038624189 | AE21: 7 | AF21: =ROUNDDOWN(K$10/$F21,0)-SUM($AE21:AE21) -> 7 | AG21: =ROUNDDOWN(L$10/$F21,0)-SUM($AE21:AF21) -> 7 | AH21: =ROUNDDOWN(M$10/$F21,0)-SUM($AE21:AG21) -> 7 | AI21: =ROUNDDOWN(N$10/$F21,0)-SUM($AE21:AH21) -> 7 | AJ21: =ROUNDDOWN(O$10/$F21,0)-SUM($AE21:AI21) -> 7 | AK21: =ROUNDDOWN(P$10/$F21,0)-SUM($AE21:AJ21) -> 7 | AL21: =ROUNDDOWN(Q$10/$F21,0)-SUM($AE21:AK21) -> 7 | AM21: =ROUNDDOWN(R$10/$F21,0)-SUM($AE21:AL21) -> 7 | AN21: =ROUNDDOWN(S$10/$F21,0)-SUM($AE21:AM21) -> 7 | AO21: =ROUNDDOWN(T$10/$F21,0)-SUM($AE21:AN21) -> 7 | AP21: =ROUNDDOWN(U$10/$F21,0)-SUM($AE21:AO21) -> 7 | AQ21: =ROUNDDOWN(V$10/$F21,0)-SUM($AE21:AP21) -> 7 | AR21: =ROUNDDOWN(W$10/$F21,0)-SUM($AE21:AQ21) -> 7 | AS21: =ROUNDDOWN(X$10/$F21,0)-SUM($AE21:AR21) -> 7 | AT21: =ROUNDDOWN(Y$10/$F21,0)-SUM($AE21:AS21) -> 7 | AU21: =ROUNDDOWN(Z$10/$F21,0)-SUM($AE21:AT21) -> 7 | AV21: =ROUNDDOWN(AA$10/$F21,0)-SUM($AE21:AU21) -> 7 | AW21: =ROUNDDOWN(AB$10/$F21,0)-SUM($AE21:AV21) -> 7 | AX21: =ROUNDDOWN(AC$10/$F21,0)-SUM($AE21:AW21) -> 7
B22: 10 | C22: FILTRO DE COMBUSTIBLE | D22: UD. | E22: 1 | F22: 5000 | G22: 13.485 | H22: Aceites y filtros | J22: =+AE22*$E22*$G22*(1+'Sup Generales'!C$10) -> 190.375836 | K22: =+AF22*$E22*$G22*(1+'Sup Generales'!D$10) -> 192.2795944 | L22: =+AG22*$E22*$G22*(1+'Sup Generales'!E$10) -> 194.2023903 | M22: =+AH22*$E22*$G22*(1+'Sup Generales'!F$10) -> 196.532819 | N22: =+AI22*$E22*$G22*(1+'Sup Generales'!G$10) -> 198.8912128 | O22: =+AJ22*$E22*$G22*(1+'Sup Generales'!H$10) -> 201.4767986 | P22: =+AK22*$E22*$G22*(1+'Sup Generales'!I$10) -> 204.095997 | Q22: =+AL22*$E22*$G22*(1+'Sup Generales'!J$10) -> 206.9533409 | R22: =+AM22*$E22*$G22*(1+'Sup Generales'!K$10) -> 209.8506877 | S22: =+AN22*$E22*$G22*(1+'Sup Generales'!L$10) -> 212.998448 | T22: =+AO22*$E22*$G22*(1+'Sup Generales'!M$10) -> 216.1934247 | U22: =+AP22*$E22*$G22*(1+'Sup Generales'!N$10) -> 219.117959 | V22: =+AQ22*$E22*$G22*(1+'Sup Generales'!O$10) -> 238.1454163 | W22: =+AR22*$E22*$G22*(1+'Sup Generales'!P$10) -> 225.3257032 | X22: =+AS22*$E22*$G22*(1+'Sup Generales'!Q$10) -> 228.3229366 | Y22: =+AT22*$E22*$G22*(1+'Sup Generales'!R$10) -> 231.3191232 | Z22: =+AU22*$E22*$G22*(1+'Sup Generales'!S$10) -> 234.4034243 | AA22: =+AV22*$E22*$G22*(1+'Sup Generales'!T$10) -> 237.5584195 | AB22: =+AW22*$E22*$G22*(1+'Sup Generales'!U$10) -> 240.7538691 | AC22: =+AX22*$E22*$G22*(1+'Sup Generales'!V$10) -> 243.9643256 | AD22: 0.003069881634 | AE22: 14 | AF22: =ROUNDDOWN(K$10/$F22,0)-SUM($AE22:AE22) -> 14 | AG22: =ROUNDDOWN(L$10/$F22,0)-SUM($AE22:AF22) -> 14 | AH22: =ROUNDDOWN(M$10/$F22,0)-SUM($AE22:AG22) -> 14 | AI22: =ROUNDDOWN(N$10/$F22,0)-SUM($AE22:AH22) -> 14 | AJ22: =ROUNDDOWN(O$10/$F22,0)-SUM($AE22:AI22) -> 14 | AK22: =ROUNDDOWN(P$10/$F22,0)-SUM($AE22:AJ22) -> 14 | AL22: =ROUNDDOWN(Q$10/$F22,0)-SUM($AE22:AK22) -> 14 | AM22: =ROUNDDOWN(R$10/$F22,0)-SUM($AE22:AL22) -> 14 | AN22: =ROUNDDOWN(S$10/$F22,0)-SUM($AE22:AM22) -> 14 | AO22: =ROUNDDOWN(T$10/$F22,0)-SUM($AE22:AN22) -> 14 | AP22: =ROUNDDOWN(U$10/$F22,0)-SUM($AE22:AO22) -> 14 | AQ22: =ROUNDDOWN(V$10/$F22,0)-SUM($AE22:AP22) -> 15 | AR22: =ROUNDDOWN(W$10/$F22,0)-SUM($AE22:AQ22) -> 14 | AS22: =ROUNDDOWN(X$10/$F22,0)-SUM($AE22:AR22) -> 14 | AT22: =ROUNDDOWN(Y$10/$F22,0)-SUM($AE22:AS22) -> 14 | AU22: =ROUNDDOWN(Z$10/$F22,0)-SUM($AE22:AT22) -> 14 | AV22: =ROUNDDOWN(AA$10/$F22,0)-SUM($AE22:AU22) -> 14 | AW22: =ROUNDDOWN(AB$10/$F22,0)-SUM($AE22:AV22) -> 14 | AX22: =ROUNDDOWN(AC$10/$F22,0)-SUM($AE22:AW22) -> 14
B23: 11 | C23: FILTRO SECADOR DE AIRE | D23: UD. | E23: 1 | F23: 30000 | G23: 35.87428571 | H23: Aceites y filtros | J23: =+AE23*$E23*$G23*(1+'Sup Generales'!C$10) -> 72.35125943 | K23: =+AF23*$E23*$G23*(1+'Sup Generales'!D$10) -> 73.07477202 | L23: =+AG23*$E23*$G23*(1+'Sup Generales'!E$10) -> 110.7082796 | M23: =+AH23*$E23*$G23*(1+'Sup Generales'!F$10) -> 74.69118598 | N23: =+AI23*$E23*$G23*(1+'Sup Generales'!G$10) -> 75.58748021 | O23: =+AJ23*$E23*$G23*(1+'Sup Generales'!H$10) -> 114.8551762 | P23: =+AK23*$E23*$G23*(1+'Sup Generales'!I$10) -> 77.56552898 | Q23: =+AL23*$E23*$G23*(1+'Sup Generales'!J$10) -> 78.65144639 | R23: =+AM23*$E23*$G23*(1+'Sup Generales'!K$10) -> 119.62885 | S23: =+AN23*$E23*$G23*(1+'Sup Generales'!L$10) -> 80.94885514 | T23: =+AO23*$E23*$G23*(1+'Sup Generales'!M$10) -> 82.16308796 | U23: =+AP23*$E23*$G23*(1+'Sup Generales'!N$10) -> 124.911811 | V23: =+AQ23*$E23*$G23*(1+'Sup Generales'!O$10) -> 84.47209696 | W23: =+AR23*$E23*$G23*(1+'Sup Generales'!P$10) -> 85.63375874 | X23: =+AS23*$E23*$G23*(1+'Sup Generales'!Q$10) -> 130.1592605 | Y23: =+AT23*$E23*$G23*(1+'Sup Generales'!R$10) -> 87.91152408 | Z23: =+AU23*$E23*$G23*(1+'Sup Generales'!S$10) -> 89.08369528 | AA23: =+AV23*$E23*$G23*(1+'Sup Generales'!T$10) -> 135.4241 | AB23: =+AW23*$E23*$G23*(1+'Sup Generales'!U$10) -> 91.4971459 | AC23: =+AX23*$E23*$G23*(1+'Sup Generales'!V$10) -> 92.71726173 | AD23: 0.001336559793 | AE23: 2 | AF23: =ROUNDDOWN(K$10/$F23,0)-SUM($AE23:AE23) -> 2 | AG23: =ROUNDDOWN(L$10/$F23,0)-SUM($AE23:AF23) -> 3 | AH23: =ROUNDDOWN(M$10/$F23,0)-SUM($AE23:AG23) -> 2 | AI23: =ROUNDDOWN(N$10/$F23,0)-SUM($AE23:AH23) -> 2 | AJ23: =ROUNDDOWN(O$10/$F23,0)-SUM($AE23:AI23) -> 3 | AK23: =ROUNDDOWN(P$10/$F23,0)-SUM($AE23:AJ23) -> 2 | AL23: =ROUNDDOWN(Q$10/$F23,0)-SUM($AE23:AK23) -> 2 | AM23: =ROUNDDOWN(R$10/$F23,0)-SUM($AE23:AL23) -> 3 | AN23: =ROUNDDOWN(S$10/$F23,0)-SUM($AE23:AM23) -> 2 | AO23: =ROUNDDOWN(T$10/$F23,0)-SUM($AE23:AN23) -> 2 | AP23: =ROUNDDOWN(U$10/$F23,0)-SUM($AE23:AO23) -> 3 | AQ23: =ROUNDDOWN(V$10/$F23,0)-SUM($AE23:AP23) -> 2 | AR23: =ROUNDDOWN(W$10/$F23,0)-SUM($AE23:AQ23) -> 2 | AS23: =ROUNDDOWN(X$10/$F23,0)-SUM($AE23:AR23) -> 3 | AT23: =ROUNDDOWN(Y$10/$F23,0)-SUM($AE23:AS23) -> 2 | AU23: =ROUNDDOWN(Z$10/$F23,0)-SUM($AE23:AT23) -> 2 | AV23: =ROUNDDOWN(AA$10/$F23,0)-SUM($AE23:AU23) -> 3 | AW23: =ROUNDDOWN(AB$10/$F23,0)-SUM($AE23:AV23) -> 2 | AX23: =ROUNDDOWN(AC$10/$F23,0)-SUM($AE23:AW23) -> 2
B24: 12 | C24: REFRIGERANTE DE MOTOR | D24: GLNS. | E24: 4 | F24: 30000 | G24: 3.84 | H24: Aceites y filtros | J24: =+AE24*$E24*$G24*(1+'Sup Generales'!C$10) -> 30.978048 | K24: =+AF24*$E24*$G24*(1+'Sup Generales'!D$10) -> 31.28782848 | L24: =+AG24*$E24*$G24*(1+'Sup Generales'!E$10) -> 47.40106015 | M24: =+AH24*$E24*$G24*(1+'Sup Generales'!F$10) -> 31.97991525 | N24: =+AI24*$E24*$G24*(1+'Sup Generales'!G$10) -> 32.36367423 | O24: =+AJ24*$E24*$G24*(1+'Sup Generales'!H$10) -> 49.17660299 | P24: =+AK24*$E24*$G24*(1+'Sup Generales'!I$10) -> 33.21059922 | Q24: =+AL24*$E24*$G24*(1+'Sup Generales'!J$10) -> 33.67554761 | R24: =+AM24*$E24*$G24*(1+'Sup Generales'!K$10) -> 51.22050791 | S24: =+AN24*$E24*$G24*(1+'Sup Generales'!L$10) -> 34.65921035 | T24: =+AO24*$E24*$G24*(1+'Sup Generales'!M$10) -> 35.17909851 | U24: =+AP24*$E24*$G24*(1+'Sup Generales'!N$10) -> 53.4824702 | V24: =+AQ24*$E24*$G24*(1+'Sup Generales'!O$10) -> 36.16772804 | W24: =+AR24*$E24*$G24*(1+'Sup Generales'!P$10) -> 36.66510728 | X24: =+AS24*$E24*$G24*(1+'Sup Generales'!Q$10) -> 55.7292278 | Y24: =+AT24*$E24*$G24*(1+'Sup Generales'!R$10) -> 37.64035947 | Z24: =+AU24*$E24*$G24*(1+'Sup Generales'!S$10) -> 38.14223844 | AA24: =+AV24*$E24*$G24*(1+'Sup Generales'!T$10) -> 57.98343117 | AB24: =+AW24*$E24*$G24*(1+'Sup Generales'!U$10) -> 39.17558588 | AC24: =+AX24*$E24*$G24*(1+'Sup Generales'!V$10) -> 39.69799292 | AD24: 0.0005722638936 | AE24: 2 | AF24: =ROUNDDOWN(K$10/$F24,0)-SUM($AE24:AE24) -> 2 | AG24: =ROUNDDOWN(L$10/$F24,0)-SUM($AE24:AF24) -> 3 | AH24: =ROUNDDOWN(M$10/$F24,0)-SUM($AE24:AG24) -> 2 | AI24: =ROUNDDOWN(N$10/$F24,0)-SUM($AE24:AH24) -> 2 | AJ24: =ROUNDDOWN(O$10/$F24,0)-SUM($AE24:AI24) -> 3 | AK24: =ROUNDDOWN(P$10/$F24,0)-SUM($AE24:AJ24) -> 2 | AL24: =ROUNDDOWN(Q$10/$F24,0)-SUM($AE24:AK24) -> 2 | AM24: =ROUNDDOWN(R$10/$F24,0)-SUM($AE24:AL24) -> 3 | AN24: =ROUNDDOWN(S$10/$F24,0)-SUM($AE24:AM24) -> 2 | AO24: =ROUNDDOWN(T$10/$F24,0)-SUM($AE24:AN24) -> 2 | AP24: =ROUNDDOWN(U$10/$F24,0)-SUM($AE24:AO24) -> 3 | AQ24: =ROUNDDOWN(V$10/$F24,0)-SUM($AE24:AP24) -> 2 | AR24: =ROUNDDOWN(W$10/$F24,0)-SUM($AE24:AQ24) -> 2 | AS24: =ROUNDDOWN(X$10/$F24,0)-SUM($AE24:AR24) -> 3 | AT24: =ROUNDDOWN(Y$10/$F24,0)-SUM($AE24:AS24) -> 2 | AU24: =ROUNDDOWN(Z$10/$F24,0)-SUM($AE24:AT24) -> 2 | AV24: =ROUNDDOWN(AA$10/$F24,0)-SUM($AE24:AU24) -> 3 | AW24: =ROUNDDOWN(AB$10/$F24,0)-SUM($AE24:AV24) -> 2 | AX24: =ROUNDDOWN(AC$10/$F24,0)-SUM($AE24:AW24) -> 2
B25: 13 | C25: DESCARBONIZACION COMPRESOR AIRE | D25: UD. | E25: 1 | F25: 30000 | G25: 27.5 | H25: Aceites y filtros | J25: =+AE25*$E25*$G25*(1+'Sup Generales'!C$10) -> 55.462 | K25: =+AF25*$E25*$G25*(1+'Sup Generales'!D$10) -> 56.01662 | L25: =+AG25*$E25*$G25*(1+'Sup Generales'!E$10) -> 84.8651793 | M25: =+AH25*$E25*$G25*(1+'Sup Generales'!F$10) -> 57.25570763 | N25: =+AI25*$E25*$G25*(1+'Sup Generales'!G$10) -> 57.94277613 | O25: =+AJ25*$E25*$G25*(1+'Sup Generales'!H$10) -> 88.04404832 | P25: =+AK25*$E25*$G25*(1+'Sup Generales'!I$10) -> 59.45908063 | Q25: =+AL25*$E25*$G25*(1+'Sup Generales'!J$10) -> 60.29150776 | R25: =+AM25*$E25*$G25*(1+'Sup Generales'!K$10) -> 91.70338331 | S25: =+AN25*$E25*$G25*(1+'Sup Generales'!L$10) -> 62.05262271 | T25: =+AO25*$E25*$G25*(1+'Sup Generales'!M$10) -> 62.98341205 | U25: =+AP25*$E25*$G25*(1+'Sup Generales'!N$10) -> 95.75312048 | V25: =+AQ25*$E25*$G25*(1+'Sup Generales'!O$10) -> 64.75341934 | W25: =+AR25*$E25*$G25*(1+'Sup Generales'!P$10) -> 65.64390952 | X25: =+AS25*$E25*$G25*(1+'Sup Generales'!Q$10) -> 99.77563571 | Y25: =+AT25*$E25*$G25*(1+'Sup Generales'!R$10) -> 67.38996649 | Z25: =+AU25*$E25*$G25*(1+'Sup Generales'!S$10) -> 68.28851283 | AA25: =+AV25*$E25*$G25*(1+'Sup Generales'!T$10) -> 103.8114816 | AB25: =+AW25*$E25*$G25*(1+'Sup Generales'!U$10) -> 70.1385815 | AC25: =+AX25*$E25*$G25*(1+'Sup Generales'!V$10) -> 71.07388055 | AD25: 0.001024561007 | AE25: 2 | AF25: =ROUNDDOWN(K$10/$F25,0)-SUM($AE25:AE25) -> 2 | AG25: =ROUNDDOWN(L$10/$F25,0)-SUM($AE25:AF25) -> 3 | AH25: =ROUNDDOWN(M$10/$F25,0)-SUM($AE25:AG25) -> 2 | AI25: =ROUNDDOWN(N$10/$F25,0)-SUM($AE25:AH25) -> 2 | AJ25: =ROUNDDOWN(O$10/$F25,0)-SUM($AE25:AI25) -> 3 | AK25: =ROUNDDOWN(P$10/$F25,0)-SUM($AE25:AJ25) -> 2 | AL25: =ROUNDDOWN(Q$10/$F25,0)-SUM($AE25:AK25) -> 2 | AM25: =ROUNDDOWN(R$10/$F25,0)-SUM($AE25:AL25) -> 3 | AN25: =ROUNDDOWN(S$10/$F25,0)-SUM($AE25:AM25) -> 2 | AO25: =ROUNDDOWN(T$10/$F25,0)-SUM($AE25:AN25) -> 2 | AP25: =ROUNDDOWN(U$10/$F25,0)-SUM($AE25:AO25) -> 3 | AQ25: =ROUNDDOWN(V$10/$F25,0)-SUM($AE25:AP25) -> 2 | AR25: =ROUNDDOWN(W$10/$F25,0)-SUM($AE25:AQ25) -> 2 | AS25: =ROUNDDOWN(X$10/$F25,0)-SUM($AE25:AR25) -> 3 | AT25: =ROUNDDOWN(Y$10/$F25,0)-SUM($AE25:AS25) -> 2 | AU25: =ROUNDDOWN(Z$10/$F25,0)-SUM($AE25:AT25) -> 2 | AV25: =ROUNDDOWN(AA$10/$F25,0)-SUM($AE25:AU25) -> 3 | AW25: =ROUNDDOWN(AB$10/$F25,0)-SUM($AE25:AV25) -> 2 | AX25: =ROUNDDOWN(AC$10/$F25,0)-SUM($AE25:AW25) -> 2
B26: 14 | C26: BANDAS | D26: JGO. | E26: 1 | F26: 30000 | G26: 31.70857143 | H26: =+'OPEX Mtto'!B10 -> Costo de mantenimiento mecánico | J26: =+AE26*$E26*$G26*(1+'Sup Generales'!C$10) -> 63.94984686 | K26: =+AF26*$E26*$G26*(1+'Sup Generales'!D$10) -> 64.58934533 | L26: =+AG26*$E26*$G26*(1+'Sup Generales'!E$10) -> 97.85285817 | M26: =+AH26*$E26*$G26*(1+'Sup Generales'!F$10) -> 66.01806164 | N26: =+AI26*$E26*$G26*(1+'Sup Generales'!G$10) -> 66.81027838 | O26: =+AJ26*$E26*$G26*(1+'Sup Generales'!H$10) -> 101.518218 | P26: =+AK26*$E26*$G26*(1+'Sup Generales'!I$10) -> 68.55863656 | Q26: =+AL26*$E26*$G26*(1+'Sup Generales'!J$10) -> 69.51845747 | R26: =+AM26*$E26*$G26*(1+'Sup Generales'!K$10) -> 105.7375738 | S26: =+AN26*$E26*$G26*(1+'Sup Generales'!L$10) -> 71.54909161 | T26: =+AO26*$E26*$G26*(1+'Sup Generales'!M$10) -> 72.62232799 | U26: =+AP26*$E26*$G26*(1+'Sup Generales'!N$10) -> 110.4070786 | V26: =+AQ26*$E26*$G26*(1+'Sup Generales'!O$10) -> 74.66321536 | W26: =+AR26*$E26*$G26*(1+'Sup Generales'!P$10) -> 75.68998523 | X26: =+AS26*$E26*$G26*(1+'Sup Generales'!Q$10) -> 115.0451953 | Y26: =+AT26*$E26*$G26*(1+'Sup Generales'!R$10) -> 77.70325695 | Z26: =+AU26*$E26*$G26*(1+'Sup Generales'!S$10) -> 78.73931589 | AA26: =+AV26*$E26*$G26*(1+'Sup Generales'!T$10) -> 119.6986829 | AB26: =+AW26*$E26*$G26*(1+'Sup Generales'!U$10) -> 80.87251714 | AC26: =+AX26*$E26*$G26*(1+'Sup Generales'!V$10) -> 81.95095338 | AD26: 0.00118135876 | AE26: 2 | AF26: =ROUNDDOWN(K$10/$F26,0)-SUM($AE26:AE26) -> 2 | AG26: =ROUNDDOWN(L$10/$F26,0)-SUM($AE26:AF26) -> 3 | AH26: =ROUNDDOWN(M$10/$F26,0)-SUM($AE26:AG26) -> 2 | AI26: =ROUNDDOWN(N$10/$F26,0)-SUM($AE26:AH26) -> 2 | AJ26: =ROUNDDOWN(O$10/$F26,0)-SUM($AE26:AI26) -> 3 | AK26: =ROUNDDOWN(P$10/$F26,0)-SUM($AE26:AJ26) -> 2 | AL26: =ROUNDDOWN(Q$10/$F26,0)-SUM($AE26:AK26) -> 2 | AM26: =ROUNDDOWN(R$10/$F26,0)-SUM($AE26:AL26) -> 3 | AN26: =ROUNDDOWN(S$10/$F26,0)-SUM($AE26:AM26) -> 2 | AO26: =ROUNDDOWN(T$10/$F26,0)-SUM($AE26:AN26) -> 2 | AP26: =ROUNDDOWN(U$10/$F26,0)-SUM($AE26:AO26) -> 3 | AQ26: =ROUNDDOWN(V$10/$F26,0)-SUM($AE26:AP26) -> 2 | AR26: =ROUNDDOWN(W$10/$F26,0)-SUM($AE26:AQ26) -> 2 | AS26: =ROUNDDOWN(X$10/$F26,0)-SUM($AE26:AR26) -> 3 | AT26: =ROUNDDOWN(Y$10/$F26,0)-SUM($AE26:AS26) -> 2 | AU26: =ROUNDDOWN(Z$10/$F26,0)-SUM($AE26:AT26) -> 2 | AV26: =ROUNDDOWN(AA$10/$F26,0)-SUM($AE26:AU26) -> 3 | AW26: =ROUNDDOWN(AB$10/$F26,0)-SUM($AE26:AV26) -> 2 | AX26: =ROUNDDOWN(AC$10/$F26,0)-SUM($AE26:AW26) -> 2
B27: 15 | C27: CAMBIO DE TOBERAS DE INYECTORES | D27: JGO. | E27: 1 | F27: 120000 | G27: 213.8666667 | H27: =+H26 -> Costo de mantenimiento mecánico | J27: =+AE27*$E27*$G27*(1+'Sup Generales'!C$10) -> 0 | K27: =+AF27*$E27*$G27*(1+'Sup Generales'!D$10) -> 217.8197781 | L27: =+AG27*$E27*$G27*(1+'Sup Generales'!E$10) -> 0 | M27: =+AH27*$E27*$G27*(1+'Sup Generales'!F$10) -> 222.6379516 | N27: =+AI27*$E27*$G27*(1+'Sup Generales'!G$10) -> 0 | O27: =+AJ27*$E27*$G27*(1+'Sup Generales'!H$10) -> 228.2386319 | P27: =+AK27*$E27*$G27*(1+'Sup Generales'!I$10) -> 231.2057342 | Q27: =+AL27*$E27*$G27*(1+'Sup Generales'!J$10) -> 0 | R27: =+AM27*$E27*$G27*(1+'Sup Generales'!K$10) -> 237.724811 | S27: =+AN27*$E27*$G27*(1+'Sup Generales'!L$10) -> 0 | T27: =+AO27*$E27*$G27*(1+'Sup Generales'!M$10) -> 244.9100434 | U27: =+AP27*$E27*$G27*(1+'Sup Generales'!N$10) -> 248.2230388 | V27: =+AQ27*$E27*$G27*(1+'Sup Generales'!O$10) -> 0 | W27: =+AR27*$E27*$G27*(1+'Sup Generales'!P$10) -> 255.2553475 | X27: =+AS27*$E27*$G27*(1+'Sup Generales'!Q$10) -> 0 | Y27: =+AT27*$E27*$G27*(1+'Sup Generales'!R$10) -> 262.0448636 | Z27: =+AU27*$E27*$G27*(1+'Sup Generales'!S$10) -> 0 | AA27: =+AV27*$E27*$G27*(1+'Sup Generales'!T$10) -> 269.1129155 | AB27: =+AW27*$E27*$G27*(1+'Sup Generales'!U$10) -> 272.7328114 | AC27: =+AX27*$E27*$G27*(1+'Sup Generales'!V$10) -> 0 | AD27: 0.001910281743 | AE27: 0 | AF27: =ROUNDDOWN(K$10/$F27,0)-SUM($AE27:AE27) -> 1 | AG27: =ROUNDDOWN(L$10/$F27,0)-SUM($AE27:AF27) -> 0 | AH27: =ROUNDDOWN(M$10/$F27,0)-SUM($AE27:AG27) -> 1 | AI27: =ROUNDDOWN(N$10/$F27,0)-SUM($AE27:AH27) -> 0 | AJ27: =ROUNDDOWN(O$10/$F27,0)-SUM($AE27:AI27) -> 1 | AK27: =ROUNDDOWN(P$10/$F27,0)-SUM($AE27:AJ27) -> 1 | AL27: =ROUNDDOWN(Q$10/$F27,0)-SUM($AE27:AK27) -> 0 | AM27: =ROUNDDOWN(R$10/$F27,0)-SUM($AE27:AL27) -> 1 | AN27: =ROUNDDOWN(S$10/$F27,0)-SUM($AE27:AM27) -> 0 | AO27: =ROUNDDOWN(T$10/$F27,0)-SUM($AE27:AN27) -> 1 | AP27: =ROUNDDOWN(U$10/$F27,0)-SUM($AE27:AO27) -> 1 | AQ27: =ROUNDDOWN(V$10/$F27,0)-SUM($AE27:AP27) -> 0 | AR27: =ROUNDDOWN(W$10/$F27,0)-SUM($AE27:AQ27) -> 1 | AS27: =ROUNDDOWN(X$10/$F27,0)-SUM($AE27:AR27) -> 0 | AT27: =ROUNDDOWN(Y$10/$F27,0)-SUM($AE27:AS27) -> 1 | AU27: =ROUNDDOWN(Z$10/$F27,0)-SUM($AE27:AT27) -> 0 | AV27: =ROUNDDOWN(AA$10/$F27,0)-SUM($AE27:AU27) -> 1 | AW27: =ROUNDDOWN(AB$10/$F27,0)-SUM($AE27:AV27) -> 1 | AX27: =ROUNDDOWN(AC$10/$F27,0)-SUM($AE27:AW27) -> 0
B28: 16 | C28: CALIBRACIÓN DE LA BOMBA DE INYECCIÓN | D28: UND | E28: 1 | F28: 150000 | G28: 296.2 | H28: =+H27 -> Costo de mantenimiento mecánico | J28: =+AE28*$E28*$G28*(1+'Sup Generales'!C$10) -> 0 | K28: =+AF28*$E28*$G28*(1+'Sup Generales'!D$10) -> 0 | L28: =+AG28*$E28*$G28*(1+'Sup Generales'!E$10) -> 304.6917104 | M28: =+AH28*$E28*$G28*(1+'Sup Generales'!F$10) -> 0 | N28: =+AI28*$E28*$G28*(1+'Sup Generales'!G$10) -> 312.0481871 | O28: =+AJ28*$E28*$G28*(1+'Sup Generales'!H$10) -> 0 | P28: =+AK28*$E28*$G28*(1+'Sup Generales'!I$10) -> 320.2141761 | Q28: =+AL28*$E28*$G28*(1+'Sup Generales'!J$10) -> 0 | R28: =+AM28*$E28*$G28*(1+'Sup Generales'!K$10) -> 329.242935 | S28: =+AN28*$E28*$G28*(1+'Sup Generales'!L$10) -> 0 | T28: =+AO28*$E28*$G28*(1+'Sup Generales'!M$10) -> 339.1943027 | U28: =+AP28*$E28*$G28*(1+'Sup Generales'!N$10) -> 0 | V28: =+AQ28*$E28*$G28*(1+'Sup Generales'!O$10) -> 348.7265965 | W28: =+AR28*$E28*$G28*(1+'Sup Generales'!P$10) -> 0 | X28: =+AS28*$E28*$G28*(1+'Sup Generales'!Q$10) -> 358.2247673 | Y28: =+AT28*$E28*$G28*(1+'Sup Generales'!R$10) -> 0 | Z28: =+AU28*$E28*$G28*(1+'Sup Generales'!S$10) -> 0 | AA28: =+AV28*$E28*$G28*(1+'Sup Generales'!T$10) -> 372.7146769 | AB28: =+AW28*$E28*$G28*(1+'Sup Generales'!U$10) -> 0 | AC28: =+AX28*$E28*$G28*(1+'Sup Generales'!V$10) -> 382.7651531 | AD28: 0.002178665529 | AE28: 0 | AF28: =ROUNDDOWN(K$10/$F28,0)-SUM($AE28:AE28) -> 0 | AG28: =ROUNDDOWN(L$10/$F28,0)-SUM($AE28:AF28) -> 1 | AH28: =ROUNDDOWN(M$10/$F28,0)-SUM($AE28:AG28) -> 0 | AI28: =ROUNDDOWN(N$10/$F28,0)-SUM($AE28:AH28) -> 1 | AJ28: =ROUNDDOWN(O$10/$F28,0)-SUM($AE28:AI28) -> 0 | AK28: =ROUNDDOWN(P$10/$F28,0)-SUM($AE28:AJ28) -> 1 | AL28: =ROUNDDOWN(Q$10/$F28,0)-SUM($AE28:AK28) -> 0 | AM28: =ROUNDDOWN(R$10/$F28,0)-SUM($AE28:AL28) -> 1 | AN28: =ROUNDDOWN(S$10/$F28,0)-SUM($AE28:AM28) -> 0 | AO28: =ROUNDDOWN(T$10/$F28,0)-SUM($AE28:AN28) -> 1 | AP28: =ROUNDDOWN(U$10/$F28,0)-SUM($AE28:AO28) -> 0 | AQ28: =ROUNDDOWN(V$10/$F28,0)-SUM($AE28:AP28) -> 1 | AR28: =ROUNDDOWN(W$10/$F28,0)-SUM($AE28:AQ28) -> 0 | AS28: =ROUNDDOWN(X$10/$F28,0)-SUM($AE28:AR28) -> 1 | AT28: =ROUNDDOWN(Y$10/$F28,0)-SUM($AE28:AS28) -> 0 | AU28: =ROUNDDOWN(Z$10/$F28,0)-SUM($AE28:AT28) -> 0 | AV28: =ROUNDDOWN(AA$10/$F28,0)-SUM($AE28:AU28) -> 1 | AW28: =ROUNDDOWN(AB$10/$F28,0)-SUM($AE28:AV28) -> 0 | AX28: =ROUNDDOWN(AC$10/$F28,0)-SUM($AE28:AW28) -> 1
B29: 17 | C29: EMBRAGUE | D29: JGO. | E29: 1 | F29: 60000 | G29: 728.3333333 | H29: =+H28 -> Costo de mantenimiento mecánico | J29: =+AE29*$E29*$G29*(1+'Sup Generales'!C$10) -> 734.4513333 | K29: =+AF29*$E29*$G29*(1+'Sup Generales'!D$10) -> 741.7958467 | L29: =+AG29*$E29*$G29*(1+'Sup Generales'!E$10) -> 749.2138051 | M29: =+AH29*$E29*$G29*(1+'Sup Generales'!F$10) -> 758.2043708 | N29: =+AI29*$E29*$G29*(1+'Sup Generales'!G$10) -> 767.3028232 | O29: =+AJ29*$E29*$G29*(1+'Sup Generales'!H$10) -> 1554.55552 | P29: =+AK29*$E29*$G29*(1+'Sup Generales'!I$10) -> 787.3823708 | Q29: =+AL29*$E29*$G29*(1+'Sup Generales'!J$10) -> 798.405724 | R29: =+AM29*$E29*$G29*(1+'Sup Generales'!K$10) -> 809.5834042 | S29: =+AN29*$E29*$G29*(1+'Sup Generales'!L$10) -> 821.7271552 | T29: =+AO29*$E29*$G29*(1+'Sup Generales'!M$10) -> 834.0530625 | U29: =+AP29*$E29*$G29*(1+'Sup Generales'!N$10) -> 1690.671259 | V29: =+AQ29*$E29*$G29*(1+'Sup Generales'!O$10) -> 857.49225 | W29: =+AR29*$E29*$G29*(1+'Sup Generales'!P$10) -> 869.2844987 | X29: =+AS29*$E29*$G29*(1+'Sup Generales'!Q$10) -> 880.8475315 | Y29: =+AT29*$E29*$G29*(1+'Sup Generales'!R$10) -> 892.406526 | Z29: =+AU29*$E29*$G29*(1+'Sup Generales'!S$10) -> 904.3054578 | AA29: =+AV29*$E29*$G29*(1+'Sup Generales'!T$10) -> 1832.954241 | AB29: =+AW29*$E29*$G29*(1+'Sup Generales'!U$10) -> 928.8048519 | AC29: =+AX29*$E29*$G29*(1+'Sup Generales'!V$10) -> 941.1904788 | AD29: 0.01360298306 | AE29: 1 | AF29: =ROUNDDOWN(K$10/$F29,0)-SUM($AE29:AE29) -> 1 | AG29: =ROUNDDOWN(L$10/$F29,0)-SUM($AE29:AF29) -> 1 | AH29: =ROUNDDOWN(M$10/$F29,0)-SUM($AE29:AG29) -> 1 | AI29: =ROUNDDOWN(N$10/$F29,0)-SUM($AE29:AH29) -> 1 | AJ29: =ROUNDDOWN(O$10/$F29,0)-SUM($AE29:AI29) -> 2 | AK29: =ROUNDDOWN(P$10/$F29,0)-SUM($AE29:AJ29) -> 1 | AL29: =ROUNDDOWN(Q$10/$F29,0)-SUM($AE29:AK29) -> 1 | AM29: =ROUNDDOWN(R$10/$F29,0)-SUM($AE29:AL29) -> 1 | AN29: =ROUNDDOWN(S$10/$F29,0)-SUM($AE29:AM29) -> 1 | AO29: =ROUNDDOWN(T$10/$F29,0)-SUM($AE29:AN29) -> 1 | AP29: =ROUNDDOWN(U$10/$F29,0)-SUM($AE29:AO29) -> 2 | AQ29: =ROUNDDOWN(V$10/$F29,0)-SUM($AE29:AP29) -> 1 | AR29: =ROUNDDOWN(W$10/$F29,0)-SUM($AE29:AQ29) -> 1 | AS29: =ROUNDDOWN(X$10/$F29,0)-SUM($AE29:AR29) -> 1 | AT29: =ROUNDDOWN(Y$10/$F29,0)-SUM($AE29:AS29) -> 1 | AU29: =ROUNDDOWN(Z$10/$F29,0)-SUM($AE29:AT29) -> 1 | AV29: =ROUNDDOWN(AA$10/$F29,0)-SUM($AE29:AU29) -> 2 | AW29: =ROUNDDOWN(AB$10/$F29,0)-SUM($AE29:AV29) -> 1 | AX29: =ROUNDDOWN(AC$10/$F29,0)-SUM($AE29:AW29) -> 1
B30: 18 | C30: BUSTER EMBRAGUE | D30: JGO. | E30: 1 | F30: 30000 | G30: 175 | H30: Costo de mantenimiento mecánico | J30: =+AE30*$E30*$G30*(1+'Sup Generales'!C$10) -> 352.94 | K30: =+AF30*$E30*$G30*(1+'Sup Generales'!D$10) -> 356.4694 | L30: =+AG30*$E30*$G30*(1+'Sup Generales'!E$10) -> 540.051141 | M30: =+AH30*$E30*$G30*(1+'Sup Generales'!F$10) -> 364.3545031 | N30: =+AI30*$E30*$G30*(1+'Sup Generales'!G$10) -> 368.7267572 | O30: =+AJ30*$E30*$G30*(1+'Sup Generales'!H$10) -> 560.2803075 | P30: =+AK30*$E30*$G30*(1+'Sup Generales'!I$10) -> 378.3759677 | Q30: =+AL30*$E30*$G30*(1+'Sup Generales'!J$10) -> 383.6732312 | R30: =+AM30*$E30*$G30*(1+'Sup Generales'!K$10) -> 583.5669847 | S30: =+AN30*$E30*$G30*(1+'Sup Generales'!L$10) -> 394.8803263 | T30: =+AO30*$E30*$G30*(1+'Sup Generales'!M$10) -> 400.8035312 | U30: =+AP30*$E30*$G30*(1+'Sup Generales'!N$10) -> 609.3380394 | V30: =+AQ30*$E30*$G30*(1+'Sup Generales'!O$10) -> 412.067214 | W30: =+AR30*$E30*$G30*(1+'Sup Generales'!P$10) -> 417.7339696 | X30: =+AS30*$E30*$G30*(1+'Sup Generales'!Q$10) -> 634.9358636 | Y30: =+AT30*$E30*$G30*(1+'Sup Generales'!R$10) -> 428.8452413 | Z30: =+AU30*$E30*$G30*(1+'Sup Generales'!S$10) -> 434.5632635 | AA30: =+AV30*$E30*$G30*(1+'Sup Generales'!T$10) -> 660.6185192 | AB30: =+AW30*$E30*$G30*(1+'Sup Generales'!U$10) -> 446.3364277 | AC30: =+AX30*$E30*$G30*(1+'Sup Generales'!V$10) -> 452.2883308 | AD30: 0.006519933684 | AE30: 2 | AF30: =ROUNDDOWN(K$10/$F30,0)-SUM($AE30:AE30) -> 2 | AG30: =ROUNDDOWN(L$10/$F30,0)-SUM($AE30:AF30) -> 3 | AH30: =ROUNDDOWN(M$10/$F30,0)-SUM($AE30:AG30) -> 2 | AI30: =ROUNDDOWN(N$10/$F30,0)-SUM($AE30:AH30) -> 2 | AJ30: =ROUNDDOWN(O$10/$F30,0)-SUM($AE30:AI30) -> 3 | AK30: =ROUNDDOWN(P$10/$F30,0)-SUM($AE30:AJ30) -> 2 | AL30: =ROUNDDOWN(Q$10/$F30,0)-SUM($AE30:AK30) -> 2 | AM30: =ROUNDDOWN(R$10/$F30,0)-SUM($AE30:AL30) -> 3 | AN30: =ROUNDDOWN(S$10/$F30,0)-SUM($AE30:AM30) -> 2 | AO30: =ROUNDDOWN(T$10/$F30,0)-SUM($AE30:AN30) -> 2 | AP30: =ROUNDDOWN(U$10/$F30,0)-SUM($AE30:AO30) -> 3 | AQ30: =ROUNDDOWN(V$10/$F30,0)-SUM($AE30:AP30) -> 2 | AR30: =ROUNDDOWN(W$10/$F30,0)-SUM($AE30:AQ30) -> 2 | AS30: =ROUNDDOWN(X$10/$F30,0)-SUM($AE30:AR30) -> 3 | AT30: =ROUNDDOWN(Y$10/$F30,0)-SUM($AE30:AS30) -> 2 | AU30: =ROUNDDOWN(Z$10/$F30,0)-SUM($AE30:AT30) -> 2 | AV30: =ROUNDDOWN(AA$10/$F30,0)-SUM($AE30:AU30) -> 3 | AW30: =ROUNDDOWN(AB$10/$F30,0)-SUM($AE30:AV30) -> 2 | AX30: =ROUNDDOWN(AC$10/$F30,0)-SUM($AE30:AW30) -> 2
B31: 19 | C31: SOPORTE DE CARDAN Y CRUCETAS | D31: JGO. | E31: 1 | F31: 30000 | G31: 176.506 | H31: Costo de mantenimiento mecánico | J31: =+AE31*$E31*$G31*(1+'Sup Generales'!C$10) -> 355.9773008 | K31: =+AF31*$E31*$G31*(1+'Sup Generales'!D$10) -> 359.5370738 | L31: =+AG31*$E31*$G31*(1+'Sup Generales'!E$10) -> 544.6986668 | M31: =+AH31*$E31*$G31*(1+'Sup Generales'!F$10) -> 367.4900339 | N31: =+AI31*$E31*$G31*(1+'Sup Generales'!G$10) -> 371.8999143 | O31: =+AJ31*$E31*$G31*(1+'Sup Generales'!H$10) -> 565.1019198 | P31: =+AK31*$E31*$G31*(1+'Sup Generales'!I$10) -> 381.6321631 | Q31: =+AL31*$E31*$G31*(1+'Sup Generales'!J$10) -> 386.9750134 | R31: =+AM31*$E31*$G31*(1+'Sup Generales'!K$10) -> 588.5889954 | S31: =+AN31*$E31*$G31*(1+'Sup Generales'!L$10) -> 398.2785536 | T31: =+AO31*$E31*$G31*(1+'Sup Generales'!M$10) -> 404.2527319 | U31: =+AP31*$E31*$G31*(1+'Sup Generales'!N$10) -> 614.5818285 | V31: =+AQ31*$E31*$G31*(1+'Sup Generales'!O$10) -> 415.6133467 | W31: =+AR31*$E31*$G31*(1+'Sup Generales'!P$10) -> 421.3288688 | X31: =+AS31*$E31*$G31*(1+'Sup Generales'!Q$10) -> 640.3999403 | Y31: =+AT31*$E31*$G31*(1+'Sup Generales'!R$10) -> 432.5357609 | Z31: =+AU31*$E31*$G31*(1+'Sup Generales'!S$10) -> 438.3029908 | AA31: =+AV31*$E31*$G31*(1+'Sup Generales'!T$10) -> 666.3036134 | AB31: =+AW31*$E31*$G31*(1+'Sup Generales'!U$10) -> 450.1774715 | AC31: =+AX31*$E31*$G31*(1+'Sup Generales'!V$10) -> 456.1805949 | AD31: 0.00657604237 | AE31: 2 | AF31: =ROUNDDOWN(K$10/$F31,0)-SUM($AE31:AE31) -> 2 | AG31: =ROUNDDOWN(L$10/$F31,0)-SUM($AE31:AF31) -> 3 | AH31: =ROUNDDOWN(M$10/$F31,0)-SUM($AE31:AG31) -> 2 | AI31: =ROUNDDOWN(N$10/$F31,0)-SUM($AE31:AH31) -> 2 | AJ31: =ROUNDDOWN(O$10/$F31,0)-SUM($AE31:AI31) -> 3 | AK31: =ROUNDDOWN(P$10/$F31,0)-SUM($AE31:AJ31) -> 2 | AL31: =ROUNDDOWN(Q$10/$F31,0)-SUM($AE31:AK31) -> 2 | AM31: =ROUNDDOWN(R$10/$F31,0)-SUM($AE31:AL31) -> 3 | AN31: =ROUNDDOWN(S$10/$F31,0)-SUM($AE31:AM31) -> 2 | AO31: =ROUNDDOWN(T$10/$F31,0)-SUM($AE31:AN31) -> 2 | AP31: =ROUNDDOWN(U$10/$F31,0)-SUM($AE31:AO31) -> 3 | AQ31: =ROUNDDOWN(V$10/$F31,0)-SUM($AE31:AP31) -> 2 | AR31: =ROUNDDOWN(W$10/$F31,0)-SUM($AE31:AQ31) -> 2 | AS31: =ROUNDDOWN(X$10/$F31,0)-SUM($AE31:AR31) -> 3 | AT31: =ROUNDDOWN(Y$10/$F31,0)-SUM($AE31:AS31) -> 2 | AU31: =ROUNDDOWN(Z$10/$F31,0)-SUM($AE31:AT31) -> 2 | AV31: =ROUNDDOWN(AA$10/$F31,0)-SUM($AE31:AU31) -> 3 | AW31: =ROUNDDOWN(AB$10/$F31,0)-SUM($AE31:AV31) -> 2 | AX31: =ROUNDDOWN(AC$10/$F31,0)-SUM($AE31:AW31) -> 2
B32: 20 | C32: MANTENIMIENTO SISTEMA NEUMÁTICO | D32: UND | E32: 1 | F32: 30000 | G32: 137.75 | H32: Costo de mantenimiento mecánico | J32: =+AE32*$E32*$G32*(1+'Sup Generales'!C$10) -> 277.8142 | K32: =+AF32*$E32*$G32*(1+'Sup Generales'!D$10) -> 280.592342 | L32: =+AG32*$E32*$G32*(1+'Sup Generales'!E$10) -> 425.0973981 | M32: =+AH32*$E32*$G32*(1+'Sup Generales'!F$10) -> 286.7990446 | N32: =+AI32*$E32*$G32*(1+'Sup Generales'!G$10) -> 290.2406331 | O32: =+AJ32*$E32*$G32*(1+'Sup Generales'!H$10) -> 441.0206421 | P32: =+AK32*$E32*$G32*(1+'Sup Generales'!I$10) -> 297.8359403 | Q32: =+AL32*$E32*$G32*(1+'Sup Generales'!J$10) -> 302.0056434 | R32: =+AM32*$E32*$G32*(1+'Sup Generales'!K$10) -> 459.3505837 | S32: =+AN32*$E32*$G32*(1+'Sup Generales'!L$10) -> 310.8272283 | T32: =+AO32*$E32*$G32*(1+'Sup Generales'!M$10) -> 315.4896367 | U32: =+AP32*$E32*$G32*(1+'Sup Generales'!N$10) -> 479.6360853 | V32: =+AQ32*$E32*$G32*(1+'Sup Generales'!O$10) -> 324.3557641 | W32: =+AR32*$E32*$G32*(1+'Sup Generales'!P$10) -> 328.8163104 | X32: =+AS32*$E32*$G32*(1+'Sup Generales'!Q$10) -> 499.7852298 | Y32: =+AT32*$E32*$G32*(1+'Sup Generales'!R$10) -> 337.5624685 | Z32: =+AU32*$E32*$G32*(1+'Sup Generales'!S$10) -> 342.0633688 | AA32: =+AV32*$E32*$G32*(1+'Sup Generales'!T$10) -> 520.0011487 | AB32: =+AW32*$E32*$G32*(1+'Sup Generales'!U$10) -> 351.3305309 | AC32: =+AX32*$E32*$G32*(1+'Sup Generales'!V$10) -> 356.0155289 | AD32: 0.005132119228 | AE32: 2 | AF32: =ROUNDDOWN(K$10/$F32,0)-SUM($AE32:AE32) -> 2 | AG32: =ROUNDDOWN(L$10/$F32,0)-SUM($AE32:AF32) -> 3 | AH32: =ROUNDDOWN(M$10/$F32,0)-SUM($AE32:AG32) -> 2 | AI32: =ROUNDDOWN(N$10/$F32,0)-SUM($AE32:AH32) -> 2 | AJ32: =ROUNDDOWN(O$10/$F32,0)-SUM($AE32:AI32) -> 3 | AK32: =ROUNDDOWN(P$10/$F32,0)-SUM($AE32:AJ32) -> 2 | AL32: =ROUNDDOWN(Q$10/$F32,0)-SUM($AE32:AK32) -> 2 | AM32: =ROUNDDOWN(R$10/$F32,0)-SUM($AE32:AL32) -> 3 | AN32: =ROUNDDOWN(S$10/$F32,0)-SUM($AE32:AM32) -> 2 | AO32: =ROUNDDOWN(T$10/$F32,0)-SUM($AE32:AN32) -> 2 | AP32: =ROUNDDOWN(U$10/$F32,0)-SUM($AE32:AO32) -> 3 | AQ32: =ROUNDDOWN(V$10/$F32,0)-SUM($AE32:AP32) -> 2 | AR32: =ROUNDDOWN(W$10/$F32,0)-SUM($AE32:AQ32) -> 2 | AS32: =ROUNDDOWN(X$10/$F32,0)-SUM($AE32:AR32) -> 3 | AT32: =ROUNDDOWN(Y$10/$F32,0)-SUM($AE32:AS32) -> 2 | AU32: =ROUNDDOWN(Z$10/$F32,0)-SUM($AE32:AT32) -> 2 | AV32: =ROUNDDOWN(AA$10/$F32,0)-SUM($AE32:AU32) -> 3 | AW32: =ROUNDDOWN(AB$10/$F32,0)-SUM($AE32:AV32) -> 2 | AX32: =ROUNDDOWN(AC$10/$F32,0)-SUM($AE32:AW32) -> 2
B33: 21 | C33: ZAPATAS (JUEGO FORROS 2) X 4 | D33: JGO. | E33: 2 | F33: 20000 | G33: 74.13166667 | H33: Costo de mantenimiento mecánico | J33: =+AE33*$E33*$G33*(1+'Sup Generales'!C$10) -> 448.526236 | K33: =+AF33*$E33*$G33*(1+'Sup Generales'!D$10) -> 604.0153311 | L33: =+AG33*$E33*$G33*(1+'Sup Generales'!E$10) -> 457.5416133 | M33: =+AH33*$E33*$G33*(1+'Sup Generales'!F$10) -> 617.3761503 | N33: =+AI33*$E33*$G33*(1+'Sup Generales'!G$10) -> 468.5884981 | O33: =+AJ33*$E33*$G33*(1+'Sup Generales'!H$10) -> 632.9068647 | P33: =+AK33*$E33*$G33*(1+'Sup Generales'!I$10) -> 480.8509905 | Q33: =+AL33*$E33*$G33*(1+'Sup Generales'!J$10) -> 650.1105391 | R33: =+AM33*$E33*$G33*(1+'Sup Generales'!K$10) -> 494.409065 | S33: =+AN33*$E33*$G33*(1+'Sup Generales'!L$10) -> 669.100268 | T33: =+AO33*$E33*$G33*(1+'Sup Generales'!M$10) -> 509.352579 | U33: =+AP33*$E33*$G33*(1+'Sup Generales'!N$10) -> 688.3237246 | V33: =+AQ33*$E33*$G33*(1+'Sup Generales'!O$10) -> 523.6667889 | W33: =+AR33*$E33*$G33*(1+'Sup Generales'!P$10) -> 707.8243518 | X33: =+AS33*$E33*$G33*(1+'Sup Generales'!Q$10) -> 537.9297577 | Y33: =+AT33*$E33*$G33*(1+'Sup Generales'!R$10) -> 726.6517139 | Z33: =+AU33*$E33*$G33*(1+'Sup Generales'!S$10) -> 552.2554113 | AA33: =+AV33*$E33*$G33*(1+'Sup Generales'!T$10) -> 746.2514569 | AB33: =+AW33*$E33*$G33*(1+'Sup Generales'!U$10) -> 567.2170848 | AC33: =+AX33*$E33*$G33*(1+'Sup Generales'!V$10) -> 766.3745777 | AD33: 0.008414959664 | AE33: 3 | AF33: =ROUNDDOWN(K$10/$F33,0)-SUM($AE33:AE33) -> 4 | AG33: =ROUNDDOWN(L$10/$F33,0)-SUM($AE33:AF33) -> 3 | AH33: =ROUNDDOWN(M$10/$F33,0)-SUM($AE33:AG33) -> 4 | AI33: =ROUNDDOWN(N$10/$F33,0)-SUM($AE33:AH33) -> 3 | AJ33: =ROUNDDOWN(O$10/$F33,0)-SUM($AE33:AI33) -> 4 | AK33: =ROUNDDOWN(P$10/$F33,0)-SUM($AE33:AJ33) -> 3 | AL33: =ROUNDDOWN(Q$10/$F33,0)-SUM($AE33:AK33) -> 4 | AM33: =ROUNDDOWN(R$10/$F33,0)-SUM($AE33:AL33) -> 3 | AN33: =ROUNDDOWN(S$10/$F33,0)-SUM($AE33:AM33) -> 4 | AO33: =ROUNDDOWN(T$10/$F33,0)-SUM($AE33:AN33) -> 3 | AP33: =ROUNDDOWN(U$10/$F33,0)-SUM($AE33:AO33) -> 4 | AQ33: =ROUNDDOWN(V$10/$F33,0)-SUM($AE33:AP33) -> 3 | AR33: =ROUNDDOWN(W$10/$F33,0)-SUM($AE33:AQ33) -> 4 | AS33: =ROUNDDOWN(X$10/$F33,0)-SUM($AE33:AR33) -> 3 | AT33: =ROUNDDOWN(Y$10/$F33,0)-SUM($AE33:AS33) -> 4 | AU33: =ROUNDDOWN(Z$10/$F33,0)-SUM($AE33:AT33) -> 3 | AV33: =ROUNDDOWN(AA$10/$F33,0)-SUM($AE33:AU33) -> 4 | AW33: =ROUNDDOWN(AB$10/$F33,0)-SUM($AE33:AV33) -> 3 | AX33: =ROUNDDOWN(AC$10/$F33,0)-SUM($AE33:AW33) -> 4
B34: 22 | C34: CAMBIO TAMBORES (JUEGO) | D34: UND | E34: 4 | F34: 180000 | G34: 151.96125 | H34: Costo de mantenimiento mecánico | J34: =+AE34*$E34*$G34*(1+'Sup Generales'!C$10) -> 0 | K34: =+AF34*$E34*$G34*(1+'Sup Generales'!D$10) -> 0 | L34: =+AG34*$E34*$G34*(1+'Sup Generales'!E$10) -> 625.271211 | M34: =+AH34*$E34*$G34*(1+'Sup Generales'!F$10) -> 0 | N34: =+AI34*$E34*$G34*(1+'Sup Generales'!G$10) -> 0 | O34: =+AJ34*$E34*$G34*(1+'Sup Generales'!H$10) -> 648.69254 | P34: =+AK34*$E34*$G34*(1+'Sup Generales'!I$10) -> 0 | Q34: =+AL34*$E34*$G34*(1+'Sup Generales'!J$10) -> 666.3253007 | R34: =+AM34*$E34*$G34*(1+'Sup Generales'!K$10) -> 0 | S34: =+AN34*$E34*$G34*(1+'Sup Generales'!L$10) -> 0 | T34: =+AO34*$E34*$G34*(1+'Sup Generales'!M$10) -> 696.0754926 | U34: =+AP34*$E34*$G34*(1+'Sup Generales'!N$10) -> 0 | V34: =+AQ34*$E34*$G34*(1+'Sup Generales'!O$10) -> 715.6371305 | W34: =+AR34*$E34*$G34*(1+'Sup Generales'!P$10) -> 0 | X34: =+AS34*$E34*$G34*(1+'Sup Generales'!Q$10) -> 0 | Y34: =+AT34*$E34*$G34*(1+'Sup Generales'!R$10) -> 744.7755306 | Z34: =+AU34*$E34*$G34*(1+'Sup Generales'!S$10) -> 0 | AA34: =+AV34*$E34*$G34*(1+'Sup Generales'!T$10) -> 764.8641215 | AB34: =+AW34*$E34*$G34*(1+'Sup Generales'!U$10) -> 0 | AC34: =+AX34*$E34*$G34*(1+'Sup Generales'!V$10) -> 0 | AD34: 0.003452576007 | AE34: 0 | AF34: =ROUNDDOWN(K$10/$F34,0)-SUM($AE34:AE34) -> 0 | AG34: =ROUNDDOWN(L$10/$F34,0)-SUM($AE34:AF34) -> 1 | AH34: =ROUNDDOWN(M$10/$F34,0)-SUM($AE34:AG34) -> 0 | AI34: =ROUNDDOWN(N$10/$F34,0)-SUM($AE34:AH34) -> 0 | AJ34: =ROUNDDOWN(O$10/$F34,0)-SUM($AE34:AI34) -> 1 | AK34: =ROUNDDOWN(P$10/$F34,0)-SUM($AE34:AJ34) -> 0 | AL34: =ROUNDDOWN(Q$10/$F34,0)-SUM($AE34:AK34) -> 1 | AM34: =ROUNDDOWN(R$10/$F34,0)-SUM($AE34:AL34) -> 0 | AN34: =ROUNDDOWN(S$10/$F34,0)-SUM($AE34:AM34) -> 0 | AO34: =ROUNDDOWN(T$10/$F34,0)-SUM($AE34:AN34) -> 1 | AP34: =ROUNDDOWN(U$10/$F34,0)-SUM($AE34:AO34) -> 0 | AQ34: =ROUNDDOWN(V$10/$F34,0)-SUM($AE34:AP34) -> 1 | AR34: =ROUNDDOWN(W$10/$F34,0)-SUM($AE34:AQ34) -> 0 | AS34: =ROUNDDOWN(X$10/$F34,0)-SUM($AE34:AR34) -> 0 | AT34: =ROUNDDOWN(Y$10/$F34,0)-SUM($AE34:AS34) -> 1 | AU34: =ROUNDDOWN(Z$10/$F34,0)-SUM($AE34:AT34) -> 0 | AV34: =ROUNDDOWN(AA$10/$F34,0)-SUM($AE34:AU34) -> 1 | AW34: =ROUNDDOWN(AB$10/$F34,0)-SUM($AE34:AV34) -> 0 | AX34: =ROUNDDOWN(AC$10/$F34,0)-SUM($AE34:AW34) -> 0
B35: 23 | C35: RACHES DE FRENO | D35: JGO. | E35: 4 | F35: 180000 | G35: 90.822 | H35: Costo de mantenimiento mecánico | J35: =+AE35*$E35*$G35*(1+'Sup Generales'!C$10) -> 0 | K35: =+AF35*$E35*$G35*(1+'Sup Generales'!D$10) -> 0 | L35: =+AG35*$E35*$G35*(1+'Sup Generales'!E$10) -> 373.7030455 | M35: =+AH35*$E35*$G35*(1+'Sup Generales'!F$10) -> 0 | N35: =+AI35*$E35*$G35*(1+'Sup Generales'!G$10) -> 0 | O35: =+AJ35*$E35*$G35*(1+'Sup Generales'!H$10) -> 387.7011664 | P35: =+AK35*$E35*$G35*(1+'Sup Generales'!I$10) -> 0 | Q35: =+AL35*$E35*$G35*(1+'Sup Generales'!J$10) -> 398.2396595 | R35: =+AM35*$E35*$G35*(1+'Sup Generales'!K$10) -> 0 | S35: =+AN35*$E35*$G35*(1+'Sup Generales'!L$10) -> 0 | T35: =+AO35*$E35*$G35*(1+'Sup Generales'!M$10) -> 416.0203236 | U35: =+AP35*$E35*$G35*(1+'Sup Generales'!N$10) -> 0 | V35: =+AQ35*$E35*$G35*(1+'Sup Generales'!O$10) -> 427.7116401 | W35: =+AR35*$E35*$G35*(1+'Sup Generales'!P$10) -> 0 | X35: =+AS35*$E35*$G35*(1+'Sup Generales'!Q$10) -> 0 | Y35: =+AT35*$E35*$G35*(1+'Sup Generales'!R$10) -> 445.1266572 | Z35: =+AU35*$E35*$G35*(1+'Sup Generales'!S$10) -> 0 | AA35: =+AV35*$E35*$G35*(1+'Sup Generales'!T$10) -> 457.1329154 | AB35: =+AW35*$E35*$G35*(1+'Sup Generales'!U$10) -> 0 | AC35: =+AX35*$E35*$G35*(1+'Sup Generales'!V$10) -> 0 | AD35: 0.002063485646 | AE35: 0 | AF35: =ROUNDDOWN(K$10/$F35,0)-SUM($AE35:AE35) -> 0 | AG35: =ROUNDDOWN(L$10/$F35,0)-SUM($AE35:AF35) -> 1 | AH35: =ROUNDDOWN(M$10/$F35,0)-SUM($AE35:AG35) -> 0 | AI35: =ROUNDDOWN(N$10/$F35,0)-SUM($AE35:AH35) -> 0 | AJ35: =ROUNDDOWN(O$10/$F35,0)-SUM($AE35:AI35) -> 1 | AK35: =ROUNDDOWN(P$10/$F35,0)-SUM($AE35:AJ35) -> 0 | AL35: =ROUNDDOWN(Q$10/$F35,0)-SUM($AE35:AK35) -> 1 | AM35: =ROUNDDOWN(R$10/$F35,0)-SUM($AE35:AL35) -> 0 | AN35: =ROUNDDOWN(S$10/$F35,0)-SUM($AE35:AM35) -> 0 | AO35: =ROUNDDOWN(T$10/$F35,0)-SUM($AE35:AN35) -> 1 | AP35: =ROUNDDOWN(U$10/$F35,0)-SUM($AE35:AO35) -> 0 | AQ35: =ROUNDDOWN(V$10/$F35,0)-SUM($AE35:AP35) -> 1 | AR35: =ROUNDDOWN(W$10/$F35,0)-SUM($AE35:AQ35) -> 0 | AS35: =ROUNDDOWN(X$10/$F35,0)-SUM($AE35:AR35) -> 0 | AT35: =ROUNDDOWN(Y$10/$F35,0)-SUM($AE35:AS35) -> 1 | AU35: =ROUNDDOWN(Z$10/$F35,0)-SUM($AE35:AT35) -> 0 | AV35: =ROUNDDOWN(AA$10/$F35,0)-SUM($AE35:AU35) -> 1 | AW35: =ROUNDDOWN(AB$10/$F35,0)-SUM($AE35:AV35) -> 0 | AX35: =ROUNDDOWN(AC$10/$F35,0)-SUM($AE35:AW35) -> 0
B36: 24 | C36: BATERÍAS | D36: UND | E36: 2 | F36: 60000 | G36: 195.0585714 | H36: =+H37 -> Costo de mantenimiento eléctrico | J36: =+AE36*$E36*$G36*(1+'Sup Generales'!C$10) -> 393.3941269 | K36: =+AF36*$E36*$G36*(1+'Sup Generales'!D$10) -> 397.3280681 | L36: =+AG36*$E36*$G36*(1+'Sup Generales'!E$10) -> 401.3013488 | M36: =+AH36*$E36*$G36*(1+'Sup Generales'!F$10) -> 406.116965 | N36: =+AI36*$E36*$G36*(1+'Sup Generales'!G$10) -> 410.9903686 | O36: =+AJ36*$E36*$G36*(1+'Sup Generales'!H$10) -> 832.6664867 | P36: =+AK36*$E36*$G36*(1+'Sup Generales'!I$10) -> 421.7455755 | Q36: =+AL36*$E36*$G36*(1+'Sup Generales'!J$10) -> 427.6500136 | R36: =+AM36*$E36*$G36*(1+'Sup Generales'!K$10) -> 433.6371138 | S36: =+AN36*$E36*$G36*(1+'Sup Generales'!L$10) -> 440.1416705 | T36: =+AO36*$E36*$G36*(1+'Sup Generales'!M$10) -> 446.7437955 | U36: =+AP36*$E36*$G36*(1+'Sup Generales'!N$10) -> 905.5741523 | V36: =+AQ36*$E36*$G36*(1+'Sup Generales'!O$10) -> 459.2985262 | W36: =+AR36*$E36*$G36*(1+'Sup Generales'!P$10) -> 465.6148078 | X36: =+AS36*$E36*$G36*(1+'Sup Generales'!Q$10) -> 471.8083143 | Y36: =+AT36*$E36*$G36*(1+'Sup Generales'!R$10) -> 477.9996579 | Z36: =+AU36*$E36*$G36*(1+'Sup Generales'!S$10) -> 484.3730821 | AA36: =+AV36*$E36*$G36*(1+'Sup Generales'!T$10) -> 981.785178 | AB36: =+AW36*$E36*$G36*(1+'Sup Generales'!U$10) -> 497.4956912 | AC36: =+AX36*$E36*$G36*(1+'Sup Generales'!V$10) -> 504.1298038 | AD36: 0.007286165062 | AE36: 1 | AF36: =ROUNDDOWN(K$10/$F36,0)-SUM($AE36:AE36) -> 1 | AG36: =ROUNDDOWN(L$10/$F36,0)-SUM($AE36:AF36) -> 1 | AH36: =ROUNDDOWN(M$10/$F36,0)-SUM($AE36:AG36) -> 1 | AI36: =ROUNDDOWN(N$10/$F36,0)-SUM($AE36:AH36) -> 1 | AJ36: =ROUNDDOWN(O$10/$F36,0)-SUM($AE36:AI36) -> 2 | AK36: =ROUNDDOWN(P$10/$F36,0)-SUM($AE36:AJ36) -> 1 | AL36: =ROUNDDOWN(Q$10/$F36,0)-SUM($AE36:AK36) -> 1 | AM36: =ROUNDDOWN(R$10/$F36,0)-SUM($AE36:AL36) -> 1 | AN36: =ROUNDDOWN(S$10/$F36,0)-SUM($AE36:AM36) -> 1 | AO36: =ROUNDDOWN(T$10/$F36,0)-SUM($AE36:AN36) -> 1 | AP36: =ROUNDDOWN(U$10/$F36,0)-SUM($AE36:AO36) -> 2 | AQ36: =ROUNDDOWN(V$10/$F36,0)-SUM($AE36:AP36) -> 1 | AR36: =ROUNDDOWN(W$10/$F36,0)-SUM($AE36:AQ36) -> 1 | AS36: =ROUNDDOWN(X$10/$F36,0)-SUM($AE36:AR36) -> 1 | AT36: =ROUNDDOWN(Y$10/$F36,0)-SUM($AE36:AS36) -> 1 | AU36: =ROUNDDOWN(Z$10/$F36,0)-SUM($AE36:AT36) -> 1 | AV36: =ROUNDDOWN(AA$10/$F36,0)-SUM($AE36:AU36) -> 2 | AW36: =ROUNDDOWN(AB$10/$F36,0)-SUM($AE36:AV36) -> 1 | AX36: =ROUNDDOWN(AC$10/$F36,0)-SUM($AE36:AW36) -> 1
B37: 25 | C37: SISTEMA ELÉCTRICO | D37: UND | E37: 1 | F37: 5000 | G37: 153.125 | H37: =+'OPEX Mtto'!B9 -> Costo de mantenimiento eléctrico | J37: =+AE37*$E37*$G37*(1+'Sup Generales'!C$10) -> 2161.7575 | K37: =+AF37*$E37*$G37*(1+'Sup Generales'!D$10) -> 2183.375075 | L37: =+AG37*$E37*$G37*(1+'Sup Generales'!E$10) -> 2205.208826 | M37: =+AH37*$E37*$G37*(1+'Sup Generales'!F$10) -> 2231.671332 | N37: =+AI37*$E37*$G37*(1+'Sup Generales'!G$10) -> 2258.451388 | O37: =+AJ37*$E37*$G37*(1+'Sup Generales'!H$10) -> 2287.811256 | P37: =+AK37*$E37*$G37*(1+'Sup Generales'!I$10) -> 2317.552802 | Q37: =+AL37*$E37*$G37*(1+'Sup Generales'!J$10) -> 2349.998541 | R37: =+AM37*$E37*$G37*(1+'Sup Generales'!K$10) -> 2382.898521 | S37: =+AN37*$E37*$G37*(1+'Sup Generales'!L$10) -> 2418.641999 | T37: =+AO37*$E37*$G37*(1+'Sup Generales'!M$10) -> 2454.921629 | U37: =+AP37*$E37*$G37*(1+'Sup Generales'!N$10) -> 2488.130328 | V37: =+AQ37*$E37*$G37*(1+'Sup Generales'!O$10) -> 2704.191092 | W37: =+AR37*$E37*$G37*(1+'Sup Generales'!P$10) -> 2558.620564 | X37: =+AS37*$E37*$G37*(1+'Sup Generales'!Q$10) -> 2592.654777 | Y37: =+AT37*$E37*$G37*(1+'Sup Generales'!R$10) -> 2626.677103 | Z37: =+AU37*$E37*$G37*(1+'Sup Generales'!S$10) -> 2661.699989 | AA37: =+AV37*$E37*$G37*(1+'Sup Generales'!T$10) -> 2697.52562 | AB37: =+AW37*$E37*$G37*(1+'Sup Generales'!U$10) -> 2733.81062 | AC37: =+AX37*$E37*$G37*(1+'Sup Generales'!V$10) -> 2770.266026 | AD37: 0.03485914907 | AE37: 14 | AF37: =ROUNDDOWN(K$10/$F37,0)-SUM($AE37:AE37) -> 14 | AG37: =ROUNDDOWN(L$10/$F37,0)-SUM($AE37:AF37) -> 14 | AH37: =ROUNDDOWN(M$10/$F37,0)-SUM($AE37:AG37) -> 14 | AI37: =ROUNDDOWN(N$10/$F37,0)-SUM($AE37:AH37) -> 14 | AJ37: =ROUNDDOWN(O$10/$F37,0)-SUM($AE37:AI37) -> 14 | AK37: =ROUNDDOWN(P$10/$F37,0)-SUM($AE37:AJ37) -> 14 | AL37: =ROUNDDOWN(Q$10/$F37,0)-SUM($AE37:AK37) -> 14 | AM37: =ROUNDDOWN(R$10/$F37,0)-SUM($AE37:AL37) -> 14 | AN37: =ROUNDDOWN(S$10/$F37,0)-SUM($AE37:AM37) -> 14 | AO37: =ROUNDDOWN(T$10/$F37,0)-SUM($AE37:AN37) -> 14 | AP37: =ROUNDDOWN(U$10/$F37,0)-SUM($AE37:AO37) -> 14 | AQ37: =ROUNDDOWN(V$10/$F37,0)-SUM($AE37:AP37) -> 15 | AR37: =ROUNDDOWN(W$10/$F37,0)-SUM($AE37:AQ37) -> 14 | AS37: =ROUNDDOWN(X$10/$F37,0)-SUM($AE37:AR37) -> 14 | AT37: =ROUNDDOWN(Y$10/$F37,0)-SUM($AE37:AS37) -> 14 | AU37: =ROUNDDOWN(Z$10/$F37,0)-SUM($AE37:AT37) -> 14 | AV37: =ROUNDDOWN(AA$10/$F37,0)-SUM($AE37:AU37) -> 14 | AW37: =ROUNDDOWN(AB$10/$F37,0)-SUM($AE37:AV37) -> 14 | AX37: =ROUNDDOWN(AC$10/$F37,0)-SUM($AE37:AW37) -> 14
B38: 26 | C38: AMORTIGUADORES | D38: UND | E38: 4 | F38: 60000 | G38: 96.795 | H38: =+H34 -> Costo de mantenimiento mecánico | J38: =+AE38*$E38*$G38*(1+'Sup Generales'!C$10) -> 390.432312 | K38: =+AF38*$E38*$G38*(1+'Sup Generales'!D$10) -> 394.3366351 | L38: =+AG38*$E38*$G38*(1+'Sup Generales'!E$10) -> 398.2800015 | M38: =+AH38*$E38*$G38*(1+'Sup Generales'!F$10) -> 403.0593615 | N38: =+AI38*$E38*$G38*(1+'Sup Generales'!G$10) -> 407.8960738 | O38: =+AJ38*$E38*$G38*(1+'Sup Generales'!H$10) -> 826.3974456 | P38: =+AK38*$E38*$G38*(1+'Sup Generales'!I$10) -> 418.5703062 | Q38: =+AL38*$E38*$G38*(1+'Sup Generales'!J$10) -> 424.4302905 | R38: =+AM38*$E38*$G38*(1+'Sup Generales'!K$10) -> 430.3723145 | S38: =+AN38*$E38*$G38*(1+'Sup Generales'!L$10) -> 436.8278993 | T38: =+AO38*$E38*$G38*(1+'Sup Generales'!M$10) -> 443.3803177 | U38: =+AP38*$E38*$G38*(1+'Sup Generales'!N$10) -> 898.7561985 | V38: =+AQ38*$E38*$G38*(1+'Sup Generales'!O$10) -> 455.8405254 | W38: =+AR38*$E38*$G38*(1+'Sup Generales'!P$10) -> 462.1092525 | X38: =+AS38*$E38*$G38*(1+'Sup Generales'!Q$10) -> 468.2561289 | Y38: =+AT38*$E38*$G38*(1+'Sup Generales'!R$10) -> 474.4008587 | Z38: =+AU38*$E38*$G38*(1+'Sup Generales'!S$10) -> 480.7262981 | AA38: =+AV38*$E38*$G38*(1+'Sup Generales'!T$10) -> 974.393441 | AB38: =+AW38*$E38*$G38*(1+'Sup Generales'!U$10) -> 493.7501088 | AC38: =+AX38*$E38*$G38*(1+'Sup Generales'!V$10) -> 500.334274 | AD38: 0.007231308442 | AE38: 1 | AF38: =ROUNDDOWN(K$10/$F38,0)-SUM($AE38:AE38) -> 1 | AG38: =ROUNDDOWN(L$10/$F38,0)-SUM($AE38:AF38) -> 1 | AH38: =ROUNDDOWN(M$10/$F38,0)-SUM($AE38:AG38) -> 1 | AI38: =ROUNDDOWN(N$10/$F38,0)-SUM($AE38:AH38) -> 1 | AJ38: =ROUNDDOWN(O$10/$F38,0)-SUM($AE38:AI38) -> 2 | AK38: =ROUNDDOWN(P$10/$F38,0)-SUM($AE38:AJ38) -> 1 | AL38: =ROUNDDOWN(Q$10/$F38,0)-SUM($AE38:AK38) -> 1 | AM38: =ROUNDDOWN(R$10/$F38,0)-SUM($AE38:AL38) -> 1 | AN38: =ROUNDDOWN(S$10/$F38,0)-SUM($AE38:AM38) -> 1 | AO38: =ROUNDDOWN(T$10/$F38,0)-SUM($AE38:AN38) -> 1 | AP38: =ROUNDDOWN(U$10/$F38,0)-SUM($AE38:AO38) -> 2 | AQ38: =ROUNDDOWN(V$10/$F38,0)-SUM($AE38:AP38) -> 1 | AR38: =ROUNDDOWN(W$10/$F38,0)-SUM($AE38:AQ38) -> 1 | AS38: =ROUNDDOWN(X$10/$F38,0)-SUM($AE38:AR38) -> 1 | AT38: =ROUNDDOWN(Y$10/$F38,0)-SUM($AE38:AS38) -> 1 | AU38: =ROUNDDOWN(Z$10/$F38,0)-SUM($AE38:AT38) -> 1 | AV38: =ROUNDDOWN(AA$10/$F38,0)-SUM($AE38:AU38) -> 2 | AW38: =ROUNDDOWN(AB$10/$F38,0)-SUM($AE38:AV38) -> 1 | AX38: =ROUNDDOWN(AC$10/$F38,0)-SUM($AE38:AW38) -> 1
B39: 27 | C39: ROTULAS DE DIRECCIÓN | D39: JGO. | E39: 4 | F39: 60000 | G39: 49.8475 | H39: =+H38 -> Costo de mantenimiento mecánico | J39: =+AE39*$E39*$G39*(1+'Sup Generales'!C$10) -> 201.064876 | K39: =+AF39*$E39*$G39*(1+'Sup Generales'!D$10) -> 203.0755248 | L39: =+AG39*$E39*$G39*(1+'Sup Generales'!E$10) -> 205.10628 | M39: =+AH39*$E39*$G39*(1+'Sup Generales'!F$10) -> 207.5675554 | N39: =+AI39*$E39*$G39*(1+'Sup Generales'!G$10) -> 210.058366 | O39: =+AJ39*$E39*$G39*(1+'Sup Generales'!H$10) -> 425.5782496 | P39: =+AK39*$E39*$G39*(1+'Sup Generales'!I$10) -> 215.5553834 | Q39: =+AL39*$E39*$G39*(1+'Sup Generales'!J$10) -> 218.5731588 | R39: =+AM39*$E39*$G39*(1+'Sup Generales'!K$10) -> 221.633183 | S39: =+AN39*$E39*$G39*(1+'Sup Generales'!L$10) -> 224.9576807 | T39: =+AO39*$E39*$G39*(1+'Sup Generales'!M$10) -> 228.332046 | U39: =+AP39*$E39*$G39*(1+'Sup Generales'!N$10) -> 462.8415683 | V39: =+AQ39*$E39*$G39*(1+'Sup Generales'!O$10) -> 234.7488051 | W39: =+AR39*$E39*$G39*(1+'Sup Generales'!P$10) -> 237.9770749 | X39: =+AS39*$E39*$G39*(1+'Sup Generales'!Q$10) -> 241.142594 | Y39: =+AT39*$E39*$G39*(1+'Sup Generales'!R$10) -> 244.3070076 | Z39: =+AU39*$E39*$G39*(1+'Sup Generales'!S$10) -> 247.5644832 | AA39: =+AV39*$E39*$G39*(1+'Sup Generales'!T$10) -> 501.793244 | AB39: =+AW39*$E39*$G39*(1+'Sup Generales'!U$10) -> 254.2714866 | AC39: =+AX39*$E39*$G39*(1+'Sup Generales'!V$10) -> 257.6622008 | AD39: 0.003723980036 | AE39: 1 | AF39: =ROUNDDOWN(K$10/$F39,0)-SUM($AE39:AE39) -> 1 | AG39: =ROUNDDOWN(L$10/$F39,0)-SUM($AE39:AF39) -> 1 | AH39: =ROUNDDOWN(M$10/$F39,0)-SUM($AE39:AG39) -> 1 | AI39: =ROUNDDOWN(N$10/$F39,0)-SUM($AE39:AH39) -> 1 | AJ39: =ROUNDDOWN(O$10/$F39,0)-SUM($AE39:AI39) -> 2 | AK39: =ROUNDDOWN(P$10/$F39,0)-SUM($AE39:AJ39) -> 1 | AL39: =ROUNDDOWN(Q$10/$F39,0)-SUM($AE39:AK39) -> 1 | AM39: =ROUNDDOWN(R$10/$F39,0)-SUM($AE39:AL39) -> 1 | AN39: =ROUNDDOWN(S$10/$F39,0)-SUM($AE39:AM39) -> 1 | AO39: =ROUNDDOWN(T$10/$F39,0)-SUM($AE39:AN39) -> 1 | AP39: =ROUNDDOWN(U$10/$F39,0)-SUM($AE39:AO39) -> 2 | AQ39: =ROUNDDOWN(V$10/$F39,0)-SUM($AE39:AP39) -> 1 | AR39: =ROUNDDOWN(W$10/$F39,0)-SUM($AE39:AQ39) -> 1 | AS39: =ROUNDDOWN(X$10/$F39,0)-SUM($AE39:AR39) -> 1 | AT39: =ROUNDDOWN(Y$10/$F39,0)-SUM($AE39:AS39) -> 1 | AU39: =ROUNDDOWN(Z$10/$F39,0)-SUM($AE39:AT39) -> 1 | AV39: =ROUNDDOWN(AA$10/$F39,0)-SUM($AE39:AU39) -> 2 | AW39: =ROUNDDOWN(AB$10/$F39,0)-SUM($AE39:AV39) -> 1 | AX39: =ROUNDDOWN(AC$10/$F39,0)-SUM($AE39:AW39) -> 1
B40: 28 | C40: PINES Y BOCINES DE DIRECCIÓN | D40: JGO. | E40: 1 | F40: 90000 | G40: 127.78 | H40: =+H39 -> Costo de mantenimiento mecánico | J40: =+AE40*$E40*$G40*(1+'Sup Generales'!C$10) -> 0 | K40: =+AF40*$E40*$G40*(1+'Sup Generales'!D$10) -> 130.1418855 | L40: =+AG40*$E40*$G40*(1+'Sup Generales'!E$10) -> 131.4433044 | M40: =+AH40*$E40*$G40*(1+'Sup Generales'!F$10) -> 133.020624 | N40: =+AI40*$E40*$G40*(1+'Sup Generales'!G$10) -> 0 | O40: =+AJ40*$E40*$G40*(1+'Sup Generales'!H$10) -> 136.3668908 | P40: =+AK40*$E40*$G40*(1+'Sup Generales'!I$10) -> 138.1396604 | Q40: =+AL40*$E40*$G40*(1+'Sup Generales'!J$10) -> 140.0736157 | R40: =+AM40*$E40*$G40*(1+'Sup Generales'!K$10) -> 142.0346463 | S40: =+AN40*$E40*$G40*(1+'Sup Generales'!L$10) -> 0 | T40: =+AO40*$E40*$G40*(1+'Sup Generales'!M$10) -> 146.3276435 | U40: =+AP40*$E40*$G40*(1+'Sup Generales'!N$10) -> 148.3070756 | V40: =+AQ40*$E40*$G40*(1+'Sup Generales'!O$10) -> 150.4398531 | W40: =+AR40*$E40*$G40*(1+'Sup Generales'!P$10) -> 0 | X40: =+AS40*$E40*$G40*(1+'Sup Generales'!Q$10) -> 154.5373422 | Y40: =+AT40*$E40*$G40*(1+'Sup Generales'!R$10) -> 156.5652712 | Z40: =+AU40*$E40*$G40*(1+'Sup Generales'!S$10) -> 158.6528394 | AA40: =+AV40*$E40*$G40*(1+'Sup Generales'!T$10) -> 160.788256 | AB40: =+AW40*$E40*$G40*(1+'Sup Generales'!U$10) -> 0 | AC40: =+AX40*$E40*$G40*(1+'Sup Generales'!V$10) -> 165.1240083 | AD40: 0.001556659174 | AE40: 0 | AF40: =ROUNDDOWN(K$10/$F40,0)-SUM($AE40:AE40) -> 1 | AG40: =ROUNDDOWN(L$10/$F40,0)-SUM($AE40:AF40) -> 1 | AH40: =ROUNDDOWN(M$10/$F40,0)-SUM($AE40:AG40) -> 1 | AI40: =ROUNDDOWN(N$10/$F40,0)-SUM($AE40:AH40) -> 0 | AJ40: =ROUNDDOWN(O$10/$F40,0)-SUM($AE40:AI40) -> 1 | AK40: =ROUNDDOWN(P$10/$F40,0)-SUM($AE40:AJ40) -> 1 | AL40: =ROUNDDOWN(Q$10/$F40,0)-SUM($AE40:AK40) -> 1 | AM40: =ROUNDDOWN(R$10/$F40,0)-SUM($AE40:AL40) -> 1 | AN40: =ROUNDDOWN(S$10/$F40,0)-SUM($AE40:AM40) -> 0 | AO40: =ROUNDDOWN(T$10/$F40,0)-SUM($AE40:AN40) -> 1 | AP40: =ROUNDDOWN(U$10/$F40,0)-SUM($AE40:AO40) -> 1 | AQ40: =ROUNDDOWN(V$10/$F40,0)-SUM($AE40:AP40) -> 1 | AR40: =ROUNDDOWN(W$10/$F40,0)-SUM($AE40:AQ40) -> 0 | AS40: =ROUNDDOWN(X$10/$F40,0)-SUM($AE40:AR40) -> 1 | AT40: =ROUNDDOWN(Y$10/$F40,0)-SUM($AE40:AS40) -> 1 | AU40: =ROUNDDOWN(Z$10/$F40,0)-SUM($AE40:AT40) -> 1 | AV40: =ROUNDDOWN(AA$10/$F40,0)-SUM($AE40:AU40) -> 1 | AW40: =ROUNDDOWN(AB$10/$F40,0)-SUM($AE40:AV40) -> 0 | AX40: =ROUNDDOWN(AC$10/$F40,0)-SUM($AE40:AW40) -> 1
B41: 29 | C41: MANTENIMIENTO DE BALLESTAS | D41: UND | E41: 1 | F41: 30000 | G41: 67 | H41: =+H40 -> Costo de mantenimiento mecánico | J41: =+AE41*$E41*$G41*(1+'Sup Generales'!C$10) -> 135.1256 | K41: =+AF41*$E41*$G41*(1+'Sup Generales'!D$10) -> 136.476856 | L41: =+AG41*$E41*$G41*(1+'Sup Generales'!E$10) -> 206.7624368 | M41: =+AH41*$E41*$G41*(1+'Sup Generales'!F$10) -> 139.4957241 | N41: =+AI41*$E41*$G41*(1+'Sup Generales'!G$10) -> 141.1696727 | O41: =+AJ41*$E41*$G41*(1+'Sup Generales'!H$10) -> 214.5073177 | P41: =+AK41*$E41*$G41*(1+'Sup Generales'!I$10) -> 144.8639419 | Q41: =+AL41*$E41*$G41*(1+'Sup Generales'!J$10) -> 146.8920371 | R41: =+AM41*$E41*$G41*(1+'Sup Generales'!K$10) -> 223.4227884 | S41: =+AN41*$E41*$G41*(1+'Sup Generales'!L$10) -> 151.1827535 | T41: =+AO41*$E41*$G41*(1+'Sup Generales'!M$10) -> 153.4504948 | U41: =+AP41*$E41*$G41*(1+'Sup Generales'!N$10) -> 233.2894208 | V41: =+AQ41*$E41*$G41*(1+'Sup Generales'!O$10) -> 157.7628762 | W41: =+AR41*$E41*$G41*(1+'Sup Generales'!P$10) -> 159.9324341 | X41: =+AS41*$E41*$G41*(1+'Sup Generales'!Q$10) -> 243.0897307 | Y41: =+AT41*$E41*$G41*(1+'Sup Generales'!R$10) -> 164.1864638 | Z41: =+AU41*$E41*$G41*(1+'Sup Generales'!S$10) -> 166.3756494 | AA41: =+AV41*$E41*$G41*(1+'Sup Generales'!T$10) -> 252.9225188 | AB41: =+AW41*$E41*$G41*(1+'Sup Generales'!U$10) -> 170.8830895 | AC41: =+AX41*$E41*$G41*(1+'Sup Generales'!V$10) -> 173.1618181 | AD41: 0.002496203182 | AE41: 2 | AF41: =ROUNDDOWN(K$10/$F41,0)-SUM($AE41:AE41) -> 2 | AG41: =ROUNDDOWN(L$10/$F41,0)-SUM($AE41:AF41) -> 3 | AH41: =ROUNDDOWN(M$10/$F41,0)-SUM($AE41:AG41) -> 2 | AI41: =ROUNDDOWN(N$10/$F41,0)-SUM($AE41:AH41) -> 2 | AJ41: =ROUNDDOWN(O$10/$F41,0)-SUM($AE41:AI41) -> 3 | AK41: =ROUNDDOWN(P$10/$F41,0)-SUM($AE41:AJ41) -> 2 | AL41: =ROUNDDOWN(Q$10/$F41,0)-SUM($AE41:AK41) -> 2 | AM41: =ROUNDDOWN(R$10/$F41,0)-SUM($AE41:AL41) -> 3 | AN41: =ROUNDDOWN(S$10/$F41,0)-SUM($AE41:AM41) -> 2 | AO41: =ROUNDDOWN(T$10/$F41,0)-SUM($AE41:AN41) -> 2 | AP41: =ROUNDDOWN(U$10/$F41,0)-SUM($AE41:AO41) -> 3 | AQ41: =ROUNDDOWN(V$10/$F41,0)-SUM($AE41:AP41) -> 2 | AR41: =ROUNDDOWN(W$10/$F41,0)-SUM($AE41:AQ41) -> 2 | AS41: =ROUNDDOWN(X$10/$F41,0)-SUM($AE41:AR41) -> 3 | AT41: =ROUNDDOWN(Y$10/$F41,0)-SUM($AE41:AS41) -> 2 | AU41: =ROUNDDOWN(Z$10/$F41,0)-SUM($AE41:AT41) -> 2 | AV41: =ROUNDDOWN(AA$10/$F41,0)-SUM($AE41:AU41) -> 3 | AW41: =ROUNDDOWN(AB$10/$F41,0)-SUM($AE41:AV41) -> 2 | AX41: =ROUNDDOWN(AC$10/$F41,0)-SUM($AE41:AW41) -> 2
B42: 30 | C42: LAVADO MOTOR/ CHASIS | D42: UND | E42: 1 | F42: 15000 | G42: 25 | H42: =+H41 -> Costo de mantenimiento mecánico | J42: =+AE42*$E42*$G42*(1+'Sup Generales'!C$10) -> 100.84 | K42: =+AF42*$E42*$G42*(1+'Sup Generales'!D$10) -> 127.3105 | L42: =+AG42*$E42*$G42*(1+'Sup Generales'!E$10) -> 128.583605 | M42: =+AH42*$E42*$G42*(1+'Sup Generales'!F$10) -> 104.1012866 | N42: =+AI42*$E42*$G42*(1+'Sup Generales'!G$10) -> 131.6881276 | O42: =+AJ42*$E42*$G42*(1+'Sup Generales'!H$10) -> 133.4000732 | P42: =+AK42*$E42*$G42*(1+'Sup Generales'!I$10) -> 108.1074193 | Q42: =+AL42*$E42*$G42*(1+'Sup Generales'!J$10) -> 137.026154 | R42: =+AM42*$E42*$G42*(1+'Sup Generales'!K$10) -> 138.9445202 | S42: =+AN42*$E42*$G42*(1+'Sup Generales'!L$10) -> 112.8229504 | T42: =+AO42*$E42*$G42*(1+'Sup Generales'!M$10) -> 143.1441183 | U42: =+AP42*$E42*$G42*(1+'Sup Generales'!N$10) -> 145.0804856 | V42: =+AQ42*$E42*$G42*(1+'Sup Generales'!O$10) -> 147.1668621 | W42: =+AR42*$E42*$G42*(1+'Sup Generales'!P$10) -> 119.3525628 | X42: =+AS42*$E42*$G42*(1+'Sup Generales'!Q$10) -> 151.1752056 | Y42: =+AT42*$E42*$G42*(1+'Sup Generales'!R$10) -> 153.1590148 | Z42: =+AU42*$E42*$G42*(1+'Sup Generales'!S$10) -> 124.1609324 | AA42: =+AV42*$E42*$G42*(1+'Sup Generales'!T$10) -> 157.2901236 | AB42: =+AW42*$E42*$G42*(1+'Sup Generales'!U$10) -> 159.405867 | AC42: =+AX42*$E42*$G42*(1+'Sup Generales'!V$10) -> 129.2252374 | AD42: 0.001883351593 | AE42: 4 | AF42: =ROUNDDOWN(K$10/$F42,0)-SUM($AE42:AE42) -> 5 | AG42: =ROUNDDOWN(L$10/$F42,0)-SUM($AE42:AF42) -> 5 | AH42: =ROUNDDOWN(M$10/$F42,0)-SUM($AE42:AG42) -> 4 | AI42: =ROUNDDOWN(N$10/$F42,0)-SUM($AE42:AH42) -> 5 | AJ42: =ROUNDDOWN(O$10/$F42,0)-SUM($AE42:AI42) -> 5 | AK42: =ROUNDDOWN(P$10/$F42,0)-SUM($AE42:AJ42) -> 4 | AL42: =ROUNDDOWN(Q$10/$F42,0)-SUM($AE42:AK42) -> 5 | AM42: =ROUNDDOWN(R$10/$F42,0)-SUM($AE42:AL42) -> 5 | AN42: =ROUNDDOWN(S$10/$F42,0)-SUM($AE42:AM42) -> 4 | AO42: =ROUNDDOWN(T$10/$F42,0)-SUM($AE42:AN42) -> 5 | AP42: =ROUNDDOWN(U$10/$F42,0)-SUM($AE42:AO42) -> 5 | AQ42: =ROUNDDOWN(V$10/$F42,0)-SUM($AE42:AP42) -> 5 | AR42: =ROUNDDOWN(W$10/$F42,0)-SUM($AE42:AQ42) -> 4 | AS42: =ROUNDDOWN(X$10/$F42,0)-SUM($AE42:AR42) -> 5 | AT42: =ROUNDDOWN(Y$10/$F42,0)-SUM($AE42:AS42) -> 5 | AU42: =ROUNDDOWN(Z$10/$F42,0)-SUM($AE42:AT42) -> 4 | AV42: =ROUNDDOWN(AA$10/$F42,0)-SUM($AE42:AU42) -> 5 | AW42: =ROUNDDOWN(AB$10/$F42,0)-SUM($AE42:AV42) -> 5 | AX42: =ROUNDDOWN(AC$10/$F42,0)-SUM($AE42:AW42) -> 4
B43: 31 | C43: ENGRASADO PUNTAS EJES | D43: UND | E43: 4 | F43: 30000 | G43: 13.33333333 | H43: =+H42 -> Costo de mantenimiento mecánico | J43: =+AE43*$E43*$G43*(1+'Sup Generales'!C$10) -> 107.5626667 | K43: =+AF43*$E43*$G43*(1+'Sup Generales'!D$10) -> 108.6382933 | L43: =+AG43*$E43*$G43*(1+'Sup Generales'!E$10) -> 164.5870144 | M43: =+AH43*$E43*$G43*(1+'Sup Generales'!F$10) -> 111.0413724 | N43: =+AI43*$E43*$G43*(1+'Sup Generales'!G$10) -> 112.3738689 | O43: =+AJ43*$E43*$G43*(1+'Sup Generales'!H$10) -> 170.7520937 | P43: =+AK43*$E43*$G43*(1+'Sup Generales'!I$10) -> 115.3145806 | Q43: =+AL43*$E43*$G43*(1+'Sup Generales'!J$10) -> 116.9289848 | R43: =+AM43*$E43*$G43*(1+'Sup Generales'!K$10) -> 177.8489858 | S43: =+AN43*$E43*$G43*(1+'Sup Generales'!L$10) -> 120.3444804 | T43: =+AO43*$E43*$G43*(1+'Sup Generales'!M$10) -> 122.1496476 | U43: =+AP43*$E43*$G43*(1+'Sup Generales'!N$10) -> 185.7030215 | V43: =+AQ43*$E43*$G43*(1+'Sup Generales'!O$10) -> 125.582389 | W43: =+AR43*$E43*$G43*(1+'Sup Generales'!P$10) -> 127.3094003 | X43: =+AS43*$E43*$G43*(1+'Sup Generales'!Q$10) -> 193.5042632 | Y43: =+AT43*$E43*$G43*(1+'Sup Generales'!R$10) -> 130.6956926 | Z43: =+AU43*$E43*$G43*(1+'Sup Generales'!S$10) -> 132.4383279 | AA43: =+AV43*$E43*$G43*(1+'Sup Generales'!T$10) -> 201.3313582 | AB43: =+AW43*$E43*$G43*(1+'Sup Generales'!U$10) -> 136.0263399 | AC43: =+AX43*$E43*$G43*(1+'Sup Generales'!V$10) -> 137.8402532 | AD43: 0.001987027408 | AE43: 2 | AF43: =ROUNDDOWN(K$10/$F43,0)-SUM($AE43:AE43) -> 2 | AG43: =ROUNDDOWN(L$10/$F43,0)-SUM($AE43:AF43) -> 3 | AH43: =ROUNDDOWN(M$10/$F43,0)-SUM($AE43:AG43) -> 2 | AI43: =ROUNDDOWN(N$10/$F43,0)-SUM($AE43:AH43) -> 2 | AJ43: =ROUNDDOWN(O$10/$F43,0)-SUM($AE43:AI43) -> 3 | AK43: =ROUNDDOWN(P$10/$F43,0)-SUM($AE43:AJ43) -> 2 | AL43: =ROUNDDOWN(Q$10/$F43,0)-SUM($AE43:AK43) -> 2 | AM43: =ROUNDDOWN(R$10/$F43,0)-SUM($AE43:AL43) -> 3 | AN43: =ROUNDDOWN(S$10/$F43,0)-SUM($AE43:AM43) -> 2 | AO43: =ROUNDDOWN(T$10/$F43,0)-SUM($AE43:AN43) -> 2 | AP43: =ROUNDDOWN(U$10/$F43,0)-SUM($AE43:AO43) -> 3 | AQ43: =ROUNDDOWN(V$10/$F43,0)-SUM($AE43:AP43) -> 2 | AR43: =ROUNDDOWN(W$10/$F43,0)-SUM($AE43:AQ43) -> 2 | AS43: =ROUNDDOWN(X$10/$F43,0)-SUM($AE43:AR43) -> 3 | AT43: =ROUNDDOWN(Y$10/$F43,0)-SUM($AE43:AS43) -> 2 | AU43: =ROUNDDOWN(Z$10/$F43,0)-SUM($AE43:AT43) -> 2 | AV43: =ROUNDDOWN(AA$10/$F43,0)-SUM($AE43:AU43) -> 3 | AW43: =ROUNDDOWN(AB$10/$F43,0)-SUM($AE43:AV43) -> 2 | AX43: =ROUNDDOWN(AC$10/$F43,0)-SUM($AE43:AW43) -> 2
B44: 32 | C44: CAMBIO DE RULIMANES PUNTA DE EJE | D44: UND | E44: 8 | F44: 180000 | G44: 42.664 | H44: =+H41 -> Costo de mantenimiento mecánico | J44: =+AE44*$E44*$G44*(1+'Sup Generales'!C$10) -> 0 | K44: =+AF44*$E44*$G44*(1+'Sup Generales'!D$10) -> 0 | L44: =+AG44*$E44*$G44*(1+'Sup Generales'!E$10) -> 351.0970191 | M44: =+AH44*$E44*$G44*(1+'Sup Generales'!F$10) -> 0 | N44: =+AI44*$E44*$G44*(1+'Sup Generales'!G$10) -> 0 | O44: =+AJ44*$E44*$G44*(1+'Sup Generales'!H$10) -> 364.2483663 | P44: =+AK44*$E44*$G44*(1+'Sup Generales'!I$10) -> 0 | Q44: =+AL44*$E44*$G44*(1+'Sup Generales'!J$10) -> 374.1493654 | R44: =+AM44*$E44*$G44*(1+'Sup Generales'!K$10) -> 0 | S44: =+AN44*$E44*$G44*(1+'Sup Generales'!L$10) -> 0 | T44: =+AO44*$E44*$G44*(1+'Sup Generales'!M$10) -> 390.8544424 | U44: =+AP44*$E44*$G44*(1+'Sup Generales'!N$10) -> 0 | V44: =+AQ44*$E44*$G44*(1+'Sup Generales'!O$10) -> 401.8385284 | W44: =+AR44*$E44*$G44*(1+'Sup Generales'!P$10) -> 0 | X44: =+AS44*$E44*$G44*(1+'Sup Generales'!Q$10) -> 0 | Y44: =+AT44*$E44*$G44*(1+'Sup Generales'!R$10) -> 418.2000772 | Z44: =+AU44*$E44*$G44*(1+'Sup Generales'!S$10) -> 0 | AA44: =+AV44*$E44*$G44*(1+'Sup Generales'!T$10) -> 429.4800534 | AB44: =+AW44*$E44*$G44*(1+'Sup Generales'!U$10) -> 0 | AC44: =+AX44*$E44*$G44*(1+'Sup Generales'!V$10) -> 0 | AD44: 0.001938661373 | AE44: 0 | AF44: =ROUNDDOWN(K$10/$F44,0)-SUM($AE44:AE44) -> 0 | AG44: =ROUNDDOWN(L$10/$F44,0)-SUM($AE44:AF44) -> 1 | AH44: =ROUNDDOWN(M$10/$F44,0)-SUM($AE44:AG44) -> 0 | AI44: =ROUNDDOWN(N$10/$F44,0)-SUM($AE44:AH44) -> 0 | AJ44: =ROUNDDOWN(O$10/$F44,0)-SUM($AE44:AI44) -> 1 | AK44: =ROUNDDOWN(P$10/$F44,0)-SUM($AE44:AJ44) -> 0 | AL44: =ROUNDDOWN(Q$10/$F44,0)-SUM($AE44:AK44) -> 1 | AM44: =ROUNDDOWN(R$10/$F44,0)-SUM($AE44:AL44) -> 0 | AN44: =ROUNDDOWN(S$10/$F44,0)-SUM($AE44:AM44) -> 0 | AO44: =ROUNDDOWN(T$10/$F44,0)-SUM($AE44:AN44) -> 1 | AP44: =ROUNDDOWN(U$10/$F44,0)-SUM($AE44:AO44) -> 0 | AQ44: =ROUNDDOWN(V$10/$F44,0)-SUM($AE44:AP44) -> 1 | AR44: =ROUNDDOWN(W$10/$F44,0)-SUM($AE44:AQ44) -> 0 | AS44: =ROUNDDOWN(X$10/$F44,0)-SUM($AE44:AR44) -> 0 | AT44: =ROUNDDOWN(Y$10/$F44,0)-SUM($AE44:AS44) -> 1 | AU44: =ROUNDDOWN(Z$10/$F44,0)-SUM($AE44:AT44) -> 0 | AV44: =ROUNDDOWN(AA$10/$F44,0)-SUM($AE44:AU44) -> 1 | AW44: =ROUNDDOWN(AB$10/$F44,0)-SUM($AE44:AV44) -> 0 | AX44: =ROUNDDOWN(AC$10/$F44,0)-SUM($AE44:AW44) -> 0
B45: 33 | C45: MANTENIMINETO DE CARROCERÍA | D45: UND | E45: 1 | F45: 30000 | G45: 325.7142857 | H45: =+'OPEX Mtto'!B8 -> Carrocería | J45: =+AE45*$E45*$G45*(1+'Sup Generales'!C$10) -> 656.9005714 | K45: =+AF45*$E45*$G45*(1+'Sup Generales'!D$10) -> 663.4695771 | L45: =+AG45*$E45*$G45*(1+'Sup Generales'!E$10) -> 1005.156409 | M45: =+AH45*$E45*$G45*(1+'Sup Generales'!F$10) -> 678.1455242 | N45: =+AI45*$E45*$G45*(1+'Sup Generales'!G$10) -> 686.2832705 | O45: =+AJ45*$E45*$G45*(1+'Sup Generales'!H$10) -> 1042.807429 | P45: =+AK45*$E45*$G45*(1+'Sup Generales'!I$10) -> 704.2426174 | Q45: =+AL45*$E45*$G45*(1+'Sup Generales'!J$10) -> 714.102014 | R45: =+AM45*$E45*$G45*(1+'Sup Generales'!K$10) -> 1086.149163 | S45: =+AN45*$E45*$G45*(1+'Sup Generales'!L$10) -> 734.9609339 | T45: =+AO45*$E45*$G45*(1+'Sup Generales'!M$10) -> 745.9853479 | U45: =+AP45*$E45*$G45*(1+'Sup Generales'!N$10) -> 1134.114882 | V45: =+AQ45*$E45*$G45*(1+'Sup Generales'!O$10) -> 766.9495901 | W45: =+AR45*$E45*$G45*(1+'Sup Generales'!P$10) -> 777.4966945 | X45: =+AS45*$E45*$G45*(1+'Sup Generales'!Q$10) -> 1181.758179 | Y45: =+AT45*$E45*$G45*(1+'Sup Generales'!R$10) -> 798.1772655 | Z45: =+AU45*$E45*$G45*(1+'Sup Generales'!S$10) -> 808.8197883 | AA45: =+AV45*$E45*$G45*(1+'Sup Generales'!T$10) -> 1229.559366 | AB45: =+AW45*$E45*$G45*(1+'Sup Generales'!U$10) -> 830.7322899 | AC45: =+AX45*$E45*$G45*(1+'Sup Generales'!V$10) -> 841.8101177 | AD45: 0.01213506024 | AE45: 2 | AF45: =ROUNDDOWN(K$10/$F45,0)-SUM($AE45:AE45) -> 2 | AG45: =ROUNDDOWN(L$10/$F45,0)-SUM($AE45:AF45) -> 3 | AH45: =ROUNDDOWN(M$10/$F45,0)-SUM($AE45:AG45) -> 2 | AI45: =ROUNDDOWN(N$10/$F45,0)-SUM($AE45:AH45) -> 2 | AJ45: =ROUNDDOWN(O$10/$F45,0)-SUM($AE45:AI45) -> 3 | AK45: =ROUNDDOWN(P$10/$F45,0)-SUM($AE45:AJ45) -> 2 | AL45: =ROUNDDOWN(Q$10/$F45,0)-SUM($AE45:AK45) -> 2 | AM45: =ROUNDDOWN(R$10/$F45,0)-SUM($AE45:AL45) -> 3 | AN45: =ROUNDDOWN(S$10/$F45,0)-SUM($AE45:AM45) -> 2 | AO45: =ROUNDDOWN(T$10/$F45,0)-SUM($AE45:AN45) -> 2 | AP45: =ROUNDDOWN(U$10/$F45,0)-SUM($AE45:AO45) -> 3 | AQ45: =ROUNDDOWN(V$10/$F45,0)-SUM($AE45:AP45) -> 2 | AR45: =ROUNDDOWN(W$10/$F45,0)-SUM($AE45:AQ45) -> 2 | AS45: =ROUNDDOWN(X$10/$F45,0)-SUM($AE45:AR45) -> 3 | AT45: =ROUNDDOWN(Y$10/$F45,0)-SUM($AE45:AS45) -> 2 | AU45: =ROUNDDOWN(Z$10/$F45,0)-SUM($AE45:AT45) -> 2 | AV45: =ROUNDDOWN(AA$10/$F45,0)-SUM($AE45:AU45) -> 3 | AW45: =ROUNDDOWN(AB$10/$F45,0)-SUM($AE45:AV45) -> 2 | AX45: =ROUNDDOWN(AC$10/$F45,0)-SUM($AE45:AW45) -> 2
B46: 34 | C46: REPARACIÓN DE LA BOMBA DE INYECCIÓN | D46: UND | E46: 1 | F46: 240000 | G46: 1850 | H46: =+H44 -> Costo de mantenimiento mecánico | J46: =+AE46*$E46*$G46*(1+'Sup Generales'!C$10) -> 0 | K46: =+AF46*$E46*$G46*(1+'Sup Generales'!D$10) -> 0 | L46: =+AG46*$E46*$G46*(1+'Sup Generales'!E$10) -> 0 | M46: =+AH46*$E46*$G46*(1+'Sup Generales'!F$10) -> 1925.873802 | N46: =+AI46*$E46*$G46*(1+'Sup Generales'!G$10) -> 0 | O46: =+AJ46*$E46*$G46*(1+'Sup Generales'!H$10) -> 0 | P46: =+AK46*$E46*$G46*(1+'Sup Generales'!I$10) -> 1999.987258 | Q46: =+AL46*$E46*$G46*(1+'Sup Generales'!J$10) -> 0 | R46: =+AM46*$E46*$G46*(1+'Sup Generales'!K$10) -> 0 | S46: =+AN46*$E46*$G46*(1+'Sup Generales'!L$10) -> 0 | T46: =+AO46*$E46*$G46*(1+'Sup Generales'!M$10) -> 2118.532951 | U46: =+AP46*$E46*$G46*(1+'Sup Generales'!N$10) -> 0 | V46: =+AQ46*$E46*$G46*(1+'Sup Generales'!O$10) -> 0 | W46: =+AR46*$E46*$G46*(1+'Sup Generales'!P$10) -> 2208.022411 | X46: =+AS46*$E46*$G46*(1+'Sup Generales'!Q$10) -> 0 | Y46: =+AT46*$E46*$G46*(1+'Sup Generales'!R$10) -> 0 | Z46: =+AU46*$E46*$G46*(1+'Sup Generales'!S$10) -> 0 | AA46: =+AV46*$E46*$G46*(1+'Sup Generales'!T$10) -> 2327.89383 | AB46: =+AW46*$E46*$G46*(1+'Sup Generales'!U$10) -> 0 | AC46: =+AX46*$E46*$G46*(1+'Sup Generales'!V$10) -> 0 | AD46: 0.007513784515 | AE46: 0 | AF46: =ROUNDDOWN(K$10/$F46,0)-SUM($AE46:AE46) -> 0 | AG46: =ROUNDDOWN(L$10/$F46,0)-SUM($AE46:AF46) -> 0 | AH46: =ROUNDDOWN(M$10/$F46,0)-SUM($AE46:AG46) -> 1 | AI46: =ROUNDDOWN(N$10/$F46,0)-SUM($AE46:AH46) -> 0 | AJ46: =ROUNDDOWN(O$10/$F46,0)-SUM($AE46:AI46) -> 0 | AK46: =ROUNDDOWN(P$10/$F46,0)-SUM($AE46:AJ46) -> 1 | AL46: =ROUNDDOWN(Q$10/$F46,0)-SUM($AE46:AK46) -> 0 | AM46: =ROUNDDOWN(R$10/$F46,0)-SUM($AE46:AL46) -> 0 | AN46: =ROUNDDOWN(S$10/$F46,0)-SUM($AE46:AM46) -> 0 | AO46: =ROUNDDOWN(T$10/$F46,0)-SUM($AE46:AN46) -> 1 | AP46: =ROUNDDOWN(U$10/$F46,0)-SUM($AE46:AO46) -> 0 | AQ46: =ROUNDDOWN(V$10/$F46,0)-SUM($AE46:AP46) -> 0 | AR46: =ROUNDDOWN(W$10/$F46,0)-SUM($AE46:AQ46) -> 1 | AS46: =ROUNDDOWN(X$10/$F46,0)-SUM($AE46:AR46) -> 0 | AT46: =ROUNDDOWN(Y$10/$F46,0)-SUM($AE46:AS46) -> 0 | AU46: =ROUNDDOWN(Z$10/$F46,0)-SUM($AE46:AT46) -> 0 | AV46: =ROUNDDOWN(AA$10/$F46,0)-SUM($AE46:AU46) -> 1 | AW46: =ROUNDDOWN(AB$10/$F46,0)-SUM($AE46:AV46) -> 0 | AX46: =ROUNDDOWN(AC$10/$F46,0)-SUM($AE46:AW46) -> 0
B47: 35 | C47: REPARACION COMPRESOR | D47: UND | E47: 1 | F47: 60000 | G47: 200.11 | H47: =+H46 -> Costo de mantenimiento mecánico | J47: =+AE47*$E47*$G47*(1+'Sup Generales'!C$10) -> 201.790924 | K47: =+AF47*$E47*$G47*(1+'Sup Generales'!D$10) -> 203.8088332 | L47: =+AG47*$E47*$G47*(1+'Sup Generales'!E$10) -> 205.8469216 | M47: =+AH47*$E47*$G47*(1+'Sup Generales'!F$10) -> 208.3170846 | N47: =+AI47*$E47*$G47*(1+'Sup Generales'!G$10) -> 210.8168896 | O47: =+AJ47*$E47*$G47*(1+'Sup Generales'!H$10) -> 427.1150184 | P47: =+AK47*$E47*$G47*(1+'Sup Generales'!I$10) -> 216.3337568 | Q47: =+AL47*$E47*$G47*(1+'Sup Generales'!J$10) -> 219.3624294 | R47: =+AM47*$E47*$G47*(1+'Sup Generales'!K$10) -> 222.4335034 | S47: =+AN47*$E47*$G47*(1+'Sup Generales'!L$10) -> 225.770006 | T47: =+AO47*$E47*$G47*(1+'Sup Generales'!M$10) -> 229.1565561 | U47: =+AP47*$E47*$G47*(1+'Sup Generales'!N$10) -> 464.5128955 | V47: =+AQ47*$E47*$G47*(1+'Sup Generales'!O$10) -> 235.5964862 | W47: =+AR47*$E47*$G47*(1+'Sup Generales'!P$10) -> 238.8364133 | X47: =+AS47*$E47*$G47*(1+'Sup Generales'!Q$10) -> 242.0133632 | Y47: =+AT47*$E47*$G47*(1+'Sup Generales'!R$10) -> 245.1892035 | Z47: =+AU47*$E47*$G47*(1+'Sup Generales'!S$10) -> 248.4584419 | AA47: =+AV47*$E47*$G47*(1+'Sup Generales'!T$10) -> 503.6052262 | AB47: =+AW47*$E47*$G47*(1+'Sup Generales'!U$10) -> 255.1896644 | AC47: =+AX47*$E47*$G47*(1+'Sup Generales'!V$10) -> 258.5926225 | AD47: 0.003737427378 | AE47: 1 | AF47: =ROUNDDOWN(K$10/$F47,0)-SUM($AE47:AE47) -> 1 | AG47: =ROUNDDOWN(L$10/$F47,0)-SUM($AE47:AF47) -> 1 | AH47: =ROUNDDOWN(M$10/$F47,0)-SUM($AE47:AG47) -> 1 | AI47: =ROUNDDOWN(N$10/$F47,0)-SUM($AE47:AH47) -> 1 | AJ47: =ROUNDDOWN(O$10/$F47,0)-SUM($AE47:AI47) -> 2 | AK47: =ROUNDDOWN(P$10/$F47,0)-SUM($AE47:AJ47) -> 1 | AL47: =ROUNDDOWN(Q$10/$F47,0)-SUM($AE47:AK47) -> 1 | AM47: =ROUNDDOWN(R$10/$F47,0)-SUM($AE47:AL47) -> 1 | AN47: =ROUNDDOWN(S$10/$F47,0)-SUM($AE47:AM47) -> 1 | AO47: =ROUNDDOWN(T$10/$F47,0)-SUM($AE47:AN47) -> 1 | AP47: =ROUNDDOWN(U$10/$F47,0)-SUM($AE47:AO47) -> 2 | AQ47: =ROUNDDOWN(V$10/$F47,0)-SUM($AE47:AP47) -> 1 | AR47: =ROUNDDOWN(W$10/$F47,0)-SUM($AE47:AQ47) -> 1 | AS47: =ROUNDDOWN(X$10/$F47,0)-SUM($AE47:AR47) -> 1 | AT47: =ROUNDDOWN(Y$10/$F47,0)-SUM($AE47:AS47) -> 1 | AU47: =ROUNDDOWN(Z$10/$F47,0)-SUM($AE47:AT47) -> 1 | AV47: =ROUNDDOWN(AA$10/$F47,0)-SUM($AE47:AU47) -> 2 | AW47: =ROUNDDOWN(AB$10/$F47,0)-SUM($AE47:AV47) -> 1 | AX47: =ROUNDDOWN(AC$10/$F47,0)-SUM($AE47:AW47) -> 1
B48: 36 | C48: CAMBIO DE TURBO | D48: UND | E48: 1 | F48: 60000 | G48: 542.095 | H48: =+H47 -> Costo de mantenimiento mecánico | J48: =+AE48*$E48*$G48*(1+'Sup Generales'!C$10) -> 546.648598 | K48: =+AF48*$E48*$G48*(1+'Sup Generales'!D$10) -> 552.115084 | L48: =+AG48*$E48*$G48*(1+'Sup Generales'!E$10) -> 557.6362348 | M48: =+AH48*$E48*$G48*(1+'Sup Generales'!F$10) -> 564.3278696 | N48: =+AI48*$E48*$G48*(1+'Sup Generales'!G$10) -> 571.0998041 | O48: =+AJ48*$E48*$G48*(1+'Sup Generales'!H$10) -> 1157.048203 | P48: =+AK48*$E48*$G48*(1+'Sup Generales'!I$10) -> 586.0449148 | Q48: =+AL48*$E48*$G48*(1+'Sup Generales'!J$10) -> 594.2495437 | R48: =+AM48*$E48*$G48*(1+'Sup Generales'!K$10) -> 602.5690373 | S48: =+AN48*$E48*$G48*(1+'Sup Generales'!L$10) -> 611.6075728 | T48: =+AO48*$E48*$G48*(1+'Sup Generales'!M$10) -> 620.7816864 | U48: =+AP48*$E48*$G48*(1+'Sup Generales'!N$10) -> 1258.358493 | V48: =+AQ48*$E48*$G48*(1+'Sup Generales'!O$10) -> 638.227361 | W48: =+AR48*$E48*$G48*(1+'Sup Generales'!P$10) -> 647.0042751 | X48: =+AS48*$E48*$G48*(1+'Sup Generales'!Q$10) -> 655.6105848 | Y48: =+AT48*$E48*$G48*(1+'Sup Generales'!R$10) -> 664.2138888 | Z48: =+AU48*$E48*$G48*(1+'Sup Generales'!S$10) -> 673.0702066 | AA48: =+AV48*$E48*$G48*(1+'Sup Generales'!T$10) -> 1364.259033 | AB48: =+AW48*$E48*$G48*(1+'Sup Generales'!U$10) -> 691.3049879 | AC48: =+AX48*$E48*$G48*(1+'Sup Generales'!V$10) -> 700.5235505 | AD48: 0.01012463492 | AE48: 1 | AF48: =ROUNDDOWN(K$10/$F48,0)-SUM($AE48:AE48) -> 1 | AG48: =ROUNDDOWN(L$10/$F48,0)-SUM($AE48:AF48) -> 1 | AH48: =ROUNDDOWN(M$10/$F48,0)-SUM($AE48:AG48) -> 1 | AI48: =ROUNDDOWN(N$10/$F48,0)-SUM($AE48:AH48) -> 1 | AJ48: =ROUNDDOWN(O$10/$F48,0)-SUM($AE48:AI48) -> 2 | AK48: =ROUNDDOWN(P$10/$F48,0)-SUM($AE48:AJ48) -> 1 | AL48: =ROUNDDOWN(Q$10/$F48,0)-SUM($AE48:AK48) -> 1 | AM48: =ROUNDDOWN(R$10/$F48,0)-SUM($AE48:AL48) -> 1 | AN48: =ROUNDDOWN(S$10/$F48,0)-SUM($AE48:AM48) -> 1 | AO48: =ROUNDDOWN(T$10/$F48,0)-SUM($AE48:AN48) -> 1 | AP48: =ROUNDDOWN(U$10/$F48,0)-SUM($AE48:AO48) -> 2 | AQ48: =ROUNDDOWN(V$10/$F48,0)-SUM($AE48:AP48) -> 1 | AR48: =ROUNDDOWN(W$10/$F48,0)-SUM($AE48:AQ48) -> 1 | AS48: =ROUNDDOWN(X$10/$F48,0)-SUM($AE48:AR48) -> 1 | AT48: =ROUNDDOWN(Y$10/$F48,0)-SUM($AE48:AS48) -> 1 | AU48: =ROUNDDOWN(Z$10/$F48,0)-SUM($AE48:AT48) -> 1 | AV48: =ROUNDDOWN(AA$10/$F48,0)-SUM($AE48:AU48) -> 2 | AW48: =ROUNDDOWN(AB$10/$F48,0)-SUM($AE48:AV48) -> 1 | AX48: =ROUNDDOWN(AC$10/$F48,0)-SUM($AE48:AW48) -> 1
B49: 37 | C49: REPARACIÓN DEL MOTOR | D49: UND | E49: 1 | F49: 240000 | G49: 3903.672 | H49: =+H48 -> Costo de mantenimiento mecánico | J49: =+AE49*$E49*$G49*(1+'Sup Generales'!C$10) -> 0 | K49: =+AF49*$E49*$G49*(1+'Sup Generales'!D$10) -> 0 | L49: =+AG49*$E49*$G49*(1+'Sup Generales'!E$10) -> 0 | M49: =+AH49*$E49*$G49*(1+'Sup Generales'!F$10) -> 4063.772777 | N49: =+AI49*$E49*$G49*(1+'Sup Generales'!G$10) -> 0 | O49: =+AJ49*$E49*$G49*(1+'Sup Generales'!H$10) -> 0 | P49: =+AK49*$E49*$G49*(1+'Sup Generales'!I$10) -> 4220.159059 | Q49: =+AL49*$E49*$G49*(1+'Sup Generales'!J$10) -> 0 | R49: =+AM49*$E49*$G49*(1+'Sup Generales'!K$10) -> 0 | S49: =+AN49*$E49*$G49*(1+'Sup Generales'!L$10) -> 0 | T49: =+AO49*$E49*$G49*(1+'Sup Generales'!M$10) -> 4470.301492 | U49: =+AP49*$E49*$G49*(1+'Sup Generales'!N$10) -> 0 | V49: =+AQ49*$E49*$G49*(1+'Sup Generales'!O$10) -> 0 | W49: =+AR49*$E49*$G49*(1+'Sup Generales'!P$10) -> 4659.132574 | X49: =+AS49*$E49*$G49*(1+'Sup Generales'!Q$10) -> 0 | Y49: =+AT49*$E49*$G49*(1+'Sup Generales'!R$10) -> 0 | Z49: =+AU49*$E49*$G49*(1+'Sup Generales'!S$10) -> 0 | AA49: =+AV49*$E49*$G49*(1+'Sup Generales'!T$10) -> 4912.072412 | AB49: =+AW49*$E49*$G49*(1+'Sup Generales'!U$10) -> 0 | AC49: =+AX49*$E49*$G49*(1+'Sup Generales'!V$10) -> 0 | AD49: 0.01585478391 | AE49: 0 | AF49: =ROUNDDOWN(K$10/$F49,0)-SUM($AE49:AE49) -> 0 | AG49: =ROUNDDOWN(L$10/$F49,0)-SUM($AE49:AF49) -> 0 | AH49: =ROUNDDOWN(M$10/$F49,0)-SUM($AE49:AG49) -> 1 | AI49: =ROUNDDOWN(N$10/$F49,0)-SUM($AE49:AH49) -> 0 | AJ49: =ROUNDDOWN(O$10/$F49,0)-SUM($AE49:AI49) -> 0 | AK49: =ROUNDDOWN(P$10/$F49,0)-SUM($AE49:AJ49) -> 1 | AL49: =ROUNDDOWN(Q$10/$F49,0)-SUM($AE49:AK49) -> 0 | AM49: =ROUNDDOWN(R$10/$F49,0)-SUM($AE49:AL49) -> 0 | AN49: =ROUNDDOWN(S$10/$F49,0)-SUM($AE49:AM49) -> 0 | AO49: =ROUNDDOWN(T$10/$F49,0)-SUM($AE49:AN49) -> 1 | AP49: =ROUNDDOWN(U$10/$F49,0)-SUM($AE49:AO49) -> 0 | AQ49: =ROUNDDOWN(V$10/$F49,0)-SUM($AE49:AP49) -> 0 | AR49: =ROUNDDOWN(W$10/$F49,0)-SUM($AE49:AQ49) -> 1 | AS49: =ROUNDDOWN(X$10/$F49,0)-SUM($AE49:AR49) -> 0 | AT49: =ROUNDDOWN(Y$10/$F49,0)-SUM($AE49:AS49) -> 0 | AU49: =ROUNDDOWN(Z$10/$F49,0)-SUM($AE49:AT49) -> 0 | AV49: =ROUNDDOWN(AA$10/$F49,0)-SUM($AE49:AU49) -> 1 | AW49: =ROUNDDOWN(AB$10/$F49,0)-SUM($AE49:AV49) -> 0 | AX49: =ROUNDDOWN(AC$10/$F49,0)-SUM($AE49:AW49) -> 0
B50: 38 | C50: REPARACIÓN DE CAJA | D50: UND | E50: 1 | F50: 120000 | G50: 2209.796 | H50: =+H49 -> Costo de mantenimiento mecánico | J50: =+AE50*$E50*$G50*(1+'Sup Generales'!C$10) -> 0 | K50: =+AF50*$E50*$G50*(1+'Sup Generales'!D$10) -> 2250.641869 | L50: =+AG50*$E50*$G50*(1+'Sup Generales'!E$10) -> 0 | M50: =+AH50*$E50*$G50*(1+'Sup Generales'!F$10) -> 2300.426067 | N50: =+AI50*$E50*$G50*(1+'Sup Generales'!G$10) -> 0 | O50: =+AJ50*$E50*$G50*(1+'Sup Generales'!H$10) -> 2358.295586 | P50: =+AK50*$E50*$G50*(1+'Sup Generales'!I$10) -> 2388.953428 | Q50: =+AL50*$E50*$G50*(1+'Sup Generales'!J$10) -> 0 | R50: =+AM50*$E50*$G50*(1+'Sup Generales'!K$10) -> 2456.312359 | S50: =+AN50*$E50*$G50*(1+'Sup Generales'!L$10) -> 0 | T50: =+AO50*$E50*$G50*(1+'Sup Generales'!M$10) -> 2530.5544 | U50: =+AP50*$E50*$G50*(1+'Sup Generales'!N$10) -> 2564.786214 | V50: =+AQ50*$E50*$G50*(1+'Sup Generales'!O$10) -> 0 | W50: =+AR50*$E50*$G50*(1+'Sup Generales'!P$10) -> 2637.448158 | X50: =+AS50*$E50*$G50*(1+'Sup Generales'!Q$10) -> 0 | Y50: =+AT50*$E50*$G50*(1+'Sup Generales'!R$10) -> 2707.601425 | Z50: =+AU50*$E50*$G50*(1+'Sup Generales'!S$10) -> 0 | AA50: =+AV50*$E50*$G50*(1+'Sup Generales'!T$10) -> 2780.632688 | AB50: =+AW50*$E50*$G50*(1+'Sup Generales'!U$10) -> 2818.035579 | AC50: =+AX50*$E50*$G50*(1+'Sup Generales'!V$10) -> 0 | AD50: 0.01973815284 | AE50: 0 | AF50: =ROUNDDOWN(K$10/$F50,0)-SUM($AE50:AE50) -> 1 | AG50: =ROUNDDOWN(L$10/$F50,0)-SUM($AE50:AF50) -> 0 | AH50: =ROUNDDOWN(M$10/$F50,0)-SUM($AE50:AG50) -> 1 | AI50: =ROUNDDOWN(N$10/$F50,0)-SUM($AE50:AH50) -> 0 | AJ50: =ROUNDDOWN(O$10/$F50,0)-SUM($AE50:AI50) -> 1 | AK50: =ROUNDDOWN(P$10/$F50,0)-SUM($AE50:AJ50) -> 1 | AL50: =ROUNDDOWN(Q$10/$F50,0)-SUM($AE50:AK50) -> 0 | AM50: =ROUNDDOWN(R$10/$F50,0)-SUM($AE50:AL50) -> 1 | AN50: =ROUNDDOWN(S$10/$F50,0)-SUM($AE50:AM50) -> 0 | AO50: =ROUNDDOWN(T$10/$F50,0)-SUM($AE50:AN50) -> 1 | AP50: =ROUNDDOWN(U$10/$F50,0)-SUM($AE50:AO50) -> 1 | AQ50: =ROUNDDOWN(V$10/$F50,0)-SUM($AE50:AP50) -> 0 | AR50: =ROUNDDOWN(W$10/$F50,0)-SUM($AE50:AQ50) -> 1 | AS50: =ROUNDDOWN(X$10/$F50,0)-SUM($AE50:AR50) -> 0 | AT50: =ROUNDDOWN(Y$10/$F50,0)-SUM($AE50:AS50) -> 1 | AU50: =ROUNDDOWN(Z$10/$F50,0)-SUM($AE50:AT50) -> 0 | AV50: =ROUNDDOWN(AA$10/$F50,0)-SUM($AE50:AU50) -> 1 | AW50: =ROUNDDOWN(AB$10/$F50,0)-SUM($AE50:AV50) -> 1 | AX50: =ROUNDDOWN(AC$10/$F50,0)-SUM($AE50:AW50) -> 0
B51: 39 | C51: REPARACIÓN DEL DIFERENCIAL | D51: UND | E51: 1 | F51: 120000 | G51: 1675.362 | H51: =+H50 -> Costo de mantenimiento mecánico | J51: =+AE51*$E51*$G51*(1+'Sup Generales'!C$10) -> 0 | K51: =+AF51*$E51*$G51*(1+'Sup Generales'!D$10) -> 1706.329391 | L51: =+AG51*$E51*$G51*(1+'Sup Generales'!E$10) -> 0 | M51: =+AH51*$E51*$G51*(1+'Sup Generales'!F$10) -> 1744.073397 | N51: =+AI51*$E51*$G51*(1+'Sup Generales'!G$10) -> 0 | O51: =+AJ51*$E51*$G51*(1+'Sup Generales'!H$10) -> 1787.947308 | P51: =+AK51*$E51*$G51*(1+'Sup Generales'!I$10) -> 1811.190623 | Q51: =+AL51*$E51*$G51*(1+'Sup Generales'!J$10) -> 0 | R51: =+AM51*$E51*$G51*(1+'Sup Generales'!K$10) -> 1862.258954 | S51: =+AN51*$E51*$G51*(1+'Sup Generales'!L$10) -> 0 | T51: =+AO51*$E51*$G51*(1+'Sup Generales'!M$10) -> 1918.54573 | U51: =+AP51*$E51*$G51*(1+'Sup Generales'!N$10) -> 1944.49866 | V51: =+AQ51*$E51*$G51*(1+'Sup Generales'!O$10) -> 0 | W51: =+AR51*$E51*$G51*(1+'Sup Generales'!P$10) -> 1999.587482 | X51: =+AS51*$E51*$G51*(1+'Sup Generales'!Q$10) -> 0 | Y51: =+AT51*$E51*$G51*(1+'Sup Generales'!R$10) -> 2052.774346 | Z51: =+AU51*$E51*$G51*(1+'Sup Generales'!S$10) -> 0 | AA51: =+AV51*$E51*$G51*(1+'Sup Generales'!T$10) -> 2108.143169 | AB51: =+AW51*$E51*$G51*(1+'Sup Generales'!U$10) -> 2136.500258 | AC51: =+AX51*$E51*$G51*(1+'Sup Generales'!V$10) -> 0 | AD51: 0.01496452669 | AE51: 0 | AF51: =ROUNDDOWN(K$10/$F51,0)-SUM($AE51:AE51) -> 1 | AG51: =ROUNDDOWN(L$10/$F51,0)-SUM($AE51:AF51) -> 0 | AH51: =ROUNDDOWN(M$10/$F51,0)-SUM($AE51:AG51) -> 1 | AI51: =ROUNDDOWN(N$10/$F51,0)-SUM($AE51:AH51) -> 0 | AJ51: =ROUNDDOWN(O$10/$F51,0)-SUM($AE51:AI51) -> 1 | AK51: =ROUNDDOWN(P$10/$F51,0)-SUM($AE51:AJ51) -> 1 | AL51: =ROUNDDOWN(Q$10/$F51,0)-SUM($AE51:AK51) -> 0 | AM51: =ROUNDDOWN(R$10/$F51,0)-SUM($AE51:AL51) -> 1 | AN51: =ROUNDDOWN(S$10/$F51,0)-SUM($AE51:AM51) -> 0 | AO51: =ROUNDDOWN(T$10/$F51,0)-SUM($AE51:AN51) -> 1 | AP51: =ROUNDDOWN(U$10/$F51,0)-SUM($AE51:AO51) -> 1 | AQ51: =ROUNDDOWN(V$10/$F51,0)-SUM($AE51:AP51) -> 0 | AR51: =ROUNDDOWN(W$10/$F51,0)-SUM($AE51:AQ51) -> 1 | AS51: =ROUNDDOWN(X$10/$F51,0)-SUM($AE51:AR51) -> 0 | AT51: =ROUNDDOWN(Y$10/$F51,0)-SUM($AE51:AS51) -> 1 | AU51: =ROUNDDOWN(Z$10/$F51,0)-SUM($AE51:AT51) -> 0 | AV51: =ROUNDDOWN(AA$10/$F51,0)-SUM($AE51:AU51) -> 1 | AW51: =ROUNDDOWN(AB$10/$F51,0)-SUM($AE51:AV51) -> 1 | AX51: =ROUNDDOWN(AC$10/$F51,0)-SUM($AE51:AW51) -> 0
B52: 40 | C52: REPARACIÓN DE CARROCERIA | D52: UND | E52: 1 | F52: 600000 | G52: 4125 | H52: =+H45 -> Carrocería | J52: =+AE52*$E52*$G52*(1+'Sup Generales'!C$10) -> 0 | K52: =+AF52*$E52*$G52*(1+'Sup Generales'!D$10) -> 0 | L52: =+AG52*$E52*$G52*(1+'Sup Generales'!E$10) -> 0 | M52: =+AH52*$E52*$G52*(1+'Sup Generales'!F$10) -> 0 | N52: =+AI52*$E52*$G52*(1+'Sup Generales'!G$10) -> 0 | O52: =+AJ52*$E52*$G52*(1+'Sup Generales'!H$10) -> 0 | P52: =+AK52*$E52*$G52*(1+'Sup Generales'!I$10) -> 0 | Q52: =+AL52*$E52*$G52*(1+'Sup Generales'!J$10) -> 0 | R52: =+AM52*$E52*$G52*(1+'Sup Generales'!K$10) -> 4585.169165 | S52: =+AN52*$E52*$G52*(1+'Sup Generales'!L$10) -> 0 | T52: =+AO52*$E52*$G52*(1+'Sup Generales'!M$10) -> 0 | U52: =+AP52*$E52*$G52*(1+'Sup Generales'!N$10) -> 0 | V52: =+AQ52*$E52*$G52*(1+'Sup Generales'!O$10) -> 0 | W52: =+AR52*$E52*$G52*(1+'Sup Generales'!P$10) -> 0 | X52: =+AS52*$E52*$G52*(1+'Sup Generales'!Q$10) -> 0 | Y52: =+AT52*$E52*$G52*(1+'Sup Generales'!R$10) -> 0 | Z52: =+AU52*$E52*$G52*(1+'Sup Generales'!S$10) -> 0 | AA52: =+AV52*$E52*$G52*(1+'Sup Generales'!T$10) -> 5190.574079 | AB52: =+AW52*$E52*$G52*(1+'Sup Generales'!U$10) -> 0 | AC52: =+AX52*$E52*$G52*(1+'Sup Generales'!V$10) -> 0 | AD52: 0.006942407781 | AE52: 0 | AF52: =ROUNDDOWN(K$10/$F52,0)-SUM($AE52:AE52) -> 0 | AG52: =ROUNDDOWN(L$10/$F52,0)-SUM($AE52:AF52) -> 0 | AH52: =ROUNDDOWN(M$10/$F52,0)-SUM($AE52:AG52) -> 0 | AI52: =ROUNDDOWN(N$10/$F52,0)-SUM($AE52:AH52) -> 0 | AJ52: =ROUNDDOWN(O$10/$F52,0)-SUM($AE52:AI52) -> 0 | AK52: =ROUNDDOWN(P$10/$F52,0)-SUM($AE52:AJ52) -> 0 | AL52: =ROUNDDOWN(Q$10/$F52,0)-SUM($AE52:AK52) -> 0 | AM52: =ROUNDDOWN(R$10/$F52,0)-SUM($AE52:AL52) -> 1 | AN52: =ROUNDDOWN(S$10/$F52,0)-SUM($AE52:AM52) -> 0 | AO52: =ROUNDDOWN(T$10/$F52,0)-SUM($AE52:AN52) -> 0 | AP52: =ROUNDDOWN(U$10/$F52,0)-SUM($AE52:AO52) -> 0 | AQ52: =ROUNDDOWN(V$10/$F52,0)-SUM($AE52:AP52) -> 0 | AR52: =ROUNDDOWN(W$10/$F52,0)-SUM($AE52:AQ52) -> 0 | AS52: =ROUNDDOWN(X$10/$F52,0)-SUM($AE52:AR52) -> 0 | AT52: =ROUNDDOWN(Y$10/$F52,0)-SUM($AE52:AS52) -> 0 | AU52: =ROUNDDOWN(Z$10/$F52,0)-SUM($AE52:AT52) -> 0 | AV52: =ROUNDDOWN(AA$10/$F52,0)-SUM($AE52:AU52) -> 1 | AW52: =ROUNDDOWN(AB$10/$F52,0)-SUM($AE52:AV52) -> 0 | AX52: =ROUNDDOWN(AC$10/$F52,0)-SUM($AE52:AW52) -> 0
B53: 41 | C53: MANO DE OBRA MANTENIMIENTO | D53: UND | E53: 1 | F53: 1 | G53: 0.03 | H53: Mano de Obra | J53: =+AE53*$E53*$G53*(1+'Sup Generales'!C$10) -> 2129.922312 | K53: =+AF53*$E53*$G53*(1+'Sup Generales'!D$10) -> 2151.221535 | L53: =+AG53*$E53*$G53*(1+'Sup Generales'!E$10) -> 2172.73375 | M53: =+AH53*$E53*$G53*(1+'Sup Generales'!F$10) -> 2198.806555 | N53: =+AI53*$E53*$G53*(1+'Sup Generales'!G$10) -> 2225.192234 | O53: =+AJ53*$E53*$G53*(1+'Sup Generales'!H$10) -> 2254.119733 | P53: =+AK53*$E53*$G53*(1+'Sup Generales'!I$10) -> 2283.42329 | Q53: =+AL53*$E53*$G53*(1+'Sup Generales'!J$10) -> 2315.391216 | R53: =+AM53*$E53*$G53*(1+'Sup Generales'!K$10) -> 2347.806693 | S53: =+AN53*$E53*$G53*(1+'Sup Generales'!L$10) -> 2383.023793 | T53: =+AO53*$E53*$G53*(1+'Sup Generales'!M$10) -> 2418.76915 | U53: =+AP53*$E53*$G53*(1+'Sup Generales'!N$10) -> 2451.4888 | V53: =+AQ53*$E53*$G53*(1+'Sup Generales'!O$10) -> 2486.743223 | W53: =+AR53*$E53*$G53*(1+'Sup Generales'!P$10) -> 2520.94096 | X53: =+AS53*$E53*$G53*(1+'Sup Generales'!Q$10) -> 2554.473967 | Y53: =+AT53*$E53*$G53*(1+'Sup Generales'!R$10) -> 2587.995262 | Z53: =+AU53*$E53*$G53*(1+'Sup Generales'!S$10) -> 2622.502382 | AA53: =+AV53*$E53*$G53*(1+'Sup Generales'!T$10) -> 2657.800426 | AB53: =+AW53*$E53*$G53*(1+'Sup Generales'!U$10) -> 2693.551074 | AC53: =+AX53*$E53*$G53*(1+'Sup Generales'!V$10) -> 2729.469618 | AD53: =SUM(J53:AC53)/SUM($J$9:$AC$9) -> 0.03421965172 | AE53: 70406 | AF53: =ROUNDDOWN(K$10/$F53,0)-SUM($AE53:AE53) -> 70406 | AG53: =ROUNDDOWN(L$10/$F53,0)-SUM($AE53:AF53) -> 70406 | AH53: =ROUNDDOWN(M$10/$F53,0)-SUM($AE53:AG53) -> 70406 | AI53: =ROUNDDOWN(N$10/$F53,0)-SUM($AE53:AH53) -> 70406 | AJ53: =ROUNDDOWN(O$10/$F53,0)-SUM($AE53:AI53) -> 70406 | AK53: =ROUNDDOWN(P$10/$F53,0)-SUM($AE53:AJ53) -> 70406 | AL53: =ROUNDDOWN(Q$10/$F53,0)-SUM($AE53:AK53) -> 70406 | AM53: =ROUNDDOWN(R$10/$F53,0)-SUM($AE53:AL53) -> 70406 | AN53: =ROUNDDOWN(S$10/$F53,0)-SUM($AE53:AM53) -> 70406 | AO53: =ROUNDDOWN(T$10/$F53,0)-SUM($AE53:AN53) -> 70406 | AP53: =ROUNDDOWN(U$10/$F53,0)-SUM($AE53:AO53) -> 70406 | AQ53: =ROUNDDOWN(V$10/$F53,0)-SUM($AE53:AP53) -> 70406 | AR53: =ROUNDDOWN(W$10/$F53,0)-SUM($AE53:AQ53) -> 70406 | AS53: =ROUNDDOWN(X$10/$F53,0)-SUM($AE53:AR53) -> 70406 | AT53: =ROUNDDOWN(Y$10/$F53,0)-SUM($AE53:AS53) -> 70406 | AU53: =ROUNDDOWN(Z$10/$F53,0)-SUM($AE53:AT53) -> 70406 | AV53: =ROUNDDOWN(AA$10/$F53,0)-SUM($AE53:AU53) -> 70406 | AW53: =ROUNDDOWN(AB$10/$F53,0)-SUM($AE53:AV53) -> 70406 | AX53: =ROUNDDOWN(AC$10/$F53,0)-SUM($AE53:AW53) -> 70406
B54: A1 | C54: Filtros y Lubricantes (Híbrido) | D54: UND | E54: 1 | F54: 1 | G54: 0.158 | H54: Aceites y filtros | J54: =+AE54*$E54*$G54*(1+'Sup Generales'!C$10) -> 11217.59084 | K54: =+AF54*$E54*$G54*(1+'Sup Generales'!D$10) -> 11329.76675 | L54: =+AG54*$E54*$G54*(1+'Sup Generales'!E$10) -> 11443.06442 | M54: =+AH54*$E54*$G54*(1+'Sup Generales'!F$10) -> 11580.38119 | N54: =+AI54*$E54*$G54*(1+'Sup Generales'!G$10) -> 11719.34577 | O54: =+AJ54*$E54*$G54*(1+'Sup Generales'!H$10) -> 11871.69726 | P54: =+AK54*$E54*$G54*(1+'Sup Generales'!I$10) -> 12026.02933 | Q54: =+AL54*$E54*$G54*(1+'Sup Generales'!J$10) -> 12194.39374 | R54: =+AM54*$E54*$G54*(1+'Sup Generales'!K$10) -> 12365.11525 | S54: =+AN54*$E54*$G54*(1+'Sup Generales'!L$10) -> 12550.59198 | T54: =+AO54*$E54*$G54*(1+'Sup Generales'!M$10) -> 12738.85086 | U54: =+AP54*$E54*$G54*(1+'Sup Generales'!N$10) -> 12911.17435 | V54: =+AQ54*$E54*$G54*(1+'Sup Generales'!O$10) -> 13096.84764 | W54: =+AR54*$E54*$G54*(1+'Sup Generales'!P$10) -> 13276.95572 | X54: =+AS54*$E54*$G54*(1+'Sup Generales'!Q$10) -> 13453.56289 | Y54: =+AT54*$E54*$G54*(1+'Sup Generales'!R$10) -> 13630.10838 | Z54: =+AU54*$E54*$G54*(1+'Sup Generales'!S$10) -> 13811.84588 | AA54: =+AV54*$E54*$G54*(1+'Sup Generales'!T$10) -> 13997.74891 | AB54: =+AW54*$E54*$G54*(1+'Sup Generales'!U$10) -> 14186.03566 | AC54: =+AX54*$E54*$G54*(1+'Sup Generales'!V$10) -> 14375.20666 | AD54: =SUM(J54:AC54)/SUM($J$9:$AC$9) -> 0.180223499 | AE54: =ROUNDDOWN(J$10/$F54,0) -> 70406 | AF54: =ROUNDDOWN(K$10/$F54,0)-SUM($AE54:AE54) -> 70406 | AG54: =ROUNDDOWN(L$10/$F54,0)-SUM($AE54:AF54) -> 70406 | AH54: =ROUNDDOWN(M$10/$F54,0)-SUM($AE54:AG54) -> 70406 | AI54: =ROUNDDOWN(N$10/$F54,0)-SUM($AE54:AH54) -> 70406 | AJ54: =ROUNDDOWN(O$10/$F54,0)-SUM($AE54:AI54) -> 70406 | AK54: =ROUNDDOWN(P$10/$F54,0)-SUM($AE54:AJ54) -> 70406 | AL54: =ROUNDDOWN(Q$10/$F54,0)-SUM($AE54:AK54) -> 70406 | AM54: =ROUNDDOWN(R$10/$F54,0)-SUM($AE54:AL54) -> 70406 | AN54: =ROUNDDOWN(S$10/$F54,0)-SUM($AE54:AM54) -> 70406 | AO54: =ROUNDDOWN(T$10/$F54,0)-SUM($AE54:AN54) -> 70406 | AP54: =ROUNDDOWN(U$10/$F54,0)-SUM($AE54:AO54) -> 70406 | AQ54: =ROUNDDOWN(V$10/$F54,0)-SUM($AE54:AP54) -> 70406 | AR54: =ROUNDDOWN(W$10/$F54,0)-SUM($AE54:AQ54) -> 70406 | AS54: =ROUNDDOWN(X$10/$F54,0)-SUM($AE54:AR54) -> 70406 | AT54: =ROUNDDOWN(Y$10/$F54,0)-SUM($AE54:AS54) -> 70406 | AU54: =ROUNDDOWN(Z$10/$F54,0)-SUM($AE54:AT54) -> 70406 | AV54: =ROUNDDOWN(AA$10/$F54,0)-SUM($AE54:AU54) -> 70406 | AW54: =ROUNDDOWN(AB$10/$F54,0)-SUM($AE54:AV54) -> 70406 | AX54: =ROUNDDOWN(AC$10/$F54,0)-SUM($AE54:AW54) -> 70406
B55: A2 | C55: Mantenimiento Electrico (Híbrido) | D55: UND | E55: 1 | F55: 1 | G55: 0.049 | H55: Costo de mantenimiento eléctrico | J55: =+AE55*$E55*$G55*(1+'Sup Generales'!C$10) -> 3478.87311 | K55: =+AF55*$E55*$G55*(1+'Sup Generales'!D$10) -> 3513.661841 | L55: =+AG55*$E55*$G55*(1+'Sup Generales'!E$10) -> 3548.798459 | M55: =+AH55*$E55*$G55*(1+'Sup Generales'!F$10) -> 3591.384041 | N55: =+AI55*$E55*$G55*(1+'Sup Generales'!G$10) -> 3634.480649 | O55: =+AJ55*$E55*$G55*(1+'Sup Generales'!H$10) -> 3681.728898 | P55: =+AK55*$E55*$G55*(1+'Sup Generales'!I$10) -> 3729.591373 | Q55: =+AL55*$E55*$G55*(1+'Sup Generales'!J$10) -> 3781.805652 | R55: =+AM55*$E55*$G55*(1+'Sup Generales'!K$10) -> 3834.750932 | S55: =+AN55*$E55*$G55*(1+'Sup Generales'!L$10) -> 3892.272196 | T55: =+AO55*$E55*$G55*(1+'Sup Generales'!M$10) -> 3950.656278 | U55: =+AP55*$E55*$G55*(1+'Sup Generales'!N$10) -> 4004.098374 | V55: =+AQ55*$E55*$G55*(1+'Sup Generales'!O$10) -> 4061.680597 | W55: =+AR55*$E55*$G55*(1+'Sup Generales'!P$10) -> 4117.536901 | X55: =+AS55*$E55*$G55*(1+'Sup Generales'!Q$10) -> 4172.307479 | Y55: =+AT55*$E55*$G55*(1+'Sup Generales'!R$10) -> 4227.058928 | Z55: =+AU55*$E55*$G55*(1+'Sup Generales'!S$10) -> 4283.420558 | AA55: =+AV55*$E55*$G55*(1+'Sup Generales'!T$10) -> 4341.07403 | AB55: =+AW55*$E55*$G55*(1+'Sup Generales'!U$10) -> 4399.466754 | AC55: =+AX55*$E55*$G55*(1+'Sup Generales'!V$10) -> 4458.13371 | AD55: 0.0558920978 | AE55: 70406 | AF55: =ROUNDDOWN(K$10/$F55,0)-SUM($AE55:AE55) -> 70406 | AG55: =ROUNDDOWN(L$10/$F55,0)-SUM($AE55:AF55) -> 70406 | AH55: =ROUNDDOWN(M$10/$F55,0)-SUM($AE55:AG55) -> 70406 | AI55: =ROUNDDOWN(N$10/$F55,0)-SUM($AE55:AH55) -> 70406 | AJ55: =ROUNDDOWN(O$10/$F55,0)-SUM($AE55:AI55) -> 70406 | AK55: =ROUNDDOWN(P$10/$F55,0)-SUM($AE55:AJ55) -> 70406 | AL55: =ROUNDDOWN(Q$10/$F55,0)-SUM($AE55:AK55) -> 70406 | AM55: =ROUNDDOWN(R$10/$F55,0)-SUM($AE55:AL55) -> 70406 | AN55: =ROUNDDOWN(S$10/$F55,0)-SUM($AE55:AM55) -> 70406 | AO55: =ROUNDDOWN(T$10/$F55,0)-SUM($AE55:AN55) -> 70406 | AP55: =ROUNDDOWN(U$10/$F55,0)-SUM($AE55:AO55) -> 70406 | AQ55: =ROUNDDOWN(V$10/$F55,0)-SUM($AE55:AP55) -> 70406 | AR55: =ROUNDDOWN(W$10/$F55,0)-SUM($AE55:AQ55) -> 70406 | AS55: =ROUNDDOWN(X$10/$F55,0)-SUM($AE55:AR55) -> 70406 | AT55: =ROUNDDOWN(Y$10/$F55,0)-SUM($AE55:AS55) -> 70406 | AU55: =ROUNDDOWN(Z$10/$F55,0)-SUM($AE55:AT55) -> 70406 | AV55: =ROUNDDOWN(AA$10/$F55,0)-SUM($AE55:AU55) -> 70406 | AW55: =ROUNDDOWN(AB$10/$F55,0)-SUM($AE55:AV55) -> 70406 | AX55: =ROUNDDOWN(AC$10/$F55,0)-SUM($AE55:AW55) -> 70406
B56: A3 | C56: Manto. Chasis y Motor (Híbrido) | D56: UND | E56: 1 | F56: 1 | G56: 0.0972 | H56: Costo de mantenimiento mecánico | J56: =+AE56*$E56*$G56*(1+'Sup Generales'!C$10) -> 6900.948291 | K56: =+AF56*$E56*$G56*(1+'Sup Generales'!D$10) -> 6969.957774 | L56: =+AG56*$E56*$G56*(1+'Sup Generales'!E$10) -> 7039.657352 | M56: =+AH56*$E56*$G56*(1+'Sup Generales'!F$10) -> 7124.13324 | N56: =+AI56*$E56*$G56*(1+'Sup Generales'!G$10) -> 7209.622839 | O56: =+AJ56*$E56*$G56*(1+'Sup Generales'!H$10) -> 7303.347936 | P56: =+AK56*$E56*$G56*(1+'Sup Generales'!I$10) -> 7398.291459 | Q56: =+AL56*$E56*$G56*(1+'Sup Generales'!J$10) -> 7501.867539 | R56: =+AM56*$E56*$G56*(1+'Sup Generales'!K$10) -> 7606.893685 | S56: =+AN56*$E56*$G56*(1+'Sup Generales'!L$10) -> 7720.99709 | T56: =+AO56*$E56*$G56*(1+'Sup Generales'!M$10) -> 7836.812046 | U56: =+AP56*$E56*$G56*(1+'Sup Generales'!N$10) -> 7942.823713 | V56: =+AQ56*$E56*$G56*(1+'Sup Generales'!O$10) -> 8057.048042 | W56: =+AR56*$E56*$G56*(1+'Sup Generales'!P$10) -> 8167.84871 | X56: =+AS56*$E56*$G56*(1+'Sup Generales'!Q$10) -> 8276.495652 | Y56: =+AT56*$E56*$G56*(1+'Sup Generales'!R$10) -> 8385.10465 | Z56: =+AU56*$E56*$G56*(1+'Sup Generales'!S$10) -> 8496.907719 | AA56: =+AV56*$E56*$G56*(1+'Sup Generales'!T$10) -> 8611.273382 | AB56: =+AW56*$E56*$G56*(1+'Sup Generales'!U$10) -> 8727.105479 | AC56: =+AX56*$E56*$G56*(1+'Sup Generales'!V$10) -> 8843.481564 | AD56: 0.1108716716 | AE56: 70406 | AF56: =ROUNDDOWN(K$10/$F56,0)-SUM($AE56:AE56) -> 70406 | AG56: =ROUNDDOWN(L$10/$F56,0)-SUM($AE56:AF56) -> 70406 | AH56: =ROUNDDOWN(M$10/$F56,0)-SUM($AE56:AG56) -> 70406 | AI56: =ROUNDDOWN(N$10/$F56,0)-SUM($AE56:AH56) -> 70406 | AJ56: =ROUNDDOWN(O$10/$F56,0)-SUM($AE56:AI56) -> 70406 | AK56: =ROUNDDOWN(P$10/$F56,0)-SUM($AE56:AJ56) -> 70406 | AL56: =ROUNDDOWN(Q$10/$F56,0)-SUM($AE56:AK56) -> 70406 | AM56: =ROUNDDOWN(R$10/$F56,0)-SUM($AE56:AL56) -> 70406 | AN56: =ROUNDDOWN(S$10/$F56,0)-SUM($AE56:AM56) -> 70406 | AO56: =ROUNDDOWN(T$10/$F56,0)-SUM($AE56:AN56) -> 70406 | AP56: =ROUNDDOWN(U$10/$F56,0)-SUM($AE56:AO56) -> 70406 | AQ56: =ROUNDDOWN(V$10/$F56,0)-SUM($AE56:AP56) -> 70406 | AR56: =ROUNDDOWN(W$10/$F56,0)-SUM($AE56:AQ56) -> 70406 | AS56: =ROUNDDOWN(X$10/$F56,0)-SUM($AE56:AR56) -> 70406 | AT56: =ROUNDDOWN(Y$10/$F56,0)-SUM($AE56:AS56) -> 70406 | AU56: =ROUNDDOWN(Z$10/$F56,0)-SUM($AE56:AT56) -> 70406 | AV56: =ROUNDDOWN(AA$10/$F56,0)-SUM($AE56:AU56) -> 70406 | AW56: =ROUNDDOWN(AB$10/$F56,0)-SUM($AE56:AV56) -> 70406 | AX56: =ROUNDDOWN(AC$10/$F56,0)-SUM($AE56:AW56) -> 70406
B57: A4 | C57: Manto. Carroceria (Híbrido) | D57: UND | E57: 1 | F57: 1 | G57: 0.0108 | H57: Carrocería | J57: =+AE57*$E57*$G57*(1+'Sup Generales'!C$10) -> 766.7720323 | K57: =+AF57*$E57*$G57*(1+'Sup Generales'!D$10) -> 774.4397526 | L57: =+AG57*$E57*$G57*(1+'Sup Generales'!E$10) -> 782.1841502 | M57: =+AH57*$E57*$G57*(1+'Sup Generales'!F$10) -> 791.57036 | N57: =+AI57*$E57*$G57*(1+'Sup Generales'!G$10) -> 801.0692043 | O57: =+AJ57*$E57*$G57*(1+'Sup Generales'!H$10) -> 811.4831039 | P57: =+AK57*$E57*$G57*(1+'Sup Generales'!I$10) -> 822.0323843 | Q57: =+AL57*$E57*$G57*(1+'Sup Generales'!J$10) -> 833.5408377 | R57: =+AM57*$E57*$G57*(1+'Sup Generales'!K$10) -> 845.2104094 | S57: =+AN57*$E57*$G57*(1+'Sup Generales'!L$10) -> 857.8885655 | T57: =+AO57*$E57*$G57*(1+'Sup Generales'!M$10) -> 870.756894 | U57: =+AP57*$E57*$G57*(1+'Sup Generales'!N$10) -> 882.5359681 | V57: =+AQ57*$E57*$G57*(1+'Sup Generales'!O$10) -> 895.2275602 | W57: =+AR57*$E57*$G57*(1+'Sup Generales'!P$10) -> 907.5387456 | X57: =+AS57*$E57*$G57*(1+'Sup Generales'!Q$10) -> 919.610628 | Y57: =+AT57*$E57*$G57*(1+'Sup Generales'!R$10) -> 931.6782944 | Z57: =+AU57*$E57*$G57*(1+'Sup Generales'!S$10) -> 944.1008577 | AA57: =+AV57*$E57*$G57*(1+'Sup Generales'!T$10) -> 956.8081535 | AB57: =+AW57*$E57*$G57*(1+'Sup Generales'!U$10) -> 969.6783866 | AC57: =+AX57*$E57*$G57*(1+'Sup Generales'!V$10) -> 982.6090627 | AD57: 0.01231907462 | AE57: 70406 | AF57: =ROUNDDOWN(K$10/$F57,0)-SUM($AE57:AE57) -> 70406 | AG57: =ROUNDDOWN(L$10/$F57,0)-SUM($AE57:AF57) -> 70406 | AH57: =ROUNDDOWN(M$10/$F57,0)-SUM($AE57:AG57) -> 70406 | AI57: =ROUNDDOWN(N$10/$F57,0)-SUM($AE57:AH57) -> 70406 | AJ57: =ROUNDDOWN(O$10/$F57,0)-SUM($AE57:AI57) -> 70406 | AK57: =ROUNDDOWN(P$10/$F57,0)-SUM($AE57:AJ57) -> 70406 | AL57: =ROUNDDOWN(Q$10/$F57,0)-SUM($AE57:AK57) -> 70406 | AM57: =ROUNDDOWN(R$10/$F57,0)-SUM($AE57:AL57) -> 70406 | AN57: =ROUNDDOWN(S$10/$F57,0)-SUM($AE57:AM57) -> 70406 | AO57: =ROUNDDOWN(T$10/$F57,0)-SUM($AE57:AN57) -> 70406 | AP57: =ROUNDDOWN(U$10/$F57,0)-SUM($AE57:AO57) -> 70406 | AQ57: =ROUNDDOWN(V$10/$F57,0)-SUM($AE57:AP57) -> 70406 | AR57: =ROUNDDOWN(W$10/$F57,0)-SUM($AE57:AQ57) -> 70406 | AS57: =ROUNDDOWN(X$10/$F57,0)-SUM($AE57:AR57) -> 70406 | AT57: =ROUNDDOWN(Y$10/$F57,0)-SUM($AE57:AS57) -> 70406 | AU57: =ROUNDDOWN(Z$10/$F57,0)-SUM($AE57:AT57) -> 70406 | AV57: =ROUNDDOWN(AA$10/$F57,0)-SUM($AE57:AU57) -> 70406 | AW57: =ROUNDDOWN(AB$10/$F57,0)-SUM($AE57:AV57) -> 70406 | AX57: =ROUNDDOWN(AC$10/$F57,0)-SUM($AE57:AW57) -> 70406
B58: B1 | C58: Filtros y Lubricantes (Eléctrico) | D58: UND | E58: 1 | F58: 1 | G58: =G54*1.2 -> 0.1896 | H58: Aceites y filtros | J58: =+AE58*$E58*$G58*(1+'Sup Generales'!C$10) -> 13461.10901 | K58: =+AF58*$E58*$G58*(1+'Sup Generales'!D$10) -> 13595.7201 | L58: =+AG58*$E58*$G58*(1+'Sup Generales'!E$10) -> 13731.6773 | M58: =+AH58*$E58*$G58*(1+'Sup Generales'!F$10) -> 13896.45743 | N58: =+AI58*$E58*$G58*(1+'Sup Generales'!G$10) -> 14063.21492 | O58: =+AJ58*$E58*$G58*(1+'Sup Generales'!H$10) -> 14246.03671 | P58: =+AK58*$E58*$G58*(1+'Sup Generales'!I$10) -> 14431.23519 | Q58: =+AL58*$E58*$G58*(1+'Sup Generales'!J$10) -> 14633.27248 | R58: =+AM58*$E58*$G58*(1+'Sup Generales'!K$10) -> 14838.1383 | S58: =+AN58*$E58*$G58*(1+'Sup Generales'!L$10) -> 15060.71037 | T58: =+AO58*$E58*$G58*(1+'Sup Generales'!M$10) -> 15286.62103 | U58: =+AP58*$E58*$G58*(1+'Sup Generales'!N$10) -> 15493.40922 | V58: =+AQ58*$E58*$G58*(1+'Sup Generales'!O$10) -> 15716.21717 | W58: =+AR58*$E58*$G58*(1+'Sup Generales'!P$10) -> 15932.34687 | X58: =+AS58*$E58*$G58*(1+'Sup Generales'!Q$10) -> 16144.27547 | Y58: =+AT58*$E58*$G58*(1+'Sup Generales'!R$10) -> 16356.13006 | Z58: =+AU58*$E58*$G58*(1+'Sup Generales'!S$10) -> 16574.21506 | AA58: =+AV58*$E58*$G58*(1+'Sup Generales'!T$10) -> 16797.2987 | AB58: =+AW58*$E58*$G58*(1+'Sup Generales'!U$10) -> 17023.24279 | AC58: =+AX58*$E58*$G58*(1+'Sup Generales'!V$10) -> 17250.24799 | AD58: 0.2162681988 | AE58: 70406 | AF58: =ROUNDDOWN(K$10/$F58,0)-SUM($AE58:AE58) -> 70406 | AG58: =ROUNDDOWN(L$10/$F58,0)-SUM($AE58:AF58) -> 70406 | AH58: =ROUNDDOWN(M$10/$F58,0)-SUM($AE58:AG58) -> 70406 | AI58: =ROUNDDOWN(N$10/$F58,0)-SUM($AE58:AH58) -> 70406 | AJ58: =ROUNDDOWN(O$10/$F58,0)-SUM($AE58:AI58) -> 70406 | AK58: =ROUNDDOWN(P$10/$F58,0)-SUM($AE58:AJ58) -> 70406 | AL58: =ROUNDDOWN(Q$10/$F58,0)-SUM($AE58:AK58) -> 70406 | AM58: =ROUNDDOWN(R$10/$F58,0)-SUM($AE58:AL58) -> 70406 | AN58: =ROUNDDOWN(S$10/$F58,0)-SUM($AE58:AM58) -> 70406 | AO58: =ROUNDDOWN(T$10/$F58,0)-SUM($AE58:AN58) -> 70406 | AP58: =ROUNDDOWN(U$10/$F58,0)-SUM($AE58:AO58) -> 70406 | AQ58: =ROUNDDOWN(V$10/$F58,0)-SUM($AE58:AP58) -> 70406 | AR58: =ROUNDDOWN(W$10/$F58,0)-SUM($AE58:AQ58) -> 70406 | AS58: =ROUNDDOWN(X$10/$F58,0)-SUM($AE58:AR58) -> 70406 | AT58: =ROUNDDOWN(Y$10/$F58,0)-SUM($AE58:AS58) -> 70406 | AU58: =ROUNDDOWN(Z$10/$F58,0)-SUM($AE58:AT58) -> 70406 | AV58: =ROUNDDOWN(AA$10/$F58,0)-SUM($AE58:AU58) -> 70406 | AW58: =ROUNDDOWN(AB$10/$F58,0)-SUM($AE58:AV58) -> 70406 | AX58: =ROUNDDOWN(AC$10/$F58,0)-SUM($AE58:AW58) -> 70406
B59: B2 | C59: Mantenimiento Electrico (Eléctrico) | D59: UND | E59: 1 | F59: 1 | G59: =G55*1.2 -> 0.0588 | H59: Costo de mantenimiento eléctrico | J59: =+AE59*$E59*$G59*(1+'Sup Generales'!C$10) -> 4174.647732 | K59: =+AF59*$E59*$G59*(1+'Sup Generales'!D$10) -> 4216.394209 | L59: =+AG59*$E59*$G59*(1+'Sup Generales'!E$10) -> 4258.558151 | M59: =+AH59*$E59*$G59*(1+'Sup Generales'!F$10) -> 4309.660849 | N59: =+AI59*$E59*$G59*(1+'Sup Generales'!G$10) -> 4361.376779 | O59: =+AJ59*$E59*$G59*(1+'Sup Generales'!H$10) -> 4418.074677 | P59: =+AK59*$E59*$G59*(1+'Sup Generales'!I$10) -> 4475.509648 | Q59: =+AL59*$E59*$G59*(1+'Sup Generales'!J$10) -> 4538.166783 | R59: =+AM59*$E59*$G59*(1+'Sup Generales'!K$10) -> 4601.701118 | S59: =+AN59*$E59*$G59*(1+'Sup Generales'!L$10) -> 4670.726635 | T59: =+AO59*$E59*$G59*(1+'Sup Generales'!M$10) -> 4740.787534 | U59: =+AP59*$E59*$G59*(1+'Sup Generales'!N$10) -> 4804.918048 | V59: =+AQ59*$E59*$G59*(1+'Sup Generales'!O$10) -> 4874.016717 | W59: =+AR59*$E59*$G59*(1+'Sup Generales'!P$10) -> 4941.044282 | X59: =+AS59*$E59*$G59*(1+'Sup Generales'!Q$10) -> 5006.768975 | Y59: =+AT59*$E59*$G59*(1+'Sup Generales'!R$10) -> 5072.470714 | Z59: =+AU59*$E59*$G59*(1+'Sup Generales'!S$10) -> 5140.104669 | AA59: =+AV59*$E59*$G59*(1+'Sup Generales'!T$10) -> 5209.288836 | AB59: =+AW59*$E59*$G59*(1+'Sup Generales'!U$10) -> 5279.360105 | AC59: =+AX59*$E59*$G59*(1+'Sup Generales'!V$10) -> 5349.760452 | AD59: 0.06707051736 | AE59: 70406 | AF59: =ROUNDDOWN(K$10/$F59,0)-SUM($AE59:AE59) -> 70406 | AG59: =ROUNDDOWN(L$10/$F59,0)-SUM($AE59:AF59) -> 70406 | AH59: =ROUNDDOWN(M$10/$F59,0)-SUM($AE59:AG59) -> 70406 | AI59: =ROUNDDOWN(N$10/$F59,0)-SUM($AE59:AH59) -> 70406 | AJ59: =ROUNDDOWN(O$10/$F59,0)-SUM($AE59:AI59) -> 70406 | AK59: =ROUNDDOWN(P$10/$F59,0)-SUM($AE59:AJ59) -> 70406 | AL59: =ROUNDDOWN(Q$10/$F59,0)-SUM($AE59:AK59) -> 70406 | AM59: =ROUNDDOWN(R$10/$F59,0)-SUM($AE59:AL59) -> 70406 | AN59: =ROUNDDOWN(S$10/$F59,0)-SUM($AE59:AM59) -> 70406 | AO59: =ROUNDDOWN(T$10/$F59,0)-SUM($AE59:AN59) -> 70406 | AP59: =ROUNDDOWN(U$10/$F59,0)-SUM($AE59:AO59) -> 70406 | AQ59: =ROUNDDOWN(V$10/$F59,0)-SUM($AE59:AP59) -> 70406 | AR59: =ROUNDDOWN(W$10/$F59,0)-SUM($AE59:AQ59) -> 70406 | AS59: =ROUNDDOWN(X$10/$F59,0)-SUM($AE59:AR59) -> 70406 | AT59: =ROUNDDOWN(Y$10/$F59,0)-SUM($AE59:AS59) -> 70406 | AU59: =ROUNDDOWN(Z$10/$F59,0)-SUM($AE59:AT59) -> 70406 | AV59: =ROUNDDOWN(AA$10/$F59,0)-SUM($AE59:AU59) -> 70406 | AW59: =ROUNDDOWN(AB$10/$F59,0)-SUM($AE59:AV59) -> 70406 | AX59: =ROUNDDOWN(AC$10/$F59,0)-SUM($AE59:AW59) -> 70406
B60: B3 | C60: Manto. Chasis y Motor (Eléctrico) | D60: UND | E60: 1 | F60: 1 | G60: =G56*1.2 -> 0.11664 | H60: Costo de mantenimiento mecánico | J60: =+AE60*$E60*$G60*(1+'Sup Generales'!C$10) -> 8281.137949 | K60: =+AF60*$E60*$G60*(1+'Sup Generales'!D$10) -> 8363.949329 | L60: =+AG60*$E60*$G60*(1+'Sup Generales'!E$10) -> 8447.588822 | M60: =+AH60*$E60*$G60*(1+'Sup Generales'!F$10) -> 8548.959888 | N60: =+AI60*$E60*$G60*(1+'Sup Generales'!G$10) -> 8651.547406 | O60: =+AJ60*$E60*$G60*(1+'Sup Generales'!H$10) -> 8764.017523 | P60: =+AK60*$E60*$G60*(1+'Sup Generales'!I$10) -> 8877.94975 | Q60: =+AL60*$E60*$G60*(1+'Sup Generales'!J$10) -> 9002.241047 | R60: =+AM60*$E60*$G60*(1+'Sup Generales'!K$10) -> 9128.272422 | S60: =+AN60*$E60*$G60*(1+'Sup Generales'!L$10) -> 9265.196508 | T60: =+AO60*$E60*$G60*(1+'Sup Generales'!M$10) -> 9404.174456 | U60: =+AP60*$E60*$G60*(1+'Sup Generales'!N$10) -> 9531.388455 | V60: =+AQ60*$E60*$G60*(1+'Sup Generales'!O$10) -> 9668.45765 | W60: =+AR60*$E60*$G60*(1+'Sup Generales'!P$10) -> 9801.418453 | X60: =+AS60*$E60*$G60*(1+'Sup Generales'!Q$10) -> 9931.794782 | Y60: =+AT60*$E60*$G60*(1+'Sup Generales'!R$10) -> 10062.12558 | Z60: =+AU60*$E60*$G60*(1+'Sup Generales'!S$10) -> 10196.28926 | AA60: =+AV60*$E60*$G60*(1+'Sup Generales'!T$10) -> 10333.52806 | AB60: =+AW60*$E60*$G60*(1+'Sup Generales'!U$10) -> 10472.52658 | AC60: =+AX60*$E60*$G60*(1+'Sup Generales'!V$10) -> 10612.17788 | AD60: 0.1330460059 | AE60: 70406 | AF60: =ROUNDDOWN(K$10/$F60,0)-SUM($AE60:AE60) -> 70406 | AG60: =ROUNDDOWN(L$10/$F60,0)-SUM($AE60:AF60) -> 70406 | AH60: =ROUNDDOWN(M$10/$F60,0)-SUM($AE60:AG60) -> 70406 | AI60: =ROUNDDOWN(N$10/$F60,0)-SUM($AE60:AH60) -> 70406 | AJ60: =ROUNDDOWN(O$10/$F60,0)-SUM($AE60:AI60) -> 70406 | AK60: =ROUNDDOWN(P$10/$F60,0)-SUM($AE60:AJ60) -> 70406 | AL60: =ROUNDDOWN(Q$10/$F60,0)-SUM($AE60:AK60) -> 70406 | AM60: =ROUNDDOWN(R$10/$F60,0)-SUM($AE60:AL60) -> 70406 | AN60: =ROUNDDOWN(S$10/$F60,0)-SUM($AE60:AM60) -> 70406 | AO60: =ROUNDDOWN(T$10/$F60,0)-SUM($AE60:AN60) -> 70406 | AP60: =ROUNDDOWN(U$10/$F60,0)-SUM($AE60:AO60) -> 70406 | AQ60: =ROUNDDOWN(V$10/$F60,0)-SUM($AE60:AP60) -> 70406 | AR60: =ROUNDDOWN(W$10/$F60,0)-SUM($AE60:AQ60) -> 70406 | AS60: =ROUNDDOWN(X$10/$F60,0)-SUM($AE60:AR60) -> 70406 | AT60: =ROUNDDOWN(Y$10/$F60,0)-SUM($AE60:AS60) -> 70406 | AU60: =ROUNDDOWN(Z$10/$F60,0)-SUM($AE60:AT60) -> 70406 | AV60: =ROUNDDOWN(AA$10/$F60,0)-SUM($AE60:AU60) -> 70406 | AW60: =ROUNDDOWN(AB$10/$F60,0)-SUM($AE60:AV60) -> 70406 | AX60: =ROUNDDOWN(AC$10/$F60,0)-SUM($AE60:AW60) -> 70406
B61: B4 | C61: Manto. Carroceria (Eléctrico) | D61: UND | E61: 1 | F61: 1 | G61: 0.01296 | H61: Carrocería | J61: =+AE61*$E61*$G61*(1+'Sup Generales'!C$10) -> 920.1264388 | K61: =+AF61*$E61*$G61*(1+'Sup Generales'!D$10) -> 929.3277032 | L61: =+AG61*$E61*$G61*(1+'Sup Generales'!E$10) -> 938.6209802 | M61: =+AH61*$E61*$G61*(1+'Sup Generales'!F$10) -> 949.884432 | N61: =+AI61*$E61*$G61*(1+'Sup Generales'!G$10) -> 961.2830451 | O61: =+AJ61*$E61*$G61*(1+'Sup Generales'!H$10) -> 973.7797247 | P61: =+AK61*$E61*$G61*(1+'Sup Generales'!I$10) -> 986.4388612 | Q61: =+AL61*$E61*$G61*(1+'Sup Generales'!J$10) -> 1000.249005 | R61: =+AM61*$E61*$G61*(1+'Sup Generales'!K$10) -> 1014.252491 | S61: =+AN61*$E61*$G61*(1+'Sup Generales'!L$10) -> 1029.466279 | T61: =+AO61*$E61*$G61*(1+'Sup Generales'!M$10) -> 1044.908273 | U61: =+AP61*$E61*$G61*(1+'Sup Generales'!N$10) -> 1059.043162 | V61: =+AQ61*$E61*$G61*(1+'Sup Generales'!O$10) -> 1074.273072 | W61: =+AR61*$E61*$G61*(1+'Sup Generales'!P$10) -> 1089.046495 | X61: =+AS61*$E61*$G61*(1+'Sup Generales'!Q$10) -> 1103.532754 | Y61: =+AT61*$E61*$G61*(1+'Sup Generales'!R$10) -> 1118.013953 | Z61: =+AU61*$E61*$G61*(1+'Sup Generales'!S$10) -> 1132.921029 | AA61: =+AV61*$E61*$G61*(1+'Sup Generales'!T$10) -> 1148.169784 | AB61: =+AW61*$E61*$G61*(1+'Sup Generales'!U$10) -> 1163.614064 | AC61: =+AX61*$E61*$G61*(1+'Sup Generales'!V$10) -> 1179.130875 | AD61: 0.01478288954 | AE61: 70406 | AF61: =ROUNDDOWN(K$10/$F61,0)-SUM($AE61:AE61) -> 70406 | AG61: =ROUNDDOWN(L$10/$F61,0)-SUM($AE61:AF61) -> 70406 | AH61: =ROUNDDOWN(M$10/$F61,0)-SUM($AE61:AG61) -> 70406 | AI61: =ROUNDDOWN(N$10/$F61,0)-SUM($AE61:AH61) -> 70406 | AJ61: =ROUNDDOWN(O$10/$F61,0)-SUM($AE61:AI61) -> 70406 | AK61: =ROUNDDOWN(P$10/$F61,0)-SUM($AE61:AJ61) -> 70406 | AL61: =ROUNDDOWN(Q$10/$F61,0)-SUM($AE61:AK61) -> 70406 | AM61: =ROUNDDOWN(R$10/$F61,0)-SUM($AE61:AL61) -> 70406 | AN61: =ROUNDDOWN(S$10/$F61,0)-SUM($AE61:AM61) -> 70406 | AO61: =ROUNDDOWN(T$10/$F61,0)-SUM($AE61:AN61) -> 70406 | AP61: =ROUNDDOWN(U$10/$F61,0)-SUM($AE61:AO61) -> 70406 | AQ61: =ROUNDDOWN(V$10/$F61,0)-SUM($AE61:AP61) -> 70406 | AR61: =ROUNDDOWN(W$10/$F61,0)-SUM($AE61:AQ61) -> 70406 | AS61: =ROUNDDOWN(X$10/$F61,0)-SUM($AE61:AR61) -> 70406 | AT61: =ROUNDDOWN(Y$10/$F61,0)-SUM($AE61:AS61) -> 70406 | AU61: =ROUNDDOWN(Z$10/$F61,0)-SUM($AE61:AT61) -> 70406 | AV61: =ROUNDDOWN(AA$10/$F61,0)-SUM($AE61:AU61) -> 70406 | AW61: =ROUNDDOWN(AB$10/$F61,0)-SUM($AE61:AV61) -> 70406 | AX61: =ROUNDDOWN(AC$10/$F61,0)-SUM($AE61:AW61) -> 70406
B62: C1 | C62: Filtros y Lubricantes (Gas) | D62: UND | E62: 1 | F62: 1 | G62: 0.158 | H62: Aceites y filtros | J62: =+AE62*$E62*$G62*(1+'Sup Generales'!C$10) -> 11217.59084 | K62: =+AF62*$E62*$G62*(1+'Sup Generales'!D$10) -> 11329.76675 | L62: =+AG62*$E62*$G62*(1+'Sup Generales'!E$10) -> 11443.06442 | M62: =+AH62*$E62*$G62*(1+'Sup Generales'!F$10) -> 11580.38119 | N62: =+AI62*$E62*$G62*(1+'Sup Generales'!G$10) -> 11719.34577 | O62: =+AJ62*$E62*$G62*(1+'Sup Generales'!H$10) -> 11871.69726 | P62: =+AK62*$E62*$G62*(1+'Sup Generales'!I$10) -> 12026.02933 | Q62: =+AL62*$E62*$G62*(1+'Sup Generales'!J$10) -> 12194.39374 | R62: =+AM62*$E62*$G62*(1+'Sup Generales'!K$10) -> 12365.11525 | S62: =+AN62*$E62*$G62*(1+'Sup Generales'!L$10) -> 12550.59198 | T62: =+AO62*$E62*$G62*(1+'Sup Generales'!M$10) -> 12738.85086 | U62: =+AP62*$E62*$G62*(1+'Sup Generales'!N$10) -> 12911.17435 | V62: =+AQ62*$E62*$G62*(1+'Sup Generales'!O$10) -> 13096.84764 | W62: =+AR62*$E62*$G62*(1+'Sup Generales'!P$10) -> 13276.95572 | X62: =+AS62*$E62*$G62*(1+'Sup Generales'!Q$10) -> 13453.56289 | Y62: =+AT62*$E62*$G62*(1+'Sup Generales'!R$10) -> 13630.10838 | Z62: =+AU62*$E62*$G62*(1+'Sup Generales'!S$10) -> 13811.84588 | AA62: =+AV62*$E62*$G62*(1+'Sup Generales'!T$10) -> 13997.74891 | AB62: =+AW62*$E62*$G62*(1+'Sup Generales'!U$10) -> 14186.03566 | AC62: =+AX62*$E62*$G62*(1+'Sup Generales'!V$10) -> 14375.20666 | AD62: 0.180223499 | AE62: 70406 | AF62: =ROUNDDOWN(K$10/$F62,0)-SUM($AE62:AE62) -> 70406 | AG62: =ROUNDDOWN(L$10/$F62,0)-SUM($AE62:AF62) -> 70406 | AH62: =ROUNDDOWN(M$10/$F62,0)-SUM($AE62:AG62) -> 70406 | AI62: =ROUNDDOWN(N$10/$F62,0)-SUM($AE62:AH62) -> 70406 | AJ62: =ROUNDDOWN(O$10/$F62,0)-SUM($AE62:AI62) -> 70406 | AK62: =ROUNDDOWN(P$10/$F62,0)-SUM($AE62:AJ62) -> 70406 | AL62: =ROUNDDOWN(Q$10/$F62,0)-SUM($AE62:AK62) -> 70406 | AM62: =ROUNDDOWN(R$10/$F62,0)-SUM($AE62:AL62) -> 70406 | AN62: =ROUNDDOWN(S$10/$F62,0)-SUM($AE62:AM62) -> 70406 | AO62: =ROUNDDOWN(T$10/$F62,0)-SUM($AE62:AN62) -> 70406 | AP62: =ROUNDDOWN(U$10/$F62,0)-SUM($AE62:AO62) -> 70406 | AQ62: =ROUNDDOWN(V$10/$F62,0)-SUM($AE62:AP62) -> 70406 | AR62: =ROUNDDOWN(W$10/$F62,0)-SUM($AE62:AQ62) -> 70406 | AS62: =ROUNDDOWN(X$10/$F62,0)-SUM($AE62:AR62) -> 70406 | AT62: =ROUNDDOWN(Y$10/$F62,0)-SUM($AE62:AS62) -> 70406 | AU62: =ROUNDDOWN(Z$10/$F62,0)-SUM($AE62:AT62) -> 70406 | AV62: =ROUNDDOWN(AA$10/$F62,0)-SUM($AE62:AU62) -> 70406 | AW62: =ROUNDDOWN(AB$10/$F62,0)-SUM($AE62:AV62) -> 70406 | AX62: =ROUNDDOWN(AC$10/$F62,0)-SUM($AE62:AW62) -> 70406
B63: C2 | C63: Mantenimiento Electrico (Gas) | D63: UND | E63: 1 | F63: 1 | G63: 0.049 | H63: Costo de mantenimiento eléctrico | J63: =+AE63*$E63*$G63*(1+'Sup Generales'!C$10) -> 3478.87311 | K63: =+AF63*$E63*$G63*(1+'Sup Generales'!D$10) -> 3513.661841 | L63: =+AG63*$E63*$G63*(1+'Sup Generales'!E$10) -> 3548.798459 | M63: =+AH63*$E63*$G63*(1+'Sup Generales'!F$10) -> 3591.384041 | N63: =+AI63*$E63*$G63*(1+'Sup Generales'!G$10) -> 3634.480649 | O63: =+AJ63*$E63*$G63*(1+'Sup Generales'!H$10) -> 3681.728898 | P63: =+AK63*$E63*$G63*(1+'Sup Generales'!I$10) -> 3729.591373 | Q63: =+AL63*$E63*$G63*(1+'Sup Generales'!J$10) -> 3781.805652 | R63: =+AM63*$E63*$G63*(1+'Sup Generales'!K$10) -> 3834.750932 | S63: =+AN63*$E63*$G63*(1+'Sup Generales'!L$10) -> 3892.272196 | T63: =+AO63*$E63*$G63*(1+'Sup Generales'!M$10) -> 3950.656278 | U63: =+AP63*$E63*$G63*(1+'Sup Generales'!N$10) -> 4004.098374 | V63: =+AQ63*$E63*$G63*(1+'Sup Generales'!O$10) -> 4061.680597 | W63: =+AR63*$E63*$G63*(1+'Sup Generales'!P$10) -> 4117.536901 | X63: =+AS63*$E63*$G63*(1+'Sup Generales'!Q$10) -> 4172.307479 | Y63: =+AT63*$E63*$G63*(1+'Sup Generales'!R$10) -> 4227.058928 | Z63: =+AU63*$E63*$G63*(1+'Sup Generales'!S$10) -> 4283.420558 | AA63: =+AV63*$E63*$G63*(1+'Sup Generales'!T$10) -> 4341.07403 | AB63: =+AW63*$E63*$G63*(1+'Sup Generales'!U$10) -> 4399.466754 | AC63: =+AX63*$E63*$G63*(1+'Sup Generales'!V$10) -> 4458.13371 | AD63: 0.0558920978 | AE63: 70406 | AF63: =ROUNDDOWN(K$10/$F63,0)-SUM($AE63:AE63) -> 70406 | AG63: =ROUNDDOWN(L$10/$F63,0)-SUM($AE63:AF63) -> 70406 | AH63: =ROUNDDOWN(M$10/$F63,0)-SUM($AE63:AG63) -> 70406 | AI63: =ROUNDDOWN(N$10/$F63,0)-SUM($AE63:AH63) -> 70406 | AJ63: =ROUNDDOWN(O$10/$F63,0)-SUM($AE63:AI63) -> 70406 | AK63: =ROUNDDOWN(P$10/$F63,0)-SUM($AE63:AJ63) -> 70406 | AL63: =ROUNDDOWN(Q$10/$F63,0)-SUM($AE63:AK63) -> 70406 | AM63: =ROUNDDOWN(R$10/$F63,0)-SUM($AE63:AL63) -> 70406 | AN63: =ROUNDDOWN(S$10/$F63,0)-SUM($AE63:AM63) -> 70406 | AO63: =ROUNDDOWN(T$10/$F63,0)-SUM($AE63:AN63) -> 70406 | AP63: =ROUNDDOWN(U$10/$F63,0)-SUM($AE63:AO63) -> 70406 | AQ63: =ROUNDDOWN(V$10/$F63,0)-SUM($AE63:AP63) -> 70406 | AR63: =ROUNDDOWN(W$10/$F63,0)-SUM($AE63:AQ63) -> 70406 | AS63: =ROUNDDOWN(X$10/$F63,0)-SUM($AE63:AR63) -> 70406 | AT63: =ROUNDDOWN(Y$10/$F63,0)-SUM($AE63:AS63) -> 70406 | AU63: =ROUNDDOWN(Z$10/$F63,0)-SUM($AE63:AT63) -> 70406 | AV63: =ROUNDDOWN(AA$10/$F63,0)-SUM($AE63:AU63) -> 70406 | AW63: =ROUNDDOWN(AB$10/$F63,0)-SUM($AE63:AV63) -> 70406 | AX63: =ROUNDDOWN(AC$10/$F63,0)-SUM($AE63:AW63) -> 70406
B64: C3 | C64: Manto. Chasis y Motor (Gas) | D64: UND | E64: 1 | F64: 1 | G64: 0.0972 | H64: Costo de mantenimiento mecánico | J64: =+AE64*$E64*$G64*(1+'Sup Generales'!C$10) -> 6900.948291 | K64: =+AF64*$E64*$G64*(1+'Sup Generales'!D$10) -> 6969.957774 | L64: =+AG64*$E64*$G64*(1+'Sup Generales'!E$10) -> 7039.657352 | M64: =+AH64*$E64*$G64*(1+'Sup Generales'!F$10) -> 7124.13324 | N64: =+AI64*$E64*$G64*(1+'Sup Generales'!G$10) -> 7209.622839 | O64: =+AJ64*$E64*$G64*(1+'Sup Generales'!H$10) -> 7303.347936 | P64: =+AK64*$E64*$G64*(1+'Sup Generales'!I$10) -> 7398.291459 | Q64: =+AL64*$E64*$G64*(1+'Sup Generales'!J$10) -> 7501.867539 | R64: =+AM64*$E64*$G64*(1+'Sup Generales'!K$10) -> 7606.893685 | S64: =+AN64*$E64*$G64*(1+'Sup Generales'!L$10) -> 7720.99709 | T64: =+AO64*$E64*$G64*(1+'Sup Generales'!M$10) -> 7836.812046 | U64: =+AP64*$E64*$G64*(1+'Sup Generales'!N$10) -> 7942.823713 | V64: =+AQ64*$E64*$G64*(1+'Sup Generales'!O$10) -> 8057.048042 | W64: =+AR64*$E64*$G64*(1+'Sup Generales'!P$10) -> 8167.84871 | X64: =+AS64*$E64*$G64*(1+'Sup Generales'!Q$10) -> 8276.495652 | Y64: =+AT64*$E64*$G64*(1+'Sup Generales'!R$10) -> 8385.10465 | Z64: =+AU64*$E64*$G64*(1+'Sup Generales'!S$10) -> 8496.907719 | AA64: =+AV64*$E64*$G64*(1+'Sup Generales'!T$10) -> 8611.273382 | AB64: =+AW64*$E64*$G64*(1+'Sup Generales'!U$10) -> 8727.105479 | AC64: =+AX64*$E64*$G64*(1+'Sup Generales'!V$10) -> 8843.481564 | AD64: 0.1108716716 | AE64: 70406 | AF64: =ROUNDDOWN(K$10/$F64,0)-SUM($AE64:AE64) -> 70406 | AG64: =ROUNDDOWN(L$10/$F64,0)-SUM($AE64:AF64) -> 70406 | AH64: =ROUNDDOWN(M$10/$F64,0)-SUM($AE64:AG64) -> 70406 | AI64: =ROUNDDOWN(N$10/$F64,0)-SUM($AE64:AH64) -> 70406 | AJ64: =ROUNDDOWN(O$10/$F64,0)-SUM($AE64:AI64) -> 70406 | AK64: =ROUNDDOWN(P$10/$F64,0)-SUM($AE64:AJ64) -> 70406 | AL64: =ROUNDDOWN(Q$10/$F64,0)-SUM($AE64:AK64) -> 70406 | AM64: =ROUNDDOWN(R$10/$F64,0)-SUM($AE64:AL64) -> 70406 | AN64: =ROUNDDOWN(S$10/$F64,0)-SUM($AE64:AM64) -> 70406 | AO64: =ROUNDDOWN(T$10/$F64,0)-SUM($AE64:AN64) -> 70406 | AP64: =ROUNDDOWN(U$10/$F64,0)-SUM($AE64:AO64) -> 70406 | AQ64: =ROUNDDOWN(V$10/$F64,0)-SUM($AE64:AP64) -> 70406 | AR64: =ROUNDDOWN(W$10/$F64,0)-SUM($AE64:AQ64) -> 70406 | AS64: =ROUNDDOWN(X$10/$F64,0)-SUM($AE64:AR64) -> 70406 | AT64: =ROUNDDOWN(Y$10/$F64,0)-SUM($AE64:AS64) -> 70406 | AU64: =ROUNDDOWN(Z$10/$F64,0)-SUM($AE64:AT64) -> 70406 | AV64: =ROUNDDOWN(AA$10/$F64,0)-SUM($AE64:AU64) -> 70406 | AW64: =ROUNDDOWN(AB$10/$F64,0)-SUM($AE64:AV64) -> 70406 | AX64: =ROUNDDOWN(AC$10/$F64,0)-SUM($AE64:AW64) -> 70406
B65: C4 | C65: Manto. Carroceria (Gas) | D65: UND | E65: 1 | F65: 1 | G65: 0.0108 | H65: Carrocería | J65: =+AE65*$E65*$G65*(1+'Sup Generales'!C$10) -> 766.7720323 | K65: =+AF65*$E65*$G65*(1+'Sup Generales'!D$10) -> 774.4397526 | L65: =+AG65*$E65*$G65*(1+'Sup Generales'!E$10) -> 782.1841502 | M65: =+AH65*$E65*$G65*(1+'Sup Generales'!F$10) -> 791.57036 | N65: =+AI65*$E65*$G65*(1+'Sup Generales'!G$10) -> 801.0692043 | O65: =+AJ65*$E65*$G65*(1+'Sup Generales'!H$10) -> 811.4831039 | P65: =+AK65*$E65*$G65*(1+'Sup Generales'!I$10) -> 822.0323843 | Q65: =+AL65*$E65*$G65*(1+'Sup Generales'!J$10) -> 833.5408377 | R65: =+AM65*$E65*$G65*(1+'Sup Generales'!K$10) -> 845.2104094 | S65: =+AN65*$E65*$G65*(1+'Sup Generales'!L$10) -> 857.8885655 | T65: =+AO65*$E65*$G65*(1+'Sup Generales'!M$10) -> 870.756894 | U65: =+AP65*$E65*$G65*(1+'Sup Generales'!N$10) -> 882.5359681 | V65: =+AQ65*$E65*$G65*(1+'Sup Generales'!O$10) -> 895.2275602 | W65: =+AR65*$E65*$G65*(1+'Sup Generales'!P$10) -> 907.5387456 | X65: =+AS65*$E65*$G65*(1+'Sup Generales'!Q$10) -> 919.610628 | Y65: =+AT65*$E65*$G65*(1+'Sup Generales'!R$10) -> 931.6782944 | Z65: =+AU65*$E65*$G65*(1+'Sup Generales'!S$10) -> 944.1008577 | AA65: =+AV65*$E65*$G65*(1+'Sup Generales'!T$10) -> 956.8081535 | AB65: =+AW65*$E65*$G65*(1+'Sup Generales'!U$10) -> 969.6783866 | AC65: =+AX65*$E65*$G65*(1+'Sup Generales'!V$10) -> 982.6090627 | AD65: 0.01231907462 | AE65: 70406 | AF65: =ROUNDDOWN(K$10/$F65,0)-SUM($AE65:AE65) -> 70406 | AG65: =ROUNDDOWN(L$10/$F65,0)-SUM($AE65:AF65) -> 70406 | AH65: =ROUNDDOWN(M$10/$F65,0)-SUM($AE65:AG65) -> 70406 | AI65: =ROUNDDOWN(N$10/$F65,0)-SUM($AE65:AH65) -> 70406 | AJ65: =ROUNDDOWN(O$10/$F65,0)-SUM($AE65:AI65) -> 70406 | AK65: =ROUNDDOWN(P$10/$F65,0)-SUM($AE65:AJ65) -> 70406 | AL65: =ROUNDDOWN(Q$10/$F65,0)-SUM($AE65:AK65) -> 70406 | AM65: =ROUNDDOWN(R$10/$F65,0)-SUM($AE65:AL65) -> 70406 | AN65: =ROUNDDOWN(S$10/$F65,0)-SUM($AE65:AM65) -> 70406 | AO65: =ROUNDDOWN(T$10/$F65,0)-SUM($AE65:AN65) -> 70406 | AP65: =ROUNDDOWN(U$10/$F65,0)-SUM($AE65:AO65) -> 70406 | AQ65: =ROUNDDOWN(V$10/$F65,0)-SUM($AE65:AP65) -> 70406 | AR65: =ROUNDDOWN(W$10/$F65,0)-SUM($AE65:AQ65) -> 70406 | AS65: =ROUNDDOWN(X$10/$F65,0)-SUM($AE65:AR65) -> 70406 | AT65: =ROUNDDOWN(Y$10/$F65,0)-SUM($AE65:AS65) -> 70406 | AU65: =ROUNDDOWN(Z$10/$F65,0)-SUM($AE65:AT65) -> 70406 | AV65: =ROUNDDOWN(AA$10/$F65,0)-SUM($AE65:AU65) -> 70406 | AW65: =ROUNDDOWN(AB$10/$F65,0)-SUM($AE65:AV65) -> 70406 | AX65: =ROUNDDOWN(AC$10/$F65,0)-SUM($AE65:AW65) -> 70406
H68: Total | J68: =IF('Sup fijo'!$C$90='Sup fijo'!$AR$2,SUM(J13:J52),0)+IF('Sup fijo'!$C$90='Sup fijo'!$AS$2,SUM(J54:J57),0)+IF('Sup fijo'!$C$90='Sup fijo'!$AT$2,SUM(J58:J61),0)+IF('Sup fijo'!$C$90='Sup fijo'!$AU$2,SUM(J62:J65),0)+IF($L$1=$D$6,J53,0) -> 12148.36505 | K68: =IF('Sup fijo'!$C$90='Sup fijo'!$AR$2,SUM(K13:K52),0)+IF('Sup fijo'!$C$90='Sup fijo'!$AS$2,SUM(K54:K57),0)+IF('Sup fijo'!$C$90='Sup fijo'!$AT$2,SUM(K58:K61),0)+IF('Sup fijo'!$C$90='Sup fijo'!$AU$2,SUM(K62:K65),0)+IF($L$1=$D$6,K53,0) -> 19144.49174 | L68: =IF('Sup fijo'!$C$90='Sup fijo'!$AR$2,SUM(L13:L52),0)+IF('Sup fijo'!$C$90='Sup fijo'!$AS$2,SUM(L54:L57),0)+IF('Sup fijo'!$C$90='Sup fijo'!$AT$2,SUM(L58:L61),0)+IF('Sup fijo'!$C$90='Sup fijo'!$AU$2,SUM(L62:L65),0)+IF($L$1=$D$6,L53,0) -> 15393.93399 | M68: =IF('Sup fijo'!$C$90='Sup fijo'!$AR$2,SUM(M13:M52),0)+IF('Sup fijo'!$C$90='Sup fijo'!$AS$2,SUM(M54:M57),0)+IF('Sup fijo'!$C$90='Sup fijo'!$AT$2,SUM(M58:M61),0)+IF('Sup fijo'!$C$90='Sup fijo'!$AU$2,SUM(M62:M65),0)+IF($L$1=$D$6,M53,0) -> 25531.58915 | N68: =IF('Sup fijo'!$C$90='Sup fijo'!$AR$2,SUM(N13:N52),0)+IF('Sup fijo'!$C$90='Sup fijo'!$AS$2,SUM(N54:N57),0)+IF('Sup fijo'!$C$90='Sup fijo'!$AT$2,SUM(N58:N61),0)+IF('Sup fijo'!$C$90='Sup fijo'!$AU$2,SUM(N62:N65),0)+IF($L$1=$D$6,N53,0) -> 13030.13866 | O68: =IF('Sup fijo'!$C$90='Sup fijo'!$AR$2,SUM(O13:O52),0)+IF('Sup fijo'!$C$90='Sup fijo'!$AS$2,SUM(O54:O57),0)+IF('Sup fijo'!$C$90='Sup fijo'!$AT$2,SUM(O58:O61),0)+IF('Sup fijo'!$C$90='Sup fijo'!$AU$2,SUM(O62:O65),0)+IF($L$1=$D$6,O53,0) -> 25323.6449 | P68: =IF('Sup fijo'!$C$90='Sup fijo'!$AR$2,SUM(P13:P52),0)+IF('Sup fijo'!$C$90='Sup fijo'!$AS$2,SUM(P54:P57),0)+IF('Sup fijo'!$C$90='Sup fijo'!$AT$2,SUM(P58:P61),0)+IF('Sup fijo'!$C$90='Sup fijo'!$AU$2,SUM(P62:P65),0)+IF($L$1=$D$6,P53,0) -> 24133.73327 | Q68: =IF('Sup fijo'!$C$90='Sup fijo'!$AR$2,SUM(Q13:Q52),0)+IF('Sup fijo'!$C$90='Sup fijo'!$AS$2,SUM(Q54:Q57),0)+IF('Sup fijo'!$C$90='Sup fijo'!$AT$2,SUM(Q58:Q61),0)+IF('Sup fijo'!$C$90='Sup fijo'!$AU$2,SUM(Q62:Q65),0)+IF($L$1=$D$6,Q53,0) -> 17550.82223 | R68: =IF('Sup fijo'!$C$90='Sup fijo'!$AR$2,SUM(R13:R52),0)+IF('Sup fijo'!$C$90='Sup fijo'!$AS$2,SUM(R54:R57),0)+IF('Sup fijo'!$C$90='Sup fijo'!$AT$2,SUM(R58:R61),0)+IF('Sup fijo'!$C$90='Sup fijo'!$AU$2,SUM(R62:R65),0)+IF($L$1=$D$6,R53,0) -> 24316.94404 | S68: =IF('Sup fijo'!$C$90='Sup fijo'!$AR$2,SUM(S13:S52),0)+IF('Sup fijo'!$C$90='Sup fijo'!$AS$2,SUM(S54:S57),0)+IF('Sup fijo'!$C$90='Sup fijo'!$AT$2,SUM(S58:S61),0)+IF('Sup fijo'!$C$90='Sup fijo'!$AU$2,SUM(S62:S65),0)+IF($L$1=$D$6,S53,0) -> 16410.37167 | T68: =IF('Sup fijo'!$C$90='Sup fijo'!$AR$2,SUM(T13:T52),0)+IF('Sup fijo'!$C$90='Sup fijo'!$AS$2,SUM(T54:T57),0)+IF('Sup fijo'!$C$90='Sup fijo'!$AT$2,SUM(T58:T61),0)+IF('Sup fijo'!$C$90='Sup fijo'!$AU$2,SUM(T62:T65),0)+IF($L$1=$D$6,T53,0) -> 27095.79653 | U68: =IF('Sup fijo'!$C$90='Sup fijo'!$AR$2,SUM(U13:U52),0)+IF('Sup fijo'!$C$90='Sup fijo'!$AS$2,SUM(U54:U57),0)+IF('Sup fijo'!$C$90='Sup fijo'!$AT$2,SUM(U58:U61),0)+IF('Sup fijo'!$C$90='Sup fijo'!$AU$2,SUM(U62:U65),0)+IF($L$1=$D$6,U53,0) -> 26017.68338 | V68: =IF('Sup fijo'!$C$90='Sup fijo'!$AR$2,SUM(V13:V52),0)+IF('Sup fijo'!$C$90='Sup fijo'!$AS$2,SUM(V54:V57),0)+IF('Sup fijo'!$C$90='Sup fijo'!$AT$2,SUM(V58:V61),0)+IF('Sup fijo'!$C$90='Sup fijo'!$AU$2,SUM(V62:V65),0)+IF($L$1=$D$6,V53,0) -> 16583.67393 | W68: =IF('Sup fijo'!$C$90='Sup fijo'!$AR$2,SUM(W13:W52),0)+IF('Sup fijo'!$C$90='Sup fijo'!$AS$2,SUM(W54:W57),0)+IF('Sup fijo'!$C$90='Sup fijo'!$AT$2,SUM(W58:W61),0)+IF('Sup fijo'!$C$90='Sup fijo'!$AU$2,SUM(W62:W65),0)+IF($L$1=$D$6,W53,0) -> 29119.5656 | X68: =IF('Sup fijo'!$C$90='Sup fijo'!$AR$2,SUM(X13:X52),0)+IF('Sup fijo'!$C$90='Sup fijo'!$AS$2,SUM(X54:X57),0)+IF('Sup fijo'!$C$90='Sup fijo'!$AT$2,SUM(X58:X61),0)+IF('Sup fijo'!$C$90='Sup fijo'!$AU$2,SUM(X62:X65),0)+IF($L$1=$D$6,X53,0) -> 16511.31055 | Y68: =IF('Sup fijo'!$C$90='Sup fijo'!$AR$2,SUM(Y13:Y52),0)+IF('Sup fijo'!$C$90='Sup fijo'!$AS$2,SUM(Y54:Y57),0)+IF('Sup fijo'!$C$90='Sup fijo'!$AT$2,SUM(Y58:Y61),0)+IF('Sup fijo'!$C$90='Sup fijo'!$AU$2,SUM(Y62:Y65),0)+IF($L$1=$D$6,Y53,0) -> 24639.6 | Z68: =IF('Sup fijo'!$C$90='Sup fijo'!$AR$2,SUM(Z13:Z52),0)+IF('Sup fijo'!$C$90='Sup fijo'!$AS$2,SUM(Z54:Z57),0)+IF('Sup fijo'!$C$90='Sup fijo'!$AT$2,SUM(Z58:Z61),0)+IF('Sup fijo'!$C$90='Sup fijo'!$AU$2,SUM(Z62:Z65),0)+IF($L$1=$D$6,Z53,0) -> 15116.52999 | AA68: =IF('Sup fijo'!$C$90='Sup fijo'!$AR$2,SUM(AA13:AA52),0)+IF('Sup fijo'!$C$90='Sup fijo'!$AS$2,SUM(AA54:AA57),0)+IF('Sup fijo'!$C$90='Sup fijo'!$AT$2,SUM(AA58:AA61),0)+IF('Sup fijo'!$C$90='Sup fijo'!$AU$2,SUM(AA62:AA65),0)+IF($L$1=$D$6,AA53,0) -> 42662.00351 | AB68: =IF('Sup fijo'!$C$90='Sup fijo'!$AR$2,SUM(AB13:AB52),0)+IF('Sup fijo'!$C$90='Sup fijo'!$AS$2,SUM(AB54:AB57),0)+IF('Sup fijo'!$C$90='Sup fijo'!$AT$2,SUM(AB58:AB61),0)+IF('Sup fijo'!$C$90='Sup fijo'!$AU$2,SUM(AB62:AB65),0)+IF($L$1=$D$6,AB53,0) -> 20622.26497 | AC68: =IF('Sup fijo'!$C$90='Sup fijo'!$AR$2,SUM(AC13:AC52),0)+IF('Sup fijo'!$C$90='Sup fijo'!$AS$2,SUM(AC54:AC57),0)+IF('Sup fijo'!$C$90='Sup fijo'!$AT$2,SUM(AC58:AC61),0)+IF('Sup fijo'!$C$90='Sup fijo'!$AU$2,SUM(AC62:AC65),0)+IF($L$1=$D$6,AC53,0) -> 19344.01325
H69: Costo por km | J69: =+J68/J9 -> 0.1725472978 | K69: 0.2719156285 | L69: 0.2186452005 | M69: 0.3626337124 | N69: 0.1850714238 | O69: 0.3596802106 | P69: 0.342779497 | Q69: 0.2492802067 | R69: 0.3453817011 | S69: 0.2330820054 | T69: 0.3848506736 | U69: 0.3695378714 | V69: 0.2355434754 | W69: 0.4135949436 | X69: 0.2345156741 | Y69: 0.3499644917 | Z69: 0.2147051387 | AA69: 0.6059427252 | AB69: 0.2929049366 | AC69: 0.2747494993
C73: ='Sup fijo'!B18 -> Intracantonal Urbano | H73: Mes operación | J73: 12 | K73: 12 | L73: 12 | M73: 12 | N73: 12 | O73: 12 | P73: 12 | Q73: 12 | R73: 12 | S73: 12 | T73: 12 | U73: 12 | V73: 12 | W73: 12 | X73: 12 | Y73: 12 | Z73: 12 | AA73: 12 | AB73: 12 | AC73: 12
H74: Operación | J74: ='Sup fijo'!E21 -> 63826 | K74: ='Sup fijo'!F21 -> 63826 | L74: ='Sup fijo'!G21 -> 63826 | M74: ='Sup fijo'!H21 -> 63826 | N74: ='Sup fijo'!I21 -> 63826 | O74: ='Sup fijo'!J21 -> 63826 | P74: ='Sup fijo'!K21 -> 63826 | Q74: ='Sup fijo'!L21 -> 63826 | R74: ='Sup fijo'!M21 -> 63826 | S74: ='Sup fijo'!N21 -> 63826 | T74: ='Sup fijo'!O21 -> 63826 | U74: ='Sup fijo'!P21 -> 63826 | V74: ='Sup fijo'!Q21 -> 63826 | W74: ='Sup fijo'!R21 -> 63826 | X74: ='Sup fijo'!S21 -> 63826 | Y74: ='Sup fijo'!T21 -> 63826 | Z74: ='Sup fijo'!U21 -> 63826 | AA74: ='Sup fijo'!V21 -> 63826 | AB74: ='Sup fijo'!W21 -> 63826 | AC74: ='Sup fijo'!X21 -> 63826
H75: Operación acumulada | J75: =+J74 -> 63826 | K75: =+J75+K74 -> 127652 | L75: 191478 | M75: 255304 | N75: 319130 | O75: 382956 | P75: 446782 | Q75: 510608 | R75: 574434 | S75: 638260 | T75: 702086 | U75: 765912 | V75: 829738 | W75: 893564 | X75: 957390 | Y75: 1021216 | Z75: 1085042 | AA75: 1148868 | AB75: 1212694 | AC75: 1276520 | AE75: Frecuencia de ejecución labores de mantenimiento
B77: # | C77: Detalle | D77: Unidades | E77: Cantidad | F77: Intervalo Km | G77: Precio (sin IVA) | H77: Area | J77: 1 | K77: =J77+1 -> 2 | L77: 3 | M77: 4 | N77: 5 | O77: 6 | P77: 7 | Q77: 8 | R77: 9 | S77: 10 | T77: 11 | U77: 12 | V77: 13 | W77: 14 | X77: 15 | Y77: 16 | Z77: 17 | AA77: 18 | AB77: 19 | AC77: 20 | AE77: =+AE12 -> 1 | AF77: 2 | AG77: 3 | AH77: 4 | AI77: 5 | AJ77: 6 | AK77: 7 | AL77: 8 | AM77: 9 | AN77: 10 | AO77: 11 | AP77: 12 | AQ77: 13 | AR77: 14 | AS77: 15 | AT77: 16 | AU77: 17 | AV77: 18 | AW77: 19 | AX77: 20
B78: 1 | C78: LLANTAS | D78: UD. | E78: 6 | F78: 46170 | G78: 449.8285714 | H78: =+H13 -> Neumáticos | J78: =+AE78*$E78*$G78*(1+'Sup Generales'!C$10) -> 2721.642789 | K78: =+AF78*$E78*$G78*(1+'Sup Generales'!D$10) -> 2748.859216 | L78: =+AG78*$E78*$G78*(1+'Sup Generales'!E$10) -> 5552.695617 | M78: =+AH78*$E78*$G78*(1+'Sup Generales'!F$10) -> 2809.663982 | N78: =+AI78*$E78*$G78*(1+'Sup Generales'!G$10) -> 2843.37995 | O78: =+AJ78*$E78*$G78*(1+'Sup Generales'!H$10) -> 5760.687779 | P78: =+AK78*$E78*$G78*(1+'Sup Generales'!I$10) -> 2917.78836 | Q78: =+AL78*$E78*$G78*(1+'Sup Generales'!J$10) -> 5917.274794 | R78: =+AM78*$E78*$G78*(1+'Sup Generales'!K$10) -> 3000.058321 | S78: =+AN78*$E78*$G78*(1+'Sup Generales'!L$10) -> 3045.059195 | T78: =+AO78*$E78*$G78*(1+'Sup Generales'!M$10) -> 6181.470167 | U78: =+AP78*$E78*$G78*(1+'Sup Generales'!N$10) -> 3132.544683 | V78: =+AQ78*$E78*$G78*(1+'Sup Generales'!O$10) -> 3177.593249 | W78: =+AR78*$E78*$G78*(1+'Sup Generales'!P$10) -> 6442.583136 | X78: =+AS78*$E78*$G78*(1+'Sup Generales'!Q$10) -> 3264.140486 | Y78: =+AT78*$E78*$G78*(1+'Sup Generales'!R$10) -> 6613.948878 | Z78: =+AU78*$E78*$G78*(1+'Sup Generales'!S$10) -> 3351.068091 | AA78: =+AV78*$E78*$G78*(1+'Sup Generales'!T$10) -> 3396.172397 | AB78: =+AW78*$E78*$G78*(1+'Sup Generales'!U$10) -> 6883.710091 | AC78: =+AX78*$E78*$G78*(1+'Sup Generales'!V$10) -> 3487.752235 | AE78: =ROUNDDOWN(J$75/$F78,0) -> 1 | AF78: =ROUNDDOWN(K$75/$F78,0)-SUM($AE78:AE78) -> 1 | AG78: =ROUNDDOWN(L$75/$F78,0)-SUM($AE78:AF78) -> 2 | AH78: =ROUNDDOWN(M$75/$F78,0)-SUM($AE78:AG78) -> 1 | AI78: =ROUNDDOWN(N$75/$F78,0)-SUM($AE78:AH78) -> 1 | AJ78: =ROUNDDOWN(O$75/$F78,0)-SUM($AE78:AI78) -> 2 | AK78: =ROUNDDOWN(P$75/$F78,0)-SUM($AE78:AJ78) -> 1 | AL78: =ROUNDDOWN(Q$75/$F78,0)-SUM($AE78:AK78) -> 2 | AM78: =ROUNDDOWN(R$75/$F78,0)-SUM($AE78:AL78) -> 1 | AN78: =ROUNDDOWN(S$75/$F78,0)-SUM($AE78:AM78) -> 1 | AO78: =ROUNDDOWN(T$75/$F78,0)-SUM($AE78:AN78) -> 2 | AP78: =ROUNDDOWN(U$75/$F78,0)-SUM($AE78:AO78) -> 1 | AQ78: =ROUNDDOWN(V$75/$F78,0)-SUM($AE78:AP78) -> 1 | AR78: =ROUNDDOWN(W$75/$F78,0)-SUM($AE78:AQ78) -> 2 | AS78: =ROUNDDOWN(X$75/$F78,0)-SUM($AE78:AR78) -> 1 | AT78: =ROUNDDOWN(Y$75/$F78,0)-SUM($AE78:AS78) -> 2 | AU78: =ROUNDDOWN(Z$75/$F78,0)-SUM($AE78:AT78) -> 1 | AV78: =ROUNDDOWN(AA$75/$F78,0)-SUM($AE78:AU78) -> 1 | AW78: =ROUNDDOWN(AB$75/$F78,0)-SUM($AE78:AV78) -> 2 | AX78: =ROUNDDOWN(AC$75/$F78,0)-SUM($AE78:AW78) -> 1
B79: =+B78+1 -> 2 | C79: REENCAUCHE DE LLANTAS | D79: UD. | E79: 4 | F79: 46170 | G79: 275.248 | H79: Neumáticos | J79: =+AE79*$E79*$G79*(1+'Sup Generales'!C$10) -> 1110.240333 | K79: =+AF79*$E79*$G79*(1+'Sup Generales'!D$10) -> 1121.342736 | L79: =+AG79*$E79*$G79*(1+'Sup Generales'!E$10) -> 2265.112327 | M79: =+AH79*$E79*$G79*(1+'Sup Generales'!F$10) -> 1146.146837 | N79: =+AI79*$E79*$G79*(1+'Sup Generales'!G$10) -> 1159.9006 | O79: =+AJ79*$E79*$G79*(1+'Sup Generales'!H$10) -> 2349.958615 | P79: =+AK79*$E79*$G79*(1+'Sup Generales'!I$10) -> 1190.254038 | Q79: =+AL79*$E79*$G79*(1+'Sup Generales'!J$10) -> 2413.83519 | R79: =+AM79*$E79*$G79*(1+'Sup Generales'!K$10) -> 1223.814441 | S79: =+AN79*$E79*$G79*(1+'Sup Generales'!L$10) -> 1242.171658 | T79: =+AO79*$E79*$G79*(1+'Sup Generales'!M$10) -> 2521.608465 | U79: =+AP79*$E79*$G79*(1+'Sup Generales'!N$10) -> 1277.859632 | V79: =+AQ79*$E79*$G79*(1+'Sup Generales'!O$10) -> 1296.236303 | W79: =+AR79*$E79*$G79*(1+'Sup Generales'!P$10) -> 2628.124335 | X79: =+AS79*$E79*$G79*(1+'Sup Generales'!Q$10) -> 1331.541536 | Y79: =+AT79*$E79*$G79*(1+'Sup Generales'!R$10) -> 2698.0296 | Z79: =+AU79*$E79*$G79*(1+'Sup Generales'!S$10) -> 1367.001933 | AA79: =+AV79*$E79*$G79*(1+'Sup Generales'!T$10) -> 1385.401342 | AB79: =+AW79*$E79*$G79*(1+'Sup Generales'!U$10) -> 2808.07335 | AC79: =+AX79*$E79*$G79*(1+'Sup Generales'!V$10) -> 1422.759525 | AE79: 1 | AF79: =ROUNDDOWN(K$75/$F79,0)-SUM($AE79:AE79) -> 1 | AG79: =ROUNDDOWN(L$75/$F79,0)-SUM($AE79:AF79) -> 2 | AH79: =ROUNDDOWN(M$75/$F79,0)-SUM($AE79:AG79) -> 1 | AI79: =ROUNDDOWN(N$75/$F79,0)-SUM($AE79:AH79) -> 1 | AJ79: =ROUNDDOWN(O$75/$F79,0)-SUM($AE79:AI79) -> 2 | AK79: =ROUNDDOWN(P$75/$F79,0)-SUM($AE79:AJ79) -> 1 | AL79: =ROUNDDOWN(Q$75/$F79,0)-SUM($AE79:AK79) -> 2 | AM79: =ROUNDDOWN(R$75/$F79,0)-SUM($AE79:AL79) -> 1 | AN79: =ROUNDDOWN(S$75/$F79,0)-SUM($AE79:AM79) -> 1 | AO79: =ROUNDDOWN(T$75/$F79,0)-SUM($AE79:AN79) -> 2 | AP79: =ROUNDDOWN(U$75/$F79,0)-SUM($AE79:AO79) -> 1 | AQ79: =ROUNDDOWN(V$75/$F79,0)-SUM($AE79:AP79) -> 1 | AR79: =ROUNDDOWN(W$75/$F79,0)-SUM($AE79:AQ79) -> 2 | AS79: =ROUNDDOWN(X$75/$F79,0)-SUM($AE79:AR79) -> 1 | AT79: =ROUNDDOWN(Y$75/$F79,0)-SUM($AE79:AS79) -> 2 | AU79: =ROUNDDOWN(Z$75/$F79,0)-SUM($AE79:AT79) -> 1 | AV79: =ROUNDDOWN(AA$75/$F79,0)-SUM($AE79:AU79) -> 1 | AW79: =ROUNDDOWN(AB$75/$F79,0)-SUM($AE79:AV79) -> 2 | AX79: =ROUNDDOWN(AC$75/$F79,0)-SUM($AE79:AW79) -> 1
B80: =+B79+1 -> 3 | C80: ACEITE DE MOTOR | D80: GLNS | E80: 7 | F80: 5000 | G80: 18.08125 | H80: Aceites y filtros | J80: =+AE80*$E80*$G80*(1+'Sup Generales'!C$10) -> 1531.58313 | K80: =+AF80*$E80*$G80*(1+'Sup Generales'!D$10) -> 1675.807208 | L80: =+AG80*$E80*$G80*(1+'Sup Generales'!E$10) -> 1692.56528 | M80: =+AH80*$E80*$G80*(1+'Sup Generales'!F$10) -> 1712.876064 | N80: =+AI80*$E80*$G80*(1+'Sup Generales'!G$10) -> 1600.089763 | O80: =+AJ80*$E80*$G80*(1+'Sup Generales'!H$10) -> 1755.965174 | P80: =+AK80*$E80*$G80*(1+'Sup Generales'!I$10) -> 1778.792721 | Q80: =+AL80*$E80*$G80*(1+'Sup Generales'!J$10) -> 1803.695819 | R80: =+AM80*$E80*$G80*(1+'Sup Generales'!K$10) -> 1688.259287 | S80: =+AN80*$E80*$G80*(1+'Sup Generales'!L$10) -> 1856.381774 | T80: =+AO80*$E80*$G80*(1+'Sup Generales'!M$10) -> 1884.227501 | U80: =+AP80*$E80*$G80*(1+'Sup Generales'!N$10) -> 1909.716194 | V80: =+AQ80*$E80*$G80*(1+'Sup Generales'!O$10) -> 1788.165675 | W80: =+AR80*$E80*$G80*(1+'Sup Generales'!P$10) -> 1963.819608 | X80: =+AS80*$E80*$G80*(1+'Sup Generales'!Q$10) -> 1989.941908 | Y80: =+AT80*$E80*$G80*(1+'Sup Generales'!R$10) -> 2016.055085 | Z80: =+AU80*$E80*$G80*(1+'Sup Generales'!S$10) -> 2042.936222 | AA80: =+AV80*$E80*$G80*(1+'Sup Generales'!T$10) -> 1911.169376 | AB80: =+AW80*$E80*$G80*(1+'Sup Generales'!U$10) -> 2098.283339 | AC80: =+AX80*$E80*$G80*(1+'Sup Generales'!V$10) -> 2126.263979 | AE80: 12 | AF80: =ROUNDDOWN(K$75/$F80,0)-SUM($AE80:AE80) -> 13 | AG80: =ROUNDDOWN(L$75/$F80,0)-SUM($AE80:AF80) -> 13 | AH80: =ROUNDDOWN(M$75/$F80,0)-SUM($AE80:AG80) -> 13 | AI80: =ROUNDDOWN(N$75/$F80,0)-SUM($AE80:AH80) -> 12 | AJ80: =ROUNDDOWN(O$75/$F80,0)-SUM($AE80:AI80) -> 13 | AK80: =ROUNDDOWN(P$75/$F80,0)-SUM($AE80:AJ80) -> 13 | AL80: =ROUNDDOWN(Q$75/$F80,0)-SUM($AE80:AK80) -> 13 | AM80: =ROUNDDOWN(R$75/$F80,0)-SUM($AE80:AL80) -> 12 | AN80: =ROUNDDOWN(S$75/$F80,0)-SUM($AE80:AM80) -> 13 | AO80: =ROUNDDOWN(T$75/$F80,0)-SUM($AE80:AN80) -> 13 | AP80: =ROUNDDOWN(U$75/$F80,0)-SUM($AE80:AO80) -> 13 | AQ80: =ROUNDDOWN(V$75/$F80,0)-SUM($AE80:AP80) -> 12 | AR80: =ROUNDDOWN(W$75/$F80,0)-SUM($AE80:AQ80) -> 13 | AS80: =ROUNDDOWN(X$75/$F80,0)-SUM($AE80:AR80) -> 13 | AT80: =ROUNDDOWN(Y$75/$F80,0)-SUM($AE80:AS80) -> 13 | AU80: =ROUNDDOWN(Z$75/$F80,0)-SUM($AE80:AT80) -> 13 | AV80: =ROUNDDOWN(AA$75/$F80,0)-SUM($AE80:AU80) -> 12 | AW80: =ROUNDDOWN(AB$75/$F80,0)-SUM($AE80:AV80) -> 13 | AX80: =ROUNDDOWN(AC$75/$F80,0)-SUM($AE80:AW80) -> 13
B81: 4 | C81: ACEITE DE CAJA | D81: GLNS | E81: 5 | F81: 30000 | G81: 18.26142857 | H81: Aceites y filtros | J81: =+AE81*$E81*$G81*(1+'Sup Generales'!C$10) -> 184.1482457 | K81: =+AF81*$E81*$G81*(1+'Sup Generales'!D$10) -> 185.9897282 | L81: =+AG81*$E81*$G81*(1+'Sup Generales'!E$10) -> 187.8496255 | M81: =+AH81*$E81*$G81*(1+'Sup Generales'!F$10) -> 190.103821 | N81: =+AI81*$E81*$G81*(1+'Sup Generales'!G$10) -> 192.3850668 | O81: =+AJ81*$E81*$G81*(1+'Sup Generales'!H$10) -> 194.8860727 | P81: =+AK81*$E81*$G81*(1+'Sup Generales'!I$10) -> 197.4195916 | Q81: =+AL81*$E81*$G81*(1+'Sup Generales'!J$10) -> 300.2751989 | R81: =+AM81*$E81*$G81*(1+'Sup Generales'!K$10) -> 202.9860344 | S81: =+AN81*$E81*$G81*(1+'Sup Generales'!L$10) -> 206.0308249 | T81: =+AO81*$E81*$G81*(1+'Sup Generales'!M$10) -> 209.1212873 | U81: =+AP81*$E81*$G81*(1+'Sup Generales'!N$10) -> 211.950154 | V81: =+AQ81*$E81*$G81*(1+'Sup Generales'!O$10) -> 214.9981713 | W81: =+AR81*$E81*$G81*(1+'Sup Generales'!P$10) -> 217.95483 | X81: =+AS81*$E81*$G81*(1+'Sup Generales'!Q$10) -> 220.8540175 | Y81: =+AT81*$E81*$G81*(1+'Sup Generales'!R$10) -> 335.628289 | Z81: =+AU81*$E81*$G81*(1+'Sup Generales'!S$10) -> 226.7355999 | AA81: =+AV81*$E81*$G81*(1+'Sup Generales'!T$10) -> 229.7873886 | AB81: =+AW81*$E81*$G81*(1+'Sup Generales'!U$10) -> 232.8783084 | AC81: =+AX81*$E81*$G81*(1+'Sup Generales'!V$10) -> 235.9837442 | AE81: 2 | AF81: =ROUNDDOWN(K$75/$F81,0)-SUM($AE81:AE81) -> 2 | AG81: =ROUNDDOWN(L$75/$F81,0)-SUM($AE81:AF81) -> 2 | AH81: =ROUNDDOWN(M$75/$F81,0)-SUM($AE81:AG81) -> 2 | AI81: =ROUNDDOWN(N$75/$F81,0)-SUM($AE81:AH81) -> 2 | AJ81: =ROUNDDOWN(O$75/$F81,0)-SUM($AE81:AI81) -> 2 | AK81: =ROUNDDOWN(P$75/$F81,0)-SUM($AE81:AJ81) -> 2 | AL81: =ROUNDDOWN(Q$75/$F81,0)-SUM($AE81:AK81) -> 3 | AM81: =ROUNDDOWN(R$75/$F81,0)-SUM($AE81:AL81) -> 2 | AN81: =ROUNDDOWN(S$75/$F81,0)-SUM($AE81:AM81) -> 2 | AO81: =ROUNDDOWN(T$75/$F81,0)-SUM($AE81:AN81) -> 2 | AP81: =ROUNDDOWN(U$75/$F81,0)-SUM($AE81:AO81) -> 2 | AQ81: =ROUNDDOWN(V$75/$F81,0)-SUM($AE81:AP81) -> 2 | AR81: =ROUNDDOWN(W$75/$F81,0)-SUM($AE81:AQ81) -> 2 | AS81: =ROUNDDOWN(X$75/$F81,0)-SUM($AE81:AR81) -> 2 | AT81: =ROUNDDOWN(Y$75/$F81,0)-SUM($AE81:AS81) -> 3 | AU81: =ROUNDDOWN(Z$75/$F81,0)-SUM($AE81:AT81) -> 2 | AV81: =ROUNDDOWN(AA$75/$F81,0)-SUM($AE81:AU81) -> 2 | AW81: =ROUNDDOWN(AB$75/$F81,0)-SUM($AE81:AV81) -> 2 | AX81: =ROUNDDOWN(AC$75/$F81,0)-SUM($AE81:AW81) -> 2
B82: 5 | C82: ACEITE DE DIFERENCIAL | D82: GLNS | E82: 6 | F82: 30000 | G82: 18.59428571 | H82: Aceites y filtros | J82: =+AE82*$E82*$G82*(1+'Sup Generales'!C$10) -> 225.0057326 | K82: =+AF82*$E82*$G82*(1+'Sup Generales'!D$10) -> 227.2557899 | L82: =+AG82*$E82*$G82*(1+'Sup Generales'!E$10) -> 229.5283478 | M82: =+AH82*$E82*$G82*(1+'Sup Generales'!F$10) -> 232.282688 | N82: =+AI82*$E82*$G82*(1+'Sup Generales'!G$10) -> 235.0700802 | O82: =+AJ82*$E82*$G82*(1+'Sup Generales'!H$10) -> 238.1259913 | P82: =+AK82*$E82*$G82*(1+'Sup Generales'!I$10) -> 241.2216292 | Q82: =+AL82*$E82*$G82*(1+'Sup Generales'!J$10) -> 366.8980979 | R82: =+AM82*$E82*$G82*(1+'Sup Generales'!K$10) -> 248.0231142 | S82: =+AN82*$E82*$G82*(1+'Sup Generales'!L$10) -> 251.7434609 | T82: =+AO82*$E82*$G82*(1+'Sup Generales'!M$10) -> 255.5196128 | U82: =+AP82*$E82*$G82*(1+'Sup Generales'!N$10) -> 258.976128 | V82: =+AQ82*$E82*$G82*(1+'Sup Generales'!O$10) -> 262.7004175 | W82: =+AR82*$E82*$G82*(1+'Sup Generales'!P$10) -> 266.3130783 | X82: =+AS82*$E82*$G82*(1+'Sup Generales'!Q$10) -> 269.8555168 | Y82: =+AT82*$E82*$G82*(1+'Sup Generales'!R$10) -> 410.0950771 | Z82: =+AU82*$E82*$G82*(1+'Sup Generales'!S$10) -> 277.0420622 | AA82: =+AV82*$E82*$G82*(1+'Sup Generales'!T$10) -> 280.7709599 | AB82: =+AW82*$E82*$G82*(1+'Sup Generales'!U$10) -> 284.5476707 | AC82: =+AX82*$E82*$G82*(1+'Sup Generales'!V$10) -> 288.3421182 | AE82: 2 | AF82: =ROUNDDOWN(K$75/$F82,0)-SUM($AE82:AE82) -> 2 | AG82: =ROUNDDOWN(L$75/$F82,0)-SUM($AE82:AF82) -> 2 | AH82: =ROUNDDOWN(M$75/$F82,0)-SUM($AE82:AG82) -> 2 | AI82: =ROUNDDOWN(N$75/$F82,0)-SUM($AE82:AH82) -> 2 | AJ82: =ROUNDDOWN(O$75/$F82,0)-SUM($AE82:AI82) -> 2 | AK82: =ROUNDDOWN(P$75/$F82,0)-SUM($AE82:AJ82) -> 2 | AL82: =ROUNDDOWN(Q$75/$F82,0)-SUM($AE82:AK82) -> 3 | AM82: =ROUNDDOWN(R$75/$F82,0)-SUM($AE82:AL82) -> 2 | AN82: =ROUNDDOWN(S$75/$F82,0)-SUM($AE82:AM82) -> 2 | AO82: =ROUNDDOWN(T$75/$F82,0)-SUM($AE82:AN82) -> 2 | AP82: =ROUNDDOWN(U$75/$F82,0)-SUM($AE82:AO82) -> 2 | AQ82: =ROUNDDOWN(V$75/$F82,0)-SUM($AE82:AP82) -> 2 | AR82: =ROUNDDOWN(W$75/$F82,0)-SUM($AE82:AQ82) -> 2 | AS82: =ROUNDDOWN(X$75/$F82,0)-SUM($AE82:AR82) -> 2 | AT82: =ROUNDDOWN(Y$75/$F82,0)-SUM($AE82:AS82) -> 3 | AU82: =ROUNDDOWN(Z$75/$F82,0)-SUM($AE82:AT82) -> 2 | AV82: =ROUNDDOWN(AA$75/$F82,0)-SUM($AE82:AU82) -> 2 | AW82: =ROUNDDOWN(AB$75/$F82,0)-SUM($AE82:AV82) -> 2 | AX82: =ROUNDDOWN(AC$75/$F82,0)-SUM($AE82:AW82) -> 2
B83: 6 | C83: ACEITE HIDRÁULICO | D83: GLN | E83: 2 | F83: 60000 | G83: 16.00833333 | H83: Aceites y filtros | J83: =+AE83*$E83*$G83*(1+'Sup Generales'!C$10) -> 32.28560667 | K83: =+AF83*$E83*$G83*(1+'Sup Generales'!D$10) -> 32.60846273 | L83: =+AG83*$E83*$G83*(1+'Sup Generales'!E$10) -> 32.93454736 | M83: =+AH83*$E83*$G83*(1+'Sup Generales'!F$10) -> 33.32976193 | N83: =+AI83*$E83*$G83*(1+'Sup Generales'!G$10) -> 33.72971907 | O83: =+AJ83*$E83*$G83*(1+'Sup Generales'!H$10) -> 34.16820542 | P83: =+AK83*$E83*$G83*(1+'Sup Generales'!I$10) -> 34.61239209 | Q83: =+AL83*$E83*$G83*(1+'Sup Generales'!J$10) -> 35.09696558 | R83: =+AM83*$E83*$G83*(1+'Sup Generales'!K$10) -> 35.5883231 | S83: =+AN83*$E83*$G83*(1+'Sup Generales'!L$10) -> 36.12214794 | T83: =+AO83*$E83*$G83*(1+'Sup Generales'!M$10) -> 36.66398016 | U83: =+AP83*$E83*$G83*(1+'Sup Generales'!N$10) -> 37.15994837 | V83: =+AQ83*$E83*$G83*(1+'Sup Generales'!O$10) -> 37.69433895 | W83: =+AR83*$E83*$G83*(1+'Sup Generales'!P$10) -> 38.21271218 | X83: =+AS83*$E83*$G83*(1+'Sup Generales'!Q$10) -> 38.72100933 | Y83: =+AT83*$E83*$G83*(1+'Sup Generales'!R$10) -> 78.45825796 | Z83: =+AU83*$E83*$G83*(1+'Sup Generales'!S$10) -> 39.75219186 | AA83: =+AV83*$E83*$G83*(1+'Sup Generales'!T$10) -> 40.28724366 | AB83: =+AW83*$E83*$G83*(1+'Sup Generales'!U$10) -> 40.82915608 | AC83: =+AX83*$E83*$G83*(1+'Sup Generales'!V$10) -> 41.3736135 | AE83: 1 | AF83: =ROUNDDOWN(K$75/$F83,0)-SUM($AE83:AE83) -> 1 | AG83: =ROUNDDOWN(L$75/$F83,0)-SUM($AE83:AF83) -> 1 | AH83: =ROUNDDOWN(M$75/$F83,0)-SUM($AE83:AG83) -> 1 | AI83: =ROUNDDOWN(N$75/$F83,0)-SUM($AE83:AH83) -> 1 | AJ83: =ROUNDDOWN(O$75/$F83,0)-SUM($AE83:AI83) -> 1 | AK83: =ROUNDDOWN(P$75/$F83,0)-SUM($AE83:AJ83) -> 1 | AL83: =ROUNDDOWN(Q$75/$F83,0)-SUM($AE83:AK83) -> 1 | AM83: =ROUNDDOWN(R$75/$F83,0)-SUM($AE83:AL83) -> 1 | AN83: =ROUNDDOWN(S$75/$F83,0)-SUM($AE83:AM83) -> 1 | AO83: =ROUNDDOWN(T$75/$F83,0)-SUM($AE83:AN83) -> 1 | AP83: =ROUNDDOWN(U$75/$F83,0)-SUM($AE83:AO83) -> 1 | AQ83: =ROUNDDOWN(V$75/$F83,0)-SUM($AE83:AP83) -> 1 | AR83: =ROUNDDOWN(W$75/$F83,0)-SUM($AE83:AQ83) -> 1 | AS83: =ROUNDDOWN(X$75/$F83,0)-SUM($AE83:AR83) -> 1 | AT83: =ROUNDDOWN(Y$75/$F83,0)-SUM($AE83:AS83) -> 2 | AU83: =ROUNDDOWN(Z$75/$F83,0)-SUM($AE83:AT83) -> 1 | AV83: =ROUNDDOWN(AA$75/$F83,0)-SUM($AE83:AU83) -> 1 | AW83: =ROUNDDOWN(AB$75/$F83,0)-SUM($AE83:AV83) -> 1 | AX83: =ROUNDDOWN(AC$75/$F83,0)-SUM($AE83:AW83) -> 1
B84: 7 | C84: ENGRASE GENERAL | D84: KG. | E84: 1 | F84: 5000 | G84: 6.785714286 | H84: Aceites y filtros | J84: =+AE84*$E84*$G84*(1+'Sup Generales'!C$10) -> 82.11257143 | K84: =+AF84*$E84*$G84*(1+'Sup Generales'!D$10) -> 89.84483857 | L84: =+AG84*$E84*$G84*(1+'Sup Generales'!E$10) -> 90.74328696 | M84: =+AH84*$E84*$G84*(1+'Sup Generales'!F$10) -> 91.8322064 | N84: =+AI84*$E84*$G84*(1+'Sup Generales'!G$10) -> 85.78540881 | O84: =+AJ84*$E84*$G84*(1+'Sup Generales'!H$10) -> 94.14233738 | P84: =+AK84*$E84*$G84*(1+'Sup Generales'!I$10) -> 95.36618777 | Q84: =+AL84*$E84*$G84*(1+'Sup Generales'!J$10) -> 96.7013144 | R84: =+AM84*$E84*$G84*(1+'Sup Generales'!K$10) -> 90.51243028 | S84: =+AN84*$E84*$G84*(1+'Sup Generales'!L$10) -> 99.52595979 | T84: =+AO84*$E84*$G84*(1+'Sup Generales'!M$10) -> 101.0188492 | U84: =+AP84*$E84*$G84*(1+'Sup Generales'!N$10) -> 102.3853712 | V84: =+AQ84*$E84*$G84*(1+'Sup Generales'!O$10) -> 95.86869876 | W84: =+AR84*$E84*$G84*(1+'Sup Generales'!P$10) -> 105.2860107 | X84: =+AS84*$E84*$G84*(1+'Sup Generales'!Q$10) -> 106.6865023 | Y84: =+AT84*$E84*$G84*(1+'Sup Generales'!R$10) -> 108.0865047 | Z84: =+AU84*$E84*$G84*(1+'Sup Generales'!S$10) -> 109.5276797 | AA84: =+AV84*$E84*$G84*(1+'Sup Generales'!T$10) -> 102.4632805 | AB84: =+AW84*$E84*$G84*(1+'Sup Generales'!U$10) -> 112.4949976 | AC84: =+AX84*$E84*$G84*(1+'Sup Generales'!V$10) -> 113.9951201 | AE84: 12 | AF84: =ROUNDDOWN(K$75/$F84,0)-SUM($AE84:AE84) -> 13 | AG84: =ROUNDDOWN(L$75/$F84,0)-SUM($AE84:AF84) -> 13 | AH84: =ROUNDDOWN(M$75/$F84,0)-SUM($AE84:AG84) -> 13 | AI84: =ROUNDDOWN(N$75/$F84,0)-SUM($AE84:AH84) -> 12 | AJ84: =ROUNDDOWN(O$75/$F84,0)-SUM($AE84:AI84) -> 13 | AK84: =ROUNDDOWN(P$75/$F84,0)-SUM($AE84:AJ84) -> 13 | AL84: =ROUNDDOWN(Q$75/$F84,0)-SUM($AE84:AK84) -> 13 | AM84: =ROUNDDOWN(R$75/$F84,0)-SUM($AE84:AL84) -> 12 | AN84: =ROUNDDOWN(S$75/$F84,0)-SUM($AE84:AM84) -> 13 | AO84: =ROUNDDOWN(T$75/$F84,0)-SUM($AE84:AN84) -> 13 | AP84: =ROUNDDOWN(U$75/$F84,0)-SUM($AE84:AO84) -> 13 | AQ84: =ROUNDDOWN(V$75/$F84,0)-SUM($AE84:AP84) -> 12 | AR84: =ROUNDDOWN(W$75/$F84,0)-SUM($AE84:AQ84) -> 13 | AS84: =ROUNDDOWN(X$75/$F84,0)-SUM($AE84:AR84) -> 13 | AT84: =ROUNDDOWN(Y$75/$F84,0)-SUM($AE84:AS84) -> 13 | AU84: =ROUNDDOWN(Z$75/$F84,0)-SUM($AE84:AT84) -> 13 | AV84: =ROUNDDOWN(AA$75/$F84,0)-SUM($AE84:AU84) -> 12 | AW84: =ROUNDDOWN(AB$75/$F84,0)-SUM($AE84:AV84) -> 13 | AX84: =ROUNDDOWN(AC$75/$F84,0)-SUM($AE84:AW84) -> 13
B85: 8 | C85: FILTRO DE ACEITE DE MOTOR | D85: UND | E85: 1 | F85: 5000 | G85: 13.37875 | H85: Aceites y filtros | J85: =+AE85*$E85*$G85*(1+'Sup Generales'!C$10) -> 161.893578 | K85: =+AF85*$E85*$G85*(1+'Sup Generales'!D$10) -> 177.1385566 | L85: =+AG85*$E85*$G85*(1+'Sup Generales'!E$10) -> 178.9099422 | M85: =+AH85*$E85*$G85*(1+'Sup Generales'!F$10) -> 181.0568615 | N85: =+AI85*$E85*$G85*(1+'Sup Generales'!G$10) -> 169.1349635 | O85: =+AJ85*$E85*$G85*(1+'Sup Generales'!H$10) -> 185.6115279 | P85: =+AK85*$E85*$G85*(1+'Sup Generales'!I$10) -> 188.0244777 | Q85: =+AL85*$E85*$G85*(1+'Sup Generales'!J$10) -> 190.6568204 | R85: =+AM85*$E85*$G85*(1+'Sup Generales'!K$10) -> 178.4547839 | S85: =+AN85*$E85*$G85*(1+'Sup Generales'!L$10) -> 196.2259061 | T85: =+AO85*$E85*$G85*(1+'Sup Generales'!M$10) -> 199.1692947 | U85: =+AP85*$E85*$G85*(1+'Sup Generales'!N$10) -> 201.8635368 | V85: =+AQ85*$E85*$G85*(1+'Sup Generales'!O$10) -> 189.015231 | W85: =+AR85*$E85*$G85*(1+'Sup Generales'!P$10) -> 207.5824529 | X85: =+AS85*$E85*$G85*(1+'Sup Generales'!Q$10) -> 210.3436694 | Y85: =+AT85*$E85*$G85*(1+'Sup Generales'!R$10) -> 213.1039215 | Z85: =+AU85*$E85*$G85*(1+'Sup Generales'!S$10) -> 215.9453497 | AA85: =+AV85*$E85*$G85*(1+'Sup Generales'!T$10) -> 202.0171432 | AB85: =+AW85*$E85*$G85*(1+'Sup Generales'!U$10) -> 221.7957293 | AC85: =+AX85*$E85*$G85*(1+'Sup Generales'!V$10) -> 224.7533788 | AE85: 12 | AF85: =ROUNDDOWN(K$75/$F85,0)-SUM($AE85:AE85) -> 13 | AG85: =ROUNDDOWN(L$75/$F85,0)-SUM($AE85:AF85) -> 13 | AH85: =ROUNDDOWN(M$75/$F85,0)-SUM($AE85:AG85) -> 13 | AI85: =ROUNDDOWN(N$75/$F85,0)-SUM($AE85:AH85) -> 12 | AJ85: =ROUNDDOWN(O$75/$F85,0)-SUM($AE85:AI85) -> 13 | AK85: =ROUNDDOWN(P$75/$F85,0)-SUM($AE85:AJ85) -> 13 | AL85: =ROUNDDOWN(Q$75/$F85,0)-SUM($AE85:AK85) -> 13 | AM85: =ROUNDDOWN(R$75/$F85,0)-SUM($AE85:AL85) -> 12 | AN85: =ROUNDDOWN(S$75/$F85,0)-SUM($AE85:AM85) -> 13 | AO85: =ROUNDDOWN(T$75/$F85,0)-SUM($AE85:AN85) -> 13 | AP85: =ROUNDDOWN(U$75/$F85,0)-SUM($AE85:AO85) -> 13 | AQ85: =ROUNDDOWN(V$75/$F85,0)-SUM($AE85:AP85) -> 12 | AR85: =ROUNDDOWN(W$75/$F85,0)-SUM($AE85:AQ85) -> 13 | AS85: =ROUNDDOWN(X$75/$F85,0)-SUM($AE85:AR85) -> 13 | AT85: =ROUNDDOWN(Y$75/$F85,0)-SUM($AE85:AS85) -> 13 | AU85: =ROUNDDOWN(Z$75/$F85,0)-SUM($AE85:AT85) -> 13 | AV85: =ROUNDDOWN(AA$75/$F85,0)-SUM($AE85:AU85) -> 12 | AW85: =ROUNDDOWN(AB$75/$F85,0)-SUM($AE85:AV85) -> 13 | AX85: =ROUNDDOWN(AC$75/$F85,0)-SUM($AE85:AW85) -> 13
B86: 9 | C86: FILTRO DE AIRE | D86: UND | E86: 2 | F86: 10000 | G86: 35.44125 | H86: Aceites y filtros | J86: =+AE86*$E86*$G86*(1+'Sup Generales'!C$10) -> 428.867478 | K86: =+AF86*$E86*$G86*(1+'Sup Generales'!D$10) -> 433.1561528 | L86: =+AG86*$E86*$G86*(1+'Sup Generales'!E$10) -> 510.4023334 | M86: =+AH86*$E86*$G86*(1+'Sup Generales'!F$10) -> 442.7375669 | N86: =+AI86*$E86*$G86*(1+'Sup Generales'!G$10) -> 448.0504177 | O86: =+AJ86*$E86*$G86*(1+'Sup Generales'!H$10) -> 529.5209186 | P86: =+AK86*$E86*$G86*(1+'Sup Generales'!I$10) -> 459.7754491 | Q86: =+AL86*$E86*$G86*(1+'Sup Generales'!J$10) -> 543.9143562 | R86: =+AM86*$E86*$G86*(1+'Sup Generales'!K$10) -> 472.7392776 | S86: =+AN86*$E86*$G86*(1+'Sup Generales'!L$10) -> 479.8303668 | T86: =+AO86*$E86*$G86*(1+'Sup Generales'!M$10) -> 568.199126 | U86: =+AP86*$E86*$G86*(1+'Sup Generales'!N$10) -> 493.6160409 | V86: =+AQ86*$E86*$G86*(1+'Sup Generales'!O$10) -> 500.714645 | W86: =+AR86*$E86*$G86*(1+'Sup Generales'!P$10) -> 592.2005621 | X86: =+AS86*$E86*$G86*(1+'Sup Generales'!Q$10) -> 514.3524726 | Y86: =+AT86*$E86*$G86*(1+'Sup Generales'!R$10) -> 607.9524564 | Z86: =+AU86*$E86*$G86*(1+'Sup Generales'!S$10) -> 528.0502375 | AA86: =+AV86*$E86*$G86*(1+'Sup Generales'!T$10) -> 535.157625 | AB86: =+AW86*$E86*$G86*(1+'Sup Generales'!U$10) -> 632.7488367 | AC86: =+AX86*$E86*$G86*(1+'Sup Generales'!V$10) -> 549.5884732 | AE86: 6 | AF86: =ROUNDDOWN(K$75/$F86,0)-SUM($AE86:AE86) -> 6 | AG86: =ROUNDDOWN(L$75/$F86,0)-SUM($AE86:AF86) -> 7 | AH86: =ROUNDDOWN(M$75/$F86,0)-SUM($AE86:AG86) -> 6 | AI86: =ROUNDDOWN(N$75/$F86,0)-SUM($AE86:AH86) -> 6 | AJ86: =ROUNDDOWN(O$75/$F86,0)-SUM($AE86:AI86) -> 7 | AK86: =ROUNDDOWN(P$75/$F86,0)-SUM($AE86:AJ86) -> 6 | AL86: =ROUNDDOWN(Q$75/$F86,0)-SUM($AE86:AK86) -> 7 | AM86: =ROUNDDOWN(R$75/$F86,0)-SUM($AE86:AL86) -> 6 | AN86: =ROUNDDOWN(S$75/$F86,0)-SUM($AE86:AM86) -> 6 | AO86: =ROUNDDOWN(T$75/$F86,0)-SUM($AE86:AN86) -> 7 | AP86: =ROUNDDOWN(U$75/$F86,0)-SUM($AE86:AO86) -> 6 | AQ86: =ROUNDDOWN(V$75/$F86,0)-SUM($AE86:AP86) -> 6 | AR86: =ROUNDDOWN(W$75/$F86,0)-SUM($AE86:AQ86) -> 7 | AS86: =ROUNDDOWN(X$75/$F86,0)-SUM($AE86:AR86) -> 6 | AT86: =ROUNDDOWN(Y$75/$F86,0)-SUM($AE86:AS86) -> 7 | AU86: =ROUNDDOWN(Z$75/$F86,0)-SUM($AE86:AT86) -> 6 | AV86: =ROUNDDOWN(AA$75/$F86,0)-SUM($AE86:AU86) -> 6 | AW86: =ROUNDDOWN(AB$75/$F86,0)-SUM($AE86:AV86) -> 7 | AX86: =ROUNDDOWN(AC$75/$F86,0)-SUM($AE86:AW86) -> 6
B87: 10 | C87: FILTRO DE COMBUSTIBLE | D87: UD. | E87: 1 | F87: 5000 | G87: 13.485 | H87: Aceites y filtros | J87: =+AE87*$E87*$G87*(1+'Sup Generales'!C$10) -> 163.179288 | K87: =+AF87*$E87*$G87*(1+'Sup Generales'!D$10) -> 178.5453376 | L87: =+AG87*$E87*$G87*(1+'Sup Generales'!E$10) -> 180.330791 | M87: =+AH87*$E87*$G87*(1+'Sup Generales'!F$10) -> 182.4947605 | N87: =+AI87*$E87*$G87*(1+'Sup Generales'!G$10) -> 170.4781824 | O87: =+AJ87*$E87*$G87*(1+'Sup Generales'!H$10) -> 187.0855987 | P87: =+AK87*$E87*$G87*(1+'Sup Generales'!I$10) -> 189.5177115 | Q87: =+AL87*$E87*$G87*(1+'Sup Generales'!J$10) -> 192.1709594 | R87: =+AM87*$E87*$G87*(1+'Sup Generales'!K$10) -> 179.872018 | S87: =+AN87*$E87*$G87*(1+'Sup Generales'!L$10) -> 197.7842732 | T87: =+AO87*$E87*$G87*(1+'Sup Generales'!M$10) -> 200.7510372 | U87: =+AP87*$E87*$G87*(1+'Sup Generales'!N$10) -> 203.4666762 | V87: =+AQ87*$E87*$G87*(1+'Sup Generales'!O$10) -> 190.516333 | W87: =+AR87*$E87*$G87*(1+'Sup Generales'!P$10) -> 209.2310101 | X87: =+AS87*$E87*$G87*(1+'Sup Generales'!Q$10) -> 212.0141554 | Y87: =+AT87*$E87*$G87*(1+'Sup Generales'!R$10) -> 214.7963287 | Z87: =+AU87*$E87*$G87*(1+'Sup Generales'!S$10) -> 217.6603226 | AA87: =+AV87*$E87*$G87*(1+'Sup Generales'!T$10) -> 203.6215024 | AB87: =+AW87*$E87*$G87*(1+'Sup Generales'!U$10) -> 223.5571642 | AC87: =+AX87*$E87*$G87*(1+'Sup Generales'!V$10) -> 226.5383024 | AE87: 12 | AF87: =ROUNDDOWN(K$75/$F87,0)-SUM($AE87:AE87) -> 13 | AG87: =ROUNDDOWN(L$75/$F87,0)-SUM($AE87:AF87) -> 13 | AH87: =ROUNDDOWN(M$75/$F87,0)-SUM($AE87:AG87) -> 13 | AI87: =ROUNDDOWN(N$75/$F87,0)-SUM($AE87:AH87) -> 12 | AJ87: =ROUNDDOWN(O$75/$F87,0)-SUM($AE87:AI87) -> 13 | AK87: =ROUNDDOWN(P$75/$F87,0)-SUM($AE87:AJ87) -> 13 | AL87: =ROUNDDOWN(Q$75/$F87,0)-SUM($AE87:AK87) -> 13 | AM87: =ROUNDDOWN(R$75/$F87,0)-SUM($AE87:AL87) -> 12 | AN87: =ROUNDDOWN(S$75/$F87,0)-SUM($AE87:AM87) -> 13 | AO87: =ROUNDDOWN(T$75/$F87,0)-SUM($AE87:AN87) -> 13 | AP87: =ROUNDDOWN(U$75/$F87,0)-SUM($AE87:AO87) -> 13 | AQ87: =ROUNDDOWN(V$75/$F87,0)-SUM($AE87:AP87) -> 12 | AR87: =ROUNDDOWN(W$75/$F87,0)-SUM($AE87:AQ87) -> 13 | AS87: =ROUNDDOWN(X$75/$F87,0)-SUM($AE87:AR87) -> 13 | AT87: =ROUNDDOWN(Y$75/$F87,0)-SUM($AE87:AS87) -> 13 | AU87: =ROUNDDOWN(Z$75/$F87,0)-SUM($AE87:AT87) -> 13 | AV87: =ROUNDDOWN(AA$75/$F87,0)-SUM($AE87:AU87) -> 12 | AW87: =ROUNDDOWN(AB$75/$F87,0)-SUM($AE87:AV87) -> 13 | AX87: =ROUNDDOWN(AC$75/$F87,0)-SUM($AE87:AW87) -> 13
B88: 11 | C88: FILTRO SECADOR DE AIRE | D88: UD. | E88: 1 | F88: 30000 | G88: 35.87428571 | H88: Aceites y filtros | J88: =+AE88*$E88*$G88*(1+'Sup Generales'!C$10) -> 72.35125943 | K88: =+AF88*$E88*$G88*(1+'Sup Generales'!D$10) -> 73.07477202 | L88: =+AG88*$E88*$G88*(1+'Sup Generales'!E$10) -> 73.80551974 | M88: =+AH88*$E88*$G88*(1+'Sup Generales'!F$10) -> 74.69118598 | N88: =+AI88*$E88*$G88*(1+'Sup Generales'!G$10) -> 75.58748021 | O88: =+AJ88*$E88*$G88*(1+'Sup Generales'!H$10) -> 76.57011745 | P88: =+AK88*$E88*$G88*(1+'Sup Generales'!I$10) -> 77.56552898 | Q88: =+AL88*$E88*$G88*(1+'Sup Generales'!J$10) -> 117.9771696 | R88: =+AM88*$E88*$G88*(1+'Sup Generales'!K$10) -> 79.75256664 | S88: =+AN88*$E88*$G88*(1+'Sup Generales'!L$10) -> 80.94885514 | T88: =+AO88*$E88*$G88*(1+'Sup Generales'!M$10) -> 82.16308796 | U88: =+AP88*$E88*$G88*(1+'Sup Generales'!N$10) -> 83.27454066 | V88: =+AQ88*$E88*$G88*(1+'Sup Generales'!O$10) -> 84.47209696 | W88: =+AR88*$E88*$G88*(1+'Sup Generales'!P$10) -> 85.63375874 | X88: =+AS88*$E88*$G88*(1+'Sup Generales'!Q$10) -> 86.77284031 | Y88: =+AT88*$E88*$G88*(1+'Sup Generales'!R$10) -> 131.8672861 | Z88: =+AU88*$E88*$G88*(1+'Sup Generales'!S$10) -> 89.08369528 | AA88: =+AV88*$E88*$G88*(1+'Sup Generales'!T$10) -> 90.28273336 | AB88: =+AW88*$E88*$G88*(1+'Sup Generales'!U$10) -> 91.4971459 | AC88: =+AX88*$E88*$G88*(1+'Sup Generales'!V$10) -> 92.71726173 | AE88: 2 | AF88: =ROUNDDOWN(K$75/$F88,0)-SUM($AE88:AE88) -> 2 | AG88: =ROUNDDOWN(L$75/$F88,0)-SUM($AE88:AF88) -> 2 | AH88: =ROUNDDOWN(M$75/$F88,0)-SUM($AE88:AG88) -> 2 | AI88: =ROUNDDOWN(N$75/$F88,0)-SUM($AE88:AH88) -> 2 | AJ88: =ROUNDDOWN(O$75/$F88,0)-SUM($AE88:AI88) -> 2 | AK88: =ROUNDDOWN(P$75/$F88,0)-SUM($AE88:AJ88) -> 2 | AL88: =ROUNDDOWN(Q$75/$F88,0)-SUM($AE88:AK88) -> 3 | AM88: =ROUNDDOWN(R$75/$F88,0)-SUM($AE88:AL88) -> 2 | AN88: =ROUNDDOWN(S$75/$F88,0)-SUM($AE88:AM88) -> 2 | AO88: =ROUNDDOWN(T$75/$F88,0)-SUM($AE88:AN88) -> 2 | AP88: =ROUNDDOWN(U$75/$F88,0)-SUM($AE88:AO88) -> 2 | AQ88: =ROUNDDOWN(V$75/$F88,0)-SUM($AE88:AP88) -> 2 | AR88: =ROUNDDOWN(W$75/$F88,0)-SUM($AE88:AQ88) -> 2 | AS88: =ROUNDDOWN(X$75/$F88,0)-SUM($AE88:AR88) -> 2 | AT88: =ROUNDDOWN(Y$75/$F88,0)-SUM($AE88:AS88) -> 3 | AU88: =ROUNDDOWN(Z$75/$F88,0)-SUM($AE88:AT88) -> 2 | AV88: =ROUNDDOWN(AA$75/$F88,0)-SUM($AE88:AU88) -> 2 | AW88: =ROUNDDOWN(AB$75/$F88,0)-SUM($AE88:AV88) -> 2 | AX88: =ROUNDDOWN(AC$75/$F88,0)-SUM($AE88:AW88) -> 2
B89: 12 | C89: REFRIGERANTE DE MOTOR | D89: GLNS. | E89: 4 | F89: 30000 | G89: 3.84 | H89: Aceites y filtros | J89: =+AE89*$E89*$G89*(1+'Sup Generales'!C$10) -> 30.978048 | K89: =+AF89*$E89*$G89*(1+'Sup Generales'!D$10) -> 31.28782848 | L89: =+AG89*$E89*$G89*(1+'Sup Generales'!E$10) -> 31.60070676 | M89: =+AH89*$E89*$G89*(1+'Sup Generales'!F$10) -> 31.97991525 | N89: =+AI89*$E89*$G89*(1+'Sup Generales'!G$10) -> 32.36367423 | O89: =+AJ89*$E89*$G89*(1+'Sup Generales'!H$10) -> 32.78440199 | P89: =+AK89*$E89*$G89*(1+'Sup Generales'!I$10) -> 33.21059922 | Q89: =+AL89*$E89*$G89*(1+'Sup Generales'!J$10) -> 50.51332141 | R89: =+AM89*$E89*$G89*(1+'Sup Generales'!K$10) -> 34.14700528 | S89: =+AN89*$E89*$G89*(1+'Sup Generales'!L$10) -> 34.65921035 | T89: =+AO89*$E89*$G89*(1+'Sup Generales'!M$10) -> 35.17909851 | U89: =+AP89*$E89*$G89*(1+'Sup Generales'!N$10) -> 35.65498014 | V89: =+AQ89*$E89*$G89*(1+'Sup Generales'!O$10) -> 36.16772804 | W89: =+AR89*$E89*$G89*(1+'Sup Generales'!P$10) -> 36.66510728 | X89: =+AS89*$E89*$G89*(1+'Sup Generales'!Q$10) -> 37.15281854 | Y89: =+AT89*$E89*$G89*(1+'Sup Generales'!R$10) -> 56.4605392 | Z89: =+AU89*$E89*$G89*(1+'Sup Generales'!S$10) -> 38.14223844 | AA89: =+AV89*$E89*$G89*(1+'Sup Generales'!T$10) -> 38.65562078 | AB89: =+AW89*$E89*$G89*(1+'Sup Generales'!U$10) -> 39.17558588 | AC89: =+AX89*$E89*$G89*(1+'Sup Generales'!V$10) -> 39.69799292 | AE89: 2 | AF89: =ROUNDDOWN(K$75/$F89,0)-SUM($AE89:AE89) -> 2 | AG89: =ROUNDDOWN(L$75/$F89,0)-SUM($AE89:AF89) -> 2 | AH89: =ROUNDDOWN(M$75/$F89,0)-SUM($AE89:AG89) -> 2 | AI89: =ROUNDDOWN(N$75/$F89,0)-SUM($AE89:AH89) -> 2 | AJ89: =ROUNDDOWN(O$75/$F89,0)-SUM($AE89:AI89) -> 2 | AK89: =ROUNDDOWN(P$75/$F89,0)-SUM($AE89:AJ89) -> 2 | AL89: =ROUNDDOWN(Q$75/$F89,0)-SUM($AE89:AK89) -> 3 | AM89: =ROUNDDOWN(R$75/$F89,0)-SUM($AE89:AL89) -> 2 | AN89: =ROUNDDOWN(S$75/$F89,0)-SUM($AE89:AM89) -> 2 | AO89: =ROUNDDOWN(T$75/$F89,0)-SUM($AE89:AN89) -> 2 | AP89: =ROUNDDOWN(U$75/$F89,0)-SUM($AE89:AO89) -> 2 | AQ89: =ROUNDDOWN(V$75/$F89,0)-SUM($AE89:AP89) -> 2 | AR89: =ROUNDDOWN(W$75/$F89,0)-SUM($AE89:AQ89) -> 2 | AS89: =ROUNDDOWN(X$75/$F89,0)-SUM($AE89:AR89) -> 2 | AT89: =ROUNDDOWN(Y$75/$F89,0)-SUM($AE89:AS89) -> 3 | AU89: =ROUNDDOWN(Z$75/$F89,0)-SUM($AE89:AT89) -> 2 | AV89: =ROUNDDOWN(AA$75/$F89,0)-SUM($AE89:AU89) -> 2 | AW89: =ROUNDDOWN(AB$75/$F89,0)-SUM($AE89:AV89) -> 2 | AX89: =ROUNDDOWN(AC$75/$F89,0)-SUM($AE89:AW89) -> 2
B90: 13 | C90: DESCARBONIZACION COMPRESOR AIRE | D90: UD. | E90: 1 | F90: 30000 | G90: 27.5 | H90: Aceites y filtros | J90: =+AE90*$E90*$G90*(1+'Sup Generales'!C$10) -> 55.462 | K90: =+AF90*$E90*$G90*(1+'Sup Generales'!D$10) -> 56.01662 | L90: =+AG90*$E90*$G90*(1+'Sup Generales'!E$10) -> 56.5767862 | M90: =+AH90*$E90*$G90*(1+'Sup Generales'!F$10) -> 57.25570763 | N90: =+AI90*$E90*$G90*(1+'Sup Generales'!G$10) -> 57.94277613 | O90: =+AJ90*$E90*$G90*(1+'Sup Generales'!H$10) -> 58.69603222 | P90: =+AK90*$E90*$G90*(1+'Sup Generales'!I$10) -> 59.45908063 | Q90: =+AL90*$E90*$G90*(1+'Sup Generales'!J$10) -> 90.43726165 | R90: =+AM90*$E90*$G90*(1+'Sup Generales'!K$10) -> 61.13558887 | S90: =+AN90*$E90*$G90*(1+'Sup Generales'!L$10) -> 62.05262271 | T90: =+AO90*$E90*$G90*(1+'Sup Generales'!M$10) -> 62.98341205 | U90: =+AP90*$E90*$G90*(1+'Sup Generales'!N$10) -> 63.83541365 | V90: =+AQ90*$E90*$G90*(1+'Sup Generales'!O$10) -> 64.75341934 | W90: =+AR90*$E90*$G90*(1+'Sup Generales'!P$10) -> 65.64390952 | X90: =+AS90*$E90*$G90*(1+'Sup Generales'!Q$10) -> 66.51709048 | Y90: =+AT90*$E90*$G90*(1+'Sup Generales'!R$10) -> 101.0849497 | Z90: =+AU90*$E90*$G90*(1+'Sup Generales'!S$10) -> 68.28851283 | AA90: =+AV90*$E90*$G90*(1+'Sup Generales'!T$10) -> 69.20765439 | AB90: =+AW90*$E90*$G90*(1+'Sup Generales'!U$10) -> 70.1385815 | AC90: =+AX90*$E90*$G90*(1+'Sup Generales'!V$10) -> 71.07388055 | AE90: 2 | AF90: =ROUNDDOWN(K$75/$F90,0)-SUM($AE90:AE90) -> 2 | AG90: =ROUNDDOWN(L$75/$F90,0)-SUM($AE90:AF90) -> 2 | AH90: =ROUNDDOWN(M$75/$F90,0)-SUM($AE90:AG90) -> 2 | AI90: =ROUNDDOWN(N$75/$F90,0)-SUM($AE90:AH90) -> 2 | AJ90: =ROUNDDOWN(O$75/$F90,0)-SUM($AE90:AI90) -> 2 | AK90: =ROUNDDOWN(P$75/$F90,0)-SUM($AE90:AJ90) -> 2 | AL90: =ROUNDDOWN(Q$75/$F90,0)-SUM($AE90:AK90) -> 3 | AM90: =ROUNDDOWN(R$75/$F90,0)-SUM($AE90:AL90) -> 2 | AN90: =ROUNDDOWN(S$75/$F90,0)-SUM($AE90:AM90) -> 2 | AO90: =ROUNDDOWN(T$75/$F90,0)-SUM($AE90:AN90) -> 2 | AP90: =ROUNDDOWN(U$75/$F90,0)-SUM($AE90:AO90) -> 2 | AQ90: =ROUNDDOWN(V$75/$F90,0)-SUM($AE90:AP90) -> 2 | AR90: =ROUNDDOWN(W$75/$F90,0)-SUM($AE90:AQ90) -> 2 | AS90: =ROUNDDOWN(X$75/$F90,0)-SUM($AE90:AR90) -> 2 | AT90: =ROUNDDOWN(Y$75/$F90,0)-SUM($AE90:AS90) -> 3 | AU90: =ROUNDDOWN(Z$75/$F90,0)-SUM($AE90:AT90) -> 2 | AV90: =ROUNDDOWN(AA$75/$F90,0)-SUM($AE90:AU90) -> 2 | AW90: =ROUNDDOWN(AB$75/$F90,0)-SUM($AE90:AV90) -> 2 | AX90: =ROUNDDOWN(AC$75/$F90,0)-SUM($AE90:AW90) -> 2
B91: 14 | C91: BANDAS | D91: JGO. | E91: 1 | F91: 30000 | G91: 31.70857143 | H91: Costo de mantenimiento mecánico | J91: =+AE91*$E91*$G91*(1+'Sup Generales'!C$10) -> 63.94984686 | K91: =+AF91*$E91*$G91*(1+'Sup Generales'!D$10) -> 64.58934533 | L91: =+AG91*$E91*$G91*(1+'Sup Generales'!E$10) -> 65.23523878 | M91: =+AH91*$E91*$G91*(1+'Sup Generales'!F$10) -> 66.01806164 | N91: =+AI91*$E91*$G91*(1+'Sup Generales'!G$10) -> 66.81027838 | O91: =+AJ91*$E91*$G91*(1+'Sup Generales'!H$10) -> 67.678812 | P91: =+AK91*$E91*$G91*(1+'Sup Generales'!I$10) -> 68.55863656 | Q91: =+AL91*$E91*$G91*(1+'Sup Generales'!J$10) -> 104.2776862 | R91: =+AM91*$E91*$G91*(1+'Sup Generales'!K$10) -> 70.49171588 | S91: =+AN91*$E91*$G91*(1+'Sup Generales'!L$10) -> 71.54909161 | T91: =+AO91*$E91*$G91*(1+'Sup Generales'!M$10) -> 72.62232799 | U91: =+AP91*$E91*$G91*(1+'Sup Generales'!N$10) -> 73.60471904 | V91: =+AQ91*$E91*$G91*(1+'Sup Generales'!O$10) -> 74.66321536 | W91: =+AR91*$E91*$G91*(1+'Sup Generales'!P$10) -> 75.68998523 | X91: =+AS91*$E91*$G91*(1+'Sup Generales'!Q$10) -> 76.69679689 | Y91: =+AT91*$E91*$G91*(1+'Sup Generales'!R$10) -> 116.5548854 | Z91: =+AU91*$E91*$G91*(1+'Sup Generales'!S$10) -> 78.73931589 | AA91: =+AV91*$E91*$G91*(1+'Sup Generales'!T$10) -> 79.79912192 | AB91: =+AW91*$E91*$G91*(1+'Sup Generales'!U$10) -> 80.87251714 | AC91: =+AX91*$E91*$G91*(1+'Sup Generales'!V$10) -> 81.95095338 | AE91: 2 | AF91: =ROUNDDOWN(K$75/$F91,0)-SUM($AE91:AE91) -> 2 | AG91: =ROUNDDOWN(L$75/$F91,0)-SUM($AE91:AF91) -> 2 | AH91: =ROUNDDOWN(M$75/$F91,0)-SUM($AE91:AG91) -> 2 | AI91: =ROUNDDOWN(N$75/$F91,0)-SUM($AE91:AH91) -> 2 | AJ91: =ROUNDDOWN(O$75/$F91,0)-SUM($AE91:AI91) -> 2 | AK91: =ROUNDDOWN(P$75/$F91,0)-SUM($AE91:AJ91) -> 2 | AL91: =ROUNDDOWN(Q$75/$F91,0)-SUM($AE91:AK91) -> 3 | AM91: =ROUNDDOWN(R$75/$F91,0)-SUM($AE91:AL91) -> 2 | AN91: =ROUNDDOWN(S$75/$F91,0)-SUM($AE91:AM91) -> 2 | AO91: =ROUNDDOWN(T$75/$F91,0)-SUM($AE91:AN91) -> 2 | AP91: =ROUNDDOWN(U$75/$F91,0)-SUM($AE91:AO91) -> 2 | AQ91: =ROUNDDOWN(V$75/$F91,0)-SUM($AE91:AP91) -> 2 | AR91: =ROUNDDOWN(W$75/$F91,0)-SUM($AE91:AQ91) -> 2 | AS91: =ROUNDDOWN(X$75/$F91,0)-SUM($AE91:AR91) -> 2 | AT91: =ROUNDDOWN(Y$75/$F91,0)-SUM($AE91:AS91) -> 3 | AU91: =ROUNDDOWN(Z$75/$F91,0)-SUM($AE91:AT91) -> 2 | AV91: =ROUNDDOWN(AA$75/$F91,0)-SUM($AE91:AU91) -> 2 | AW91: =ROUNDDOWN(AB$75/$F91,0)-SUM($AE91:AV91) -> 2 | AX91: =ROUNDDOWN(AC$75/$F91,0)-SUM($AE91:AW91) -> 2
B92: 15 | C92: CAMBIO DE TOBERAS DE INYECTORES | D92: JGO. | E92: 1 | F92: 120000 | G92: 213.8666667 | H92: Costo de mantenimiento mecánico | J92: =+AE92*$E92*$G92*(1+'Sup Generales'!C$10) -> 0 | K92: =+AF92*$E92*$G92*(1+'Sup Generales'!D$10) -> 217.8197781 | L92: =+AG92*$E92*$G92*(1+'Sup Generales'!E$10) -> 0 | M92: =+AH92*$E92*$G92*(1+'Sup Generales'!F$10) -> 222.6379516 | N92: =+AI92*$E92*$G92*(1+'Sup Generales'!G$10) -> 0 | O92: =+AJ92*$E92*$G92*(1+'Sup Generales'!H$10) -> 228.2386319 | P92: =+AK92*$E92*$G92*(1+'Sup Generales'!I$10) -> 0 | Q92: =+AL92*$E92*$G92*(1+'Sup Generales'!J$10) -> 234.4426144 | R92: =+AM92*$E92*$G92*(1+'Sup Generales'!K$10) -> 0 | S92: =+AN92*$E92*$G92*(1+'Sup Generales'!L$10) -> 241.2906832 | T92: =+AO92*$E92*$G92*(1+'Sup Generales'!M$10) -> 0 | U92: =+AP92*$E92*$G92*(1+'Sup Generales'!N$10) -> 248.2230388 | V92: =+AQ92*$E92*$G92*(1+'Sup Generales'!O$10) -> 0 | W92: =+AR92*$E92*$G92*(1+'Sup Generales'!P$10) -> 255.2553475 | X92: =+AS92*$E92*$G92*(1+'Sup Generales'!Q$10) -> 0 | Y92: =+AT92*$E92*$G92*(1+'Sup Generales'!R$10) -> 262.0448636 | Z92: =+AU92*$E92*$G92*(1+'Sup Generales'!S$10) -> 265.5388475 | AA92: =+AV92*$E92*$G92*(1+'Sup Generales'!T$10) -> 0 | AB92: =+AW92*$E92*$G92*(1+'Sup Generales'!U$10) -> 272.7328114 | AC92: =+AX92*$E92*$G92*(1+'Sup Generales'!V$10) -> 0 | AE92: 0 | AF92: =ROUNDDOWN(K$75/$F92,0)-SUM($AE92:AE92) -> 1 | AG92: =ROUNDDOWN(L$75/$F92,0)-SUM($AE92:AF92) -> 0 | AH92: =ROUNDDOWN(M$75/$F92,0)-SUM($AE92:AG92) -> 1 | AI92: =ROUNDDOWN(N$75/$F92,0)-SUM($AE92:AH92) -> 0 | AJ92: =ROUNDDOWN(O$75/$F92,0)-SUM($AE92:AI92) -> 1 | AK92: =ROUNDDOWN(P$75/$F92,0)-SUM($AE92:AJ92) -> 0 | AL92: =ROUNDDOWN(Q$75/$F92,0)-SUM($AE92:AK92) -> 1 | AM92: =ROUNDDOWN(R$75/$F92,0)-SUM($AE92:AL92) -> 0 | AN92: =ROUNDDOWN(S$75/$F92,0)-SUM($AE92:AM92) -> 1 | AO92: =ROUNDDOWN(T$75/$F92,0)-SUM($AE92:AN92) -> 0 | AP92: =ROUNDDOWN(U$75/$F92,0)-SUM($AE92:AO92) -> 1 | AQ92: =ROUNDDOWN(V$75/$F92,0)-SUM($AE92:AP92) -> 0 | AR92: =ROUNDDOWN(W$75/$F92,0)-SUM($AE92:AQ92) -> 1 | AS92: =ROUNDDOWN(X$75/$F92,0)-SUM($AE92:AR92) -> 0 | AT92: =ROUNDDOWN(Y$75/$F92,0)-SUM($AE92:AS92) -> 1 | AU92: =ROUNDDOWN(Z$75/$F92,0)-SUM($AE92:AT92) -> 1 | AV92: =ROUNDDOWN(AA$75/$F92,0)-SUM($AE92:AU92) -> 0 | AW92: =ROUNDDOWN(AB$75/$F92,0)-SUM($AE92:AV92) -> 1 | AX92: =ROUNDDOWN(AC$75/$F92,0)-SUM($AE92:AW92) -> 0
B93: 16 | C93: CALIBRACIÓN DE LA BOMBA DE INYECCIÓN | D93: UND | E93: 1 | F93: 150000 | G93: 296.2 | H93: Costo de mantenimiento mecánico | J93: =+AE93*$E93*$G93*(1+'Sup Generales'!C$10) -> 0 | K93: =+AF93*$E93*$G93*(1+'Sup Generales'!D$10) -> 0 | L93: =+AG93*$E93*$G93*(1+'Sup Generales'!E$10) -> 304.6917104 | M93: =+AH93*$E93*$G93*(1+'Sup Generales'!F$10) -> 0 | N93: =+AI93*$E93*$G93*(1+'Sup Generales'!G$10) -> 312.0481871 | O93: =+AJ93*$E93*$G93*(1+'Sup Generales'!H$10) -> 0 | P93: =+AK93*$E93*$G93*(1+'Sup Generales'!I$10) -> 0 | Q93: =+AL93*$E93*$G93*(1+'Sup Generales'!J$10) -> 324.6971745 | R93: =+AM93*$E93*$G93*(1+'Sup Generales'!K$10) -> 0 | S93: =+AN93*$E93*$G93*(1+'Sup Generales'!L$10) -> 334.181579 | T93: =+AO93*$E93*$G93*(1+'Sup Generales'!M$10) -> 0 | U93: =+AP93*$E93*$G93*(1+'Sup Generales'!N$10) -> 343.7827186 | V93: =+AQ93*$E93*$G93*(1+'Sup Generales'!O$10) -> 0 | W93: =+AR93*$E93*$G93*(1+'Sup Generales'!P$10) -> 0 | X93: =+AS93*$E93*$G93*(1+'Sup Generales'!Q$10) -> 358.2247673 | Y93: =+AT93*$E93*$G93*(1+'Sup Generales'!R$10) -> 0 | Z93: =+AU93*$E93*$G93*(1+'Sup Generales'!S$10) -> 367.7646818 | AA93: =+AV93*$E93*$G93*(1+'Sup Generales'!T$10) -> 0 | AB93: =+AW93*$E93*$G93*(1+'Sup Generales'!U$10) -> 377.7281425 | AC93: =+AX93*$E93*$G93*(1+'Sup Generales'!V$10) -> 0 | AE93: 0 | AF93: =ROUNDDOWN(K$75/$F93,0)-SUM($AE93:AE93) -> 0 | AG93: =ROUNDDOWN(L$75/$F93,0)-SUM($AE93:AF93) -> 1 | AH93: =ROUNDDOWN(M$75/$F93,0)-SUM($AE93:AG93) -> 0 | AI93: =ROUNDDOWN(N$75/$F93,0)-SUM($AE93:AH93) -> 1 | AJ93: =ROUNDDOWN(O$75/$F93,0)-SUM($AE93:AI93) -> 0 | AK93: =ROUNDDOWN(P$75/$F93,0)-SUM($AE93:AJ93) -> 0 | AL93: =ROUNDDOWN(Q$75/$F93,0)-SUM($AE93:AK93) -> 1 | AM93: =ROUNDDOWN(R$75/$F93,0)-SUM($AE93:AL93) -> 0 | AN93: =ROUNDDOWN(S$75/$F93,0)-SUM($AE93:AM93) -> 1 | AO93: =ROUNDDOWN(T$75/$F93,0)-SUM($AE93:AN93) -> 0 | AP93: =ROUNDDOWN(U$75/$F93,0)-SUM($AE93:AO93) -> 1 | AQ93: =ROUNDDOWN(V$75/$F93,0)-SUM($AE93:AP93) -> 0 | AR93: =ROUNDDOWN(W$75/$F93,0)-SUM($AE93:AQ93) -> 0 | AS93: =ROUNDDOWN(X$75/$F93,0)-SUM($AE93:AR93) -> 1 | AT93: =ROUNDDOWN(Y$75/$F93,0)-SUM($AE93:AS93) -> 0 | AU93: =ROUNDDOWN(Z$75/$F93,0)-SUM($AE93:AT93) -> 1 | AV93: =ROUNDDOWN(AA$75/$F93,0)-SUM($AE93:AU93) -> 0 | AW93: =ROUNDDOWN(AB$75/$F93,0)-SUM($AE93:AV93) -> 1 | AX93: =ROUNDDOWN(AC$75/$F93,0)-SUM($AE93:AW93) -> 0
B94: 17 | C94: EMBRAGUE | D94: JGO. | E94: 1 | F94: 60000 | G94: 728.3333333 | H94: Costo de mantenimiento mecánico | J94: =+AE94*$E94*$G94*(1+'Sup Generales'!C$10) -> 734.4513333 | K94: =+AF94*$E94*$G94*(1+'Sup Generales'!D$10) -> 741.7958467 | L94: =+AG94*$E94*$G94*(1+'Sup Generales'!E$10) -> 749.2138051 | M94: =+AH94*$E94*$G94*(1+'Sup Generales'!F$10) -> 758.2043708 | N94: =+AI94*$E94*$G94*(1+'Sup Generales'!G$10) -> 767.3028232 | O94: =+AJ94*$E94*$G94*(1+'Sup Generales'!H$10) -> 777.2777599 | P94: =+AK94*$E94*$G94*(1+'Sup Generales'!I$10) -> 787.3823708 | Q94: =+AL94*$E94*$G94*(1+'Sup Generales'!J$10) -> 798.405724 | R94: =+AM94*$E94*$G94*(1+'Sup Generales'!K$10) -> 809.5834042 | S94: =+AN94*$E94*$G94*(1+'Sup Generales'!L$10) -> 821.7271552 | T94: =+AO94*$E94*$G94*(1+'Sup Generales'!M$10) -> 834.0530625 | U94: =+AP94*$E94*$G94*(1+'Sup Generales'!N$10) -> 845.3356293 | V94: =+AQ94*$E94*$G94*(1+'Sup Generales'!O$10) -> 857.49225 | W94: =+AR94*$E94*$G94*(1+'Sup Generales'!P$10) -> 869.2844987 | X94: =+AS94*$E94*$G94*(1+'Sup Generales'!Q$10) -> 880.8475315 | Y94: =+AT94*$E94*$G94*(1+'Sup Generales'!R$10) -> 1784.813052 | Z94: =+AU94*$E94*$G94*(1+'Sup Generales'!S$10) -> 904.3054578 | AA94: =+AV94*$E94*$G94*(1+'Sup Generales'!T$10) -> 916.4771203 | AB94: =+AW94*$E94*$G94*(1+'Sup Generales'!U$10) -> 928.8048519 | AC94: =+AX94*$E94*$G94*(1+'Sup Generales'!V$10) -> 941.1904788 | AE94: 1 | AF94: =ROUNDDOWN(K$75/$F94,0)-SUM($AE94:AE94) -> 1 | AG94: =ROUNDDOWN(L$75/$F94,0)-SUM($AE94:AF94) -> 1 | AH94: =ROUNDDOWN(M$75/$F94,0)-SUM($AE94:AG94) -> 1 | AI94: =ROUNDDOWN(N$75/$F94,0)-SUM($AE94:AH94) -> 1 | AJ94: =ROUNDDOWN(O$75/$F94,0)-SUM($AE94:AI94) -> 1 | AK94: =ROUNDDOWN(P$75/$F94,0)-SUM($AE94:AJ94) -> 1 | AL94: =ROUNDDOWN(Q$75/$F94,0)-SUM($AE94:AK94) -> 1 | AM94: =ROUNDDOWN(R$75/$F94,0)-SUM($AE94:AL94) -> 1 | AN94: =ROUNDDOWN(S$75/$F94,0)-SUM($AE94:AM94) -> 1 | AO94: =ROUNDDOWN(T$75/$F94,0)-SUM($AE94:AN94) -> 1 | AP94: =ROUNDDOWN(U$75/$F94,0)-SUM($AE94:AO94) -> 1 | AQ94: =ROUNDDOWN(V$75/$F94,0)-SUM($AE94:AP94) -> 1 | AR94: =ROUNDDOWN(W$75/$F94,0)-SUM($AE94:AQ94) -> 1 | AS94: =ROUNDDOWN(X$75/$F94,0)-SUM($AE94:AR94) -> 1 | AT94: =ROUNDDOWN(Y$75/$F94,0)-SUM($AE94:AS94) -> 2 | AU94: =ROUNDDOWN(Z$75/$F94,0)-SUM($AE94:AT94) -> 1 | AV94: =ROUNDDOWN(AA$75/$F94,0)-SUM($AE94:AU94) -> 1 | AW94: =ROUNDDOWN(AB$75/$F94,0)-SUM($AE94:AV94) -> 1 | AX94: =ROUNDDOWN(AC$75/$F94,0)-SUM($AE94:AW94) -> 1
B95: 18 | C95: BUSTER EMBRAGUE | D95: JGO. | E95: 1 | F95: 30000 | G95: 175 | H95: Costo de mantenimiento mecánico | J95: =+AE95*$E95*$G95*(1+'Sup Generales'!C$10) -> 352.94 | K95: =+AF95*$E95*$G95*(1+'Sup Generales'!D$10) -> 356.4694 | L95: =+AG95*$E95*$G95*(1+'Sup Generales'!E$10) -> 360.034094 | M95: =+AH95*$E95*$G95*(1+'Sup Generales'!F$10) -> 364.3545031 | N95: =+AI95*$E95*$G95*(1+'Sup Generales'!G$10) -> 368.7267572 | O95: =+AJ95*$E95*$G95*(1+'Sup Generales'!H$10) -> 373.520205 | P95: =+AK95*$E95*$G95*(1+'Sup Generales'!I$10) -> 378.3759677 | Q95: =+AL95*$E95*$G95*(1+'Sup Generales'!J$10) -> 575.5098468 | R95: =+AM95*$E95*$G95*(1+'Sup Generales'!K$10) -> 389.0446565 | S95: =+AN95*$E95*$G95*(1+'Sup Generales'!L$10) -> 394.8803263 | T95: =+AO95*$E95*$G95*(1+'Sup Generales'!M$10) -> 400.8035312 | U95: =+AP95*$E95*$G95*(1+'Sup Generales'!N$10) -> 406.2253596 | V95: =+AQ95*$E95*$G95*(1+'Sup Generales'!O$10) -> 412.067214 | W95: =+AR95*$E95*$G95*(1+'Sup Generales'!P$10) -> 417.7339696 | X95: =+AS95*$E95*$G95*(1+'Sup Generales'!Q$10) -> 423.2905758 | Y95: =+AT95*$E95*$G95*(1+'Sup Generales'!R$10) -> 643.267862 | Z95: =+AU95*$E95*$G95*(1+'Sup Generales'!S$10) -> 434.5632635 | AA95: =+AV95*$E95*$G95*(1+'Sup Generales'!T$10) -> 440.4123461 | AB95: =+AW95*$E95*$G95*(1+'Sup Generales'!U$10) -> 446.3364277 | AC95: =+AX95*$E95*$G95*(1+'Sup Generales'!V$10) -> 452.2883308 | AE95: 2 | AF95: =ROUNDDOWN(K$75/$F95,0)-SUM($AE95:AE95) -> 2 | AG95: =ROUNDDOWN(L$75/$F95,0)-SUM($AE95:AF95) -> 2 | AH95: =ROUNDDOWN(M$75/$F95,0)-SUM($AE95:AG95) -> 2 | AI95: =ROUNDDOWN(N$75/$F95,0)-SUM($AE95:AH95) -> 2 | AJ95: =ROUNDDOWN(O$75/$F95,0)-SUM($AE95:AI95) -> 2 | AK95: =ROUNDDOWN(P$75/$F95,0)-SUM($AE95:AJ95) -> 2 | AL95: =ROUNDDOWN(Q$75/$F95,0)-SUM($AE95:AK95) -> 3 | AM95: =ROUNDDOWN(R$75/$F95,0)-SUM($AE95:AL95) -> 2 | AN95: =ROUNDDOWN(S$75/$F95,0)-SUM($AE95:AM95) -> 2 | AO95: =ROUNDDOWN(T$75/$F95,0)-SUM($AE95:AN95) -> 2 | AP95: =ROUNDDOWN(U$75/$F95,0)-SUM($AE95:AO95) -> 2 | AQ95: =ROUNDDOWN(V$75/$F95,0)-SUM($AE95:AP95) -> 2 | AR95: =ROUNDDOWN(W$75/$F95,0)-SUM($AE95:AQ95) -> 2 | AS95: =ROUNDDOWN(X$75/$F95,0)-SUM($AE95:AR95) -> 2 | AT95: =ROUNDDOWN(Y$75/$F95,0)-SUM($AE95:AS95) -> 3 | AU95: =ROUNDDOWN(Z$75/$F95,0)-SUM($AE95:AT95) -> 2 | AV95: =ROUNDDOWN(AA$75/$F95,0)-SUM($AE95:AU95) -> 2 | AW95: =ROUNDDOWN(AB$75/$F95,0)-SUM($AE95:AV95) -> 2 | AX95: =ROUNDDOWN(AC$75/$F95,0)-SUM($AE95:AW95) -> 2
B96: 19 | C96: SOPORTE DE CARDAN Y CRUCETAS | D96: JGO. | E96: 1 | F96: 30000 | G96: 176.506 | H96: Costo de mantenimiento mecánico | J96: =+AE96*$E96*$G96*(1+'Sup Generales'!C$10) -> 355.9773008 | K96: =+AF96*$E96*$G96*(1+'Sup Generales'!D$10) -> 359.5370738 | L96: =+AG96*$E96*$G96*(1+'Sup Generales'!E$10) -> 363.1324445 | M96: =+AH96*$E96*$G96*(1+'Sup Generales'!F$10) -> 367.4900339 | N96: =+AI96*$E96*$G96*(1+'Sup Generales'!G$10) -> 371.8999143 | O96: =+AJ96*$E96*$G96*(1+'Sup Generales'!H$10) -> 376.7346132 | P96: =+AK96*$E96*$G96*(1+'Sup Generales'!I$10) -> 381.6321631 | Q96: =+AL96*$E96*$G96*(1+'Sup Generales'!J$10) -> 580.4625201 | R96: =+AM96*$E96*$G96*(1+'Sup Generales'!K$10) -> 392.3926636 | S96: =+AN96*$E96*$G96*(1+'Sup Generales'!L$10) -> 398.2785536 | T96: =+AO96*$E96*$G96*(1+'Sup Generales'!M$10) -> 404.2527319 | U96: =+AP96*$E96*$G96*(1+'Sup Generales'!N$10) -> 409.721219 | V96: =+AQ96*$E96*$G96*(1+'Sup Generales'!O$10) -> 415.6133467 | W96: =+AR96*$E96*$G96*(1+'Sup Generales'!P$10) -> 421.3288688 | X96: =+AS96*$E96*$G96*(1+'Sup Generales'!Q$10) -> 426.9332935 | Y96: =+AT96*$E96*$G96*(1+'Sup Generales'!R$10) -> 648.8036414 | Z96: =+AU96*$E96*$G96*(1+'Sup Generales'!S$10) -> 438.3029908 | AA96: =+AV96*$E96*$G96*(1+'Sup Generales'!T$10) -> 444.202409 | AB96: =+AW96*$E96*$G96*(1+'Sup Generales'!U$10) -> 450.1774715 | AC96: =+AX96*$E96*$G96*(1+'Sup Generales'!V$10) -> 456.1805949 | AE96: 2 | AF96: =ROUNDDOWN(K$75/$F96,0)-SUM($AE96:AE96) -> 2 | AG96: =ROUNDDOWN(L$75/$F96,0)-SUM($AE96:AF96) -> 2 | AH96: =ROUNDDOWN(M$75/$F96,0)-SUM($AE96:AG96) -> 2 | AI96: =ROUNDDOWN(N$75/$F96,0)-SUM($AE96:AH96) -> 2 | AJ96: =ROUNDDOWN(O$75/$F96,0)-SUM($AE96:AI96) -> 2 | AK96: =ROUNDDOWN(P$75/$F96,0)-SUM($AE96:AJ96) -> 2 | AL96: =ROUNDDOWN(Q$75/$F96,0)-SUM($AE96:AK96) -> 3 | AM96: =ROUNDDOWN(R$75/$F96,0)-SUM($AE96:AL96) -> 2 | AN96: =ROUNDDOWN(S$75/$F96,0)-SUM($AE96:AM96) -> 2 | AO96: =ROUNDDOWN(T$75/$F96,0)-SUM($AE96:AN96) -> 2 | AP96: =ROUNDDOWN(U$75/$F96,0)-SUM($AE96:AO96) -> 2 | AQ96: =ROUNDDOWN(V$75/$F96,0)-SUM($AE96:AP96) -> 2 | AR96: =ROUNDDOWN(W$75/$F96,0)-SUM($AE96:AQ96) -> 2 | AS96: =ROUNDDOWN(X$75/$F96,0)-SUM($AE96:AR96) -> 2 | AT96: =ROUNDDOWN(Y$75/$F96,0)-SUM($AE96:AS96) -> 3 | AU96: =ROUNDDOWN(Z$75/$F96,0)-SUM($AE96:AT96) -> 2 | AV96: =ROUNDDOWN(AA$75/$F96,0)-SUM($AE96:AU96) -> 2 | AW96: =ROUNDDOWN(AB$75/$F96,0)-SUM($AE96:AV96) -> 2 | AX96: =ROUNDDOWN(AC$75/$F96,0)-SUM($AE96:AW96) -> 2
B97: 20 | C97: MANTENIMIENTO SISTEMA NEUMÁTICO | D97: UND | E97: 1 | F97: 30000 | G97: 137.75 | H97: Costo de mantenimiento mecánico | J97: =+AE97*$E97*$G97*(1+'Sup Generales'!C$10) -> 277.8142 | K97: =+AF97*$E97*$G97*(1+'Sup Generales'!D$10) -> 280.592342 | L97: =+AG97*$E97*$G97*(1+'Sup Generales'!E$10) -> 283.3982654 | M97: =+AH97*$E97*$G97*(1+'Sup Generales'!F$10) -> 286.7990446 | N97: =+AI97*$E97*$G97*(1+'Sup Generales'!G$10) -> 290.2406331 | O97: =+AJ97*$E97*$G97*(1+'Sup Generales'!H$10) -> 294.0137614 | P97: =+AK97*$E97*$G97*(1+'Sup Generales'!I$10) -> 297.8359403 | Q97: =+AL97*$E97*$G97*(1+'Sup Generales'!J$10) -> 453.0084651 | R97: =+AM97*$E97*$G97*(1+'Sup Generales'!K$10) -> 306.2337224 | S97: =+AN97*$E97*$G97*(1+'Sup Generales'!L$10) -> 310.8272283 | T97: =+AO97*$E97*$G97*(1+'Sup Generales'!M$10) -> 315.4896367 | U97: =+AP97*$E97*$G97*(1+'Sup Generales'!N$10) -> 319.7573902 | V97: =+AQ97*$E97*$G97*(1+'Sup Generales'!O$10) -> 324.3557641 | W97: =+AR97*$E97*$G97*(1+'Sup Generales'!P$10) -> 328.8163104 | X97: =+AS97*$E97*$G97*(1+'Sup Generales'!Q$10) -> 333.1901532 | Y97: =+AT97*$E97*$G97*(1+'Sup Generales'!R$10) -> 506.3437028 | Z97: =+AU97*$E97*$G97*(1+'Sup Generales'!S$10) -> 342.0633688 | AA97: =+AV97*$E97*$G97*(1+'Sup Generales'!T$10) -> 346.6674325 | AB97: =+AW97*$E97*$G97*(1+'Sup Generales'!U$10) -> 351.3305309 | AC97: =+AX97*$E97*$G97*(1+'Sup Generales'!V$10) -> 356.0155289 | AE97: 2 | AF97: =ROUNDDOWN(K$75/$F97,0)-SUM($AE97:AE97) -> 2 | AG97: =ROUNDDOWN(L$75/$F97,0)-SUM($AE97:AF97) -> 2 | AH97: =ROUNDDOWN(M$75/$F97,0)-SUM($AE97:AG97) -> 2 | AI97: =ROUNDDOWN(N$75/$F97,0)-SUM($AE97:AH97) -> 2 | AJ97: =ROUNDDOWN(O$75/$F97,0)-SUM($AE97:AI97) -> 2 | AK97: =ROUNDDOWN(P$75/$F97,0)-SUM($AE97:AJ97) -> 2 | AL97: =ROUNDDOWN(Q$75/$F97,0)-SUM($AE97:AK97) -> 3 | AM97: =ROUNDDOWN(R$75/$F97,0)-SUM($AE97:AL97) -> 2 | AN97: =ROUNDDOWN(S$75/$F97,0)-SUM($AE97:AM97) -> 2 | AO97: =ROUNDDOWN(T$75/$F97,0)-SUM($AE97:AN97) -> 2 | AP97: =ROUNDDOWN(U$75/$F97,0)-SUM($AE97:AO97) -> 2 | AQ97: =ROUNDDOWN(V$75/$F97,0)-SUM($AE97:AP97) -> 2 | AR97: =ROUNDDOWN(W$75/$F97,0)-SUM($AE97:AQ97) -> 2 | AS97: =ROUNDDOWN(X$75/$F97,0)-SUM($AE97:AR97) -> 2 | AT97: =ROUNDDOWN(Y$75/$F97,0)-SUM($AE97:AS97) -> 3 | AU97: =ROUNDDOWN(Z$75/$F97,0)-SUM($AE97:AT97) -> 2 | AV97: =ROUNDDOWN(AA$75/$F97,0)-SUM($AE97:AU97) -> 2 | AW97: =ROUNDDOWN(AB$75/$F97,0)-SUM($AE97:AV97) -> 2 | AX97: =ROUNDDOWN(AC$75/$F97,0)-SUM($AE97:AW97) -> 2
B98: 21 | C98: ZAPATAS (JUEGO FORROS 2) X 4 | D98: JGO. | E98: 2 | F98: 20000 | G98: 74.13166667 | H98: Costo de mantenimiento mecánico | J98: =+AE98*$E98*$G98*(1+'Sup Generales'!C$10) -> 448.526236 | K98: =+AF98*$E98*$G98*(1+'Sup Generales'!D$10) -> 453.0114984 | L98: =+AG98*$E98*$G98*(1+'Sup Generales'!E$10) -> 457.5416133 | M98: =+AH98*$E98*$G98*(1+'Sup Generales'!F$10) -> 463.0321127 | N98: =+AI98*$E98*$G98*(1+'Sup Generales'!G$10) -> 468.5884981 | O98: =+AJ98*$E98*$G98*(1+'Sup Generales'!H$10) -> 632.9068647 | P98: =+AK98*$E98*$G98*(1+'Sup Generales'!I$10) -> 480.8509905 | Q98: =+AL98*$E98*$G98*(1+'Sup Generales'!J$10) -> 487.5829043 | R98: =+AM98*$E98*$G98*(1+'Sup Generales'!K$10) -> 494.409065 | S98: =+AN98*$E98*$G98*(1+'Sup Generales'!L$10) -> 501.825201 | T98: =+AO98*$E98*$G98*(1+'Sup Generales'!M$10) -> 679.136772 | U98: =+AP98*$E98*$G98*(1+'Sup Generales'!N$10) -> 516.2427934 | V98: =+AQ98*$E98*$G98*(1+'Sup Generales'!O$10) -> 523.6667889 | W98: =+AR98*$E98*$G98*(1+'Sup Generales'!P$10) -> 530.8682639 | X98: =+AS98*$E98*$G98*(1+'Sup Generales'!Q$10) -> 537.9297577 | Y98: =+AT98*$E98*$G98*(1+'Sup Generales'!R$10) -> 726.6517139 | Z98: =+AU98*$E98*$G98*(1+'Sup Generales'!S$10) -> 552.2554113 | AA98: =+AV98*$E98*$G98*(1+'Sup Generales'!T$10) -> 559.6885927 | AB98: =+AW98*$E98*$G98*(1+'Sup Generales'!U$10) -> 567.2170848 | AC98: =+AX98*$E98*$G98*(1+'Sup Generales'!V$10) -> 574.7809333 | AE98: 3 | AF98: =ROUNDDOWN(K$75/$F98,0)-SUM($AE98:AE98) -> 3 | AG98: =ROUNDDOWN(L$75/$F98,0)-SUM($AE98:AF98) -> 3 | AH98: =ROUNDDOWN(M$75/$F98,0)-SUM($AE98:AG98) -> 3 | AI98: =ROUNDDOWN(N$75/$F98,0)-SUM($AE98:AH98) -> 3 | AJ98: =ROUNDDOWN(O$75/$F98,0)-SUM($AE98:AI98) -> 4 | AK98: =ROUNDDOWN(P$75/$F98,0)-SUM($AE98:AJ98) -> 3 | AL98: =ROUNDDOWN(Q$75/$F98,0)-SUM($AE98:AK98) -> 3 | AM98: =ROUNDDOWN(R$75/$F98,0)-SUM($AE98:AL98) -> 3 | AN98: =ROUNDDOWN(S$75/$F98,0)-SUM($AE98:AM98) -> 3 | AO98: =ROUNDDOWN(T$75/$F98,0)-SUM($AE98:AN98) -> 4 | AP98: =ROUNDDOWN(U$75/$F98,0)-SUM($AE98:AO98) -> 3 | AQ98: =ROUNDDOWN(V$75/$F98,0)-SUM($AE98:AP98) -> 3 | AR98: =ROUNDDOWN(W$75/$F98,0)-SUM($AE98:AQ98) -> 3 | AS98: =ROUNDDOWN(X$75/$F98,0)-SUM($AE98:AR98) -> 3 | AT98: =ROUNDDOWN(Y$75/$F98,0)-SUM($AE98:AS98) -> 4 | AU98: =ROUNDDOWN(Z$75/$F98,0)-SUM($AE98:AT98) -> 3 | AV98: =ROUNDDOWN(AA$75/$F98,0)-SUM($AE98:AU98) -> 3 | AW98: =ROUNDDOWN(AB$75/$F98,0)-SUM($AE98:AV98) -> 3 | AX98: =ROUNDDOWN(AC$75/$F98,0)-SUM($AE98:AW98) -> 3
B99: 22 | C99: CAMBIO TAMBORES (JUEGO) | D99: UND | E99: 4 | F99: 180000 | G99: 151.96125 | H99: Costo de mantenimiento mecánico | J99: =+AE99*$E99*$G99*(1+'Sup Generales'!C$10) -> 0 | K99: =+AF99*$E99*$G99*(1+'Sup Generales'!D$10) -> 0 | L99: =+AG99*$E99*$G99*(1+'Sup Generales'!E$10) -> 625.271211 | M99: =+AH99*$E99*$G99*(1+'Sup Generales'!F$10) -> 0 | N99: =+AI99*$E99*$G99*(1+'Sup Generales'!G$10) -> 0 | O99: =+AJ99*$E99*$G99*(1+'Sup Generales'!H$10) -> 648.69254 | P99: =+AK99*$E99*$G99*(1+'Sup Generales'!I$10) -> 0 | Q99: =+AL99*$E99*$G99*(1+'Sup Generales'!J$10) -> 0 | R99: =+AM99*$E99*$G99*(1+'Sup Generales'!K$10) -> 675.6538549 | S99: =+AN99*$E99*$G99*(1+'Sup Generales'!L$10) -> 0 | T99: =+AO99*$E99*$G99*(1+'Sup Generales'!M$10) -> 0 | U99: =+AP99*$E99*$G99*(1+'Sup Generales'!N$10) -> 705.491582 | V99: =+AQ99*$E99*$G99*(1+'Sup Generales'!O$10) -> 0 | W99: =+AR99*$E99*$G99*(1+'Sup Generales'!P$10) -> 0 | X99: =+AS99*$E99*$G99*(1+'Sup Generales'!Q$10) -> 735.1287429 | Y99: =+AT99*$E99*$G99*(1+'Sup Generales'!R$10) -> 0 | Z99: =+AU99*$E99*$G99*(1+'Sup Generales'!S$10) -> 754.7060197 | AA99: =+AV99*$E99*$G99*(1+'Sup Generales'!T$10) -> 0 | AB99: =+AW99*$E99*$G99*(1+'Sup Generales'!U$10) -> 0 | AC99: =+AX99*$E99*$G99*(1+'Sup Generales'!V$10) -> 785.489144 | AE99: 0 | AF99: =ROUNDDOWN(K$75/$F99,0)-SUM($AE99:AE99) -> 0 | AG99: =ROUNDDOWN(L$75/$F99,0)-SUM($AE99:AF99) -> 1 | AH99: =ROUNDDOWN(M$75/$F99,0)-SUM($AE99:AG99) -> 0 | AI99: =ROUNDDOWN(N$75/$F99,0)-SUM($AE99:AH99) -> 0 | AJ99: =ROUNDDOWN(O$75/$F99,0)-SUM($AE99:AI99) -> 1 | AK99: =ROUNDDOWN(P$75/$F99,0)-SUM($AE99:AJ99) -> 0 | AL99: =ROUNDDOWN(Q$75/$F99,0)-SUM($AE99:AK99) -> 0 | AM99: =ROUNDDOWN(R$75/$F99,0)-SUM($AE99:AL99) -> 1 | AN99: =ROUNDDOWN(S$75/$F99,0)-SUM($AE99:AM99) -> 0 | AO99: =ROUNDDOWN(T$75/$F99,0)-SUM($AE99:AN99) -> 0 | AP99: =ROUNDDOWN(U$75/$F99,0)-SUM($AE99:AO99) -> 1 | AQ99: =ROUNDDOWN(V$75/$F99,0)-SUM($AE99:AP99) -> 0 | AR99: =ROUNDDOWN(W$75/$F99,0)-SUM($AE99:AQ99) -> 0 | AS99: =ROUNDDOWN(X$75/$F99,0)-SUM($AE99:AR99) -> 1 | AT99: =ROUNDDOWN(Y$75/$F99,0)-SUM($AE99:AS99) -> 0 | AU99: =ROUNDDOWN(Z$75/$F99,0)-SUM($AE99:AT99) -> 1 | AV99: =ROUNDDOWN(AA$75/$F99,0)-SUM($AE99:AU99) -> 0 | AW99: =ROUNDDOWN(AB$75/$F99,0)-SUM($AE99:AV99) -> 0 | AX99: =ROUNDDOWN(AC$75/$F99,0)-SUM($AE99:AW99) -> 1
B100: 23 | C100: RACHES DE FRENO | D100: JGO. | E100: 4 | F100: 180000 | G100: 90.822 | H100: Costo de mantenimiento mecánico | J100: =+AE100*$E100*$G100*(1+'Sup Generales'!C$10) -> 0 | K100: =+AF100*$E100*$G100*(1+'Sup Generales'!D$10) -> 0 | L100: =+AG100*$E100*$G100*(1+'Sup Generales'!E$10) -> 373.7030455 | M100: =+AH100*$E100*$G100*(1+'Sup Generales'!F$10) -> 0 | N100: =+AI100*$E100*$G100*(1+'Sup Generales'!G$10) -> 0 | O100: =+AJ100*$E100*$G100*(1+'Sup Generales'!H$10) -> 387.7011664 | P100: =+AK100*$E100*$G100*(1+'Sup Generales'!I$10) -> 0 | Q100: =+AL100*$E100*$G100*(1+'Sup Generales'!J$10) -> 0 | R100: =+AM100*$E100*$G100*(1+'Sup Generales'!K$10) -> 403.8150147 | S100: =+AN100*$E100*$G100*(1+'Sup Generales'!L$10) -> 0 | T100: =+AO100*$E100*$G100*(1+'Sup Generales'!M$10) -> 0 | U100: =+AP100*$E100*$G100*(1+'Sup Generales'!N$10) -> 421.6479956 | V100: =+AQ100*$E100*$G100*(1+'Sup Generales'!O$10) -> 0 | W100: =+AR100*$E100*$G100*(1+'Sup Generales'!P$10) -> 0 | X100: =+AS100*$E100*$G100*(1+'Sup Generales'!Q$10) -> 439.3611048 | Y100: =+AT100*$E100*$G100*(1+'Sup Generales'!R$10) -> 0 | Z100: =+AU100*$E100*$G100*(1+'Sup Generales'!S$10) -> 451.0617682 | AA100: =+AV100*$E100*$G100*(1+'Sup Generales'!T$10) -> 0 | AB100: =+AW100*$E100*$G100*(1+'Sup Generales'!U$10) -> 0 | AC100: =+AX100*$E100*$G100*(1+'Sup Generales'!V$10) -> 469.4597803 | AE100: 0 | AF100: =ROUNDDOWN(K$75/$F100,0)-SUM($AE100:AE100) -> 0 | AG100: =ROUNDDOWN(L$75/$F100,0)-SUM($AE100:AF100) -> 1 | AH100: =ROUNDDOWN(M$75/$F100,0)-SUM($AE100:AG100) -> 0 | AI100: =ROUNDDOWN(N$75/$F100,0)-SUM($AE100:AH100) -> 0 | AJ100: =ROUNDDOWN(O$75/$F100,0)-SUM($AE100:AI100) -> 1 | AK100: =ROUNDDOWN(P$75/$F100,0)-SUM($AE100:AJ100) -> 0 | AL100: =ROUNDDOWN(Q$75/$F100,0)-SUM($AE100:AK100) -> 0 | AM100: =ROUNDDOWN(R$75/$F100,0)-SUM($AE100:AL100) -> 1 | AN100: =ROUNDDOWN(S$75/$F100,0)-SUM($AE100:AM100) -> 0 | AO100: =ROUNDDOWN(T$75/$F100,0)-SUM($AE100:AN100) -> 0 | AP100: =ROUNDDOWN(U$75/$F100,0)-SUM($AE100:AO100) -> 1 | AQ100: =ROUNDDOWN(V$75/$F100,0)-SUM($AE100:AP100) -> 0 | AR100: =ROUNDDOWN(W$75/$F100,0)-SUM($AE100:AQ100) -> 0 | AS100: =ROUNDDOWN(X$75/$F100,0)-SUM($AE100:AR100) -> 1 | AT100: =ROUNDDOWN(Y$75/$F100,0)-SUM($AE100:AS100) -> 0 | AU100: =ROUNDDOWN(Z$75/$F100,0)-SUM($AE100:AT100) -> 1 | AV100: =ROUNDDOWN(AA$75/$F100,0)-SUM($AE100:AU100) -> 0 | AW100: =ROUNDDOWN(AB$75/$F100,0)-SUM($AE100:AV100) -> 0 | AX100: =ROUNDDOWN(AC$75/$F100,0)-SUM($AE100:AW100) -> 1
B101: 24 | C101: BATERÍAS | D101: UND | E101: 2 | F101: 60000 | G101: 195.0585714 | H101: Costo de mantenimiento eléctrico | J101: =+AE101*$E101*$G101*(1+'Sup Generales'!C$10) -> 393.3941269 | K101: =+AF101*$E101*$G101*(1+'Sup Generales'!D$10) -> 397.3280681 | L101: =+AG101*$E101*$G101*(1+'Sup Generales'!E$10) -> 401.3013488 | M101: =+AH101*$E101*$G101*(1+'Sup Generales'!F$10) -> 406.116965 | N101: =+AI101*$E101*$G101*(1+'Sup Generales'!G$10) -> 410.9903686 | O101: =+AJ101*$E101*$G101*(1+'Sup Generales'!H$10) -> 416.3332434 | P101: =+AK101*$E101*$G101*(1+'Sup Generales'!I$10) -> 421.7455755 | Q101: =+AL101*$E101*$G101*(1+'Sup Generales'!J$10) -> 427.6500136 | R101: =+AM101*$E101*$G101*(1+'Sup Generales'!K$10) -> 433.6371138 | S101: =+AN101*$E101*$G101*(1+'Sup Generales'!L$10) -> 440.1416705 | T101: =+AO101*$E101*$G101*(1+'Sup Generales'!M$10) -> 446.7437955 | U101: =+AP101*$E101*$G101*(1+'Sup Generales'!N$10) -> 452.7870761 | V101: =+AQ101*$E101*$G101*(1+'Sup Generales'!O$10) -> 459.2985262 | W101: =+AR101*$E101*$G101*(1+'Sup Generales'!P$10) -> 465.6148078 | X101: =+AS101*$E101*$G101*(1+'Sup Generales'!Q$10) -> 471.8083143 | Y101: =+AT101*$E101*$G101*(1+'Sup Generales'!R$10) -> 955.9993158 | Z101: =+AU101*$E101*$G101*(1+'Sup Generales'!S$10) -> 484.3730821 | AA101: =+AV101*$E101*$G101*(1+'Sup Generales'!T$10) -> 490.892589 | AB101: =+AW101*$E101*$G101*(1+'Sup Generales'!U$10) -> 497.4956912 | AC101: =+AX101*$E101*$G101*(1+'Sup Generales'!V$10) -> 504.1298038 | AE101: 1 | AF101: =ROUNDDOWN(K$75/$F101,0)-SUM($AE101:AE101) -> 1 | AG101: =ROUNDDOWN(L$75/$F101,0)-SUM($AE101:AF101) -> 1 | AH101: =ROUNDDOWN(M$75/$F101,0)-SUM($AE101:AG101) -> 1 | AI101: =ROUNDDOWN(N$75/$F101,0)-SUM($AE101:AH101) -> 1 | AJ101: =ROUNDDOWN(O$75/$F101,0)-SUM($AE101:AI101) -> 1 | AK101: =ROUNDDOWN(P$75/$F101,0)-SUM($AE101:AJ101) -> 1 | AL101: =ROUNDDOWN(Q$75/$F101,0)-SUM($AE101:AK101) -> 1 | AM101: =ROUNDDOWN(R$75/$F101,0)-SUM($AE101:AL101) -> 1 | AN101: =ROUNDDOWN(S$75/$F101,0)-SUM($AE101:AM101) -> 1 | AO101: =ROUNDDOWN(T$75/$F101,0)-SUM($AE101:AN101) -> 1 | AP101: =ROUNDDOWN(U$75/$F101,0)-SUM($AE101:AO101) -> 1 | AQ101: =ROUNDDOWN(V$75/$F101,0)-SUM($AE101:AP101) -> 1 | AR101: =ROUNDDOWN(W$75/$F101,0)-SUM($AE101:AQ101) -> 1 | AS101: =ROUNDDOWN(X$75/$F101,0)-SUM($AE101:AR101) -> 1 | AT101: =ROUNDDOWN(Y$75/$F101,0)-SUM($AE101:AS101) -> 2 | AU101: =ROUNDDOWN(Z$75/$F101,0)-SUM($AE101:AT101) -> 1 | AV101: =ROUNDDOWN(AA$75/$F101,0)-SUM($AE101:AU101) -> 1 | AW101: =ROUNDDOWN(AB$75/$F101,0)-SUM($AE101:AV101) -> 1 | AX101: =ROUNDDOWN(AC$75/$F101,0)-SUM($AE101:AW101) -> 1
B102: 25 | C102: SISTEMA ELÉCTRICO | D102: UND | E102: 1 | F102: 5000 | G102: 153.125 | H102: Costo de mantenimiento eléctrico | J102: =+AE102*$E102*$G102*(1+'Sup Generales'!C$10) -> 1852.935 | K102: =+AF102*$E102*$G102*(1+'Sup Generales'!D$10) -> 2027.419712 | L102: =+AG102*$E102*$G102*(1+'Sup Generales'!E$10) -> 2047.69391 | M102: =+AH102*$E102*$G102*(1+'Sup Generales'!F$10) -> 2072.266237 | N102: =+AI102*$E102*$G102*(1+'Sup Generales'!G$10) -> 1935.815475 | O102: =+AJ102*$E102*$G102*(1+'Sup Generales'!H$10) -> 2124.396166 | P102: =+AK102*$E102*$G102*(1+'Sup Generales'!I$10) -> 2152.013316 | Q102: =+AL102*$E102*$G102*(1+'Sup Generales'!J$10) -> 2182.141503 | R102: =+AM102*$E102*$G102*(1+'Sup Generales'!K$10) -> 2042.484446 | S102: =+AN102*$E102*$G102*(1+'Sup Generales'!L$10) -> 2245.881856 | T102: =+AO102*$E102*$G102*(1+'Sup Generales'!M$10) -> 2279.570084 | U102: =+AP102*$E102*$G102*(1+'Sup Generales'!N$10) -> 2310.406733 | V102: =+AQ102*$E102*$G102*(1+'Sup Generales'!O$10) -> 2163.352873 | W102: =+AR102*$E102*$G102*(1+'Sup Generales'!P$10) -> 2375.861952 | X102: =+AS102*$E102*$G102*(1+'Sup Generales'!Q$10) -> 2407.46515 | Y102: =+AT102*$E102*$G102*(1+'Sup Generales'!R$10) -> 2439.05731 | Z102: =+AU102*$E102*$G102*(1+'Sup Generales'!S$10) -> 2471.578561 | AA102: =+AV102*$E102*$G102*(1+'Sup Generales'!T$10) -> 2312.164817 | AB102: =+AW102*$E102*$G102*(1+'Sup Generales'!U$10) -> 2538.538433 | AC102: =+AX102*$E102*$G102*(1+'Sup Generales'!V$10) -> 2572.389881 | AE102: 12 | AF102: =ROUNDDOWN(K$75/$F102,0)-SUM($AE102:AE102) -> 13 | AG102: =ROUNDDOWN(L$75/$F102,0)-SUM($AE102:AF102) -> 13 | AH102: =ROUNDDOWN(M$75/$F102,0)-SUM($AE102:AG102) -> 13 | AI102: =ROUNDDOWN(N$75/$F102,0)-SUM($AE102:AH102) -> 12 | AJ102: =ROUNDDOWN(O$75/$F102,0)-SUM($AE102:AI102) -> 13 | AK102: =ROUNDDOWN(P$75/$F102,0)-SUM($AE102:AJ102) -> 13 | AL102: =ROUNDDOWN(Q$75/$F102,0)-SUM($AE102:AK102) -> 13 | AM102: =ROUNDDOWN(R$75/$F102,0)-SUM($AE102:AL102) -> 12 | AN102: =ROUNDDOWN(S$75/$F102,0)-SUM($AE102:AM102) -> 13 | AO102: =ROUNDDOWN(T$75/$F102,0)-SUM($AE102:AN102) -> 13 | AP102: =ROUNDDOWN(U$75/$F102,0)-SUM($AE102:AO102) -> 13 | AQ102: =ROUNDDOWN(V$75/$F102,0)-SUM($AE102:AP102) -> 12 | AR102: =ROUNDDOWN(W$75/$F102,0)-SUM($AE102:AQ102) -> 13 | AS102: =ROUNDDOWN(X$75/$F102,0)-SUM($AE102:AR102) -> 13 | AT102: =ROUNDDOWN(Y$75/$F102,0)-SUM($AE102:AS102) -> 13 | AU102: =ROUNDDOWN(Z$75/$F102,0)-SUM($AE102:AT102) -> 13 | AV102: =ROUNDDOWN(AA$75/$F102,0)-SUM($AE102:AU102) -> 12 | AW102: =ROUNDDOWN(AB$75/$F102,0)-SUM($AE102:AV102) -> 13 | AX102: =ROUNDDOWN(AC$75/$F102,0)-SUM($AE102:AW102) -> 13
